Workbook

Sheet PI vs y
A1: Measurement | B1: Hall
A2: Type | B2: Off-axis
A4: PS type | B4: SXR
A5: PS serial no | B5: 16352
A7: Measurement date | B7: ='DF raw data'!B2 -> 12. jun 2017
C11: Nominal gap [mm] | D11: Encoder [counts] | E11: Encoder [mm] | F11: PI [T^2mm^3] | G11: y [mm] | H11: Encoder offset
C12: 10 | D12: =' 10 y=-0.2'!B3 -> 391240 | E12: =(D12-$H$12)*0.00005+10 -> 10.33165 | F12: =' 10 y=-0.2'!Q3 -> 4587.647499 | G12: -0.2 | H12: 384607
C13: 10 | D13: ='10 y=-0.1'!B3 -> 391241 | E13: =(D13-$H$12)*0.00005+10 -> 10.3317 | F13: ='10 y=-0.1'!Q3 -> 4586.398048 | G13: -0.1
C14: 10 | D14: ='10 y=0'!B3 -> 391241 | E14: 10.3317 | F14: ='10 y=0'!Q3 -> 4585.897291 | G14: 0
C15: 10 | D15: ='10 y=0.1'!B3 -> 391240 | E15: 10.33165 | F15: ='10 y=0.1'!Q3 -> 4586.09963 | G15: 0.1
C16: 10 | D16: ='10 y=0.2'!B3 -> 391240 | E16: 10.33165 | F16: ='10 y=0.2'!Q3 -> 4587.546917 | G16: 0.2
A41: Measuring series at 10 mm gap:
A42: Reference magnet
A43: Tref | B43: 21.19 | C43: degC
A44: Hall ref field | B44: 0.50516 | C44: T
A45: NMR ref field | B45: 0.50637 | C45: T
A53: Offset from Faro | B53: 0.627

Sheet 10 y=-0.2
A1: dz | B1: ='DF raw data'!B7 -> 0.50028 | C1: mm | F1: T_coeff | G1: -0.0008 | H1: /degC | L1: Hallref | M1: ='PI vs y'!B44 -> 0.50516 | N1: T | P1: IBy total | Q1: =P1203*1000 -> -12.16611844 | R1: muTm
A2: Tref | B2: ='DF raw data'!B8 -> 21.79 | C2: degC | F2: Tcorr | G2: 20 | H2: degC | L2: NMRref | M2: ='PI vs y'!B45 -> 0.50637 | N2: T | P2: JBy total | Q2: =Q1203 -> -7.201206847 | R2: muTm^2
A3: Encoder | B3: ='DF raw data'!B9 -> 391240 | P3: PI total | Q3: =R1203 -> 4587.647499 | R3: T^2mm^3
J4: SXR-rotation
A5: z [mm] | B5: Bx | C5: By | D5: Bz | F5: Bx_corr | G5: By_corr | H5: Bz_corr | J5: Bx_rot | K5: By_rot | L5: Bz_rot | N5: Ix | O5: Jx | P5: Iy | Q5: Jy | R5: PI
A6: ='PI vs y'!B53 -> 0.627 | B6: ='DF raw data'!A11 -> -1.1224285e-07 | C6: ='DF raw data'!B11 -> 2.3520101e-06 | D6: ='DF raw data'!C11 -> -4.0456317e-07 | F6: =(1-$G$1*($B$2-$G$2))*B6 -> -1.124035818e-07 | G6: =(1-$G$1*($B$2-$G$2))*C6*$M$2/$M$1 -> 2.36101997e-06 | H6: =(1-$G$1*($B$2-$G$2))*D6 -> -4.051425045e-07 | J6: =-CELL("contents", INDEX($F$6:$F$1203,1204-CELL("row",F6))) -> -6.607792428e-06 | K6: =CELL("contents", INDEX($G$6:$G$1203,1204-CELL("row",G6))) -> -6.54601038e-06 | L6: =-CELL("contents", INDEX($H$6:$H$1203,1204-CELL("row",H6))) -> -5.876027539e-06 | N6: =J6*$B$1 -> -3.305746396e-06 | O6: =N6*$B$1 -> -1.653798807e-06 | P6: =K6*$B$1 -> -3.274838073e-06 | Q6: =P6*$B$1 -> -1.638335991e-06 | R6: =(N6^2+P6^2)*$B$1 -> 1.083232453e-11
A7: =A6+$B$1 -> 1.12728 | B7: ='DF raw data'!A12 -> -6.071452e-08 | C7: ='DF raw data'!B12 -> 1.4628516e-06 | D7: ='DF raw data'!C12 -> 2.7213482e-06 | F7: =(1-$G$1*($B$2-$G$2))*B7 -> -6.080146319e-08 | G7: =(1-$G$1*($B$2-$G$2))*C7*$M$2/$M$1 -> 1.468455361e-06 | H7: =(1-$G$1*($B$2-$G$2))*D7 -> 2.725245171e-06 | J7: =-CELL("contents", INDEX($F$6:$F$1203,1204-CELL("row",F7))) -> -5.779579123e-06 | K7: =CELL("contents", INDEX($G$6:$G$1203,1204-CELL("row",G7))) -> -5.28538301e-06 | L7: =-CELL("contents", INDEX($H$6:$H$1203,1204-CELL("row",H7))) -> -5.690341517e-06 | N7: =J7*$B$1+N6 -> -6.197154239e-06 | O7: =N7*$B$1+O6 -> -4.75411113e-06 | P7: =K7*$B$1+P6 -> -5.919009485e-06 | Q7: =P7*$B$1+Q6 -> -4.599498057e-06 | R7: =(N7^2+P7^2)*$B$1+R6 -> 4.757258453e-11
A8: =A7+$B$1 -> 1.62756 | B8: ='DF raw data'!A13 -> -1.0303149e-07 | C8: ='DF raw data'!B13 -> 2.9122707e-06 | D8: ='DF raw data'!C13 -> 4.6267251e-06 | F8: -1.031790311e-07 | G8: 2.923426767e-06 | H8: 4.63335057e-06 | J8: -6.864083412e-06 | K8: 8.806398229e-06 | L8: -4.833164795e-06 | N8: =J8*$B$1+N7 -> -9.631117889e-06 | O8: =N8*$B$1+O7 -> -9.572366787e-06 | P8: =K8*$B$1+P7 -> -1.513344579e-06 | Q8: =P8*$B$1+Q7 -> -5.356594083e-06 | R8: =(N8^2+P8^2)*$B$1+R7 -> 9.512351995e-11
A9: 2.12784 | B9: ='DF raw data'!A14 -> -1.4323014e-08 | C9: ='DF raw data'!B14 -> 1.8034956e-07 | D9: ='DF raw data'!C14 -> 2.9709281e-06 | F9: -1.434352456e-08 | G9: 1.81040427e-07 | H9: 2.975182469e-06 | J9: -6.94261601e-06 | K9: 2.966957183e-06 | L9: -4.080824585e-06 | N9: -1.310436983e-05 | O9: -1.612822092e-05 | P9: -2.903523978e-08 | Q9: -5.371119832e-06 | R9: 1.810342788e-10
A10: 2.62812 | B10: ='DF raw data'!A15 -> 1.3780272e-07 | C10: ='DF raw data'!B15 -> -3.5941716e-06 | D10: ='DF raw data'!C15 -> 5.3238782e-06 | F10: 1.380000535e-07 | G10: -3.607939832e-06 | H10: 5.331501994e-06 | J10: -8.047901515e-06 | K10: -4.861870447e-06 | L10: -4.469523606e-06 | N10: -1.7130574e-05 | O10: -2.469830448e-05 | P10: -2.461331787e-06 | Q10: -6.602474899e-06 | R10: 3.308755028e-10
A11: 3.1284 | B11: ='DF raw data'!A16 -> 1.418627e-07 | C11: ='DF raw data'!B16 -> -3.570555e-06 | D11: ='DF raw data'!C16 -> 6.0097827e-06 | F11: =(1-$G$1*($B$2-$G$2))*B11 -> 1.420658474e-07 | G11: -3.584232763e-06 | H11: =(1-$G$1*($B$2-$G$2))*D11 -> 6.018388709e-06 | J11: -1.081508506e-05 | K11: 3.779024808e-06 | L11: -5.023113413e-06 | N11: -2.254114475e-05 | O11: -3.597518838e-05 | P11: -5.707612561e-07 | Q11: -6.88801534e-06 | R11: 5.852323504e-10
A12: 3.62868 | B12: ='DF raw data'!A17 -> 3.8370098e-07 | C12: ='DF raw data'!B17 -> -1.1356431e-05 | D12: ='DF raw data'!C17 -> -1.5437016e-06 | F12: 3.842504398e-07 | G12: -1.13999342e-05 | H12: -1.545912181e-06 | J12: -9.667961824e-06 | K12: 9.258306252e-06 | L12: -4.490384536e-06 | N12: -2.737783269e-05 | O12: -4.967177051e-05 | P12: 4.060984196e-06 | Q12: -4.856386166e-06 | R12: 9.684654985e-10
A13: 4.12896 | B13: ='DF raw data'!A18 -> 2.079575e-07 | C13: ='DF raw data'!B18 -> -6.3651873e-06 | D13: ='DF raw data'!C18 -> -7.7160615e-07 | F13: 2.082552951e-07 | G13: -6.389570491e-06 | H13: -7.7271109e-07 | J13: -7.97237091e-06 | K13: 7.04979798e-06 | L13: -3.713656752e-06 | N13: -3.136625041e-05 | O13: -6.536367827e-05 | P13: 7.587857129e-06 | Q13: -1.060333002e-06 | R13: 1.489465716e-09
A14: 4.62924 | B14: ='DF raw data'!A19 -> -6.9925882e-08 | C14: ='DF raw data'!B19 -> 1.3244875e-06 | D14: ='DF raw data'!C19 -> -1.0633623e-07 | F14: -7.002601586e-08 | G14: 1.329561228e-06 | H14: -1.064885035e-07 | J14: -8.859603911e-06 | K14: -2.145601815e-06 | L14: -3.940926136e-06 | N14: -3.579853305e-05 | O14: -8.327296838e-05 | P14: 6.514455454e-06 | Q14: 2.198718773e-06 | R14: 2.151822977e-09
A15: 5.12952 | B15: ='DF raw data'!A20 -> 1.5782615e-07 | C15: ='DF raw data'!B20 -> -6.1787896e-06 | D15: ='DF raw data'!C20 -> -7.8011853e-06 | F15: 1.58052157e-07 | G15: -6.202458756e-06 | H15: -7.812356597e-06 | J15: -8.603720911e-06 | K15: 2.171095802e-06 | L15: -4.297368432e-06 | N15: -4.010280255e-05 | O15: -0.0001033355984 | P15: 7.600611261e-06 | Q15: 6.001152574e-06 | R15: 2.98529149e-09
A16: 5.6298 | B16: ='DF raw data'!A21 -> -1.0717878e-07 | C16: ='DF raw data'!B21 -> 1.7730698e-06 | D16: ='DF raw data'!C21 -> -3.7741902e-06 | F16: -1.0733226e-07 | G16: 1.779861918e-06 | H16: -3.77959484e-06 | J16: -4.836459607e-06 | K16: 8.326364075e-06 | L16: -3.740645545e-06 | N16: -4.252238656e-05 | O16: -0.000124608698 | P16: 1.176612468e-05 | Q16: 1.188750943e-05 | R16: 3.959134062e-09
A17: 6.13008 | B17: ='DF raw data'!A22 -> 1.9786675e-08 | C17: ='DF raw data'!B22 -> -3.0465827e-07 | D17: ='DF raw data'!C22 -> 4.4290591e-06 | F17: 1.981500952e-08 | G17: -3.058253277e-07 | H17: 4.435401513e-06 | J17: 3.496334291e-07 | K17: -2.487675801e-07 | L17: -3.43792567e-06 | N17: -4.234747195e-05 | O17: -0.0001457942913 | P17: 1.164167124e-05 | Q17: 1.771160472e-05 | R17: 4.924092581e-09
A18: 6.63036 | B18: ='DF raw data'!A23 -> -5.6199889e-07 | C18: ='DF raw data'!B23 -> 1.6571345e-05 | D18: ='DF raw data'!C23 -> 1.0976912e-05 | F18: -5.628036724e-07 | G18: 1.663482503e-05 | H18: 1.099263094e-05 | J18: 1.297168489e-06 | K18: -9.397556444e-06 | L18: -4.497182757e-06 | N18: -4.16985245e-05 | O18: -0.0001666552291 | P18: 6.940261698e-06 | Q18: 2.118367884e-05 | R18: 5.818060011e-09
A19: 7.13064 | B19: ='DF raw data'!A24 -> -8.4012136e-08 | C19: ='DF raw data'!B24 -> 2.019643e-06 | D19: ='DF raw data'!C24 -> 2.4229175e-06 | F19: -8.413244138e-08 | G19: 2.027379668e-06 | H19: 2.426387118e-06 | J19: 7.748372303e-07 | K19: 1.13856517e-06 | L19: -5.495394452e-06 | N19: -4.131088893e-05 | O19: -0.0001873222406 | P19: 7.509863081e-06 | Q19: 2.494071314e-05 | R19: 6.700047441e-09
A20: 7.63092 | B20: ='DF raw data'!A25 -> -1.9254031e-07 | C20: ='DF raw data'!B25 -> 3.1224185e-06 | D20: ='DF raw data'!C25 -> -8.6724376e-06 | F20: -1.928160277e-07 | G20: 3.134379582e-06 | H20: -8.684856531e-06 | J20: 3.174276464e-07 | K20: 1.034990419e-05 | L20: -5.037912074e-06 | N20: -4.115208623e-05 | O20: -0.0002079098063 | P20: 1.268771315e-05 | Q20: 3.128812227e-05 | R20: 7.627802827e-09
A21: 8.1312 | B21: ='DF raw data'!A26 -> -2.7858579e-07 | C21: ='DF raw data'!B26 -> 5.6165727e-06 | D21: ='DF raw data'!C26 -> -7.7039494e-06 | F21: -2.789847249e-07 | G21: 5.638088165e-06 | H21: -7.714981456e-06 | J21: -6.872637644e-06 | K21: 6.140491182e-06 | L21: -3.927934559e-06 | N21: -4.459032939e-05 | O21: -0.0002302174563 | P21: 1.575967808e-05 | Q21: 3.917237402e-05 | R21: 8.746761557e-09
A22: 8.63148 | B22: ='DF raw data'!A27 -> 6.1586223e-07 | C22: ='DF raw data'!B27 -> 2.9277485e-06 | D22: ='DF raw data'!C27 -> 2.452538e-06 | F22: 6.167441447e-07 | G22: 2.938963858e-06 | H22: 2.456050034e-06 | J22: -1.421161493e-05 | K22: 4.932233258e-06 | L22: -3.344550748e-06 | N22: -5.17001161e-05 | O22: -0.0002560819904 | P22: 1.822717573e-05 | Q22: 4.82910655e-05 | R22: 1.025016896e-08
A23: 9.13176 | B23: ='DF raw data'!A28 -> 3.5320079e-06 | C23: ='DF raw data'!B28 -> -5.9590348e-06 | D23: ='DF raw data'!C28 -> 5.0164617e-06 | F23: 3.537065735e-06 | G23: -5.981862139e-06 | H23: 5.023645273e-06 | J23: -1.526422712e-05 | K23: -2.350527329e-06 | L23: -8.422706068e-07 | N23: -5.933650365e-05 | O23: -0.0002857668564 | P23: 1.705125392e-05 | Q23: 5.682146681e-05 | R23: 1.215701916e-08
A24: 9.63204 | B24: ='DF raw data'!A29 -> 4.3341383e-06 | C24: ='DF raw data'!B29 -> -5.1788861e-06 | D24: ='DF raw data'!C29 -> 2.3045232e-06 | F24: 4.340344786e-06 | G24: -5.198724915e-06 | H24: 2.307823277e-06 | J24: -9.891486053e-06 | K24: 1.641101495e-06 | L24: 3.110108006e-06 | N24: -6.428501629e-05 | O24: -0.0003179273644 | P24: 1.787226418e-05 | Q24: 6.576260313e-05 | R24: 1.438425629e-08
A25: 10.13232 | B25: ='DF raw data'!A30 -> 1.609758e-06 | C25: ='DF raw data'!B30 -> -1.7575468e-06 | D25: ='DF raw data'!C30 -> 3.9361666e-07 | F25: 1.612063173e-06 | G25: -1.764279453e-06 | H25: 3.941803191e-07 | J25: -7.899842398e-06 | K25: -9.190354141e-06 | L25: 5.982893152e-06 | N25: -6.823714944e-05 | O25: -0.0003520650455 | P25: 1.327451381e-05 | Q25: 7.24035769e-05 | R25: 1.680187004e-08
A26: 10.6326 | B26: ='DF raw data'!A31 -> -1.736193e-06 | C26: ='DF raw data'!B31 -> -9.4844481e-06 | D26: ='DF raw data'!C31 -> -3.2780354e-06 | F26: -1.738679228e-06 | G26: -9.520780277e-06 | H26: -3.282729547e-06 | J26: -1.168126766e-05 | K26: 6.347693585e-06 | L26: 5.049741489e-06 | N26: -7.408105403e-05 | O26: -0.0003891263152 | P26: 1.645013795e-05 | Q26: 8.063325191e-05 | R26: 1.968278725e-08
A27: 11.13288 | B27: ='DF raw data'!A32 -> -4.5741076e-06 | C27: ='DF raw data'!B32 -> -4.1420235e-06 | D27: ='DF raw data'!C32 -> 4.6725781e-06 | F27: -4.580657722e-06 | G27: -4.157890394e-06 | H27: 4.679269232e-06 | J27: -1.077136654e-05 | K27: -6.092495526e-06 | L27: 1.10449137e-05 | N27: -7.946975328e-05 | O27: -0.0004288834434 | P27: 1.340218429e-05 | Q27: 8.733809667e-05 | R27: 2.293213598e-08
A28: 11.63316 | B28: ='DF raw data'!A33 -> 8.5569235e-07 | C28: ='DF raw data'!B33 -> -5.4496064e-07 | D28: ='DF raw data'!C33 -> 6.6684679e-06 | F28: 8.569177014e-07 | G28: -5.470482266e-07 | H28: 6.678017146e-06 | J28: -8.23466598e-06 | K28: -1.394369041e-05 | L28: 1.001584418e-05 | N28: -8.358939198e-05 | O28: -0.0004707015444 | P28: 6.426434853e-06 | Q28: 9.05531135e-05 | R28: 2.644834672e-08
A29: 12.13344 | B29: ='DF raw data'!A34 -> 7.5909674e-07 | C29: ='DF raw data'!B34 -> 8.6549807e-07 | D29: ='DF raw data'!C34 -> 2.839015e-06 | F29: 7.601837665e-07 | G29: 8.688135428e-07 | H29: 2.843080469e-06 | J29: -8.511868867e-06 | K29: -4.377415221e-06 | L29: 2.700278369e-06 | N29: -8.784770973e-05 | O29: -0.0005146499966 | P29: 4.236501566e-06 | Q29: 9.26725505e-05 | R29: 3.031809659e-08
A30: 12.63372 | B30: ='DF raw data'!A35 -> 6.3467786e-07 | C30: ='DF raw data'!B35 -> 2.5977829e-06 | D30: ='DF raw data'!C35 -> 8.6414675e-06 | F30: 6.355867187e-07 | G30: 2.607734255e-06 | H30: 8.653842081e-06 | J30: -9.320161186e-06 | K30: -2.51915543e-06 | L30: -1.643859541e-06 | N30: -9.251039997e-05 | O30: -0.0005609310995 | P30: 2.976218488e-06 | Q30: 9.416149309e-05 | R30: 3.460401135e-08
A31: 13.134 | B31: ='DF raw data'!A36 -> 2.140481e-06 | C31: ='DF raw data'!B36 -> -2.9505151e-07 | D31: ='DF raw data'!C36 -> 1.5009447e-06 | F31: 2.143546169e-06 | G31: -2.96181767e-07 | H31: 1.503094053e-06 | J31: -1.093567449e-05 | K31: -1.530690958e-06 | L31: 6.59808685e-07 | N31: -9.798129921e-05 | O31: -0.0006099491839 | P31: 2.210444415e-06 | Q31: 9.526733422e-05 | R31: 3.940931134e-08
A32: 13.63428 | B32: ='DF raw data'!A37 -> -1.2037384e-06 | C32: ='DF raw data'!B37 -> 2.9945954e-06 | D32: ='DF raw data'!C37 -> 3.2806656e-06 | F32: -1.205462153e-06 | G32: 3.006066829e-06 | H32: 3.285363513e-06 | J32: -1.1609475e-05 | K32: 5.831093692e-06 | L32: -2.478506646e-06 | N32: -0.0001037892874 | O32: -0.0006618728886 | P32: 5.127623967e-06 | Q32: 9.783258194e-05 | R32: 4.481158927e-08
A33: 14.13456 | B33: ='DF raw data'!A38 -> 1.1544577e-06 | C33: ='DF raw data'!B38 -> -5.4554807e-06 | D33: ='DF raw data'!C38 -> 7.7624227e-06 | F33: 1.156110883e-06 | G33: -5.476379069e-06 | H33: 7.773538489e-06 | J33: -8.62751824e-06 | K33: 4.348932127e-06 | L33: -9.728830363e-06 | N33: -0.0001081054622 | O33: -0.0007159558892 | P33: 7.303307732e-06 | Q33: 0.0001014862807 | R33: 5.068494114e-08
A34: 14.63484 | B34: ='DF raw data'!A39 -> 4.2823335e-06 | C34: ='DF raw data'!B39 -> -2.9658631e-06 | D34: ='DF raw data'!C39 -> 7.1600704e-07 | F34: 4.288465802e-06 | G34: -2.977224464e-06 | H34: 7.170323621e-07 | J34: -7.474040622e-06 | K34: 5.958067135e-06 | L34: -9.315736559e-06 | N34: -0.0001118445752 | O34: -0.0007719094933 | P34: 1.028400956e-05 | Q34: 0.000106631165 | R34: 5.699595826e-08
A35: 15.13512 | B35: ='DF raw data'!A40 -> 6.4255045e-07 | C35: ='DF raw data'!B40 -> 6.1676274e-06 | D35: ='DF raw data'!C40 -> -2.0055868e-06 | F35: 6.434705822e-07 | G35: 6.191253797e-06 | H35: -2.0084588e-06 | J35: -8.060404995e-06 | K35: 4.292677956e-06 | L35: -9.687370878e-06 | N35: -0.0001158770346 | O35: -0.0008298804562 | P35: 1.243155049e-05 | Q35: 0.0001128504211 | R35: 6.379077653e-08
A36: 15.6354 | B36: ='DF raw data'!A41 -> -5.0451677e-06 | C36: ='DF raw data'!B41 -> 5.4317761e-06 | D36: ='DF raw data'!C41 -> -5.5231607e-07 | F36: -5.05239238e-06 | G36: 5.452583663e-06 | H36: -5.531069866e-07 | J36: -7.454046831e-06 | K36: -1.822006746e-06 | L36: -2.737238521e-06 | N36: -0.0001196061452 | O36: -0.0008897170185 | P36: 1.152003695e-05 | Q36: 0.0001186136652 | R36: 7.101398987e-08
A37: 16.13568 | B37: ='DF raw data'!A42 -> -2.4588264e-06 | C37: ='DF raw data'!B42 -> 7.7909017e-06 | D37: ='DF raw data'!C42 -> 2.4601268e-06 | F37: -2.462347439e-06 | G37: 7.820746391e-06 | H37: 2.463649702e-06 | J37: -1.010018278e-05 | K37: 1.138029425e-06 | L37: 3.906698392e-06 | N37: -0.0001246590646 | O37: -0.0009520814553 | P37: 1.208937031e-05 | Q37: 0.0001246617354 | R37: 7.88613996e-08
A38: 16.63596 | B38: ='DF raw data'!A43 -> 1.2716006e-06 | C38: ='DF raw data'!B43 -> 2.6970529e-06 | D38: ='DF raw data'!C43 -> 3.5134744e-06 | F38: 1.273421532e-06 | G38: 2.70738453e-06 | H38: 3.518505695e-06 | J38: -1.371408649e-05 | K38: 9.458410167e-06 | L38: -1.653987623e-06 | N38: -0.0001315199478 | O38: -0.001017878255 | P38: 1.682122375e-05 | Q38: 0.0001330770572 | R38: 8.765654724e-08
A39: 17.13624 | B39: ='DF raw data'!A44 -> 2.8074389e-06 | C39: ='DF raw data'!B44 -> 1.9676067e-06 | D39: ='DF raw data'!C44 -> 4.2769724e-07 | F39: 2.811459153e-06 | G39: 1.975144032e-06 | H39: 4.283097024e-07 | J39: -1.29251183e-05 | K39: -3.620794286e-07 | L39: 2.369236495e-06 | N39: -0.000137986126 | O39: -0.001086909954 | P39: 1.664008265e-05 | Q39: 0.0001414017577 | R39: 9.732048768e-08
A40: 17.63652 | B40: ='DF raw data'!A45 -> 4.4944713e-06 | C40: ='DF raw data'!B45 -> -7.9596421e-06 | D40: ='DF raw data'!C45 -> -7.5506741e-06 | F40: 4.500907383e-06 | G40: -7.990133187e-06 | H40: -7.561486665e-06 | J40: -1.252170744e-05 | K40: 5.964093733e-06 | L40: 6.270855624e-07 | N40: -0.0001442504858 | O40: -0.001159075587 | P40: 1.962379947e-05 | Q40: 0.0001512191521 | R40: 1.079230699e-07
A41: 18.1368 | B41: ='DF raw data'!A46 -> 1.0546024e-06 | C41: ='DF raw data'!B46 -> 1.6046891e-07 | D41: ='DF raw data'!C46 -> -4.4722165e-06 | F41: 1.056112591e-06 | G41: 1.6108362e-07 | H41: -4.478620714e-06 | J41: -1.370506659e-05 | K41: 7.647698524e-06 | L41: 4.594852921e-06 | N41: -0.0001511068565 | O41: -0.001234671325 | P41: 2.344979008e-05 | Q41: 0.0001629506131 | R41: 1.196212045e-07
A42: 18.63708 | B42: ='DF raw data'!A47 -> -2.7757526e-06 | C42: ='DF raw data'!B47 -> 6.7069431e-07 | D42: ='DF raw data'!C47 -> -1.2345607e-06 | F42: -2.779727478e-06 | G42: 6.732635459e-07 | H42: -1.236328591e-06 | J42: -1.320513371e-05 | K42: -5.269444688e-06 | L42: 4.856569963e-07 | N42: -0.0001577131208 | O42: -0.001313572045 | P42: 2.08135923e-05 | Q42: 0.0001733632371 | R42: 1.322816074e-07
A43: 19.13736 | B43: ='DF raw data'!A48 -> -3.4740845e-06 | C43: ='DF raw data'!B48 -> -4.1851208e-06 | D43: ='DF raw data'!C48 -> 2.2559998e-06 | F43: -3.479059389e-06 | G43: -4.201152787e-06 | H43: 2.259230392e-06 | J43: -1.14579333e-05 | K43: -9.973759287e-06 | L43: -6.519261533e-06 | N43: -0.0001634452957 | O43: -0.001395340458 | P43: 1.582392e-05 | Q43: 0.0001812796278 | R43: 1.457715381e-07
A44: 19.63764 | B44: ='DF raw data'!A49 -> -6.2459917e-06 | C44: ='DF raw data'!B49 -> 3.4645259e-06 | D44: ='DF raw data'!C49 -> -3.4559881e-07 | F44: -6.25493596e-06 | G44: 3.477797497e-06 | H44: -3.460937075e-07 | J44: -8.174509559e-06 | K44: -4.626540606e-06 | L44: -9.254020909e-06 | N44: -0.0001675348393 | O44: -0.001479154787 | P44: 1.350935426e-05 | Q44: 0.0001880380875 | R44: 1.599046608e-07
A45: 20.13792 | B45: ='DF raw data'!A50 -> -6.3338998e-06 | C45: ='DF raw data'!B50 -> -2.1966555e-06 | D45: ='DF raw data'!C50 -> -2.5545942e-06 | F45: -6.342969945e-06 | G45: -2.205070252e-06 | H45: -2.558252379e-06 | J45: -4.62202157e-06 | K45: -7.475676071e-06 | L45: -1.841604507e-06 | N45: -0.0001698471443 | O45: -0.001564125916 | P45: 9.76942304e-06 | Q45: 0.0001929255345 | R45: 1.74384512e-07
A46: 20.6382 | B46: ='DF raw data'!A51 -> -2.8735415e-06 | C46: ='DF raw data'!B51 -> -2.9002169e-06 | D46: ='DF raw data'!C51 -> -4.2711526e-06 | F46: -2.877656411e-06 | G46: -2.911326792e-06 | H46: -4.277268891e-06 | J46: -7.614740516e-06 | K46: -1.43434951e-05 | L46: 4.62577634e-06 | N46: -0.0001736566467 | O46: -0.001651002864 | P46: 2.59365931e-06 | Q46: 0.0001942230904 | R46: 1.894746367e-07
A47: 21.13848 | B47: ='DF raw data'!A52 -> -1.9537295e-06 | C47: ='DF raw data'!B52 -> 1.185323e-06 | D47: ='DF raw data'!C52 -> -7.9466754e-06 | F47: -1.956527241e-06 | G47: 1.18986363e-06 | H47: -7.958055039e-06 | J47: -1.31870849e-05 | K47: 1.466181584e-07 | L47: 5.610345627e-07 | N47: -0.0001802538815 | O47: -0.001741180276 | P47: 2.667009443e-06 | Q47: 0.0001955573418 | R47: 2.057330237e-07
A48: 21.63876 | B48: ='DF raw data'!A53 -> -3.3349827e-06 | C48: ='DF raw data'!B53 -> 4.5873157e-06 | D48: ='DF raw data'!C53 -> 2.4070123e-06 | F48: -3.339758395e-06 | G48: 4.60488838e-06 | H48: 2.410459142e-06 | J48: -1.481897142e-05 | K48: -1.277668601e-05 | L48: -7.919761481e-06 | N48: -0.0001876675165 | O48: -0.001835066581 | P48: -3.724911037e-06 | Q48: 0.0001936938434 | R48: 2.233593748e-07
A49: 22.13904 | B49: ='DF raw data'!A54 -> 6.6718684e-07 | C49: ='DF raw data'!B54 -> -7.7516288e-06 | D49: ='DF raw data'!C54 -> 5.367403e-06 | F49: 6.681422516e-07 | G49: -7.781323048e-06 | H49: 5.375089121e-06 | J49: -9.211346486e-06 | K49: -3.060936015e-06 | L49: -4.2580438e-06 | N49: -0.0001922757689 | O49: -0.001931258302 | P49: -5.256236106e-06 | Q49: 0.0001910642536 | R49: 2.418685338e-07
A50: 22.63932 | B50: ='DF raw data'!A55 -> 3.6181843e-06 | C50: ='DF raw data'!B55 -> -6.2114791e-06 | D50: ='DF raw data'!C55 -> 8.7283861e-06 | F50: 3.62336554e-06 | G50: -6.23527348e-06 | H50: 8.740885149e-06 | J50: -8.688607194e-06 | K50: -9.491848973e-06 | L50: 6.620596838e-06 | N50: -0.0001966225053 | O50: -0.002029624609 | P50: -1.000481831e-05 | Q50: 0.0001860590431 | R50: 2.612596397e-07
A51: 23.1396 | B51: ='DF raw data'!A56 -> -1.0383268e-06 | C51: ='DF raw data'!B56 -> 2.9237458e-06 | D51: ='DF raw data'!C56 -> 5.1940315e-06 | F51: -1.039813684e-06 | G51: 2.934945824e-06 | H51: 5.201469353e-06 | J51: -1.642098322e-05 | K51: -7.05872595e-06 | L51: 6.47670548e-06 | N51: -0.0002048375948 | O51: -0.002132100761 | P51: -1.353615773e-05 | Q51: 0.0001792871741 | R51: 2.823422733e-07
A52: 23.63988 | B52: ='DF raw data'!A57 -> -4.2977667e-06 | C52: ='DF raw data'!B57 -> 3.4599893e-06 | D52: ='DF raw data'!C57 -> -4.0700888e-06 | F52: -4.303921102e-06 | G52: 3.473243518e-06 | H52: -4.075917167e-06 | J52: -2.250066988e-05 | K52: -1.633421588e-06 | L52: 3.696289718e-06 | N52: -0.00021609423 | O52: -0.002240208383 | P52: -1.435332588e-05 | Q52: 0.0001721064922 | R52: 3.058067731e-07
A53: 24.14016 | B53: ='DF raw data'!A58 -> -5.7644066e-08 | C53: ='DF raw data'!B58 -> 3.8275812e-06 | D53: ='DF raw data'!C58 -> -5.2847809e-06 | F53: -5.77266123e-08 | G53: 3.842243556e-06 | H53: -5.292348706e-06 | J53: -1.748949414e-05 | K53: 5.053179701e-06 | L53: 3.940157437e-06 | N53: -0.0002248438741 | O53: -0.002352693276 | P53: -1.182532114e-05 | Q53: 0.0001661905205 | R53: 3.311682706e-07
A54: 24.64044 | B54: ='DF raw data'!A59 -> 1.3033092e-06 | C54: ='DF raw data'!B59 -> 5.8168471e-06 | D54: ='DF raw data'!C59 -> -3.7767222e-06 | F54: 1.305175539e-06 | G54: 5.839129759e-06 | H54: -3.782130466e-06 | J54: -1.001836378e-05 | K54: -4.691099168e-06 | L54: 1.796111754e-06 | N54: -0.0002298558611 | O54: -0.002467685566 | P54: -1.417218423e-05 | Q54: 0.0001591004602 | R54: 3.577004041e-07
A55: 25.14072 | B55: ='DF raw data'!A60 -> -2.380005e-07 | C55: ='DF raw data'!B60 -> -2.7723938e-06 | D55: ='DF raw data'!C60 -> 4.1967887e-06 | F55: -2.383413167e-07 | G55: -2.783014039e-06 | H55: 4.202798501e-06 | J55: -8.710932618e-06 | K55: -4.325581318e-06 | L55: 7.667590889e-06 | N55: -0.0002342137665 | O55: -0.002584858029 | P55: -1.633618605e-05 | Q55: 0.000150927793 | R55: 3.852773183e-07
A56: 25.641 | B56: ='DF raw data'!A61 -> 3.94064e-06 | C56: ='DF raw data'!B61 -> 4.2425444e-07 | D56: ='DF raw data'!C61 -> 7.2969433e-06 | F56: 3.946282996e-06 | G56: 4.25879636e-07 | H56: 7.307392523e-06 | J56: -9.342355523e-06 | K56: 6.399929623e-06 | L56: 8.470447636e-06 | N56: -0.0002388875601 | O56: -0.002704368698 | P56: -1.313442926e-05 | Q56: 0.0001443569008 | R56: 4.139132352e-07
A57: 26.14128 | B57: ='DF raw data'!A62 -> 7.3717633e-06 | C57: ='DF raw data'!B62 -> -3.0653998e-06 | D57: ='DF raw data'!C62 -> 5.8303576e-06 | F57: 7.382319665e-06 | G57: -3.07714246e-06 | H57: 5.838706672e-06 | J57: -1.230232173e-05 | K57: 1.443582544e-05 | L57: 1.04284612e-06 | N57: -0.0002450421656 | O57: -0.002826958392 | P57: -5.912474509e-06 | Q57: 0.000141399008 | R57: 4.439703679e-07
A58: 26.64156 | B58: ='DF raw data'!A63 -> 5.8845285e-06 | C58: ='DF raw data'!B63 -> -1.0718645e-06 | D58: ='DF raw data'!C63 -> -8.5806636e-07 | F58: 5.892955145e-06 | G58: -1.075970503e-06 | H58: -8.59295111e-07 | J58: -1.634604306e-05 | K58: -6.447029761e-06 | L58: -1.57414345e-06 | N58: -0.0002532197641 | O58: -0.002953639176 | P58: -9.137794558e-06 | Q58: 0.0001368275522 | R58: 4.760902191e-07
A59: 27.14184 | B59: ='DF raw data'!A64 -> 2.2229176e-06 | C59: ='DF raw data'!B64 -> 5.0911367e-06 | D59: ='DF raw data'!C64 -> -6.4551332e-06 | F59: 2.226100818e-06 | G59: 5.110639372e-06 | H59: -6.464376951e-06 | J59: -1.530011944e-05 | K59: 2.102388509e-07 | L59: 2.315914748e-06 | N59: -0.0002608741078 | O59: -0.003084149275 | P59: -9.032616265e-06 | Q59: 0.0001323087149 | R59: 5.101777415e-07
A60: 27.64212 | B60: ='DF raw data'!A65 -> 2.0115219e-06 | C60: ='DF raw data'!B65 -> 1.0767529e-05 | D60: ='DF raw data'!C65 -> 2.488212e-06 | F60: 2.014402399e-06 | G60: 1.080877629e-05 | H60: 2.49177512e-06 | J60: -1.380706845e-05 | K60: -2.958205285e-06 | L60: 5.610996457e-06 | N60: -0.000267781508 | O60: -0.003218115007 | P60: -1.051254721e-05 | Q60: 0.0001270494978 | R60: 5.461065753e-07
A61: 28.1424 | B61: ='DF raw data'!A66 -> 9.0214126e-06 | C61: ='DF raw data'!B66 -> 6.0463417e-06 | D61: ='DF raw data'!C66 -> 9.5368832e-06 | F61: 9.034331263e-06 | G61: 6.069503486e-06 | H61: 9.550540017e-06 | J61: -1.006902623e-05 | K61: 4.753028195e-07 | L61: 7.112004728e-06 | N61: -0.0002728188404 | O61: -0.003354600817 | P61: -1.027476271e-05 | Q61: 0.0001219092395 | R61: 5.833952905e-07
A62: 28.64268 | B62: ='DF raw data'!A67 -> 1.2159177e-05 | C62: ='DF raw data'!B67 -> 1.7764054e-06 | D62: ='DF raw data'!C67 -> 5.5341243e-06 | F62: 1.217658894e-05 | G62: 1.783210295e-06 | H62: 5.542049166e-06 | J62: -5.0727568e-06 | K62: 1.810399652e-06 | L62: 1.110289862e-05 | N62: -0.0002753566392 | O62: -0.003492356236 | P62: -9.369055973e-06 | Q62: 0.0001172220882 | R62: 6.21371074e-07
A63: 29.14296 | B63: ='DF raw data'!A68 -> 6.2295544e-06 | C63: ='DF raw data'!B68 -> 1.1927949e-06 | D63: ='DF raw data'!C68 -> 1.6026407e-06 | F63: 6.238475122e-06 | G63: 1.197364152e-06 | H63: 1.604935681e-06 | J63: -3.725170817e-06 | K63: 8.520306276e-06 | L63: 1.134683643e-06 | N63: -0.0002772202677 | O63: -0.003631043992 | P63: -5.106517149e-06 | Q63: 0.0001146673998 | R63: 6.598311763e-07
A64: 29.64324 | B64: ='DF raw data'!A69 -> -7.5104282e-07 | C64: ='DF raw data'!B69 -> -5.4540133e-06 | D64: ='DF raw data'!C69 -> 5.7457697e-07 | F64: -7.521183133e-07 | G64: -5.474906047e-06 | H64: 5.753997642e-07 | J64: -4.393549967e-06 | K64: 1.097954797e-05 | L64: -5.441672031e-06 | N64: -0.0002794182729 | O64: -0.003770831366 | P64: 3.863311094e-07 | Q64: 0.0001148606735 | R64: 6.988903974e-07
A65: 30.14352 | B65: ='DF raw data'!A70 -> 4.1541789e-08 | C65: ='DF raw data'!B70 -> 9.4088449e-07 | D65: ='DF raw data'!C70 -> -3.0056308e-06 | F65: 4.160127684e-08 | G65: 9.444887463e-07 | H65: -3.009934863e-06 | J65: -3.517479929e-06 | K65: -4.985629322e-06 | L65: 1.069507044e-06 | N65: -0.0002811779977 | O65: -0.003911499094 | P65: -2.107879528e-06 | Q65: 0.0001138061435 | R65: 7.384452905e-07
A66: 30.6438 | B66: ='DF raw data'!A71 -> 8.6667824e-06 | C66: ='DF raw data'!B71 -> -2.6744583e-06 | D66: ='DF raw data'!C71 -> 1.8801749e-06 | F66: 8.679193232e-06 | G66: -2.684703376e-06 | H66: 1.88286731e-06 | J66: -5.50940028e-06 | K66: -6.164554108e-06 | L66: 7.801091889e-06 | N66: -0.0002839342405 | O66: -0.004053545716 | P66: -5.191882657e-06 | Q66: 0.0001112087485 | R66: 7.787906756e-07
A67: 31.14408 | B67: ='DF raw data'!A72 -> 1.5656315e-05 | C67: ='DF raw data'!B72 -> -6.3036773e-06 | D67: ='DF raw data'!C72 -> 7.7670138e-06 | F67: 1.567873484e-05 | G67: -6.327824864e-06 | H67: 7.778136164e-06 | J67: -4.697231517e-06 | K67: 2.061319285e-05 | L67: 5.329669473e-06 | N67: -0.0002862841715 | O67: -0.004196767961 | P67: 5.120485461e-06 | Q67: 0.0001137704249 | R67: 8.198060544e-07
A68: 31.64436 | B68: ='DF raw data'!A73 -> 9.089501e-06 | C68: ='DF raw data'!B73 -> -4.7101566e-06 | D68: ='DF raw data'!C73 -> 1.0131678e-05 | F68: 9.102517165e-06 | G68: -4.728199847e-06 | H68: 1.014618656e-05 | J68: 5.236321089e-07 | K68: -6.004849962e-08 | L68: 2.865169155e-06 | N68: -0.0002860222088 | O68: -0.004339859152 | P68: 5.090444398e-06 | Q68: 0.0001163170725 | R68: 8.607462764e-07
A69: 32.14464 | B69: ='DF raw data'!A74 -> -8.9280758e-07 | C69: ='DF raw data'!B74 -> -1.3267055e-07 | D69: ='DF raw data'!C74 -> 9.6986787e-06 | F69: -8.940860805e-07 | G69: -1.331787725e-07 | H69: 9.712567208e-06 | J69: 3.233595888e-06 | K69: -5.126800043e-06 | L69: 3.334513796e-06 | N69: -0.0002844045054 | O69: -0.004482141038 | P69: 2.525608872e-06 | Q69: 0.0001175805841 | R69: 9.01215077e-07
A70: 32.64492 | B70: ='DF raw data'!A75 -> -1.42278e-07 | C70: ='DF raw data'!B75 -> 6.1278701e-07 | D70: ='DF raw data'!C75 -> 1.5699644e-06 | F70: -1.424817421e-07 | G70: 6.151344198e-07 | H70: 1.572212589e-06 | J70: -3.1941626e-07 | K70: 8.163093318e-06 | L70: 6.714765995e-06 | N70: -0.000284564303 | O70: -0.004624502867 | P70: 6.609441198e-06 | Q70: 0.0001208871553 | R70: 9.417480263e-07
A71: 33.1452 | B71: ='DF raw data'!A76 -> -1.2186166e-07 | C71: ='DF raw data'!B76 -> -3.0652615e-07 | D71: ='DF raw data'!C76 -> -3.495732e-06 | F71: -1.220361659e-07 | G71: =(1-$G$1*($B$2-$G$2))*C71*$M$2/$M$1 -> -3.07700363e-07 | H71: -3.500737888e-06 | J71: =-CELL("contents", INDEX($F$6:$F$1203,1204-CELL("row",F71))) -> -6.559993778e-06 | K71: =CELL("contents", INDEX($G$6:$G$1203,1204-CELL("row",G71))) -> 1.794331234e-07 | L71: =-CELL("contents", INDEX($H$6:$H$1203,1204-CELL("row",H71))) -> 1.121314226e-05 | N71: -0.0002878461367 | O71: -0.004768506533 | P71: 6.699208001e-06 | Q71: 0.0001242386351 | R71: 9.832213773e-07
A72: =A71+$B$1 -> 33.64548 | B72: ='DF raw data'!A77 -> 7.3587188e-07 | C72: ='DF raw data'!B77 -> 7.6549395e-06 | D72: ='DF raw data'!C77 -> -2.8759805e-06 | F72: 7.369256485e-07 | G72: 7.684263359e-06 | H72: -2.880098904e-06 | J72: -6.489009875e-06 | K72: -6.673921401e-06 | L72: 9.215916822e-06 | N72: =J72*$B$1+N71 -> -0.0002910924586 | O72: =N72*$B$1+O71 -> -0.004914134268 | P72: =K72*$B$1+P71 -> 3.360378602e-06 | Q72: =P72*$B$1+Q71 -> 0.0001259197653 | R72: =(N72^2+P72^2)*$B$1+R71 -> 1.025618162e-06
A73: 34.14576 | B73: ='DF raw data'!A78 -> 6.7647447e-06 | C73: ='DF raw data'!B78 -> 2.9465618e-06 | D73: ='DF raw data'!C78 -> -4.4712851e-06 | F73: 6.774431814e-06 | G73: 2.957849226e-06 | H73: -4.47768798e-06 | J73: -8.251774344e-06 | K73: -6.120354538e-06 | L73: 4.474292525e-06 | N73: -0.0002952206562 | O73: -0.005061827258 | P73: 2.984876339e-07 | Q73: 0.0001260690927 | R73: 1.069220228e-06
A74: 34.64604 | B74: ='DF raw data'!A79 -> 8.3021841e-06 | C74: ='DF raw data'!B79 -> -2.166501e-06 | D74: ='DF raw data'!C79 -> -4.8631537e-06 | F74: 8.314072828e-06 | G74: -2.174800239e-06 | H74: -4.870117736e-06 | J74: -1.080720178e-05 | K74: -1.323488555e-06 | L74: 4.26960363e-06 | N74: -0.0003006272831 | O74: -0.005212225075 | P74: -3.636272202e-07 | Q74: 0.0001258871773 | R74: 1.114433981e-06
A75: 35.14632 | B75: ='DF raw data'!A80 -> 1.2641937e-06 | C75: ='DF raw data'!B80 -> 1.5186241e-06 | D75: ='DF raw data'!C80 -> -7.4097825e-06 | F75: =(1-$G$1*($B$2-$G$2))*B75 -> 1.266004025e-06 | G75: 1.52444151e-06 | H75: =(1-$G$1*($B$2-$G$2))*D75 -> -7.420393309e-06 | J75: -1.227652084e-05 | K75: -4.147979071e-06 | L75: 9.620879098e-06 | N75: -0.000306768981 | O75: -0.005365695461 | P75: -2.43877819e-06 | Q75: 0.0001246671053 | R75: 1.161516911e-06
A76: 35.6466 | B76: ='DF raw data'!A81 -> -8.7286317e-08 | C76: ='DF raw data'!B81 -> 5.7437292e-06 | D76: ='DF raw data'!C81 -> -9.6997737e-06 | F76: -8.741131101e-08 | G76: 5.765731765e-06 | H76: -9.713663776e-06 | J76: -1.539063087e-05 | K76: 4.117620721e-06 | L76: 1.654061429e-07 | N76: -0.0003144686058 | O76: -0.005523017815 | P76: -3.788148957e-07 | Q76: 0.0001244775918 | R76: 1.210989924e-06
A77: 36.14688 | B77: ='DF raw data'!A82 -> 2.6248124e-06 | C77: ='DF raw data'!B82 -> 1.0461584e-06 | D77: ='DF raw data'!C82 -> -1.2069568e-05 | F77: 2.628571131e-06 | G77: 1.05016593e-06 | H77: -1.208685162e-05 | J77: -1.471396026e-05 | K77: -7.933208958e-06 | L77: 1.148168326e-07 | N77: -0.0003218297058 | O77: -0.00568402278 | P77: -4.347640673e-06 | Q77: 0.0001223025541 | R77: 1.262815561e-06
A78: 36.64716 | B78: ='DF raw data'!A83 -> -1.9796901e-06 | C78: ='DF raw data'!B83 -> 3.112812e-06 | D78: ='DF raw data'!C83 -> -7.4180916e-06 | F78: -1.982525016e-06 | G78: 3.124736282e-06 | H78: -7.428714307e-06 | J78: -9.598304017e-06 | K78: -9.221963264e-06 | L78: 7.283224864e-07 | N78: -0.0003266315454 | O78: -0.00584743001 | P78: -8.961204455e-06 | Q78: 0.0001178194428 | R78: 1.316229691e-06
A79: 37.14744 | B79: ='DF raw data'!A84 -> -7.6633478e-06 | C79: ='DF raw data'!B84 -> 3.8032977e-06 | D79: ='DF raw data'!C84 -> -1.5621389e-06 | F79: -7.674321714e-06 | G79: 3.817867033e-06 | H79: -1.564375883e-06 | J79: -1.21136199e-05 | K79: 4.356298939e-06 | L79: -1.309276403e-06 | N79: -0.0003326917471 | O79: -0.006013869037 | P79: -6.781835222e-06 | Q79: 0.0001144266262 | R79: 1.371625591e-06
A80: 37.64772 | B80: ='DF raw data'!A85 -> -5.4919842e-06 | C80: ='DF raw data'!B85 -> 8.8017459e-06 | D80: ='DF raw data'!C85 -> -2.7664992e-06 | F80: -5.499848721e-06 | G80: 8.835462843e-06 | H80: -2.770460827e-06 | J80: -1.356469387e-05 | K80: 1.060585894e-05 | L80: -5.366957493e-06 | N80: -0.0003394778922 | O80: -0.006183703037 | P80: -1.475936112e-06 | Q80: 0.0001136882449 | R80: 1.429281569e-06
A81: 38.148 | B81: ='DF raw data'!A86 -> -4.4390804e-06 | C81: ='DF raw data'!B86 -> -2.931439e-06 | D81: ='DF raw data'!C86 -> -3.0766196e-07 | F81: -4.445437163e-06 | G81: -2.942668495e-06 | H81: -3.081025319e-07 | J81: -1.088346784e-05 | K81: -1.416575583e-06 | L81: -1.545886945e-06 | N81: -0.0003449226735 | O81: -0.006356260952 | P81: -2.184620545e-06 | Q81: 0.0001125953229 | R81: 1.488803094e-06
A82: 38.64828 | B82: ='DF raw data'!A87 -> -2.9748664e-06 | C82: ='DF raw data'!B87 -> -9.2949773e-07 | D82: ='DF raw data'!C87 -> 3.1688441e-07 | F82: -2.979126409e-06 | G82: -9.330583669e-07 | H82: 3.173381885e-07 | J82: -9.650714962e-06 | K82: -5.367085494e-06 | L82: 5.14971054e-06 | N82: -0.0003497507331 | O82: -0.006531234249 | P82: -4.869666076e-06 | Q82: 0.0001101591264 | R82: 1.550011996e-06
A83: 39.14856 | B83: ='DF raw data'!A88 -> 3.4008515e-06 | C83: ='DF raw data'!B88 -> 7.8077181e-07 | D83: ='DF raw data'!C88 -> -4.3050295e-06 | F83: 3.405721519e-06 | G83: 7.83762721e-07 | H83: -4.311194302e-06 | J83: -8.291412224e-06 | K83: -3.025308356e-06 | L83: 1.184777075e-05 | N83: -0.0003538987609 | O83: -0.006708282721 | P83: -6.383167341e-06 | Q83: 0.0001069657554 | R83: 1.612689615e-06
A84: 39.64884 | B84: ='DF raw data'!A89 -> 5.3806975e-06 | C84: ='DF raw data'!B89 -> 7.0796013e-06 | D84: ='DF raw data'!C89 -> -4.0476643e-06 | F84: 5.388402659e-06 | G84: 7.106721205e-06 | H84: -4.053460555e-06 | J84: -9.143029396e-06 | K84: -3.092545339e-06 | L84: 1.344063046e-05 | N84: -0.0003584728356 | O84: -0.006887619511 | P84: -7.930305923e-06 | Q84: 0.000102998382 | R84: 1.677008445e-06
A85: 40.14912 | B85: ='DF raw data'!A90 -> 2.6127343e-06 | C85: ='DF raw data'!B90 -> -1.2076933e-06 | D85: ='DF raw data'!C90 -> -3.2972002e-06 | F85: 2.616475736e-06 | G85: -1.212319624e-06 | H85: -3.301921791e-06 | J85: -9.911873306e-06 | K85: 5.295876353e-06 | L85: 5.684443183e-06 | N85: -0.0003634315476 | O85: -0.007069437046 | P85: -5.280884901e-06 | Q85: 0.0001003564609 | R85: 1.743100625e-06
A86: 40.6494 | B86: ='DF raw data'!A91 -> 3.4758084e-06 | C86: ='DF raw data'!B91 -> -7.8833176e-07 | D86: ='DF raw data'!C91 -> -5.8339119e-06 | F86: 3.480785758e-06 | G86: -7.913516309e-07 | H86: -5.842266062e-06 | J86: -7.649438733e-06 | K86: -9.145217395e-06 | L86: -1.595208372e-06 | N86: -0.0003672584088 | O86: -0.007253169082 | P86: -9.856054259e-06 | Q86: 9.542567408e-05 | R86: 1.810626359e-06
A87: 41.14968 | B87: ='DF raw data'!A92 -> 8.2718143e-06 | C87: ='DF raw data'!B92 -> -1.5796884e-06 | D87: ='DF raw data'!C92 -> -3.5035901e-06 | F87: 8.283659538e-06 | G87: -1.585739729e-06 | H87: -3.508607241e-06 | J87: -8.004591284e-06 | K87: -1.602214097e-06 | L87: 5.104462137e-06 | N87: -0.0003712629457 | O87: -0.007438904509 | P87: -1.065760993e-05 | Q87: 9.009388498e-05 | R87: 1.879639864e-06
A88: 41.64996 | B88: ='DF raw data'!A93 -> 1.0520078e-05 | C88: ='DF raw data'!B93 -> -7.6654351e-06 | D88: ='DF raw data'!C93 -> -1.754748e-06 | F88: 1.053514275e-05 | G88: -7.694799165e-06 | H88: -1.757260799e-06 | J88: -1.30038619e-05 | K88: -4.24200408e-06 | L88: 1.130371177e-05 | N88: -0.0003777685177 | O88: -0.007627894543 | P88: -1.277979973e-05 | Q88: 8.370040678e-05 | R88: 1.951116057e-06
A89: 42.15024 | B89: ='DF raw data'!A94 -> 9.636311e-06 | C89: ='DF raw data'!B94 -> -4.7356411e-06 | D89: ='DF raw data'!C94 -> -1.7382389e-06 | F89: 9.650110197e-06 | G89: -4.753781971e-06 | H89: -1.740728058e-06 | J89: -1.172919018e-05 | K89: -2.061274614e-05 | L89: 1.150620032e-05 | N89: -0.000383636397 | O89: -0.00781982016 | P89: -2.309194437e-05 | Q89: 7.214796885e-05 | R89: 2.025012477e-06
A90: 42.65052 | B90: ='DF raw data'!A95 -> 3.5207302e-06 | C90: ='DF raw data'!B95 -> -1.0434315e-05 | D90: ='DF raw data'!C95 -> -2.8429695e-06 | F90: 3.525771886e-06 | G90: -1.047428584e-05 | H90: -2.847040632e-06 | J90: -7.107652404e-06 | K90: -1.097950179e-05 | L90: 6.189636785e-06 | N90: -0.0003871922134 | O90: -0.00801352468 | P90: -2.858476953e-05 | Q90: 5.784758035e-05 | R90: 2.100422132e-06
A91: 43.1508 | B91: ='DF raw data'!A96 -> -2.5144293e-06 | C91: ='DF raw data'!B96 -> -1.3581996e-05 | D91: ='DF raw data'!C96 -> 3.1592735e-06 | F91: -2.518029963e-06 | G91: -1.36340247e-05 | H91: 3.16379758e-06 | J91: -7.226711853e-06 | K91: 1.432291858e-06 | L91: -2.390596439e-06 | N91: -0.0003908075928 | O91: -0.008209037903 | P91: -2.786822256e-05 | Q91: 4.390566597e-05 | R91: 2.177218721e-06
A92: 43.65108 | B92: ='DF raw data'!A97 -> -3.4055304e-06 | C92: ='DF raw data'!B97 -> -2.1500894e-06 | D92: ='DF raw data'!C97 -> 8.5588708e-06 | F92: -3.41040712e-06 | G92: -2.158325771e-06 | H92: 8.571127103e-06 | J92: -7.646495023e-06 | K92: -6.943405376e-06 | L92: -2.156324842e-06 | N92: -0.0003946329813 | O92: -0.00840646489 | P92: -3.13418694e-05 | Q92: 2.822595555e-05 | R92: 2.255621353e-06
A93: 44.15136 | B93: ='DF raw data'!A98 -> -4.6417304e-06 | C93: ='DF raw data'!B98 -> -5.2476179e-09 | D93: ='DF raw data'!C98 -> 5.9993345e-06 | F93: -4.648377358e-06 | G93: -5.267720006e-09 | H93: 6.007925547e-06 | J93: -6.405784867e-06 | K93: -3.684686705e-06 | L93: 1.653284218e-06 | N93: -0.0003978376673 | O93: -0.008605495119 | P93: -3.318524446e-05 | Q93: 1.162404145e-05 | R93: 2.335354013e-06
A94: 44.65164 | B94: ='DF raw data'!A99 -> -7.5852481e-06 | C94: ='DF raw data'!B99 -> -8.2368679e-08 | D94: ='DF raw data'!C99 -> 4.2938209e-06 | F94: -7.596110175e-06 | G94: -8.268420958e-08 | H94: 4.299969652e-06 | J94: -8.709140255e-06 | K94: 5.231585313e-06 | L94: 5.990500129e-06 | N94: -0.000402194676 | O94: -0.008806705071 | P94: -3.056798696e-05 | Q94: -3.66851107e-06 | R94: 2.416747047e-06
A95: 45.15192 | B95: ='DF raw data'!A100 -> -7.5031462e-06 | C95: ='DF raw data'!B100 -> -2.3577022e-06 | D95: ='DF raw data'!C100 -> 7.3098096e-07 | F95: -7.513890705e-06 | G95: -2.366733875e-06 | H95: 7.320277247e-07 | J95: -1.218387536e-05 | K95: -1.53082497e-06 | L95: 1.041821255e-05 | N95: -0.0004082900252 | O95: -0.009010964405 | P95: -3.133382808e-05 | Q95: -1.934419858e-05 | R95: 2.500635275e-06
A96: 45.6522 | B96: ='DF raw data'!A101 -> -2.6736855e-06 | C96: ='DF raw data'!B101 -> -7.0756869e-06 | D96: ='DF raw data'!C101 -> 1.289971e-06 | F96: -2.677514218e-06 | G96: -7.10279181e-06 | H96: 1.291818238e-06 | J96: -1.371027604e-05 | K96: -1.457694698e-06 | L96: 9.535570211e-06 | N96: -0.0004151490021 | O96: -0.009218655148 | P96: -3.206308358e-05 | Q96: -3.538471803e-05 | R96: 2.587372188e-06
A97: 46.15248 | B97: ='DF raw data'!A102 -> 3.1233028e-06 | C97: ='DF raw data'!B102 -> -9.1487454e-06 | D97: ='DF raw data'!C102 -> -1.0806888e-06 | F97: 3.12777537e-06 | G97: -9.183791597e-06 | H97: -1.082236346e-06 | J97: -1.207892929e-05 | K97: 6.868445724e-06 | L97: 5.729968482e-06 | N97: -0.0004211918488 | O97: -0.009429369006 | P97: -2.862693755e-05 | Q97: -4.970620235e-05 | R97: 2.676533128e-06
A98: 46.65276 | B98: ='DF raw data'!A103 -> 3.6197123e-06 | C98: ='DF raw data'!B103 -> -4.364843e-07 | D98: ='DF raw data'!C103 -> -2.5117315e-06 | F98: 3.624895728e-06 | G98: -4.381563451e-07 | H98: -2.5153283e-06 | J98: -8.221565046e-06 | K98: 7.379821481e-06 | L98: -2.858207e-06 | N98: -0.0004253049334 | O98: -0.009642140558 | P98: -2.493496046e-05 | Q98: -6.218066438e-05 | R98: 2.767336969e-06
A99: 47.15304 | B99: ='DF raw data'!A104 -> -2.4157673e-06 | C99: ='DF raw data'!B104 -> -6.3071466e-06 | D99: ='DF raw data'!C104 -> -1.1368592e-06 | F99: -2.419226679e-06 | G99: -6.331307454e-06 | H99: -1.138487182e-06 | J99: -6.070888481e-06 | K99: 7.469426723e-06 | L99: -4.904214293e-06 | N99: -0.0004283420775 | O99: -0.009856431533 | P99: -2.119815566e-05 | Q99: -7.278567769e-05 | R99: 2.859351617e-06
A100: 47.65332 | B100: ='DF raw data'!A105 -> -7.2408188e-06 | C100: ='DF raw data'!B105 -> -5.655088e-06 | D100: ='DF raw data'!C105 -> -1.5498935e-06 | F100: -7.251187653e-06 | G100: -5.676751006e-06 | H100: -1.552112947e-06 | J100: -5.651644883e-06 | K100: 9.628779312e-06 | L100: -4.865953582e-06 | N100: -0.0004311694824 | O100: -0.010072137 | P100: -1.638106995e-05 | Q100: -8.098079936e-05 | R100: 2.952491477e-06
A101: 48.1536 | B101: ='DF raw data'!A106 -> -1.3340792e-05 | C101: ='DF raw data'!B106 -> -1.0856076e-06 | D101: ='DF raw data'!C106 -> -2.715451e-06 | F101: -1.335989601e-05 | G101: -1.089766249e-06 | H101: -2.719339526e-06 | J101: -4.527313242e-06 | K101: 1.754011871e-06 | L101: 9.761976761e-07 | N101: -0.0004334344067 | O101: -0.01028897557 | P101: -1.550357289e-05 | Q101: -8.873692681e-05 | R101: 3.046597019e-06
A102: 48.65388 | B102: ='DF raw data'!A107 -> -1.7423448e-05 | C102: ='DF raw data'!B107 -> -1.4740544e-05 | D102: ='DF raw data'!C107 -> -2.3801531e-06 | F102: -1.744839838e-05 | G102: -1.479701076e-05 | H102: -2.383561479e-06 | J102: -1.814799276e-06 | K102: -6.56998517e-06 | L102: -2.51176891e-06 | N102: -0.0004343423144 | O102: -0.01050626834 | P102: -1.879040507e-05 | Q102: -9.813739066e-05 | R102: 3.141153104e-06
A103: 49.15416 | B103: ='DF raw data'!A108 -> -1.0660926e-05 | C103: ='DF raw data'!B108 -> 4.3817045e-06 | D103: ='DF raw data'!C108 -> 1.8114898e-06 | F103: -1.067619245e-05 | G103: 4.398489543e-06 | H103: 1.814083853e-06 | J103: -7.190819128e-06 | K103: -6.997114536e-06 | L103: -6.352971847e-06 | N103: -0.0004379397374 | O103: -0.01072536083 | P103: -2.229092153e-05 | Q103: -0.0001092890929 | R103: 3.237350994e-06
A104: 49.65444 | B104: ='DF raw data'!A109 -> 6.3681699e-07 | C104: ='DF raw data'!B109 -> 1.0735906e-05 | D104: ='DF raw data'!C109 -> 1.7949807e-06 | F104: 6.377289119e-07 | G104: 1.077703215e-05 | H104: 1.797551112e-06 | J104: -1.34414967e-05 | K104: -3.785140345e-06 | L104: -2.369538828e-06 | N104: -0.0004446642494 | O104: -0.01094781746 | P104: -2.418455154e-05 | Q104: -0.0001213881403 | R104: 3.336562115e-06
A105: 50.15472 | B105: ='DF raw data'!A110 -> 8.4633903e-06 | C105: ='DF raw data'!B110 -> -3.6527463e-06 | D105: ='DF raw data'!C110 -> -4.6619007e-06 | F105: 8.475509875e-06 | G105: -3.666738915e-06 | H105: -4.668576542e-06 | J105: -9.614880621e-06 | K105: -1.537387914e-06 | L105: 1.983400969e-06 | N105: -0.0004494743819 | O105: -0.01117268051 | P105: -2.495367597e-05 | Q105: -0.0001338719653 | R105: 3.43794381e-06
A106: 50.655 | B106: ='DF raw data'!A111 -> 1.0585693e-05 | C106: ='DF raw data'!B111 -> 6.6976048e-07 | D106: ='DF raw data'!C111 -> -8.5188422e-06 | F106: 1.060085171e-05 | G106: 6.723261387e-07 | H106: -8.531041182e-06 | J106: -7.720233165e-06 | K106: -1.238437994e-05 | L106: 6.959981742e-06 | N106: -0.0004533366601 | O106: -0.01139947577 | P106: -3.114933356e-05 | Q106: -0.0001494553539 | R106: 3.54124383e-06
A107: 51.15528 | B107: ='DF raw data'!A112 -> 6.8250915e-06 | C107: ='DF raw data'!B112 -> -3.2760778e-07 | D107: ='DF raw data'!C112 -> -3.45853e-06 | F107: 6.834865031e-06 | G107: -3.288627506e-07 | H107: -3.463482615e-06 | J107: -1.018514127e-05 | K107: -1.244692963e-05 | L107: 8.535966725e-06 | N107: -0.0004584320826 | O107: -0.01162882017 | P107: -3.737628352e-05 | Q107: -0.0001681539611 | R107: 3.647081546e-06
A108: 51.65556 | B108: ='DF raw data'!A113 -> 2.7568419e-06 | C108: ='DF raw data'!B113 -> 1.5333011e-06 | D108: ='DF raw data'!C113 -> 5.7932866e-06 | F108: 2.760789698e-06 | G108: 1.539174733e-06 | H108: 5.801582586e-06 | J108: -7.699437829e-06 | K108: 1.815221553e-06 | L108: 7.727382889e-06 | N108: -0.0004622839574 | O108: -0.01186009159 | P108: -3.646816448e-05 | Q108: -0.0001863982544 | R108: 3.754659948e-06
A109: 52.15584 | B109: ='DF raw data'!A114 -> 1.9236138e-06 | C109: ='DF raw data'!B114 -> -9.3905146e-06 | D109: ='DF raw data'!C114 -> 4.8486442e-07 | F109: 1.926368415e-06 | G109: -9.426486945e-06 | H109: 4.855587458e-07 | J109: -4.454653542e-06 | K109: -2.173058894e-06 | L109: 4.802135825e-06 | N109: -0.0004645125314 | O109: -0.01209247792 | P109: -3.755530239e-05 | Q109: -0.0002051864211 | R109: 3.863311906e-06
A110: 52.65612 | B110: ='DF raw data'!A115 -> 1.5541551e-06 | C110: ='DF raw data'!B115 -> 3.6513238e-06 | D110: ='DF raw data'!C115 -> -1.1622591e-05 | F110: 1.55638065e-06 | G110: 3.665310965e-06 | H110: -1.163923455e-05 | J110: -5.979517325e-06 | K110: -8.452755898e-06 | L110: 9.185197494e-06 | N110: -0.0004675039644 | O110: -0.0123263608 | P110: -4.178404711e-05 | Q110: -0.0002260901441 | R110: 3.973526523e-06
A111: 53.1564 | B111: ='DF raw data'!A116 -> 3.6420786e-06 | C111: ='DF raw data'!B116 -> 6.7608444e-06 | D111: ='DF raw data'!C116 -> -3.8706257e-06 | F111: 3.647294057e-06 | G111: 6.786743239e-06 | H111: -3.876168436e-06 | J111: -9.615754971e-06 | K111: -4.081144023e-06 | L111: 9.285836904e-06 | N111: -0.0004723145343 | O111: -0.01256265032 | P111: -4.382576184e-05 | Q111: -0.0002480152963 | R111: 4.086090382e-06
A112: 53.65668 | B112: ='DF raw data'!A117 -> 7.208543e-07 | C112: ='DF raw data'!B117 -> 5.7538691e-06 | D112: ='DF raw data'!C117 -> 2.1272881e-06 | F112: 7.218865634e-07 | G112: 5.775910508e-06 | H112: 2.130334377e-06 | J112: -1.439209902e-05 | K112: -6.437516156e-07 | L112: 5.234625965e-06 | N112: -0.0004795146136 | O112: -0.01280254189 | P112: -4.41478179e-05 | Q112: -0.0002701015666 | R112: 4.202096956e-06
A113: 54.15696 | B113: ='DF raw data'!A118 -> -7.6191541e-06 | C113: ='DF raw data'!B118 -> 1.5762909e-05 | D113: ='DF raw data'!C118 -> -1.0076091e-06 | F113: -7.630064729e-06 | G113: 1.582329214e-05 | H113: -1.009051996e-06 | J113: -1.699303623e-05 | K113: 3.481681719e-06 | L113: 6.746097398e-06 | N113: -0.0004880158897 | O113: -0.01304668648 | P113: -4.240600217e-05 | Q113: -0.0002913164414 | R113: 4.322143033e-06
A114: 54.65724 | B114: ='DF raw data'!A119 -> -1.1472137e-05 | C114: ='DF raw data'!B119 -> 5.9477388e-06 | D114: ='DF raw data'!C119 -> -1.4939535e-07 | F114: -1.14885651e-05 | G114: 5.970522867e-06 | H114: -1.496092841e-07 | J114: -1.42606821e-05 | K114: -4.241333922e-06 | L114: 9.098023239e-06 | N114: -0.0004951502238 | O114: -0.01329440023 | P114: -4.45278567e-05 | Q114: -0.0003135928375 | R114: 4.445790474e-06
A115: 55.15752 | B115: ='DF raw data'!A120 -> -9.3716699e-06 | C115: ='DF raw data'!B120 -> -6.1059382e-06 | D115: ='DF raw data'!C120 -> 3.9280367e-06 | F115: -9.385090131e-06 | G115: -6.129328283e-06 | H115: 3.933661649e-06 | J115: -1.051214687e-05 | K115: -6.663607944e-06 | L115: 7.068286412e-06 | N115: -0.0005004092406 | O115: -0.01354474497 | P115: -4.786152648e-05 | Q115: -0.000337537002 | R115: 4.572211297e-06
A116: 55.6578 | B116: ='DF raw data'!A121 -> -3.3918516e-06 | C116: ='DF raw data'!B121 -> -6.1118089e-06 | D116: ='DF raw data'!C121 -> 4.6468213e-06 | F116: -3.396708731e-06 | G116: -6.135221472e-06 | H116: 4.653475548e-06 | J116: -1.089810577e-05 | K116: -5.385970963e-06 | L116: -5.386108478e-07 | N116: -0.000505861345 | O116: -0.01379781728 | P116: -5.055602004e-05 | Q116: -0.0003628291677 | R116: 4.701509469e-06
A117: 56.15808 | B117: ='DF raw data'!A122 -> -3.6539752e-06 | C117: ='DF raw data'!B122 -> 7.5059015e-06 | D117: ='DF raw data'!C122 -> 5.1904372e-06 | F117: -3.659207692e-06 | G117: 7.534654438e-06 | H117: 5.197869906e-06 | J117: -9.366079948e-06 | K117: -1.000429752e-05 | L117: 1.851303676e-07 | N117: -0.0005105470074 | O117: -0.01405323374 | P117: -5.556097e-05 | Q117: -0.0003906252098 | R117: 4.833455952e-06
A118: 56.65836 | B118: ='DF raw data'!A123 -> -9.1565344e-06 | C118: ='DF raw data'!B123 -> 3.4425107e-06 | D118: ='DF raw data'!C123 -> 3.9553996e-08 | F118: -9.169646557e-06 | G118: 3.455697963e-06 | H118: 3.961063732e-08 | J118: -9.666023653e-06 | K118: -8.070094526e-06 | L118: 2.361236055e-06 | N118: -0.0005153827257 | O118: -0.01431106941 | P118: -5.959827689e-05 | Q118: -0.0004204410357 | R118: 4.968116974e-06
A119: 57.15864 | B119: ='DF raw data'!A124 -> -7.9217316e-06 | C119: ='DF raw data'!B124 -> -1.4266344e-05 | D119: ='DF raw data'!C124 -> -5.2001178e-06 | F119: -7.93307552e-06 | G119: -1.432099424e-05 | H119: -5.207564369e-06 | J119: -1.158239928e-05 | K119: -3.336844206e-07 | L119: 6.083066295e-06 | N119: -0.0005211771685 | O119: -0.01457180392 | P119: -5.976521253e-05 | Q119: -0.0004503403763 | R119: 5.10579279e-06
A120: 57.65892 | B120: ='DF raw data'!A125 -> -4.1778881e-06 | C120: ='DF raw data'!B125 -> -3.8290036e-06 | D120: ='DF raw data'!C125 -> 1.9137169e-06 | F120: -4.183870836e-06 | G120: -3.843671405e-06 | H120: 1.916457343e-06 | J120: -8.572841254e-06 | K120: -4.164185818e-06 | L120: 1.662833372e-05 | N120: -0.0005254659895 | O120: -0.01483468405 | P120: -6.184847141e-05 | Q120: -0.0004812819295 | R120: 5.245841043e-06
A121: 58.1592 | B121: ='DF raw data'!A126 -> -1.8525355e-06 | C121: ='DF raw data'!B126 -> 1.6177066e-05 | D121: ='DF raw data'!C126 -> 8.3996074e-06 | F121: -1.855188331e-06 | G121: 1.623903566e-05 | H121: 8.411635638e-06 | J121: -4.874975482e-06 | K121: -8.91671802e-06 | L121: 1.64227848e-05 | N121: -0.0005279048422 | O121: -0.01509878428 | P121: -6.63093271e-05 | Q121: -0.0005144551597 | R121: 5.38746053e-06
A122: 58.65948 | B122: ='DF raw data'!A127 -> -1.8598115e-06 | C122: ='DF raw data'!B127 -> -1.0849404e-06 | D122: ='DF raw data'!C127 -> 4.5798679e-06 | F122: -1.86247475e-06 | G122: -1.089096493e-06 | H122: 4.586426271e-06 | J122: -3.971421043e-06 | K122: -2.46772326e-06 | L122: -1.013420343e-06 | N122: -0.0005298916647 | O122: -0.01536387848 | P122: -6.75438797e-05 | Q122: -0.0005482460118 | R122: 5.530214104e-06
A123: 59.15976 | B123: ='DF raw data'!A128 -> -4.5755191e-06 | C123: ='DF raw data'!B128 -> 4.8082751e-07 | D123: ='DF raw data'!C128 -> -5.7261599e-07 | F123: -4.582071243e-06 | G123: 4.826694211e-07 | H123: -5.734359761e-07 | J123: -3.66908031e-06 | K123: -4.86950478e-06 | L123: -9.591861104e-06 | N123: -0.0005317272322 | O123: -0.01562989098 | P123: -6.997999555e-05 | Q123: -0.000583255604 | R123: 5.674110165e-06
A124: 59.66004 | B124: ='DF raw data'!A129 -> -2.638106e-06 | C124: ='DF raw data'!B129 -> 5.2282994e-06 | D124: ='DF raw data'!C129 -> -4.1623334e-06 | F124: -2.641883768e-06 | G124: 5.248327503e-06 | H124: -4.168293861e-06 | J124: -6.760004784e-06 | K124: -9.740840146e-06 | L124: -8.04959744e-06 | N124: -0.0005351091274 | O124: -0.01589759538 | P124: -7.485314306e-05 | Q124: -0.0006207031344 | R124: 5.820164295e-06
A125: 60.16032 | B125: ='DF raw data'!A130 -> 9.3831812e-07 | C125: ='DF raw data'!B130 -> 6.4362157e-06 | D125: ='DF raw data'!C130 -> -3.0786377e-06 | F125: 9.396617915e-07 | G125: 6.460870981e-06 | H125: -3.083046309e-06 | J125: -1.061789408e-05 | K125: -6.998453847e-06 | L125: -3.381740428e-06 | N125: -0.0005404210475 | O125: -0.01616795722 | P125: -7.835432955e-05 | Q125: -0.0006599022384 | R125: 5.969344944e-06
A126: 60.6606 | B126: ='DF raw data'!A131 -> 5.3798972e-06 | C126: ='DF raw data'!B131 -> 3.6394539e-07 | D126: ='DF raw data'!C131 -> -1.0637795e-06 | F126: 5.387601213e-06 | G126: 3.653395595e-07 | H126: -1.065302832e-06 | J126: -7.951313299e-06 | K126: 9.743567855e-07 | L126: 1.481333036e-06 | N126: -0.0005443989305 | O126: -0.01644030912 | P126: -7.786687833e-05 | Q126: -0.0006988574803 | R126: 6.120646349e-06
A127: 61.16088 | B127: ='DF raw data'!A132 -> 6.2579888e-06 | C127: ='DF raw data'!B132 -> 8.0023838e-06 | D127: ='DF raw data'!C132 -> -6.4424148e-06 | F127: 6.26695024e-06 | G127: 8.033038618e-06 | H127: -6.451640338e-06 | J127: -4.434397377e-06 | K127: -5.223637784e-06 | L127: 5.157914972e-06 | N127: -0.0005466173708 | O127: -0.01671377085 | P127: -8.048015985e-05 | Q127: -0.0007391200947 | R127: 6.273365627e-06
A128: 61.66116 | B128: ='DF raw data'!A133 -> -2.8077959e-06 | C128: ='DF raw data'!B133 -> 3.7275108e-06 | D128: ='DF raw data'!C133 -> -8.5283591e-06 | F128: -2.811816664e-06 | G128: 3.741789816e-06 | H128: -8.54057171e-06 | J128: -5.082258287e-06 | K128: 2.094215219e-06 | L128: 9.402214919e-06 | N128: -0.000549159923 | O128: -0.01698850458 | P128: -7.943246586e-05 | Q128: -0.0007788585687 | R128: 6.427394904e-06
A129: 62.16144 | B129: ='DF raw data'!A134 -> -7.6592005e-06 | C129: ='DF raw data'!B134 -> -3.1442553e-06 | D129: ='DF raw data'!C134 -> -1.094306e-05 | F129: -7.670168475e-06 | G129: -3.156300033e-06 | H129: -1.095873046e-05 | J129: -1.140405726e-05 | K129: -1.041414835e-05 | L129: 4.441022951e-06 | N129: -0.0005548651447 | O129: -0.01726609251 | P129: -8.464245599e-05 | Q129: -0.0008212034966 | R129: 6.585002952e-06
A130: 62.66172 | B130: ='DF raw data'!A135 -> -3.0497506e-06 | C130: ='DF raw data'!B135 -> -4.2622414e-06 | D130: ='DF raw data'!C135 -> -1.1159505e-05 | F130: -3.054117843e-06 | G130: -4.278568814e-06 | H130: -1.117548541e-05 | J130: -1.48042013e-05 | K130: -6.725621593e-06 | L130: 3.82825322e-06 | N130: -0.0005622713906 | O130: -0.01754738565 | P130: -8.800714996e-05 | Q130: -0.0008652317136 | R130: 6.74704083e-06
A131: 63.162 | B131: ='DF raw data'!A136 -> 3.1165653e-06 | C131: ='DF raw data'!B136 -> 1.4038768e-06 | D131: ='DF raw data'!C136 -> -9.4602492e-06 | F131: 3.121028222e-06 | G131: 1.409254646e-06 | H131: -9.473796277e-06 | J131: -1.050158176e-05 | K131: -4.889461637e-06 | L131: 1.156965005e-05 | N131: -0.0005675251219 | O131: -0.01783130711 | P131: -9.045324983e-05 | Q131: -0.0009104836654 | R131: 6.912266582e-06
A132: 63.66228 | B132: ='DF raw data'!A137 -> 7.3439983e-06 | C132: ='DF raw data'!B137 -> 8.9793375e-06 | D132: ='DF raw data'!C137 -> -1.1975722e-05 | F132: 7.354514906e-06 | G132: 9.013734745e-06 | H132: -1.199287123e-05 | J132: -4.730384524e-06 | K132: -6.49698891e-06 | L132: 1.447755521e-05 | N132: -0.0005698916387 | O132: -0.0181164125 | P132: -9.370356344e-05 | Q132: -0.0009573616841 | R132: 7.079138397e-06
A133: 64.16256 | B133: ='DF raw data'!A138 -> 3.6834642e-06 | C133: ='DF raw data'!B138 -> 8.5172796e-06 | D133: ='DF raw data'!C138 -> -6.7598066e-06 | F133: 3.688738921e-06 | G133: 8.549906834e-06 | H133: -6.769486643e-06 | J133: -4.650161609e-06 | K133: -1.490925108e-05 | L133: 1.15118544e-05 | N133: -0.0005722180215 | O133: -0.01840268173 | P133: -0.0001011623636 | Q133: -0.001007971191 | R133: 7.248066587e-06
A134: 64.66284 | B134: ='DF raw data'!A139 -> -3.2404535e-06 | C134: ='DF raw data'!B139 -> -1.3932906e-06 | D134: ='DF raw data'!C139 -> -2.2594886e-06 | F134: -3.245093829e-06 | G134: -1.398627893e-06 | H134: -2.262724188e-06 | J134: -6.445422747e-06 | K134: -1.779294352e-05 | L134: 3.870795753e-07 | N134: -0.0005754425376 | O134: -0.01869056413 | P134: -0.0001100638174 | Q134: -0.001063033918 | R134: 7.419786776e-06
A135: 65.16312 | B135: ='DF raw data'!A140 -> -6.9779676e-06 | C135: ='DF raw data'!B140 -> 2.466224e-06 | D135: ='DF raw data'!C140 -> -6.2958625e-06 | F135: -6.98796005e-06 | G135: =(1-$G$1*($B$2-$G$2))*C135*$M$2/$M$1 -> 2.475671391e-06 | H135: -6.304878175e-06 | J135: =-CELL("contents", INDEX($F$6:$F$1203,1204-CELL("row",F135))) -> -9.168152821e-06 | K135: =CELL("contents", INDEX($G$6:$G$1203,1204-CELL("row",G135))) -> -1.80119322e-05 | L135: =-CELL("contents", INDEX($H$6:$H$1203,1204-CELL("row",H135))) -> 1.208135176e-07 | N135: -0.0005800291811 | O135: -0.01898074113 | P135: -0.0001190748268 | Q135: -0.001122604672 | R135: 7.59519128e-06
A136: =A135+$B$1 -> 65.6634 | B136: ='DF raw data'!A141 -> -2.7376411e-06 | C136: ='DF raw data'!B141 -> 1.0730169e-05 | D136: ='DF raw data'!C141 -> -8.5305419e-06 | F136: -2.741561402e-06 | G136: 1.077127317e-05 | H136: -8.542757636e-06 | J136: -7.998776769e-06 | K136: -2.095937792e-05 | L136: 9.138083724e-06 | N136: =J136*$B$1+N135 -> -0.0005840308091 | O136: =N136*$B$1+O135 -> -0.01927292006 | P136: =K136*$B$1+P135 -> -0.0001295603844 | Q136: =P136*$B$1+Q135 -> -0.001187421141 | R136: =(N136^2+P136^2)*$B$1+R135 -> 7.774230426e-06
A137: 66.16368 | B137: ='DF raw data'!A142 -> 6.0545967e-06 | C137: ='DF raw data'!B142 -> 2.3206549e-06 | D137: ='DF raw data'!C142 -> -6.8370191e-06 | F137: 6.063266882e-06 | G137: 2.329544658e-06 | H137: -6.846809711e-06 | J137: -2.592416131e-06 | K137: -7.351247038e-06 | L137: 1.219562216e-05 | N137: -0.0005853277431 | O137: -0.01956574782 | P137: -0.0001332380663 | Q137: -0.001254077481 | R137: 7.954511801e-06
A138: 66.66396 | B138: ='DF raw data'!A143 -> 1.2696972e-05 | C138: ='DF raw data'!B143 -> -1.6692179e-06 | D138: ='DF raw data'!C143 -> -3.2317166e-06 | F138: 1.271515406e-05 | G138: -1.675612191e-06 | H138: -3.236344418e-06 | J138: -8.699457409e-07 | K138: -9.823476394e-07 | L138: 8.339351174e-06 | N138: -0.0005857629595 | O138: -0.01985879332 | P138: -0.0001337295151 | Q138: -0.001320979683 | R138: 8.135113796e-06
A139: 67.16424 | B139: ='DF raw data'!A144 -> 1.4615023e-05 | C139: ='DF raw data'!B144 -> 6.3586949e-06 | D139: ='DF raw data'!C144 -> -3.924948e-06 | F139: =(1-$G$1*($B$2-$G$2))*B139 -> 1.463595171e-05 | G139: 6.383053221e-06 | H139: =(1-$G$1*($B$2-$G$2))*D139 -> -3.930568526e-06 | J139: -1.519744763e-06 | K139: -3.633254234e-06 | L139: 6.526690056e-06 | N139: -0.0005865232575 | O139: -0.02015221917 | P139: -0.0001355471596 | Q139: -0.001388791216 | R139: 8.316406545e-06
A140: 67.66452 | B140: ='DF raw data'!A145 -> 1.5017318e-05 | C140: ='DF raw data'!B145 -> 1.1112972e-05 | D140: ='DF raw data'!C145 -> -1.1080896e-05 | F140: 1.50388228e-05 | G140: 1.115554258e-05 | H140: -1.109676384e-05 | J140: -4.220556795e-06 | K140: -1.511015876e-05 | L140: 4.328331908e-06 | N140: -0.0005886347176 | O140: -0.02044670135 | P140: -0.0001431064698 | Q140: -0.001460384521 | R140: 8.499994443e-06
A141: 68.1648 | B141: ='DF raw data'!A146 -> 1.0234788e-05 | C141: ='DF raw data'!B146 -> -2.0839095e-06 | D141: ='DF raw data'!C146 -> -7.1983432e-06 | F141: 1.024944422e-05 | G141: -2.091892355e-06 | H141: -7.208651227e-06 | J141: -1.051134572e-05 | K141: -5.024069313e-06 | L141: -1.140458301e-06 | N141: -0.0005938933336 | O141: -0.02074381431 | P141: -0.0001456199112 | Q141: -0.00153323525 | R141: 8.687056364e-06
A142: 68.66508 | B142: ='DF raw data'!A147 -> 5.2683567e-06 | C142: ='DF raw data'!B147 -> -3.1952245e-06 | D142: ='DF raw data'!C147 -> -2.8254708e-06 | F142: 5.275900987e-06 | G142: -3.207464481e-06 | H142: -2.829516874e-06 | J142: -1.069543596e-05 | K142: 4.798161427e-06 | L142: -3.575225602e-07 | N142: -0.0005992440464 | O142: -0.02104360412 | P142: -0.000143219487 | Q142: -0.001604885095 | R142: 8.876965278e-06
A143: 69.16536 | B143: ='DF raw data'!A148 -> 7.285063e-06 | C143: ='DF raw data'!B148 -> -4.381392e-06 | D143: ='DF raw data'!C148 -> -8.5214906e-06 | F143: 7.29549521e-06 | G143: -4.398175845e-06 | H143: -8.533693375e-06 | J143: -7.344357681e-06 | K143: -3.565347596e-06 | L143: 5.833741072e-06 | N143: -0.0006029182816 | O143: -0.02134523207 | P143: -0.0001450031591 | Q143: -0.001677427275 | R143: 9.069341133e-06
A144: 69.66564 | B144: ='DF raw data'!A149 -> 5.9915287e-06 | C144: ='DF raw data'!B149 -> -1.8784317e-06 | D144: ='DF raw data'!C149 -> -4.7361737e-06 | F144: 6.000108569e-06 | G144: -1.885627428e-06 | H144: -4.742955901e-06 | J144: -5.268090017e-06 | K144: -1.048272505e-05 | L144: 9.968657805e-06 | N144: -0.0006055538017 | O144: -0.02164817853 | P144: -0.0001502474568 | Q144: -0.001752593073 | R144: 9.264084981e-06
A145: 70.16592 | B145: ='DF raw data'!A150 -> 1.9410325e-06 | C145: ='DF raw data'!B150 -> -1.0917452e-06 | D145: ='DF raw data'!C150 -> -6.1647497e-06 | F145: 1.943812059e-06 | G145: -1.09592736e-06 | H145: -6.173577622e-06 | J145: -4.865220233e-07 | K145: -1.468731515e-05 | L145: 1.179079127e-05 | N145: -0.0006057971989 | O145: -0.02195124675 | P145: -0.0001575952268 | Q145: -0.001831434813 | R145: 9.460107943e-06
A146: 70.6662 | B146: ='DF raw data'!A151 -> 1.8465759e-06 | C146: ='DF raw data'!B151 -> 2.6096582e-06 | D146: ='DF raw data'!C151 -> -6.1051887e-06 | F146: 1.849220197e-06 | G146: 2.619655046e-06 | H146: -6.11393133e-06 | J146: -1.896021721e-07 | K146: -9.144011292e-06 | L146: 1.149426525e-05 | N146: -0.0006058920531 | O146: -0.02225436243 | P146: -0.0001621697928 | Q146: -0.001912565117 | R146: 9.656920207e-06
A147: 71.16648 | B147: ='DF raw data'!A152 -> 2.8382744e-06 | C147: ='DF raw data'!B152 -> 4.3727646e-06 | D147: ='DF raw data'!C152 -> 1.2655456e-06 | F147: 2.842338809e-06 | G147: 4.389515396e-06 | H147: 1.267357861e-06 | J147: -4.125833846e-06 | K147: -8.950202399e-06 | L147: 2.808983913e-06 | N147: -0.0006079561253 | O147: -0.02255851072 | P147: -0.0001666474 | Q147: -0.001995935478 | R147: 9.855722477e-06
A148: 71.66676 | B148: ='DF raw data'!A153 -> -1.7929309e-06 | C148: ='DF raw data'!B153 -> 3.7344494e-06 | D148: ='DF raw data'!C153 -> -5.2596788e-06 | F148: -1.795498377e-06 | G148: 3.748754995e-06 | H148: -5.26721066e-06 | J148: -7.318490993e-06 | K148: -7.666806341e-06 | L148: 3.95776131e-06 | N148: -0.0006116174199 | O148: -0.02286449068 | P148: -0.0001704829499 | Q148: -0.002081224688 | R148: 1.005740551e-05
A149: 72.16704 | B149: ='DF raw data'!A154 -> -5.882936e-06 | C149: ='DF raw data'!B154 -> 6.5920585e-06 | D149: ='DF raw data'!C154 -> -8.9124424e-06 | F149: -5.891360364e-06 | G149: 6.617310769e-06 | H149: -8.925205018e-06 | J149: -1.015191576e-05 | K149: -1.491286688e-05 | L149: 6.203437219e-06 | N149: -0.0006166962203 | O149: -0.02317301147 | P149: -0.0001779435589 | Q149: -0.002170246292 | R149: 1.026350993e-05
A150: 72.66732 | B150: ='DF raw data'!A155 -> -3.3523286e-06 | C150: ='DF raw data'!B155 -> 6.720149e-06 | D150: ='DF raw data'!C155 -> -2.2817239e-06 | F150: -3.357129135e-06 | G150: 6.745891947e-06 | H150: -2.284991329e-06 | J150: -1.118921905e-05 | K150: -1.756685574e-05 | L150: 1.150218257e-06 | N150: -0.0006222939628 | O150: -0.02348433269 | P150: -0.0001867319055 | Q150: -0.00226366453 | R150: 1.047468742e-05
A151: 73.1676 | B151: ='DF raw data'!A156 -> -1.567449e-06 | C151: ='DF raw data'!B156 -> 7.3060273e-06 | D151: ='DF raw data'!C156 -> -5.2908393e-07 | F151: -1.569693587e-06 | G151: 7.334014577e-06 | H151: -5.298415782e-07 | J151: -9.922773693e-06 | K151: -1.205583016e-05 | L151: 1.587036486e-06 | N151: -0.0006272581281 | O151: -0.02379813739 | P151: -0.0001927631962 | Q151: -0.002360100101 | R151: 1.069011319e-05
A152: 73.66788 | B152: ='DF raw data'!A157 -> -5.4922461e-06 | C152: ='DF raw data'!B157 -> 8.1157968e-06 | D152: ='DF raw data'!C157 -> -7.5357633e-07 | F152: -5.500110996e-06 | G152: 8.14688607e-06 | H152: -7.546554513e-07 | J152: -5.228510421e-06 | K152: -3.103126518e-06 | L152: 8.724188373e-06 | N152: -0.0006298738473 | O152: -0.02411325068 | P152: -0.0001943156284 | Q152: -0.002457312324 | R152: 1.090748466e-05
A153: 74.16816 | B153: ='DF raw data'!A158 -> -8.3033992e-06 | C153: ='DF raw data'!B158 -> 4.7766489e-06 | D153: ='DF raw data'!C158 -> -5.0126795e-07 | F153: -8.315289668e-06 | G153: 4.79494686e-06 | H153: -5.019857657e-07 | J153: -6.578909226e-06 | K153: -6.344968787e-06 | L153: 1.103898322e-05 | N153: -0.000633165144 | O153: -0.02443001053 | P153: -0.0001974898894 | Q153: -0.002556112566 | R153: 1.112755801e-05
A154: 74.66844 | B154: ='DF raw data'!A159 -> -5.8366172e-06 | C154: ='DF raw data'!B159 -> 4.1257908e-06 | D154: ='DF raw data'!C159 -> -2.8167469e-06 | F154: -5.844975236e-06 | G154: 4.141595511e-06 | H154: -2.820780482e-06 | J154: -1.30553986e-05 | K154: -1.081422207e-05 | L154: 4.570866221e-06 | N154: -0.0006396964988 | O154: -0.0247500379 | P154: -0.0002029000284 | Q154: -0.002657619392 | R154: 1.135287414e-05
A155: 75.16872 | B155: ='DF raw data'!A160 -> -4.3314835e-06 | C155: ='DF raw data'!B160 -> 8.0972504e-06 | D155: ='DF raw data'!C160 -> -1.5332533e-06 | F155: -4.337686184e-06 | G155: 8.128268624e-06 | H155: -1.535448919e-06 | J155: -1.311234903e-05 | K155: -4.646229441e-06 | L155: -3.308689869e-07 | N155: -0.0006462563448 | O155: -0.02507334702 | P155: -0.000205224444 | Q155: -0.002760289077 | R155: 1.158288504e-05
A156: 75.669 | B156: ='DF raw data'!A161 -> -6.034596e-06 | C156: ='DF raw data'!B161 -> 4.3428772e-06 | D156: ='DF raw data'!C161 -> 4.4952776e-06 | F156: -6.043237541e-06 | G156: 4.359513506e-06 | H156: 4.501714838e-06 | J156: -9.125644136e-06 | K156: -1.273824532e-05 | L156: 3.15102822e-06 | N156: -0.000650821722 | O156: -0.02539894011 | P156: -0.0002115971334 | Q156: -0.002866146891 | R156: 1.18171873e-05
A157: 76.16928 | B157: ='DF raw data'!A162 -> -7.9011115e-06 | C157: ='DF raw data'!B162 -> -1.8654893e-06 | D157: ='DF raw data'!C162 -> -2.513194e-06 | F157: -7.912425892e-06 | G157: -1.87263545e-06 | H157: -2.516792894e-06 | J157: -6.404779429e-06 | K157: -1.311997002e-05 | L157: 6.937379422e-06 | N157: -0.0006540259051 | O157: -0.02572613619 | P157: -0.000218160792 | Q157: -0.002975288372 | R157: 1.205499241e-05
A158: 76.66956 | B158: ='DF raw data'!A163 -> -6.224222e-06 | C158: ='DF raw data'!B163 -> 3.7994282e-06 | D158: ='DF raw data'!C163 -> -8.9985606e-06 | F158: -6.233135086e-06 | G158: 3.81398271e-06 | H158: -9.011446539e-06 | J158: -4.234051191e-06 | K158: -1.234848496e-05 | L158: 8.482178711e-06 | N158: -0.0006561441162 | O158: -0.02605439197 | P158: -0.0002243384921 | Q158: -0.003087520433 | R158: 1.229555348e-05
A159: 77.16984 | B159: ='DF raw data'!A164 -> -2.6108794e-06 | C159: ='DF raw data'!B164 -> -5.0413183e-07 | D159: ='DF raw data'!C164 -> -8.4006369e-06 | F159: -2.614618179e-06 | G159: -5.060630132e-07 | H159: -8.412666612e-06 | J159: -4.619092482e-06 | K159: -1.103763062e-05 | L159: 1.632048351e-05 | N159: -0.0006584549558 | O159: -0.02638380382 | P159: -0.0002298603979 | Q159: -0.003202514992 | R159: 1.253888904e-05
A160: 77.67012 | B160: ='DF raw data'!A165 -> 2.4301078e-06 | C160: ='DF raw data'!B165 -> 2.115716e-07 | D160: ='DF raw data'!C165 -> -1.1141126e-05 | F160: 2.433587714e-06 | G160: 2.123820696e-07 | H160: -1.115708009e-05 | J160: -1.028226214e-05 | K160: -6.200851422e-06 | L160: 1.244582193e-05 | N160: -0.0006635989659 | O160: -0.02671578911 | P160: -0.0002329625599 | Q160: -0.003319061502 | R160: 1.27863451e-05
A161: 78.1704 | B161: ='DF raw data'!A166 -> 8.2744191e-06 | C161: ='DF raw data'!B166 -> -1.7770271e-06 | D161: ='DF raw data'!C166 -> -7.2859893e-06 | F161: 8.286268068e-06 | G161: -1.783834377e-06 | H161: -7.296422837e-06 | J161: -1.672278478e-05 | K161: -1.516587639e-05 | L161: -5.90067248e-07 | N161: -0.0006719650407 | O161: -0.02705195978 | P161: -0.0002405497445 | Q161: -0.003439403728 | R161: 1.304118833e-05
A162: 78.67068 | B162: ='DF raw data'!A167 -> 1.0010375e-05 | C162: ='DF raw data'!B167 -> -4.7660628e-06 | D162: ='DF raw data'!C167 -> -5.3334861e-06 | F162: 1.002470986e-05 | G162: -4.784320208e-06 | H162: -5.341123652e-06 | J162: -1.354223074e-05 | K162: -1.413428474e-05 | L162: -3.160533312e-06 | N162: -0.0006787399478 | O162: -0.0273915198 | P162: -0.0002476208445 | Q162: -0.003563283484 | R162: 1.330233649e-05
A163: 79.17096 | B163: ='DF raw data'!A168 -> 9.1352231e-06 | C163: ='DF raw data'!B168 -> -2.0496188e-06 | D163: ='DF raw data'!C168 -> -8.246634e-06 | F163: 9.148304739e-06 | G163: -2.057470297e-06 | H163: -8.25844318e-06 | J163: -1.707514665e-06 | K163: -8.239927826e-06 | L163: 1.310037591e-06 | N163: -0.0006795941833 | O163: -0.02773150718 | P163: -0.0002517431156 | Q163: -0.00368922553 | R163: 1.356509498e-05
A164: 79.67124 | B164: ='DF raw data'!A169 -> 3.5677183e-06 | C164: ='DF raw data'!B169 -> 6.2275358e-06 | D164: ='DF raw data'!C169 -> -4.4537064e-06 | F164: 3.572827273e-06 | G164: 6.251391688e-06 | H164: -4.460084108e-06 | J164: 3.412476479e-06 | K164: -1.199113729e-05 | L164: 5.641045526e-06 | N164: -0.0006778869896 | O164: -0.02807064048 | P164: -0.0002577420417 | Q164: -0.003818168719 | R164: 1.382822312e-05
A165: 80.17152 | B165: ='DF raw data'!A170 -> -4.8296974e-06 | C165: ='DF raw data'!B170 -> -3.344396e-06 | D165: ='DF raw data'!C170 -> 1.6351861e-06 | F165: -4.836613527e-06 | G165: -3.357207414e-06 | H165: 1.637527686e-06 | J165: 4.989758617e-06 | K165: -2.657326805e-05 | L165: 4.282267438e-06 | N165: -0.0006753907131 | O165: -0.02840852495 | P165: -0.0002710361163 | Q165: -0.003953762667 | R165: 1.4093178e-05
A166: 80.6718 | B166: ='DF raw data'!A171 -> -3.3469298e-06 | C166: ='DF raw data'!B171 -> -3.6096492e-06 | D166: ='DF raw data'!C171 -> 6.177901e-06 | F166: -3.351722603e-06 | G166: -3.623476722e-06 | H166: 6.186747754e-06 | J166: 5.111615967e-06 | K166: -1.709150777e-05 | L166: -4.04777162e-08 | N166: -0.0006728334739 | O166: -0.02874513008 | P166: -0.0002795866558 | Q166: -0.004093634279 | R166: 1.435876344e-05
A167: 81.17208 | B167: ='DF raw data'!A172 -> 3.7839161e-06 | C167: ='DF raw data'!B172 -> -3.6011099e-06 | D167: ='DF raw data'!C172 -> 1.2905251e-05 | F167: 3.789334668e-06 | G167: -3.61490471e-06 | H167: 1.292373132e-05 | J167: -2.051971021e-06 | K167: -3.926177356e-06 | L167: -1.309677176e-06 | N167: -0.0006738600339 | O167: -0.02908224877 | P167: -0.0002815508438 | Q167: -0.004234488535 | R167: 1.462559189e-05
A168: 81.67236 | B168: ='DF raw data'!A173 -> 2.2222482e-06 | C168: ='DF raw data'!B173 -> -5.9623708e-06 | D168: ='DF raw data'!C173 -> 1.268196e-05 | F168: 2.225430459e-06 | G168: -5.985210918e-06 | H168: 1.270012057e-05 | J168: -1.107444393e-05 | K168: -1.078462111e-05 | L168: 6.331604593e-06 | N168: -0.0006794003567 | O168: -0.02942213919 | P168: -0.000286946174 | Q168: -0.004378041967 | R168: 1.489770567e-05
A169: 82.17264 | B169: ='DF raw data'!A174 -> -4.450597e-07 | C169: ='DF raw data'!B174 -> 3.6080937e-06 | D169: ='DF raw data'!C174 -> 1.3995833e-06 | F169: -4.456970255e-07 | G169: 3.621915263e-06 | H169: 1.401587503e-06 | J169: -1.248193157e-05 | K169: -4.088912568e-06 | L169: 8.376613658e-06 | N169: -0.0006856448175 | O169: -0.02976515357 | P169: -0.0002889917752 | Q169: -0.004522618772 | R169: 1.517467321e-05
A170: 82.67292 | B170: ='DF raw data'!A175 -> 1.5228187e-07 | C170: ='DF raw data'!B175 -> -4.1202752e-06 | D170: ='DF raw data'!C175 -> -9.7925465e-07 | F170: 1.524999376e-07 | G170: -4.136058782e-06 | H170: -9.806569427e-07 | J170: -7.852174836e-06 | K170: -1.484656787e-05 | L170: 4.586517301e-06 | N170: -0.0006895731035 | O170: -0.03011013321 | P170: -0.0002964192162 | Q170: -0.004670911378 | R170: 1.545651867e-05
A171: 83.1732 | B171: ='DF raw data'!A176 -> -2.5335214e-06 | C171: ='DF raw data'!B176 -> -1.5239158e-06 | D171: ='DF raw data'!C176 -> -1.927785e-06 | F171: -2.537149403e-06 | G171: -1.529753481e-06 | H171: -1.930545588e-06 | J171: 9.312611691e-07 | K171: -2.016030258e-05 | L171: 6.374987628e-06 | N171: -0.0006891072122 | O171: -0.03045487976 | P171: -0.0003065050123 | Q171: -0.004824249705 | R171: 1.574108497e-05
A172: 83.67348 | B172: ='DF raw data'!A177 -> -2.8227407e-06 | C172: ='DF raw data'!B177 -> 1.0953259e-05 | D172: ='DF raw data'!C177 -> -5.8688511e-06 | F172: -2.826782865e-06 | G172: 1.099521777e-05 | H172: -5.877255295e-06 | J172: 9.622917413e-06 | K172: -1.097668504e-06 | L172: 1.193255498e-05 | N172: -0.000684293059 | O172: -0.03079721789 | P172: -0.0003070541539 | Q172: -0.004977862758 | R172: 1.60225121e-05
A173: 84.17376 | B173: ='DF raw data'!A178 -> -2.8874822e-06 | C173: ='DF raw data'!B178 -> 5.0637841e-06 | D173: ='DF raw data'!C178 -> -3.3287488e-06 | F173: -2.891617075e-06 | G173: 5.083181992e-06 | H173: -3.333515568e-06 | J173: 8.120102259e-06 | K173: -7.735248623e-06 | L173: 7.130191434e-06 | N173: -0.0006802307343 | O173: -0.03113752373 | P173: -0.0003109239441 | Q173: -0.005133411788 | R173: 1.630236251e-05
A174: 84.67404 | B174: ='DF raw data'!A179 -> -4.8087427e-06 | C174: ='DF raw data'!B179 -> 1.2145431e-05 | D174: ='DF raw data'!C179 -> 2.3351986e-06 | F174: -4.81562882e-06 | G174: 1.219195663e-05 | H174: 2.338542604e-06 | J174: -7.854529202e-07 | K174: -1.56055964e-05 | L174: 2.156423282e-06 | N174: -0.0006806236807 | O174: -0.03147802614 | P174: -0.0003187311119 | Q174: -0.005292866589 | R174: 1.658493972e-05
A175: 85.17432 | B175: ='DF raw data'!A180 -> -1.3561843e-06 | C175: ='DF raw data'!B180 -> 6.825423e-06 | D175: ='DF raw data'!C180 -> 2.1019969e-06 | F175: -1.358126356e-06 | G175: 6.851569221e-06 | H175: 2.10500696e-06 | J175: -5.765006384e-06 | K175: -1.921215235e-05 | L175: 8.282963843e-08 | N175: -0.0006835077981 | O175: -0.03181997142 | P175: -0.0003283425675 | Q175: -0.005457129809 | R175: 1.687259659e-05
A176: 85.6746 | B176: ='DF raw data'!A181 -> 9.8978819e-07 | C176: ='DF raw data'!B181 -> -7.3309292e-07 | D176: ='DF raw data'!C181 -> -3.0019055e-06 | F176: 9.912055667e-07 | G176: -7.359011869e-07 | H176: -3.006204229e-06 | J176: -6.22992089e-06 | K176: -1.291852629e-05 | L176: -4.32949407e-06 | N176: -0.0006866245029 | O176: -0.03216347593 | P176: -0.0003348054478 | Q176: -0.005624626278 | R176: 1.716453393e-05
A177: 86.17488 | B177: ='DF raw data'!A182 -> -2.0173359e-06 | C177: ='DF raw data'!B182 -> 7.1700651e-06 | D177: ='DF raw data'!C182 -> -6.3273383e-06 | F177: -2.020224725e-06 | G177: 7.197531545e-06 | H177: -6.336399048e-06 | J177: -6.13693222e-06 | K177: -5.71666462e-06 | L177: -1.626663651e-06 | N177: -0.0006896946873 | O177: -0.03250851639 | P177: -0.0003376653808 | Q177: -0.005793553515 | R177: 1.745954738e-05
A178: 86.67516 | B178: ='DF raw data'!A183 -> -2.1386988e-06 | C178: ='DF raw data'!B183 -> 1.1349938e-05 | D178: ='DF raw data'!C183 -> -2.6481703e-06 | F178: -2.141761417e-06 | G178: 1.139341633e-05 | H178: -2.65196248e-06 | J178: -3.918347049e-06 | K178: -9.187675418e-06 | L178: 5.008879459e-06 | N178: -0.000691654958 | O178: -0.03285453753 | P178: -0.000342261791 | Q178: -0.005964780244 | R178: 1.775747899e-05
A179: 87.17544 | B179: ='DF raw data'!A184 -> -1.0440748e-06 | C179: ='DF raw data'!B184 -> 1.345662e-05 | D179: ='DF raw data'!C184 -> -2.3464774e-07 | F179: -1.045569915e-06 | G179: 1.350816842e-05 | H179: -2.349837556e-07 | J179: -1.664933075e-06 | K179: -6.285366339e-06 | L179: 4.326262549e-06 | N179: -0.0006924878907 | O179: -0.03320097537 | P179: -0.0003454062341 | Q179: -0.006137580074 | R179: 1.805706914e-05
A180: 87.67572 | B180: ='DF raw data'!A185 -> -1.9712209e-06 | C180: ='DF raw data'!B185 -> 1.0713491e-05 | D180: ='DF raw data'!C185 -> -3.6788242e-06 | F180: -1.974043688e-06 | G180: 1.075453129e-05 | H180: -3.684092276e-06 | J180: -1.995486951e-06 | K180: -1.940971226e-05 | L180: 1.104887236e-07 | N180: -0.0006934861929 | O180: -0.03354791264 | P180: -0.000355116525 | Q180: -0.00631523777 | R180: 1.836075453e-05
A181: 88.176 | B181: ='DF raw data'!A186 -> -1.5906738e-06 | C181: ='DF raw data'!B186 -> 1.2581204e-05 | D181: ='DF raw data'!C186 -> -1.552491e-06 | F181: -1.592951645e-06 | G181: 1.262939895e-05 | H181: -1.554714167e-06 | J181: -1.898061838e-07 | K181: -2.352536697e-05 | L181: 1.151617158e-06 | N181: -0.0006935811492 | O181: -0.03389489742 | P181: -0.0003668857955 | Q181: -0.006498783395 | R181: 1.866875691e-05
A182: 88.67628 | B182: ='DF raw data'!A187 -> 1.4253209e-07 | C182: ='DF raw data'!B187 -> 1.4396081e-05 | D182: ='DF raw data'!C187 -> -1.1979554e-06 | F182: 1.42736196e-07 | G182: 1.445122822e-05 | H182: -1.199670872e-06 | J182: 2.852649553e-06 | K182: -2.099339775e-05 | L182: -3.601949316e-06 | N182: -0.0006921540256 | O182: -0.03424116824 | P182: -0.0003773883726 | Q182: -0.00668758325 | R182: 1.897968052e-05
A183: 89.17656 | B183: ='DF raw data'!A188 -> 3.3650683e-06 | C183: ='DF raw data'!B188 -> 1.3722407e-05 | D183: ='DF raw data'!C188 -> -1.1099284e-07 | F183: 3.369887078e-06 | G183: 1.377497357e-05 | H183: -1.111517817e-07 | J183: 6.775786752e-07 | K183: -2.005368672e-05 | L183: -1.067971749e-05 | N183: -0.0006918150466 | O183: -0.03458726947 | P183: -0.000387420831 | Q183: -0.006881402144 | R183: 1.929420804e-05
A184: 89.67684 | B184: ='DF raw data'!A189 -> 4.9563782e-06 | C184: ='DF raw data'!B189 -> 1.5289643e-05 | D184: ='DF raw data'!C189 -> 7.3878564e-06 | F184: 4.963475734e-06 | G184: 1.53482132e-05 | H184: 7.39843581e-06 | J184: -4.40959451e-06 | K184: -1.779012978e-05 | L184: -9.72616355e-06 | N184: -0.0006940210785 | O184: -0.03493447433 | P184: -0.0003963208771 | Q184: -0.007079673552 | R184: 1.961375463e-05
A185: 90.17712 | B185: ='DF raw data'!A190 -> -6.9198286e-08 | C185: ='DF raw data'!B190 -> 1.4278932e-05 | D185: ='DF raw data'!C190 -> 1.064694e-05 | F185: -6.929737795e-08 | G185: 1.433363046e-05 | H185: 1.066218642e-05 | J185: -5.396621712e-06 | K185: -4.439027138e-06 | L185: -6.740672741e-06 | N185: -0.0006967209004 | O185: -0.03528302987 | P185: -0.0003985416336 | Q185: -0.007279055961 | R185: 1.993606275e-05
A186: 90.6774 | B186: ='DF raw data'!A191 -> -7.9804049e-06 | C186: ='DF raw data'!B191 -> 3.5874123e-06 | D186: ='DF raw data'!C191 -> 2.9813109e-06 | F186: -7.99183284e-06 | G186: 3.601154639e-06 | H186: 2.985580137e-06 | J186: -4.481846226e-06 | K186: -1.286240613e-05 | L186: -5.03558034e-06 | N186: -0.0006989630785 | O186: -0.03563270711 | P186: -0.0004049764381 | Q186: -0.007481657573 | R186: 2.026252311e-05
A187: 91.17768 | B187: ='DF raw data'!A192 -> -9.8839701e-06 | C187: ='DF raw data'!B192 -> -1.1271034e-06 | D187: ='DF raw data'!C192 -> -9.0179874e-06 | F187: -9.898123945e-06 | G187: -1.131421007e-06 | H187: -9.030901158e-06 | J187: -1.52891107e-06 | K187: -2.180037625e-05 | L187: 3.107171507e-06 | N187: -0.0006997279621 | O187: -0.03598276702 | P187: -0.0004158827304 | Q187: -0.007689715385 | R187: 2.059399747e-05
A188: 91.67796 | B188: ='DF raw data'!A193 -> -6.0161005e-06 | C188: ='DF raw data'!B193 -> 7.718184e-06 | D188: ='DF raw data'!C193 -> -8.8378929e-06 | F188: -6.024715556e-06 | G188: 7.74775013e-06 | H188: -8.850548763e-06 | J188: -3.930086636e-07 | K188: -8.543432026e-06 | L188: 1.404280654e-05 | N188: -0.0006999245765 | O188: -0.03633292529 | P188: -0.0004201568385 | Q188: -0.007899911449 | R188: 2.092739716e-05
A189: 92.17824 | B189: ='DF raw data'!A194 -> -1.7395981e-06 | C189: ='DF raw data'!B194 -> 1.9457373e-05 | D189: ='DF raw data'!C194 -> -6.8841285e-07 | F189: -1.742089204e-06 | G189: 1.953190857e-05 | H189: -6.893986572e-07 | J189: -3.690400196e-06 | K189: -9.69824781e-06 | L189: 1.014074779e-05 | N189: -0.0007017708099 | O189: -0.03668400719 | P189: -0.0004250086779 | Q189: -0.00811253479 | R189: 2.126414295e-05
A190: 92.67852 | B190: ='DF raw data'!A195 -> -4.9617997e-06 | C190: ='DF raw data'!B195 -> 1.0590605e-05 | D190: ='DF raw data'!C195 -> -3.9497008e-06 | F190: -4.968904997e-06 | G190: 1.063117454e-05 | H190: -3.955356772e-06 | J190: -7.875782694e-06 | K190: -6.88299906e-06 | L190: 5.14431863e-06 | N190: -0.0007057109064 | O190: -0.03703706024 | P190: -0.0004284521047 | Q190: -0.008326880809 | R190: 2.160513335e-05
A191: 93.1788 | B191: ='DF raw data'!A196 -> -8.6095133e-06 | C191: ='DF raw data'!B196 -> 1.5105379e-05 | D191: ='DF raw data'!C196 -> -1.0400259e-05 | F191: -8.621842123e-06 | G191: 1.516324334e-05 | H191: -1.041515217e-05 | J191: -9.96147894e-06 | K191: -1.256720562e-05 | L191: 3.928892729e-06 | N191: -0.0007106944351 | O191: -0.03739260645 | P191: -0.0004347392263 | Q191: -0.008544372149 | R191: 2.195237008e-05
A192: 93.67908 | B192: ='DF raw data'!A197 -> 1.722026e-06 | C192: ='DF raw data'!B197 -> 1.4119352e-05 | D192: ='DF raw data'!C197 -> -8.9825826e-06 | F192: 1.724491941e-06 | G192: 1.417343915e-05 | H192: -8.995445658e-06 | J192: -6.289538039e-06 | K192: -1.029775519e-05 | L192: 2.615100669e-06 | N192: -0.0007138409652 | O192: -0.03774972681 | P192: -0.0004398909873 | Q192: -0.008764440812 | R192: 2.230410344e-05
A193: 94.17936 | B193: ='DF raw data'!A198 -> 1.0079861e-05 | C193: ='DF raw data'!B198 -> 7.8782969e-06 | D193: ='DF raw data'!C198 -> 1.915645e-06 | F193: 1.009429536e-05 | G193: 7.908476377e-06 | H193: 1.918388204e-06 | J193: -2.885998841e-06 | K193: -1.338195277e-05 | L193: 3.113012559e-07 | N193: -0.0007152847727 | O193: -0.03810756948 | P193: -0.0004465857106 | Q193: -0.008987858711 | R193: 2.265983809e-05
A194: 94.67964 | B194: ='DF raw data'!A199 -> 7.1239297e-06 | C194: ='DF raw data'!B199 -> 1.1125114e-05 | D194: ='DF raw data'!C199 -> 6.1132105e-06 | F194: 7.134131167e-06 | G194: 1.116773109e-05 | H194: 6.121964617e-06 | J194: -4.292342145e-06 | K194: -1.198604787e-05 | L194: 3.317055631e-06 | N194: -0.0007174321456 | O194: -0.03846648643 | P194: -0.0004525820907 | Q194: -0.00921427648 | R194: 2.301980928e-05
A195: 95.17992 | B195: ='DF raw data'!A200 -> 4.7241588e-06 | C195: ='DF raw data'!B200 -> 5.5557302e-06 | D195: ='DF raw data'!C200 -> 1.1589237e-06 | F195: 4.730923795e-06 | G195: 5.577012595e-06 | H195: 1.160583279e-06 | J195: -3.131913988e-06 | K195: -7.49831155e-06 | L195: 6.547616479e-06 | N195: -0.0007189989796 | O195: -0.03882618724 | P195: -0.000456333346 | Q195: -0.009442570926 | R195: 2.338261216e-05
A196: 95.6802 | B196: ='DF raw data'!A201 -> 6.5887248e-06 | C196: ='DF raw data'!B201 -> 3.2018079e-06 | D196: ='DF raw data'!C201 -> -7.3955362e-06 | F196: 6.598159854e-06 | G196: 3.2140731e-06 | H196: -7.406126608e-06 | J196: 2.233022315e-07 | K196: -1.485915892e-05 | L196: 5.247887228e-06 | N196: -0.0007188872659 | O196: -0.03918583216 | P196: -0.000463767086 | Q196: -0.009674584324 | R196: 2.374875649e-05
A197: 96.18048 | B197: ='DF raw data'!A202 -> 4.819532e-06 | C197: ='DF raw data'!B202 -> 1.7389124e-06 | D197: ='DF raw data'!C202 -> -9.5182095e-06 | F197: 4.82643357e-06 | G197: 1.74557367e-06 | H197: -9.531839576e-06 | J197: 4.511180874e-07 | K197: -1.632497963e-05 | L197: 1.113028578e-06 | N197: -0.0007186615806 | O197: -0.03954536418 | P197: -0.0004719341468 | Q197: -0.009910683539 | R197: 2.411856162e-05
A198: 96.68076 | B198: ='DF raw data'!A203 -> 2.3871942e-06 | C198: ='DF raw data'!B203 -> 1.2405614e-05 | D198: ='DF raw data'!C203 -> 2.2869979e-07 | F198: 2.390612662e-06 | G198: 1.245313632e-05 | H198: 2.290272881e-07 | J198: -1.698756441e-06 | K198: -9.559220368e-06 | L198: -7.655523433e-07 | N198: -0.0007195114345 | O198: -0.03990532136 | P198: -0.0004767164336 | Q198: -0.01014917524 | R198: 2.449124784e-05
A199: 97.18104 | B199: ='DF raw data'!A204 -> 7.1699137e-06 | C199: ='DF raw data'!B204 -> 1.2439371e-05 | D199: ='DF raw data'!C204 -> 4.3518539e-06 | F199: 7.180181016e-06 | G199: =(1-$G$1*($B$2-$G$2))*C199*$M$2/$M$1 -> 1.248702263e-05 | H199: 4.358085755e-06 | J199: =-CELL("contents", INDEX($F$6:$F$1203,1204-CELL("row",F199))) -> 9.862005097e-07 | K199: =CELL("contents", INDEX($G$6:$G$1203,1204-CELL("row",G199))) -> -3.920417776e-06 | L199: =-CELL("contents", INDEX($H$6:$H$1203,1204-CELL("row",H199))) -> 2.851776805e-06 | N199: -0.0007190180581 | O199: -0.04026503171 | P199: -0.0004786777402 | Q199: -0.01038864814 | R199: 2.486451643e-05
A200: =A199+$B$1 -> 97.68132 | B200: ='DF raw data'!A205 -> 8.5932224e-06 | C200: ='DF raw data'!B205 -> 1.5561171e-06 | D200: ='DF raw data'!C205 -> 6.3693921e-07 | F200: 8.605527894e-06 | G200: 1.562078134e-06 | H200: 6.378513069e-07 | J200: 2.398781143e-06 | K200: -8.309576211e-06 | L200: 3.504337335e-06 | N200: =J200*$B$1+N199 -> -0.0007178179958 | O200: =N200*$B$1+O199 -> -0.0406241417 | P200: =K200*$B$1+P199 -> -0.000482834855 | Q200: =P200*$B$1+Q199 -> -0.01063020076 | R200: =(N200^2+P200^2)*$B$1+R199 -> 2.523892206e-05
... 1003 more rows

Sheet 10 y=-0.1
A1: dz | B1: ='DF raw data'!E7 -> 0.50016 | C1: mm | F1: T_coeff | G1: -0.0008 | H1: /degC | L1: Hallref | M1: ='PI vs y'!B44 -> 0.50516 | N1: T | P1: IBy total | Q1: =P1203*1000 -> -15.70716335 | R1: muTm
A2: Tref | B2: ='DF raw data'!E8 -> 21.74 | C2: degC | F2: Tcorr | G2: 20 | H2: degC | L2: NMRref | M2: ='PI vs y'!B45 -> 0.50637 | N2: T | P2: JBy total | Q2: =Q1203 -> -8.147081062 | R2: muTm^2
A3: Encoder | B3: ='DF raw data'!E9 -> 391241 | P3: PI total | Q3: =R1203 -> 4586.398048 | R3: T^2mm^3
J4: SXR-rotation
A5: z [mm] | B5: Bx | C5: By | D5: Bz | F5: Bx_corr | G5: By_corr | H5: Bz_corr | J5: Bx_rot | K5: By_rot | L5: Bz_rot | N5: Ix | O5: Jx | P5: Iy | Q5: Jy | R5: PI
A6: ='PI vs y'!B53 -> 0.627 | B6: ='DF raw data'!D11 -> 3.6744091e-06 | C6: ='DF raw data'!E11 -> 8.4888779e-06 | D6: ='DF raw data'!F11 -> 1.0504592e-05 | F6: =(1-$G$1*($B$2-$G$2))*B6 -> 3.679523877e-06 | G6: =(1-$G$1*($B$2-$G$2))*C6*$M$2/$M$1 -> 8.521055967e-06 | H6: =(1-$G$1*($B$2-$G$2))*D6 -> 1.051921439e-05 | J6: =-CELL("contents", INDEX($F$6:$F$1203,1204-CELL("row",F6))) -> -5.523442745e-06 | K6: =CELL("contents", INDEX($G$6:$G$1203,1204-CELL("row",G6))) -> -3.022490432e-06 | L6: =-CELL("contents", INDEX($H$6:$H$1203,1204-CELL("row",H6))) -> -6.989870875e-06 | N6: =J6*$B$1 -> -2.762605123e-06 | O6: =N6*$B$1 -> -1.381744578e-06 | P6: =K6*$B$1 -> -1.511728814e-06 | Q6: =P6*$B$1 -> -7.561062838e-07 | R6: =(N6^2+P6^2)*$B$1 -> 4.960242307e-12
A7: =A6+$B$1 -> 1.12716 | B7: ='DF raw data'!D12 -> 3.4666223e-06 | C7: ='DF raw data'!E12 -> 1.412671e-05 | D7: ='DF raw data'!F12 -> 1.0624121e-05 | F7: =(1-$G$1*($B$2-$G$2))*B7 -> 3.471447838e-06 | G7: =(1-$G$1*($B$2-$G$2))*C7*$M$2/$M$1 -> 1.418025892e-05 | H7: 1.063890978e-05 | J7: =-CELL("contents", INDEX($F$6:$F$1203,1204-CELL("row",F7))) -> -1.016992486e-05 | K7: =CELL("contents", INDEX($G$6:$G$1203,1204-CELL("row",G7))) -> -3.629072568e-06 | L7: =-CELL("contents", INDEX($H$6:$H$1203,1204-CELL("row",H7))) -> -7.31770829e-06 | N7: =J7*$B$1+N6 -> -7.84919474e-06 | O7: =N7*$B$1+O6 -> -5.307597819e-06 | P7: =K7*$B$1+P6 -> -3.32684575e-06 | Q7: =P7*$B$1+Q6 -> -2.420061454e-06 | R7: =(N7^2+P7^2)*$B$1+R6 -> 4.13107511e-11
A8: =A7+$B$1 -> 1.62732 | B8: ='DF raw data'!D13 -> 3.5748303e-06 | C8: ='DF raw data'!E13 -> 9.7883249e-06 | D8: ='DF raw data'!F13 -> 2.8904115e-06 | F8: 3.579806464e-06 | G8: 9.825428671e-06 | H8: 2.894434953e-06 | J8: -8.675330073e-06 | K8: 2.284736552e-06 | L8: -7.79649884e-06 | N8: =J8*$B$1+N7 -> -1.218824783e-05 | O8: =N8*$B$1+O7 -> -1.140367185e-05 | P8: =K8*$B$1+P7 -> -2.184111917e-06 | Q8: =P8*$B$1+Q7 -> -3.51246687e-06 | R8: =(N8^2+P8^2)*$B$1+R7 -> 1.179971479e-10
A9: 2.12748 | B9: ='DF raw data'!D14 -> 3.6242777e-06 | C9: ='DF raw data'!E14 -> 8.0589762e-06 | D9: ='DF raw data'!F14 -> 8.2330473e-07 | F9: 3.629322695e-06 | G9: 8.089524676e-06 | H9: 8.244507702e-07 | J9: -5.788466845e-06 | K9: 8.410025784e-06 | L9: -7.747842305e-06 | N9: -1.508340741e-05 | O9: -1.89477889e-05 | P9: 2.02224658e-06 | Q9: -2.501020021e-06 | R9: 2.338335338e-10
A10: 2.62764 | B10: ='DF raw data'!D15 -> 3.8674548e-06 | C10: ='DF raw data'!E15 -> 1.9207921e-06 | D10: ='DF raw data'!F15 -> 3.3345214e-06 | F10: 3.872838297e-06 | G10: 1.928073083e-06 | H10: 3.339163054e-06 | J10: -1.101989036e-05 | K10: 1.275869466e-05 | L10: -7.190143467e-06 | N10: -2.059511577e-05 | O10: -2.924864201e-05 | P10: 8.403635303e-06 | Q10: 1.702142212e-06 | R10: 4.813026385e-10
A11: 3.1278 | B11: ='DF raw data'!D16 -> 3.9253277e-06 | C11: ='DF raw data'!E16 -> 4.6443466e-07 | D11: ='DF raw data'!F16 -> 3.3452388e-06 | F11: 3.930791756e-06 | G11: 4.66195153e-07 | H11: 3.349895372e-06 | J11: -1.634482537e-05 | K11: 1.44305792e-05 | L11: -6.738347842e-06 | N11: -2.877014363e-05 | O11: -4.363831704e-05 | P11: 1.56212338e-05 | Q11: 9.515258508e-06 | R11: 1.017346172e-09
A12: 3.62796 | B12: ='DF raw data'!D17 -> 3.4550098e-06 | C12: ='DF raw data'!E17 -> 1.3876534e-05 | D12: ='DF raw data'!F17 -> 6.7327719e-06 | F12: 3.459819174e-06 | G12: 1.39291346e-05 | H12: 6.742143918e-06 | J12: -1.569043272e-05 | K12: 1.043736864e-05 | L12: -6.535211769e-06 | N12: -3.661787046e-05 | O12: -6.195311113e-05 | P12: 2.08415881e-05 | Q12: 1.993938721e-05 | R12: 1.905250326e-09
A13: 4.12812 | B13: ='DF raw data'!D18 -> 3.4313193e-06 | C13: ='DF raw data'!E18 -> 1.331574e-05 | D13: ='DF raw data'!F18 -> 2.6944429e-07 | F13: 3.436095696e-06 | G13: 1.336621484e-05 | H13: 2.698193565e-07 | J13: -1.220941688e-05 | K13: 1.9253236e-05 | L13: -5.940922268e-06 | N13: -4.272453241e-05 | O13: -8.332221326e-05 | P13: 3.047128662e-05 | Q13: 3.517990592e-05 | R13: 3.282633437e-09
A14: 4.62828 | B14: ='DF raw data'!D19 -> 3.4596083e-06 | C14: ='DF raw data'!E19 -> 1.1924628e-05 | D14: ='DF raw data'!F19 -> -2.835709e-06 | F14: 3.464424075e-06 | G14: 1.196982967e-05 | H14: -2.839656307e-06 | J14: -6.340992492e-06 | K14: 1.28012855e-05 | L14: -5.210739867e-06 | N14: -4.589604321e-05 | O14: -0.0001062775782 | P14: 3.687397757e-05 | Q14: 5.362279454e-05 | R14: 5.016256521e-09
A15: 5.12844 | B15: ='DF raw data'!D20 -> 3.9410147e-06 | C15: ='DF raw data'!E20 -> -8.2233709e-07 | D15: ='DF raw data'!F20 -> -8.3974635e-07 | F15: 3.946500592e-06 | G15: -8.254542533e-07 | H15: -8.409152769e-07 | J15: -3.372517318e-06 | K15: 4.832810846e-06 | L15: -5.042453138e-06 | N15: -4.758284147e-05 | O15: -0.0001300766122 | P15: 3.929115624e-05 | Q15: 7.327465925e-05 | R15: 6.920826669e-09
A16: 5.6286 | B16: ='DF raw data'!D21 -> 3.8344801e-06 | C16: ='DF raw data'!E21 -> 2.6342273e-06 | D16: ='DF raw data'!F21 -> 1.9205845e-06 | F16: 3.839817696e-06 | G16: 2.644212641e-06 | H16: 1.923257954e-06 | J16: -2.376844569e-06 | K16: 6.020394418e-06 | L16: -5.508915651e-06 | N16: -4.877164405e-05 | O16: -0.0001544702377 | P16: 4.230231672e-05 | Q16: 9.443258598e-05 | R16: 9.005573206e-09
A17: 6.12876 | B17: ='DF raw data'!D22 -> 3.3524188e-06 | C17: ='DF raw data'!E22 -> 1.5028812e-05 | D17: ='DF raw data'!F22 -> -2.6070838e-06 | F17: 3.357085367e-06 | G17: 1.508578044e-05 | H17: -2.610712861e-06 | J17: -1.978791148e-06 | K17: -3.096555122e-06 | L17: -6.187315771e-06 | N17: -4.976135623e-05 | O17: -0.0001793588776 | P17: 4.075354371e-05 | Q17: 0.0001148158784 | R17: 1.107475708e-08
A18: 6.62892 | B18: ='DF raw data'!D23 -> 3.9644433e-06 | C18: ='DF raw data'!E23 -> -2.0509344e-06 | D18: ='DF raw data'!F23 -> -4.8610736e-06 | F18: 3.969961805e-06 | G18: -2.058708703e-06 | H18: -4.867840214e-06 | J18: -2.456845775e-06 | K18: 6.604074068e-06 | L18: -6.254690226e-06 | N18: -5.099017222e-05 | O18: -0.0002048621222 | P18: 4.405663739e-05 | Q18: 0.0001368512462 | R18: 1.334597612e-08
A19: 7.12908 | B19: ='DF raw data'!D24 -> 3.4826439e-06 | C19: ='DF raw data'!E24 -> 1.0924057e-05 | D19: ='DF raw data'!F24 -> -5.8720389e-06 | F19: 3.48749174e-06 | G19: 1.096546589e-05 | H19: -5.880212778e-06 | J19: -3.541029962e-06 | K19: 2.604166616e-06 | L19: -5.825284725e-06 | N19: -5.276125376e-05 | O19: -0.0002312511909 | P19: 4.535913737e-05 | Q19: 0.0001595380723 | R19: 1.576735133e-08
A20: 7.62924 | B20: ='DF raw data'!D25 -> 3.4608888e-06 | C20: ='DF raw data'!E25 -> 1.1336748e-05 | D20: ='DF raw data'!F25 -> -6.6560378e-06 | F20: 3.465706357e-06 | G20: 1.137972125e-05 | H20: -6.665303005e-06 | J20: -6.956076599e-06 | K20: -2.33202583e-07 | L20: -5.815688986e-06 | N20: -5.624040503e-05 | O20: -0.0002593803918 | P20: 4.524249876e-05 | Q20: 0.0001821665605 | R20: 1.837311834e-08
A21: 8.1294 | B21: ='DF raw data'!D26 -> 3.8147186e-06 | C21: ='DF raw data'!E26 -> 2.0499497e-06 | D21: ='DF raw data'!F26 -> -4.426015e-06 | F21: 3.820028688e-06 | G21: 2.05772027e-06 | H21: -4.432176013e-06 | J21: -1.060754217e-05 | K21: -6.867168893e-06 | L21: -6.540807548e-06 | N21: -6.154587333e-05 | O21: -0.0002901631758 | P21: 4.180781557e-05 | Q21: 0.0002030771575 | R21: 2.114189805e-08
A22: 8.62956 | B22: ='DF raw data'!D27 -> 2.8299614e-06 | C22: ='DF raw data'!E27 -> 4.8300381e-06 | D22: ='DF raw data'!F27 -> -3.470027e-06 | F22: 2.833900706e-06 | G22: 4.848346915e-06 | H22: -3.474857278e-06 | J22: -7.311877986e-06 | K22: 3.455042679e-06 | L22: -6.954613465e-06 | N22: -6.520298222e-05 | O22: -0.0003227750994 | P22: 4.353588971e-05 | Q22: 0.0002248520681 | R22: 2.421628283e-08
A23: 9.12972 | B23: ='DF raw data'!D28 -> 1.6773214e-07 | C23: ='DF raw data'!E28 -> 6.866404e-06 | D23: ='DF raw data'!F28 -> -3.7148775e-06 | F23: =(1-$G$1*($B$2-$G$2))*B23 -> 1.679656231e-07 | G23: 6.892431894e-06 | H23: -3.720048609e-06 | J23: -7.269830037e-06 | K23: 2.851406869e-06 | L23: -4.030823807e-06 | N23: -6.883906041e-05 | O23: -0.0003572056439 | P23: 4.496204937e-05 | Q23: 0.0002473402867 | R23: 2.759756555e-08
A24: 9.62988 | B24: ='DF raw data'!D29 -> -1.8840151e-06 | C24: ='DF raw data'!E29 -> 1.5822436e-05 | D24: ='DF raw data'!F29 -> 3.3122278e-06 | F24: -1.886637649e-06 | G24: 1.588241276e-05 | H24: 3.316838421e-06 | J24: -1.089442396e-05 | K24: 8.204477873e-07 | L24: -2.298746407e-06 | N24: -7.42880155e-05 | O24: -0.0003943615377 | P24: 4.537240454e-05 | Q24: 0.0002700337486 | R24: 3.13874601e-08
A25: 10.13004 | B25: ='DF raw data'!D30 -> -1.0767476e-06 | C25: ='DF raw data'!E30 -> -3.4193633e-06 | D25: ='DF raw data'!F30 -> 9.4001962e-06 | F25: -1.078246433e-06 | G25: -3.43232479e-06 | H25: 9.413281273e-06 | J25: -1.354359348e-05 | K25: 8.143365394e-06 | L25: -6.038499507e-07 | N25: -8.106197921e-05 | O25: -0.0004349054972 | P25: 4.944539018e-05 | Q25: 0.0002947643549 | R25: 3.589684819e-08
A26: 10.6302 | B26: ='DF raw data'!D31 -> -1.687506e-06 | C26: ='DF raw data'!E31 -> -1.3857999e-06 | D26: ='DF raw data'!F31 -> 2.5817944e-06 | F26: -1.689855008e-06 | G26: -1.391052934e-06 | H26: 2.585388258e-06 | J26: -1.212880383e-05 | K26: -1.22711907e-06 | L26: -1.187277893e-07 | N26: -8.712832173e-05 | O26: -0.0004784835986 | P26: 4.88316343e-05 | Q26: 0.0003191879851 | R26: 4.08863808e-08
A27: 11.13036 | B27: ='DF raw data'!D32 -> -2.2016688e-06 | C27: ='DF raw data'!E32 -> 1.5580038e-06 | D27: ='DF raw data'!F32 -> 8.6909233e-07 | F27: -2.204733523e-06 | G27: 1.563909592e-06 | H27: 8.703021065e-07 | J27: -7.782515002e-06 | K27: 8.289352184e-06 | L27: -3.526706852e-06 | N27: -9.102082444e-05 | O27: -0.0005240085742 | P27: 5.297763669e-05 | Q27: 0.0003456852799 | R27: 4.643386567e-08
A28: 11.63052 | B28: ='DF raw data'!D33 -> -9.651344e-07 | C28: ='DF raw data'!E33 -> 9.977658e-06 | D28: ='DF raw data'!F33 -> 5.1248289e-06 | F28: -9.664778671e-07 | G28: 1.001547946e-05 | H28: 5.131962662e-06 | J28: -5.440687309e-06 | K28: 1.037991166e-05 | L28: -5.318304289e-06 | N28: -9.37420386e-05 | O28: -0.0005708945922 | P28: 5.816925331e-05 | Q28: 0.0003747792136 | R28: 5.252142898e-08
A29: 12.13068 | B29: ='DF raw data'!D34 -> -5.1364674e-07 | C29: ='DF raw data'!E34 -> 4.363043e-06 | D29: ='DF raw data'!F34 -> 6.1168839e-06 | F29: -5.143617363e-07 | G29: 4.379581616e-06 | H29: 6.125398602e-06 | J29: -6.126825286e-06 | K29: -1.595702653e-06 | L29: -9.084846327e-06 | N29: -9.680643154e-05 | O29: -0.000619313297 | P29: 5.737114667e-05 | Q29: 0.0004034739664 | R29: 5.885492188e-08
A30: 12.63084 | B30: ='DF raw data'!D35 -> -1.1906891e-06 | C30: ='DF raw data'!E35 -> -4.7068024e-06 | D30: ='DF raw data'!F35 -> 4.2190304e-06 | F30: -1.192346539e-06 | G30: -4.724644075e-06 | H30: 4.22490329e-06 | J30: -6.254630543e-06 | K30: 8.458241963e-06 | L30: -3.737311206e-06 | N30: -9.993474755e-05 | O30: -0.0006692966604 | P30: 6.160162097e-05 | Q30: 0.0004342846331 | R30: 6.574798369e-08
A31: 13.131 | B31: ='DF raw data'!D36 -> 1.5053297e-06 | C31: ='DF raw data'!E36 -> -6.1538194e-06 | D31: ='DF raw data'!F36 -> 5.9695312e-06 | F31: 1.507425119e-06 | G31: -6.17714616e-06 | H31: 5.977840787e-06 | J31: -3.585883111e-06 | K31: -4.677191982e-07 | L31: -4.155918597e-06 | N31: -0.0001017282628 | O31: -0.0007201770683 | P31: 6.136768653e-05 | Q31: 0.0004649782952 | R31: 7.280755823e-08
A32: 13.63116 | B32: ='DF raw data'!D37 -> 4.4222757e-06 | C32: ='DF raw data'!E37 -> -6.0888406e-06 | D32: ='DF raw data'!F37 -> -1.1285946e-06 | F32: 4.428431508e-06 | G32: -6.11192105e-06 | H32: -1.130165604e-06 | J32: -1.835808994e-06 | K32: -1.377793362e-06 | L32: -2.269215858e-06 | N32: -0.0001026464611 | O32: -0.0007715167223 | P32: 6.067856941e-05 | Q32: 0.0004953272885 | R32: 7.991892552e-08
A33: 14.13132 | B33: ='DF raw data'!D38 -> 4.2590032e-06 | C33: ='DF raw data'!E38 -> 7.4392069e-06 | D33: ='DF raw data'!F38 -> -2.2265367e-06 | F33: 4.264931732e-06 | G33: 7.467406069e-06 | H33: -2.229636039e-06 | J33: -4.850674653e-06 | K33: -3.212808731e-06 | L33: 1.862009214e-06 | N33: -0.0001050725745 | O33: -0.0008240698211 | P33: 5.907165099e-05 | Q33: 0.0005248725654 | R33: 8.718610321e-08
A34: 14.63148 | B34: ='DF raw data'!D39 -> -5.0650175e-07 | C34: ='DF raw data'!E39 -> 3.4857594e-06 | D34: ='DF raw data'!F39 -> 2.9812611e-07 | F34: -5.072068004e-07 | G34: 3.498972572e-06 | H34: 2.985411015e-07 | J34: -3.375592093e-06 | K34: 8.536994155e-06 | L34: -4.53760757e-06 | N34: -0.0001067609106 | O34: -0.0008774673582 | P34: 6.334151399e-05 | Q34: 0.0005565534571 | R34: 9.489358853e-08
A35: 15.13164 | B35: ='DF raw data'!D40 -> -5.9688369e-07 | C35: ='DF raw data'!E40 -> 5.1952284e-06 | D35: ='DF raw data'!F40 -> -3.9277284e-06 | F35: -5.977145521e-07 | G35: 5.21492151e-06 | H35: -3.933195798e-06 | J35: -6.863965959e-06 | K35: 9.664441334e-06 | L35: -3.939653074e-06 | N35: -0.0001101939919 | O35: -0.0009325819852 | P35: 6.817528097e-05 | Q35: 0.0005906520056 | R35: 1.032915674e-07
A36: 15.6318 | B36: ='DF raw data'!D41 -> 3.3834581e-06 | C36: ='DF raw data'!E41 -> -8.1644682e-09 | D36: ='DF raw data'!F41 -> -6.4683618e-06 | F36: 3.388167874e-06 | G36: -8.195416555e-09 | H36: -6.47736576e-06 | J36: -1.038027426e-05 | K36: 1.757710543e-06 | L36: -7.185475178e-07 | N36: -0.0001153857898 | O36: -0.0009902933418 | P36: 6.905441747e-05 | Q36: 0.0006251902631 | R36: 1.123356571e-07
A37: 16.13196 | B37: ='DF raw data'!D42 -> 3.5931803e-06 | C37: ='DF raw data'!E42 -> -1.6562568e-06 | D37: ='DF raw data'!F42 -> -2.8025597e-06 | F37: 3.598182007e-06 | G37: -1.662535032e-06 | H37: -2.806460863e-06 | J37: -8.478212367e-06 | K37: 6.139460849e-06 | L37: -4.442232692e-06 | N37: -0.0001196262525 | O37: -0.001050125608 | P37: 7.212513021e-05 | Q37: 0.0006612643682 | R37: 1.220950165e-07
A38: 16.63212 | B38: ='DF raw data'!D43 -> 8.8186634e-06 | C38: ='DF raw data'!E43 -> -6.2980544e-06 | D38: ='DF raw data'!F43 -> 6.043404e-06 | F38: 8.830938979e-06 | G38: -6.321927899e-06 | H38: 6.051816418e-06 | J38: -7.796482418e-06 | K38: 5.319389413e-06 | L38: -6.15538819e-06 | N38: -0.0001235257412 | O38: -0.001111908243 | P38: 7.478567602e-05 | Q38: 0.0006986691719 | R38: 1.325241058e-07
A39: 17.13228 | B39: ='DF raw data'!D44 -> 1.0740375e-05 | C39: ='DF raw data'!E44 -> -4.0890341e-06 | D39: ='DF raw data'!F44 -> -2.8269176e-07 | F39: 1.07553256e-05 | G39: -4.104534054e-06 | H39: -2.830852669e-07 | J39: -1.061656171e-05 | K39: 3.2745011e-06 | L39: 4.329398546e-06 | N39: -0.0001288357207 | O39: -0.001176346717 | P39: 7.642345049e-05 | Q39: 0.0007368931249 | R39: 1.437472894e-07
A40: 17.63244 | B40: ='DF raw data'!D45 -> 8.9996165e-06 | C40: ='DF raw data'!E45 -> -4.2215274e-06 | D40: ='DF raw data'!F45 -> -1.0309267e-05 | F40: 9.012143966e-06 | G40: -4.237529585e-06 | H40: -1.03236175e-05 | J40: -1.274081256e-05 | K40: 2.455902927e-06 | L40: 2.022492596e-06 | N40: -0.0001352081655 | O40: -0.001243972433 | P40: 7.76517949e-05 | Q40: 0.0007757314466 | R40: 1.559067038e-07
A41: 18.1326 | B41: ='DF raw data'!D46 -> 4.8783036e-06 | C41: ='DF raw data'!E46 -> 6.8178753e-07 | D41: ='DF raw data'!F46 -> -2.9236899e-06 | F41: 4.885094199e-06 | G41: 6.84371924e-07 | H41: -2.927759676e-06 | J41: -1.113953568e-05 | K41: -3.367903014e-06 | L41: -1.0126866e-05 | N41: -0.0001407797157 | O41: -0.001314384816 | P41: 7.596730453e-05 | Q41: 0.0008137272537 | R41: 1.68705778e-07
A42: 18.63276 | B42: ='DF raw data'!D47 -> 3.8059729e-06 | C42: ='DF raw data'!E47 -> 2.3404207e-06 | D42: ='DF raw data'!F47 -> -6.4261155e-07 | F42: 3.811270814e-06 | G42: 2.349292334e-06 | H42: -6.435060653e-07 | J42: -9.162404939e-06 | K42: -5.147469692e-06 | L42: -1.089030223e-05 | N42: -0.0001453623841 | O42: -0.001387089266 | P42: 7.339274608e-05 | Q42: 0.0008504353695 | R42: 1.819683796e-07
A43: 19.13292 | B43: ='DF raw data'!D48 -> 4.2253009e-06 | C43: ='DF raw data'!E48 -> -3.4636612e-06 | D43: ='DF raw data'!F48 -> -3.5729963e-06 | F43: 4.231182519e-06 | G43: -3.476790606e-06 | H43: -3.577969911e-06 | J43: -1.075793423e-05 | K43: 6.838188956e-06 | L43: -9.071651285e-06 | N43: -0.0001507430725 | O43: -0.001462484921 | P43: 7.681293467e-05 | Q43: 0.0008888541269 | R43: 1.962848099e-07
A44: 19.63308 | B44: ='DF raw data'!D49 -> 1.2996675e-06 | C44: ='DF raw data'!E49 -> -5.5057644e-06 | D44: ='DF raw data'!F49 -> -1.0147071e-05 | F44: 1.301476637e-06 | G44: -5.526634633e-06 | H44: -1.016119572e-05 | J44: -1.588400981e-05 | K44: 6.598621578e-07 | L44: -2.649236211e-06 | N44: -0.0001586876188 | O44: -0.00154185412 | P44: 7.714297133e-05 | Q44: 0.0009274379555 | R44: 2.118561903e-07
A45: 20.13324 | B45: ='DF raw data'!D50 -> -9.3684554e-07 | C45: ='DF raw data'!E50 -> 3.2974938e-06 | D45: ='DF raw data'!F50 -> -1.2432637e-06 | F45: -9.38149629e-07 | G45: 3.309993329e-06 | H45: -1.244994323e-06 | J45: -1.119047248e-05 | K45: 4.285292954e-06 | L45: -1.509976766e-06 | N45: -0.0001642846456 | O45: -0.001624022729 | P45: 7.928630345e-05 | Q45: 0.000967093793 | R45: 2.284993958e-07
A46: 20.6334 | B46: ='DF raw data'!D51 -> 9.059799e-07 | C46: ='DF raw data'!E51 -> -3.3094195e-06 | D46: ='DF raw data'!F51 -> 5.6370272e-06 | F46: 9.07241024e-07 | G46: -3.321964235e-06 | H46: 5.644873942e-06 | J46: -6.220538954e-06 | K46: 7.038284878e-06 | L46: 5.50445475e-06 | N46: -0.0001673959103 | O46: -0.001707747467 | P46: 8.280657202e-05 | Q46: 0.001008510328 | R46: 2.459441359e-07
A47: 21.13356 | B47: ='DF raw data'!D52 -> -2.264938e-07 | C47: ='DF raw data'!E52 -> 2.60007e-06 | D47: ='DF raw data'!F52 -> 3.9227316e-06 | F47: -2.268090794e-07 | G47: 2.609925864e-06 | H47: 3.928192042e-06 | J47: -4.611574488e-06 | K47: 2.121472417e-06 | L47: -3.282513708e-06 | N47: -0.0001697024354 | O47: -0.001792625837 | P47: 8.386764766e-05 | Q47: 0.001050457571 | R47: 2.638662186e-07
A48: 21.63372 | B48: ='DF raw data'!D53 -> 1.6302142e-06 | C48: ='DF raw data'!E53 -> -2.7978597e-06 | D48: ='DF raw data'!F53 -> 1.0854667e-05 | F48: 1.632483458e-06 | G48: -2.808465309e-06 | H48: 1.08697767e-05 | J48: -1.810686572e-06 | K48: -9.549674339e-07 | L48: -2.725681875e-06 | N48: -0.0001706080684 | O48: -0.001877957169 | P48: 8.339001115e-05 | Q48: 0.001092165919 | R48: 2.819024918e-07
A49: 22.13388 | B49: ='DF raw data'!D54 -> -1.8412907e-06 | C49: ='DF raw data'!E54 -> -2.1215176e-06 | D49: ='DF raw data'!F54 -> -4.8708068e-07 | F49: -1.843853777e-06 | G49: -2.129559456e-06 | H49: -4.877586963e-07 | J49: 5.874266012e-07 | K49: 8.786511306e-06 | L49: 9.836688437e-06 | N49: -0.0001703142611 | O49: -0.00196314155 | P49: 8.778467264e-05 | Q49: 0.001136072301 | R49: 3.00264914e-07
A50: 22.63404 | B50: ='DF raw data'!D55 -> -7.1634936e-06 | C50: ='DF raw data'!E55 -> -1.1849921e-06 | D50: ='DF raw data'!F55 -> -5.2705791e-06 | F50: -7.173465183e-06 | G50: -1.189483949e-06 | H50: -5.277915746e-06 | J50: -3.183764039e-06 | K50: 8.228279054e-06 | L50: 1.182943268e-05 | N50: -0.0001719066525 | O50: -0.002049122381 | P50: 9.19001287e-05 | Q50: 0.001182037069 | R50: 3.192697591e-07
A51: 23.1342 | B51: ='DF raw data'!D56 -> -5.2730106e-06 | C51: ='DF raw data'!E56 -> 1.0971691e-05 | D51: ='DF raw data'!F56 -> -1.8494383e-06 | F51: -5.280350631e-06 | G51: 1.101328046e-05 | H51: -1.852012718e-06 | J51: -8.502474993e-06 | K51: 9.285317047e-07 | L51: 1.12769557e-06 | N51: -0.0001761592504 | O51: -0.002137230192 | P51: 9.236454311e-05 | Q51: 0.001228234119 | R51: 3.390577344e-07
A52: 23.63436 | B52: ='DF raw data'!D57 -> -5.9762584e-07 | C52: ='DF raw data'!E57 -> -4.1829671e-06 | D52: ='DF raw data'!F57 -> 2.5192357e-06 | F52: -5.984577352e-07 | G52: -4.198823118e-06 | H52: 2.522742476e-06 | J52: -1.153437553e-05 | K52: -3.76488052e-06 | L52: -1.672667717e-06 | N52: -0.0001819282837 | O52: -0.002228223442 | P52: 9.048150047e-05 | Q52: 0.001273489346 | R52: 3.597067411e-07
A53: 24.13452 | B53: ='DF raw data'!D58 -> 7.1888593e-07 | C53: ='DF raw data'!E58 -> -6.1735673e-06 | D53: ='DF raw data'!F58 -> 6.9385578e-06 | F53: 7.198866192e-07 | G53: -6.196968916e-06 | H53: 6.948216272e-06 | J53: -1.208642792e-05 | K53: 6.047850701e-06 | L53: 7.123830988e-06 | N53: -0.0001879734315 | O53: -0.002322240233 | P53: 9.350639348e-05 | Q53: 0.001320257504 | R53: 3.817525218e-07
A54: 24.63468 | B54: ='DF raw data'!D59 -> 6.8690082e-07 | C54: ='DF raw data'!E59 -> -1.5400416e-06 | D54: ='DF raw data'!F59 -> 9.5345686e-06 | F54: 6.878569859e-07 | G54: -1.545879305e-06 | H54: 9.547840719e-06 | J54: -1.028034535e-05 | K54: 2.217770166e-06 | L54: 1.008695052e-05 | N54: -0.000193115249 | O54: -0.002418828756 | P54: 9.461563341e-05 | Q54: 0.001367580459 | R54: 4.048827298e-07
A55: 25.13484 | B55: ='DF raw data'!D60 -> 3.551067e-06 | C55: ='DF raw data'!E60 -> -1.1784157e-07 | D55: ='DF raw data'!F60 -> 8.8354145e-06 | F55: 3.556010085e-06 | G55: -1.18288262e-07 | H55: 8.847713397e-06 | J55: -7.587933221e-06 | K55: 7.816568611e-06 | L55: 1.179437194e-05 | N55: -0.0001969104297 | O55: -0.002517315477 | P55: 9.852516836e-05 | Q55: 0.001416858807 | R55: 4.291309498e-07
A56: 25.635 | B56: ='DF raw data'!D61 -> 1.9499344e-06 | C56: ='DF raw data'!E61 -> 5.0221734e-06 | D56: ='DF raw data'!F61 -> 1.0218341e-05 | F56: 1.952648709e-06 | G56: 5.041210525e-06 | H56: 1.023256493e-05 | J56: -1.072337619e-05 | K56: 3.726926494e-06 | L56: -4.561609934e-07 | N56: -0.0002022738335 | O56: -0.002618484758 | P56: 0.0001003892279 | Q56: 0.001467069484 | R56: 4.546354591e-07
A57: 26.13516 | B57: ='DF raw data'!D62 -> 1.787273e-06 | C57: ='DF raw data'!E62 -> -6.0570846e-06 | D57: ='DF raw data'!F62 -> 1.0840428e-05 | F57: 1.789760884e-06 | G57: -6.080044675e-06 | H57: 1.085551788e-05 | J57: -1.22800701e-05 | K57: 3.374147093e-06 | L57: -5.660604609e-06 | N57: -0.0002084158334 | O57: -0.002722726021 | P57: 0.0001020768413 | Q57: 0.001518124236 | R57: 4.815724967e-07
A58: 26.63532 | B58: ='DF raw data'!D63 -> -4.085237e-07 | C58: ='DF raw data'!E63 -> -5.5042965e-06 | D58: ='DF raw data'!F63 -> 1.1984624e-05 | F58: -4.09092365e-07 | G58: -5.525161169e-06 | H58: 1.20013066e-05 | J58: -7.036354691e-06 | K58: 8.956070212e-06 | L58: -1.351497069e-06 | N58: -0.0002119351366 | O58: -0.002828727499 | P58: 0.0001065563094 | Q58: 0.00157141944 | R58: 5.097168747e-07
A59: 27.13548 | B59: ='DF raw data'!D64 -> -4.5764832e-06 | C59: ='DF raw data'!E64 -> 9.7706186e-07 | D59: ='DF raw data'!F64 -> 9.3192657e-06 | F59: -4.582853665e-06 | G59: 9.807655253e-07 | H59: 9.332238118e-06 | J59: -3.562013831e-06 | K59: -1.795128545e-06 | L59: 4.975878294e-06 | N59: -0.0002137167134 | O59: -0.00293562005 | P59: 0.0001056584579 | Q59: 0.001624265574 | R59: 5.381452405e-07
A60: 27.63564 | B60: ='DF raw data'!D65 -> -3.9358933e-06 | C60: ='DF raw data'!E65 -> -1.5903439e-06 | D60: ='DF raw data'!F65 -> 6.8537711e-06 | F60: -3.941372063e-06 | G60: -1.596372281e-06 | H60: 6.863311549e-06 | J60: 1.052917424e-07 | K60: -6.224558904e-06 | L60: 6.379863325e-06 | N60: -0.0002136640507 | O60: -0.003042486262 | P60: 0.0001025451825 | Q60: 0.001675554573 | R60: 5.662381478e-07
A61: 28.1358 | B61: ='DF raw data'!D66 -> -3.8925723e-06 | C61: ='DF raw data'!E66 -> 8.6002901e-06 | D61: ='DF raw data'!F66 -> 1.3136204e-05 | F61: -3.897990761e-06 | G61: 8.632890488e-06 | H61: 1.31544896e-05 | J61: -2.380869163e-07 | K61: 5.562879404e-06 | L61: 4.198904751e-06 | N61: -0.0002137831322 | O61: -0.003149412033 | P61: 0.0001053275123 | Q61: 0.001728235182 | R61: 5.946457916e-07
A62: 28.63596 | B62: ='DF raw data'!D67 -> -3.9017109e-06 | C62: ='DF raw data'!E67 -> -2.0417281e-06 | D62: ='DF raw data'!F67 -> 1.3019141e-05 | F62: -3.907142082e-06 | G62: -2.049467505e-06 | H62: 1.303726364e-05 | J62: -9.026781714e-06 | K62: 6.539116368e-06 | L62: 4.290082794e-06 | N62: -0.0002182979674 | O62: -0.003258595944 | P62: 0.0001085981167 | Q62: 0.001782551616 | R62: 6.2437908e-07
A63: 29.13612 | B63: ='DF raw data'!D68 -> -1.3809263e-06 | C63: ='DF raw data'!E68 -> 3.4621809e-07 | D63: ='DF raw data'!F68 -> 3.3413098e-06 | F63: -1.382848549e-06 | G63: 3.475304695e-07 | H63: 3.345960903e-06 | J63: -1.531210983e-05 | K63: 1.641322828e-06 | L63: 2.90523106e-06 | N63: -0.0002259564722 | O63: -0.003371610334 | P63: 0.0001094190408 | Q63: 0.001837278643 | R63: 6.559035915e-07
A64: 29.63628 | B64: ='DF raw data'!D69 -> -3.081303e-06 | C64: ='DF raw data'!E69 -> 7.6205342e-06 | D64: ='DF raw data'!F69 -> 1.9382214e-06 | F64: -3.085592174e-06 | G64: 7.649420711e-06 | H64: 1.940919404e-06 | J64: -1.423714956e-05 | K64: 9.505597592e-06 | L64: 2.053225317e-06 | N64: -0.0002330773249 | O64: -0.003488186288 | P64: 0.0001141733605 | Q64: 0.001894383591 | R64: 6.89594667e-07
A65: 30.13644 | B65: ='DF raw data'!D70 -> -2.9246371e-06 | C65: ='DF raw data'!E70 -> -4.8462334e-06 | D65: ='DF raw data'!F70 -> 5.3350095e-06 | F65: -2.928708195e-06 | G65: -4.864603605e-06 | H65: 5.342435833e-06 | J65: -1.068380518e-05 | K65: 3.943228114e-06 | L65: 2.612053524e-06 | N65: -0.0002384209369 | O65: -0.003607434904 | P65: 0.0001161456054 | Q65: 0.001952474977 | R65: 7.247730929e-07
A66: 30.6366 | B66: ='DF raw data'!D71 -> -1.4690381e-06 | C66: ='DF raw data'!E71 -> -6.6577741e-06 | D66: ='DF raw data'!F71 -> 4.6877039e-06 | F66: -1.471083001e-06 | G66: -6.683011158e-06 | H66: 4.694229184e-06 | J66: -8.293320655e-06 | K66: -4.058422523e-07 | L66: -4.660771576e-06 | N66: -0.0002425689242 | O66: -0.003728758177 | P66: 0.0001159426194 | Q66: 0.002010464838 | R66: 7.609258451e-07
A67: 31.13676 | B67: ='DF raw data'!D72 -> -2.8815198e-06 | C67: ='DF raw data'!E72 -> -7.25873e-06 | D67: ='DF raw data'!F72 -> -1.7205228e-06 | F67: -2.885530876e-06 | G67: -7.28624505e-06 | H67: -1.722917768e-06 | J67: -1.005602152e-05 | K67: 9.201301178e-06 | L67: -8.000771493e-06 | N67: -0.0002475985439 | O67: -0.003852597065 | P67: 0.0001205447422 | Q67: 0.002070756496 | R67: 7.988560158e-07
A68: 31.63692 | B68: ='DF raw data'!D73 -> -5.589282e-06 | C68: ='DF raw data'!E73 -> 2.4115373e-06 | D68: ='DF raw data'!F73 -> 5.5449448e-07 | F68: -5.597062281e-06 | G68: 2.420678509e-06 | H68: 5.552663363e-07 | J68: -1.072979511e-05 | K68: -4.736122421e-07 | L68: -4.043355928e-06 | N68: -0.0002529651583 | O68: -0.003979120119 | P68: 0.0001203078603 | Q68: 0.002130929675 | R68: 8.381012465e-07
A69: 32.13708 | B69: ='DF raw data'!D74 -> -2.735404e-06 | C69: ='DF raw data'!E74 -> 2.2005891e-06 | D69: ='DF raw data'!F74 -> -4.2927049e-06 | F69: -2.739211682e-06 | G69: 2.208930686e-06 | H69: -4.298680345e-06 | J69: -6.631284717e-06 | K69: -1.339867743e-05 | L69: -5.158352846e-06 | N69: -0.0002562818616 | O69: -0.004107302055 | P69: 0.0001136063778 | Q69: 0.002187751041 | R69: 8.774072212e-07
A70: 32.63724 | B70: ='DF raw data'!D75 -> -2.595994e-07 | C70: ='DF raw data'!E75 -> 3.4414618e-06 | D70: ='DF raw data'!F75 -> -7.5799389e-06 | F70: -2.599607624e-07 | G70: 3.454507056e-06 | H70: -7.590490175e-06 | J70: -6.976193463e-06 | K70: -3.503940231e-07 | L70: -5.206404641e-06 | N70: -0.0002597710745 | O70: -0.004237229155 | P70: 0.0001134311247 | Q70: 0.002244484752 | R70: 9.175938925e-07
A71: 33.1374 | B71: ='DF raw data'!D76 -> 2.4352698e-06 | C71: ='DF raw data'!E76 -> 2.625688e-06 | D71: ='DF raw data'!F76 -> -6.5912236e-06 | F71: 2.438659696e-06 | G71: =(1-$G$1*($B$2-$G$2))*C71*$M$2/$M$1 -> 2.635640972e-06 | H71: -6.600398583e-06 | J71: =-CELL("contents", INDEX($F$6:$F$1203,1204-CELL("row",F71))) -> -6.035924127e-06 | K71: =CELL("contents", INDEX($G$6:$G$1203,1204-CELL("row",G71))) -> 2.493002426e-06 | L71: =-CELL("contents", INDEX($H$6:$H$1203,1204-CELL("row",H71))) -> -1.45393216e-06 | N71: -0.0002627900024 | O71: -0.004368666203 | P71: 0.0001146780248 | Q71: 0.002301842113 | R71: 9.587118634e-07
A72: =A71+$B$1 -> 33.63756 | B72: ='DF raw data'!D77 -> 3.9951478e-06 | C72: ='DF raw data'!E77 -> 1.9422739e-06 | D72: ='DF raw data'!F77 -> 2.5400013e-06 | F72: 4.000709046e-06 | G72: 1.949636312e-06 | H72: 2.543536982e-06 | J72: -6.479486407e-06 | K72: -8.279603771e-08 | L72: 5.107435868e-06 | N72: =J72*$B$1+N71 -> -0.0002660307823 | O72: =N72*$B$1+O71 -> -0.004501724159 | P72: =K72*$B$1+P71 -> 0.0001146366135 | Q72: =P72*$B$1+Q71 -> 0.002359178762 | R72: =(N72^2+P72^2)*$B$1+R71 -> 1.000682255e-06
A73: 34.13772 | B73: ='DF raw data'!D78 -> -4.1797252e-06 | C73: ='DF raw data'!E78 -> 8.3942778e-06 | D73: ='DF raw data'!F78 -> 8.3347995e-06 | F73: -4.185543377e-06 | G73: 8.426097275e-06 | H73: 8.346401541e-06 | J73: -9.314006475e-06 | K73: -1.30948792e-06 | L73: 6.94762425e-06 | N73: -0.0002706892758 | O73: -0.004637112107 | P73: 0.00011398166 | Q73: 0.002416187829 | R73: 1.043828308e-06
A74: 34.63788 | B74: ='DF raw data'!D79 -> -9.4118814e-06 | C74: ='DF raw data'!E79 -> 5.616725e-06 | D74: ='DF raw data'!F79 -> 3.356553e-06 | F74: -9.424982739e-06 | G74: 5.638015842e-06 | H74: 3.361225322e-06 | J74: -8.870976034e-06 | K74: 1.324571379e-06 | L74: -6.19842912e-07 | N74: -0.0002751261831 | O74: -0.004774719219 | P74: 0.0001146441577 | Q74: 0.002473528251 | R74: 1.088261372e-06
A75: 35.13804 | B75: ='DF raw data'!D80 -> -3.0256274e-06 | C75: ='DF raw data'!E80 -> -6.4226751e-06 | D75: ='DF raw data'!F80 -> -2.5736144e-06 | F75: -3.029839073e-06 | G75: -6.447020988e-06 | H75: -2.577196871e-06 | J75: -5.585199591e-06 | K75: 4.371813883e-06 | L75: -1.42660207e-06 | N75: -0.0002779196766 | O75: -0.004913723524 | P75: 0.0001168307641 | Q75: 0.002531962326 | R75: 1.133720301e-06
A76: 35.6382 | B76: ='DF raw data'!D81 -> 3.113651e-06 | C76: ='DF raw data'!E81 -> -7.6943697e-06 | D76: ='DF raw data'!F81 -> 1.9929294e-06 | F76: 3.117985202e-06 | G76: -7.723536093e-06 | H76: 1.995703558e-06 | J76: -5.391957972e-06 | K76: -5.817804779e-06 | L76: 9.254265831e-07 | N76: -0.0002806165183 | O76: -0.005054076682 | P76: 0.0001139209308 | Q76: 0.002588941019 | R76: 1.179596782e-06
A77: 36.13836 | B77: ='DF raw data'!D82 -> 2.5292607e-06 | C77: ='DF raw data'!E82 -> -5.3435169e-06 | D77: ='DF raw data'!F82 -> 6.516676e-06 | F77: 2.532781431e-06 | G77: -5.363772115e-06 | H77: 6.525747213e-06 | J77: -9.775951608e-06 | K77: -7.947874361e-06 | L77: -1.803088711e-06 | N77: -0.0002855060582 | O77: -0.005196875392 | P77: 0.000109945722 | Q77: 0.002643931471 | R77: 1.226412643e-06
A78: 36.63852 | B78: ='DF raw data'!D83 -> -1.5648188e-06 | C78: ='DF raw data'!E83 -> -5.1317675e-06 | D78: ='DF raw data'!F83 -> 4.2714028e-06 | F78: -1.566997028e-06 | G78: -5.151220055e-06 | H78: 4.277348593e-06 | J78: -7.051793952e-06 | K78: -4.066095498e-06 | L78: -3.022925062e-06 | N78: -0.0002890330835 | O78: -0.005341438179 | P78: 0.0001079120237 | Q78: 0.002697904749 | R78: 1.274020437e-06
A79: 37.13868 | B79: ='DF raw data'!D84 -> -9.6541089e-07 | C79: ='DF raw data'!E84 -> -9.3117742e-06 | D79: ='DF raw data'!F84 -> 3.4158541e-07 | F79: -9.66754742e-07 | G79: -9.34707155e-06 | H79: 3.420608969e-07 | J79: 2.307875397e-06 | K79: 6.114548874e-06 | L79: -4.441766344e-06 | N79: -0.0002878787765 | O79: -0.005485423628 | P79: 0.0001109702764 | Q79: 0.002753407642 | R79: 1.321629963e-06
A80: 37.63884 | B80: ='DF raw data'!D85 -> 2.3496318e-06 | C80: ='DF raw data'!E85 -> -1.2012703e-06 | D80: ='DF raw data'!F85 -> -7.6810456e-06 | F80: 2.352902487e-06 | G80: -1.205823853e-06 | H80: -7.691737615e-06 | J80: 1.708361734e-06 | K80: 2.629747918e-06 | L80: -3.10583341e-06 | N80: -0.0002870243223 | O80: -0.005628981713 | P80: 0.0001122855712 | Q80: 0.002809568393 | R80: 1.369140668e-06
A81: 38.139 | B81: ='DF raw data'!D86 -> 1.4559987e-06 | C81: ='DF raw data'!E86 -> -7.1759649e-07 | D81: ='DF raw data'!F86 -> -6.3059624e-06 | F81: 1.45802545e-06 | G81: -7.20316622e-07 | H81: -6.3147403e-06 | J81: -2.97514875e-06 | K81: 6.546349181e-06 | L81: -3.252123463e-06 | N81: -0.0002885123727 | O81: -0.005773284061 | P81: 0.0001155597932 | Q81: 0.00286736678 | R81: 1.41745285e-06
A82: 38.63916 | B82: ='DF raw data'!D87 -> -3.5272465e-06 | C82: ='DF raw data'!E87 -> -1.6671976e-06 | D82: ='DF raw data'!F87 -> 9.7584518e-07 | F82: -3.532156427e-06 | G82: -1.673517304e-06 | H82: 9.772035565e-07 | J82: -2.347962521e-06 | K82: -2.55569447e-07 | L82: -1.039665503e-05 | N82: -0.0002896867296 | O82: -0.005918173776 | P82: 0.0001154319676 | Q82: 0.002925101232 | R82: 1.466089879e-06
A83: 39.13932 | B83: ='DF raw data'!D88 -> -5.987175e-06 | C83: ='DF raw data'!E88 -> 1.0782224e-05 | D83: ='DF raw data'!F88 -> -3.4079028e-07 | F83: -5.995509148e-06 | G83: 1.082309526e-05 | H83: -3.412646601e-07 | J83: -3.969495457e-06 | K83: -4.649507136e-06 | L83: -8.685029656e-06 | N83: -0.0002916721125 | O83: -0.0060640565 | P83: 0.0001131064701 | Q83: 0.002981672565 | R83: 1.515038385e-06
A84: 39.63948 | B84: ='DF raw data'!D89 -> 9.2427166e-07 | C84: ='DF raw data'!E89 -> 1.3591973e-06 | D84: ='DF raw data'!F89 -> -2.2644736e-06 | F84: 9.255582462e-07 | G84: 1.364349494e-06 | H84: -2.267625747e-06 | J84: -6.640778514e-06 | K84: 6.94225474e-06 | L84: -4.681893937e-06 | N84: -0.0002949935643 | O84: -0.006211600481 | P84: 0.0001165787082 | Q84: 0.003039980571 | R84: 1.565360382e-06
A85: 40.13964 | B85: ='DF raw data'!D90 -> 5.2125902e-06 | C85: ='DF raw data'!E90 -> -7.2256398e-06 | D85: ='DF raw data'!F90 -> 1.2502506e-06 | F85: 5.219846126e-06 | G85: -7.253029418e-06 | H85: 1.251990949e-06 | J85: -2.00051825e-06 | K85: 5.452250837e-06 | L85: 3.133693538e-06 | N85: -0.0002959941435 | O85: -0.006359644912 | P85: 0.000119305706 | Q85: 0.003099652513 | R85: 1.61629987e-06
A86: 40.6398 | B86: ='DF raw data'!D91 -> 6.4917763e-06 | C86: ='DF raw data'!E91 -> -1.2307081e-05 | D86: ='DF raw data'!F91 -> 2.933667e-06 | F86: 6.500812853e-06 | G86: -1.235373241e-05 | H86: 2.937750664e-06 | J86: 6.856841055e-06 | K86: 9.075041383e-07 | L86: 2.883299974e-06 | N86: -0.0002925646259 | O86: -0.006505974035 | P86: 0.0001197596032 | Q86: 0.003159551476 | R86: 1.666284071e-06
A87: 41.13996 | B87: ='DF raw data'!D92 -> 1.0874609e-05 | C87: ='DF raw data'!E92 -> -8.9726018e-06 | D87: ='DF raw data'!F92 -> 2.3850598e-06 | F87: =(1-$G$1*($B$2-$G$2))*B87 -> 1.088974646e-05 | G87: -9.006613478e-06 | H87: 2.388379803e-06 | J87: 5.960608734e-06 | K87: -1.798610895e-06 | L87: 1.227070508e-06 | N87: -0.0002895833678 | O87: -0.006650812052 | P87: 0.00011886001 | Q87: 0.003219000499 | R87: 1.715292863e-06
A88: 41.64012 | B88: ='DF raw data'!D93 -> 1.1205556e-05 | C88: ='DF raw data'!E93 -> -5.8234536e-06 | D88: ='DF raw data'!F93 -> -2.9513822e-06 | F88: 1.122115413e-05 | G88: -5.84552807e-06 | H88: -2.955490524e-06 | J88: -2.104782184e-06 | K88: 4.148681166e-06 | L88: 2.091010941e-06 | N88: -0.0002906360957 | O88: -0.006796176602 | P88: 0.0001209350144 | Q88: 0.003279487356 | R88: 1.764856027e-06
A89: 42.14028 | B89: ='DF raw data'!D94 -> 1.0073948e-05 | C89: ='DF raw data'!E94 -> -5.6935909e-07 | D89: ='DF raw data'!F94 -> -2.7306151e-06 | F89: 1.008797094e-05 | G89: -5.715173111e-07 | H89: -2.734416116e-06 | J89: -2.330913121e-06 | K89: 3.887512114e-06 | L89: -7.774628039e-07 | N89: -0.0002918019252 | O89: -0.006942124253 | P89: 0.0001228793925 | Q89: 0.003340946713 | R89: 1.814995921e-06
A90: 42.64044 | B90: ='DF raw data'!D95 -> 8.6062637e-06 | C90: ='DF raw data'!E95 -> -7.1261038e-06 | D90: ='DF raw data'!F95 -> 5.5747305e-06 | F90: 8.618243619e-06 | G90: -7.153116115e-06 | H90: 5.582490525e-06 | J90: 2.138692522e-06 | K90: -8.577322346e-07 | L90: -2.092469969e-06 | N90: -0.0002907322367 | O90: -0.007087536888 | P90: 0.0001224503891 | Q90: 0.003402191499 | R90: 1.86477151e-06
A91: 43.1406 | B91: ='DF raw data'!D96 -> -7.2170735e-08 | C91: ='DF raw data'!E96 -> 5.5156266e-07 | D91: ='DF raw data'!F96 -> 1.0474624e-06 | F91: -7.227119666e-08 | G91: 5.536534217e-07 | H91: 1.048920468e-06 | J91: 9.267833291e-07 | K91: 9.734390081e-08 | L91: -3.222600224e-06 | N91: -0.0002902686968 | O91: -0.00723271768 | P91: 0.0001224990766 | Q91: 0.003463460637 | R91: 1.914418362e-06
A92: 43.64076 | B92: ='DF raw data'!D97 -> -3.5332564e-06 | C92: ='DF raw data'!E97 -> 1.0976228e-05 | D92: ='DF raw data'!F97 -> 1.2315388e-07 | F92: -3.538174693e-06 | G92: 1.101783465e-05 | H92: 1.233253102e-07 | J92: -4.228574093e-06 | K92: 1.113917688e-05 | L92: -3.369290934e-06 | N92: -0.0002923836604 | O92: -0.007378956291 | P92: 0.0001280704473 | Q92: 0.003527516352 | R92: 1.965379786e-06
A93: 44.14092 | B93: ='DF raw data'!D98 -> -4.7592818e-07 | C93: ='DF raw data'!E98 -> 4.4855292e-06 | D93: ='DF raw data'!F98 -> -1.6171024e-06 | F93: -4.76590672e-07 | G93: 4.502532114e-06 | H93: -1.619353407e-06 | J93: -5.577913462e-06 | K93: 9.102191209e-06 | L93: -2.733412421e-06 | N93: -0.0002951735096 | O93: -0.007526590274 | P93: 0.0001326229993 | Q93: 0.003593849072 | R93: 2.017754671e-06
A94: 44.64108 | B94: ='DF raw data'!D99 -> -7.8104285e-06 | C94: ='DF raw data'!E99 -> -8.1953493e-07 | D94: ='DF raw data'!F99 -> -8.3415841e-07 | F94: -7.821300616e-06 | G94: -8.226414713e-07 | H94: -8.353195585e-07 | J94: -6.641048089e-06 | K94: -4.161187996e-06 | L94: -5.9812309e-07 | N94: -0.0002984950962 | O94: -0.007675885581 | P94: 0.0001305417395 | Q94: 0.003659140828 | R94: 2.070841888e-06
A95: 45.14124 | B95: ='DF raw data'!D100 -> -1.5694015e-05 | C95: ='DF raw data'!E100 -> -5.4634675e-06 | D95: ='DF raw data'!F100 -> -1.283929e-06 | F95: -1.571586107e-05 | G95: -5.484177401e-06 | H95: -1.285716229e-06 | J95: -6.938896017e-06 | K95: 4.476147578e-06 | L95: -2.20434258e-07 | N95: -0.0003019656544 | O95: -0.007826916723 | P95: 0.0001327805295 | Q95: 0.003725552338 | R95: 2.125266261e-06
A96: 45.6414 | B96: ='DF raw data'!D101 -> -1.3590129e-05 | C96: ='DF raw data'!E101 -> 7.8374869e-06 | D96: ='DF raw data'!F101 -> -1.9035423e-06 | F96: -1.360904646e-05 | G96: 7.867195795e-06 | H96: -1.906192031e-06 | J96: -7.829634101e-06 | K96: -6.396260501e-06 | L96: 3.082732599e-07 | N96: -0.0003058817242 | O96: -0.007979906526 | P96: 0.0001295813758 | Q96: 0.003790363759 | R96: 2.180461399e-06
A97: 46.14156 | B97: ='DF raw data'!D102 -> -6.2514378e-06 | C97: ='DF raw data'!E102 -> 7.5051198e-06 | D97: ='DF raw data'!F102 -> -4.0533114e-06 | F97: -6.260139801e-06 | G97: 7.533568819e-06 | H97: -4.058953609e-06 | J97: -5.07453243e-06 | K97: -6.035311449e-06 | L97: 7.043465475e-06 | N97: -0.0003084198023 | O97: -0.008134165774 | P97: 0.0001265627544 | Q97: 0.003853665386 | R97: 2.236049634e-06
A98: 46.64172 | B98: ='DF raw data'!D103 -> 2.3826792e-06 | C98: ='DF raw data'!E103 -> -4.1278618e-06 | D98: ='DF raw data'!F103 -> -1.221909e-05 | F98: 2.385995889e-06 | G98: -4.143508935e-06 | H98: -1.223609897e-05 | J98: 1.338869716e-06 | K98: 1.568463289e-06 | L98: 1.770838381e-06 | N98: -0.0003077501533 | O98: -0.008288090091 | P98: 0.000127347237 | Q98: 0.00391735938 | R98: 2.29153112e-06
A99: 47.14188 | B99: ='DF raw data'!D104 -> 6.1024907e-06 | C99: ='DF raw data'!E104 -> 2.4361276e-07 | D99: ='DF raw data'!F104 -> -1.105367e-05 | F99: 6.110985367e-06 | G99: 2.445362022e-07 | H99: -1.106905671e-05 | J99: 5.290317986e-06 | K99: -4.21489501e-06 | L99: -5.536107249e-06 | N99: -0.0003051041478 | O99: -0.008440690981 | P99: 0.0001252391152 | Q99: 0.003979998976 | R99: 2.345935212e-06
A100: 47.64204 | B100: ='DF raw data'!D105 -> 4.3429095e-06 | C100: ='DF raw data'!E105 -> 3.638e-06 | D100: ='DF raw data'!F105 -> -8.4605917e-06 | F100: 4.34895483e-06 | G100: 3.651790257e-06 | H100: -8.472368844e-06 | J100: 4.433401516e-06 | K100: 4.830935664e-06 | L100: 2.742081071e-06 | N100: -0.0003028867377 | O100: -0.008592182812 | P100: 0.0001276553559 | Q100: 0.004043847079 | R100: 2.399970631e-06
A101: 48.1422 | B101: ='DF raw data'!D106 -> -3.7712821e-06 | C101: ='DF raw data'!E106 -> 1.0528713e-05 | D101: ='DF raw data'!F106 -> -1.0100942e-05 | F101: -3.776531725e-06 | G101: 1.05686233e-05 | H101: -1.011500251e-05 | J101: 1.328232029e-06 | K101: 7.298650497e-06 | L101: 9.145763506e-06 | N101: -0.0003022224092 | O101: -0.008743342372 | P101: 0.000131305849 | Q101: 0.004109521012 | R101: 2.454277809e-06
A102: 48.64236 | B102: ='DF raw data'!D107 -> -4.4734993e-06 | C102: ='DF raw data'!E107 -> 4.2980641e-06 | D102: ='DF raw data'!F107 -> -1.6407274e-06 | F102: -4.479726411e-06 | G102: 4.314356406e-06 | H102: -1.643011293e-06 | J102: 5.235859185e-07 | K102: 5.947133162e-06 | L102: 9.480863116e-07 | N102: -0.0003019605325 | O102: -0.008894370952 | P102: 0.0001342803671 | Q102: 0.00417668268 | R102: 2.508900973e-06
A103: 49.14252 | B103: ='DF raw data'!D108 -> 4.580283e-07 | C103: ='DF raw data'!E108 -> 7.0459969e-06 | D103: ='DF raw data'!F108 -> 2.6857533e-06 | F103: 4.586658754e-07 | G103: 7.072705561e-06 | H103: 2.689491869e-06 | J103: -5.772758009e-06 | K103: 1.290267237e-05 | L103: -1.417226737e-07 | N103: -0.0003048478351 | O103: -0.009046843645 | P103: 0.0001407337677 | Q103: 0.004247072082 | R103: 2.565288109e-06
A104: 49.64268 | B104: ='DF raw data'!D109 -> 7.4679842e-06 | C104: ='DF raw data'!E109 -> 1.1592289e-07 | D104: ='DF raw data'!F109 -> -6.3578836e-06 | F104: 7.478379634e-06 | G104: 1.16362309e-07 | H104: -6.366733774e-06 | J104: -1.285731751e-05 | K104: 7.689868654e-06 | L104: 8.648852467e-06 | N104: -0.000311278551 | O104: -0.009202532726 | P104: 0.0001445799324 | Q104: 0.004319385181 | R104: 2.624205803e-06
A105: 50.14284 | B105: ='DF raw data'!D110 -> 1.0945768e-05 | C105: ='DF raw data'!E110 -> -7.2304438e-06 | D105: ='DF raw data'!F110 -> -7.4785848e-06 | F105: 1.096100451e-05 | G105: -7.257851628e-06 | H105: -7.48899499e-06 | J105: -1.098379519e-05 | K105: -4.368764568e-08 | L105: 1.151857957e-05 | N105: -0.000316772206 | O105: -0.009360969512 | P105: 0.0001445580816 | Q105: 0.004391687351 | R105: 2.684846037e-06
A106: 50.643 | B106: ='DF raw data'!D111 -> 6.1670357e-06 | C106: ='DF raw data'!E111 -> -4.5811139e-06 | D106: ='DF raw data'!F111 -> -2.8569984e-06 | F106: 6.175620214e-06 | G106: -4.598479139e-06 | H106: -2.860975342e-06 | J106: -1.083687897e-05 | K106: 2.175179431e-06 | L106: 1.04087188e-05 | N106: -0.0003221923794 | O106: -0.009522117253 | P106: 0.0001456460193 | Q106: 0.004464533664 | R106: 2.747376386e-06
A107: 51.14316 | B107: ='DF raw data'!D112 -> 3.3142346e-06 | C107: ='DF raw data'!E112 -> -5.8122459e-06 | D107: ='DF raw data'!F112 -> 1.0470623e-06 | F107: 3.318848015e-06 | G107: -5.834277886e-06 | H107: 1.048519811e-06 | J107: -1.385728152e-05 | K107: 4.687225773e-06 | L107: 4.450974144e-06 | N107: -0.0003291232373 | O107: -0.009686731531 | P107: 0.0001479903822 | Q107: 0.004538552533 | R107: 2.812508851e-06
A108: 51.64332 | B108: ='DF raw data'!D113 -> 4.6950076e-06 | C108: ='DF raw data'!E113 -> 5.71893e-06 | D108: ='DF raw data'!F113 -> 7.8989353e-07 | F108: 4.701543051e-06 | G108: 5.740608261e-06 | H108: 7.909930618e-07 | J108: -1.206831474e-05 | K108: -1.689723403e-06 | L108: 5.137964605e-06 | N108: -0.0003351593256 | O108: -0.009854364819 | P108: 0.0001471452501 | Q108: 0.004612148702 | R108: 2.879522038e-06
A109: 52.14348 | B109: ='DF raw data'!D114 -> 4.6270648e-06 | C109: ='DF raw data'!E114 -> 7.0275837e-06 | D109: ='DF raw data'!F114 -> -5.5554328e-06 | F109: 4.633505674e-06 | G109: 7.054222564e-06 | H109: -5.563165962e-06 | J109: -8.132436516e-06 | K109: -2.298716645e-06 | L109: 7.342165888e-06 | N109: -0.0003392268451 | O109: -0.01002403252 | P109: 0.000145995524 | Q109: 0.004685169823 | R109: 2.947738633e-06
A110: 52.64364 | B110: ='DF raw data'!D115 -> -1.6312338e-06 | C110: ='DF raw data'!E115 -> 1.0166897e-06 | D110: ='DF raw data'!F115 -> -8.2808901e-06 | F110: -1.633504477e-06 | G110: 1.020543579e-06 | H110: -8.292417099e-06 | J110: -8.728533129e-06 | K110: -2.388719523e-06 | L110: 1.848347824e-06 | N110: -0.0003435925082 | O110: -0.01019588375 | P110: 0.0001448007821 | Q110: 0.004757593382 | R110: 3.017272416e-06
A111: 53.1438 | B111: ='DF raw data'!D116 -> -4.0171949e-06 | C111: ='DF raw data'!E116 -> -6.6982983e-07 | D111: ='DF raw data'!F116 -> -8.5123675e-06 | F111: -4.022786835e-06 | G111: -6.72368897e-07 | H111: -8.524216716e-06 | J111: -8.864425828e-06 | K111: 5.62475627e-06 | L111: -5.498248823e-06 | N111: -0.0003480261394 | O111: -0.0103699525 | P111: 0.0001476140601 | Q111: 0.00483142403 | R111: 3.088751334e-06
A112: 53.64396 | B112: ='DF raw data'!D117 -> -2.5142585e-06 | C112: ='DF raw data'!E117 -> -5.2287696e-06 | D112: ='DF raw data'!F117 -> -1.6743351e-06 | F112: -2.517758348e-06 | G112: -5.248589852e-06 | H112: -1.676665774e-06 | J112: -6.695526217e-06 | K112: 6.005393871e-06 | L112: -2.787664635e-06 | N112: -0.0003513749738 | O112: -0.01054569621 | P112: 0.0001506177179 | Q112: 0.004906756988 | R112: 3.161849752e-06
A113: 54.14412 | B113: ='DF raw data'!D118 -> -3.9456431e-06 | C113: ='DF raw data'!E118 -> -1.2019012e-05 | D113: ='DF raw data'!F118 -> 1.0530349e-05 | F113: -3.951135435e-06 | G113: -1.206457145e-05 | H113: 1.054500725e-05 | J113: -5.135895829e-06 | K113: 1.320161025e-05 | L113: -3.610557209e-07 | N113: -0.0003539437435 | O113: -0.01072272471 | P113: 0.0001572206353 | Q113: 0.004985392461 | R113: 3.236871002e-06
A114: 54.64428 | B114: ='DF raw data'!D119 -> -2.016845e-06 | C114: ='DF raw data'!E119 -> -5.3280392e-06 | D114: ='DF raw data'!F119 -> 3.0544625e-06 | F114: -2.019652448e-06 | G114: -5.348235745e-06 | H114: 3.058714312e-06 | J114: -4.514261517e-06 | K114: 3.679648157e-06 | L114: -7.944612428e-07 | N114: -0.0003562015965 | O114: -0.0109008825 | P114: 0.0001590610482 | Q114: 0.005064948435 | R114: 3.312985348e-06
A115: 55.14444 | B115: ='DF raw data'!D120 -> 1.4391039e-06 | C115: ='DF raw data'!E120 -> 2.5537706e-06 | D115: ='DF raw data'!F120 -> -1.2637792e-05 | F115: 1.441107133e-06 | G115: 2.563450961e-06 | H115: -1.265538381e-05 | J115: -5.542896587e-06 | K115: 3.416374256e-07 | L115: 4.185117385e-07 | N115: -0.0003589739317 | O115: -0.0110804269 | P115: 0.0001592319215 | Q115: 0.005144589873 | R115: 3.390118567e-06
A116: 55.6446 | B116: ='DF raw data'!D121 -> -1.3925387e-06 | C116: ='DF raw data'!E121 -> 1.2215766e-05 | D116: ='DF raw data'!F121 -> -1.2583615e-05 | F116: -1.394477114e-06 | G116: 1.226207127e-05 | H116: -1.260113139e-05 | J116: -4.756232472e-06 | K116: 1.334639199e-05 | L116: -1.975637665e-06 | N116: -0.0003613528089 | O116: -0.01126116112 | P116: 0.0001659072529 | Q116: 0.005227570045 | R116: 3.469194398e-06
A117: 56.14476 | B117: ='DF raw data'!D122 -> -7.6428923e-06 | C117: ='DF raw data'!E122 -> 7.875914e-06 | D117: ='DF raw data'!F122 -> -2.7365377e-06 | F117: -7.653531206e-06 | G117: 7.905768557e-06 | H117: -2.74034696e-06 | J117: -6.189456547e-06 | K117: 3.467900133e-06 | L117: 3.894535758e-06 | N117: -0.0003644485275 | O117: -0.0114434437 | P117: 0.0001676417579 | Q117: 0.005311417746 | R117: 3.54968339e-06
A118: 56.64492 | B118: ='DF raw data'!D123 -> -7.9618267e-06 | C118: ='DF raw data'!E123 -> 2.9034834e-06 | D118: ='DF raw data'!F123 -> -1.6094481e-06 | F118: -7.972909563e-06 | G118: 2.914489388e-06 | H118: -1.611688452e-06 | J118: -4.626088364e-06 | K118: 7.565042975e-06 | L118: 7.530176034e-06 | N118: -0.0003667623119 | O118: -0.01162688354 | P118: 0.0001714254898 | Q118: 0.005397157919 | R118: 3.631660261e-06
A119: 57.14508 | B119: ='DF raw data'!D124 -> -5.1173633e-06 | C119: ='DF raw data'!E124 -> 7.1838272e-06 | D119: ='DF raw data'!F124 -> -6.4790138e-06 | F119: -5.12448667e-06 | G119: 7.211058323e-06 | H119: -6.488032587e-06 | J119: -1.026689165e-06 | K119: 5.451313297e-06 | L119: -2.774843112e-07 | N119: -0.0003672758207 | O119: -0.01181058021 | P119: 0.0001741520186 | Q119: 0.005484261793 | R119: 3.714296923e-06
A120: 57.64524 | B120: ='DF raw data'!D125 -> -8.9631845e-07 | C120: ='DF raw data'!E125 -> 5.8312758e-06 | D120: ='DF raw data'!F125 -> -7.219486e-07 | F120: -8.975661253e-07 | G120: 5.853379921e-06 | H120: -7.229535525e-07 | J120: -2.963039317e-06 | K120: 2.049416312e-06 | L120: -3.064645156e-06 | N120: -0.0003687578145 | O120: -0.01199501812 | P120: 0.0001751770547 | Q120: 0.005571878348 | R120: 3.797658253e-06
A121: 58.1454 | B121: ='DF raw data'!D126 -> 1.9750536e-07 | C121: ='DF raw data'!E126 -> -6.9611468e-07 | D121: ='DF raw data'!F126 -> 5.80914e-06 | F121: 1.977802875e-07 | G121: -6.987533827e-07 | H121: 5.817226323e-06 | J121: -4.724479734e-06 | K121: 6.107584574e-06 | L121: 9.510153131e-07 | N121: -0.0003711208102 | O121: -0.0121806379 | P121: 0.0001782318242 | Q121: 0.005661022778 | R121: 3.882433992e-06
A122: 58.64556 | B122: ='DF raw data'!D127 -> -1.2452151e-06 | C122: ='DF raw data'!E127 -> 3.6199872e-06 | D122: ='DF raw data'!F127 -> 5.8759551e-06 | F122: -1.246948439e-06 | G122: 3.633709178e-06 | H122: 5.884134429e-06 | J122: -5.808255853e-06 | K122: 3.501517382e-06 | L122: 1.27498381e-06 | N122: -0.0003740258675 | O122: -0.01236771068 | P122: 0.0001799831431 | Q122: 0.005751043147 | R122: 3.968606199e-06
A123: 59.14572 | B123: ='DF raw data'!D128 -> -2.1353994e-06 | C123: ='DF raw data'!E128 -> 1.9832362e-06 | D123: ='DF raw data'!F128 -> -8.3189559e-07 | F123: -2.138371876e-06 | G123: 1.990753885e-06 | H123: -8.330535887e-07 | J123: -5.097119227e-06 | K123: -5.336583844e-06 | L123: -3.417743486e-06 | N123: -0.0003765752426 | O123: -0.01255605856 | P123: 0.0001773139973 | Q123: 0.005839728515 | R123: 4.055258502e-06
A124: 59.64588 | B124: ='DF raw data'!D129 -> -3.80967e-06 | C124: ='DF raw data'!E129 -> 3.9228671e-06 | D124: ='DF raw data'!F129 -> -7.5468624e-06 | F124: -3.814973061e-06 | G124: 3.937737179e-06 | H124: -7.557367632e-06 | J124: -3.734533845e-06 | K124: -5.481364579e-06 | L124: -9.125614097e-07 | N124: -0.0003784431071 | O124: -0.01274534066 | P124: 0.000174572438 | Q124: 0.005927042666 | R124: 4.142133654e-06
A125: 60.14604 | B125: ='DF raw data'!D130 -> -3.1710738e-06 | C125: ='DF raw data'!E130 -> -1.8772122e-06 | D125: ='DF raw data'!F130 -> -4.7847343e-06 | F125: -3.175487935e-06 | G125: -1.884327989e-06 | H125: -4.79139465e-06 | J125: -4.90622377e-06 | K125: 1.550918032e-06 | L125: 9.624763347e-07 | N125: -0.000380897004 | O125: -0.01293585011 | P125: 0.0001753481452 | Q125: 0.006014744794 | R125: 4.230076537e-06
A126: 60.6462 | B126: ='DF raw data'!D131 -> -7.1957089e-07 | C126: ='DF raw data'!E131 -> 1.2444193e-05 | D126: ='DF raw data'!F131 -> -1.9693025e-06 | F126: -7.205725327e-07 | G126: 1.249136414e-05 | H126: -1.972043769e-06 | J126: -4.923739618e-06 | K126: 5.187733139e-06 | L126: -4.574329415e-06 | N126: -0.0003833596616 | O126: -0.01312759127 | P126: 0.0001779428418 | Q126: 0.006103744686 | R126: 4.31941926e-06
A127: 61.14636 | B127: ='DF raw data'!D132 -> 2.1333758e-06 | C127: ='DF raw data'!E132 -> 9.1263928e-06 | D127: ='DF raw data'!F132 -> 5.4753045e-06 | F127: 2.136345459e-06 | G127: 9.160987441e-06 | H127: 5.482926124e-06 | J127: -2.60269862e-06 | K127: 8.961561549e-06 | L127: -5.608487262e-06 | N127: -0.0003846614273 | O127: -0.01331998353 | P127: 0.0001824250564 | Q127: 0.006194986402 | R127: 4.410069916e-06
A128: 61.64652 | B128: ='DF raw data'!D133 -> 1.402535e-06 | C128: ='DF raw data'!E133 -> 1.0792231e-05 | D128: ='DF raw data'!F133 -> 1.285322e-05 | F128: 1.404487329e-06 | G128: 1.083314019e-05 | H128: 1.287111168e-05 | J128: 2.715342503e-06 | K128: 2.881809679e-06 | L128: 1.323173998e-06 | N128: -0.0003833033216 | O128: -0.01351169652 | P128: 0.0001838664224 | Q128: 0.006286949032 | R128: 4.500462982e-06
A129: 62.14668 | B129: ='DF raw data'!D134 -> -1.2218593e-06 | C129: ='DF raw data'!E134 -> 1.3573655e-05 | D129: ='DF raw data'!F134 -> 2.8468139e-06 | F129: -1.223560128e-06 | G129: 1.36251075e-05 | H129: 2.850776665e-06 | J129: 7.69924415e-06 | K129: 5.199251235e-06 | L129: 7.208815923e-06 | N129: -0.0003794524677 | O129: -0.01370148347 | P129: 0.0001864668799 | Q129: 0.006380212307 | R129: 4.589868619e-06
A130: 62.64684 | B130: ='DF raw data'!D135 -> -2.7494902e-06 | C130: ='DF raw data'!E135 -> 5.3399967e-06 | D130: ='DF raw data'!F135 -> -6.560068e-06 | F130: -2.75331749e-06 | G130: 5.360238571e-06 | H130: -6.569199615e-06 | J130: 2.408204761e-06 | K130: -2.011547508e-08 | L130: 9.151604926e-07 | N130: -0.00037824798 | O130: -0.01389066798 | P130: 0.0001864568189 | Q130: 0.006473470549 | R130: 4.678815912e-06
A131: 63.147 | B131: ='DF raw data'!D136 -> -2.0908706e-06 | C131: ='DF raw data'!E136 -> 3.0774725e-06 | D131: ='DF raw data'!F136 -> 4.1120177e-07 | F131: -2.093781092e-06 | G131: 3.089138013e-06 | H131: 4.117741629e-07 | J131: -4.70094562e-06 | K131: 2.54670944e-06 | L131: -6.601121688e-06 | N131: -0.0003805992049 | O131: -0.01408102848 | P131: 0.0001877305811 | Q131: 0.006567365877 | R131: 4.768893991e-06
A132: 63.64716 | B132: ='DF raw data'!D137 -> -4.6583959e-06 | C132: ='DF raw data'!E137 -> 7.5787716e-06 | D132: ='DF raw data'!F137 -> 3.8012013e-06 | F132: -4.664880387e-06 | G132: 7.607499805e-06 | H132: 3.806492572e-06 | J132: -8.414371624e-06 | K132: 8.740208353e-07 | L132: -1.686460289e-06 | N132: -0.000384807737 | O132: -0.01427349391 | P132: 0.0001881677314 | Q132: 0.006661479849 | R132: 4.860665393e-06
A133: 64.14732 | B133: ='DF raw data'!D138 -> -5.1988541e-06 | C133: ='DF raw data'!E138 -> 8.4708654e-06 | D133: ='DF raw data'!F138 -> -5.1323048e-07 | F133: -5.206090905e-06 | G133: 8.502975189e-06 | H133: -5.139448968e-07 | J133: -1.132843426e-05 | K133: -5.685707841e-07 | L133: 9.587300271e-06 | N133: -0.0003904737667 | O133: -0.01446879327 | P133: 0.000187883355 | Q133: 0.006755451588 | R133: 4.954580395e-06
A134: 64.64748 | B134: ='DF raw data'!D139 -> -2.4571688e-07 | C134: ='DF raw data'!E139 -> 4.8553893e-06 | D134: ='DF raw data'!F139 -> 7.538921e-07 | F134: -2.460589179e-07 | G134: 4.873794211e-06 | H134: 7.549415178e-07 | J134: -7.662127055e-06 | K134: 3.246107176e-06 | L134: 8.826385249e-06 | N134: -0.0003943060562 | O134: -0.01466600939 | P134: 0.000189506928 | Q134: 0.006850235373 | R134: 5.050306089e-06
A135: 65.14764 | B135: ='DF raw data'!D140 -> -1.8173964e-06 | C135: ='DF raw data'!E140 -> 9.0304593e-06 | D135: ='DF raw data'!F140 -> 1.5282432e-06 | F135: -1.819926216e-06 | G135: =(1-$G$1*($B$2-$G$2))*C135*$M$2/$M$1 -> 9.064690294e-06 | H135: 1.530370515e-06 | J135: =-CELL("contents", INDEX($F$6:$F$1203,1204-CELL("row",F135))) -> -4.71117534e-06 | K135: =CELL("contents", INDEX($G$6:$G$1203,1204-CELL("row",G135))) -> 5.927042895e-06 | L135: =-CELL("contents", INDEX($H$6:$H$1203,1204-CELL("row",H135))) -> 4.599785201e-06 | N135: -0.0003966623977 | O135: -0.01486440406 | P135: 0.0001924713977 | Q135: 0.006946501867 | R135: 5.147530339e-06
A136: =A135+$B$1 -> 65.6478 | B136: ='DF raw data'!D141 -> -6.2016411e-06 | C136: ='DF raw data'!E141 -> 1.1514339e-05 | D136: ='DF raw data'!F141 -> -6.4472615e-06 | F136: -6.210273784e-06 | G136: 1.155798543e-05 | H136: -6.456236088e-06 | J136: -4.227903761e-06 | K136: -3.90577779e-06 | L136: 2.079484419e-06 | N136: =J136*$B$1+N135 -> -0.000398777026 | O136: =N136*$B$1+O135 -> -0.01506385637 | P136: =K136*$B$1+P135 -> 0.0001905178839 | Q136: =P136*$B$1+Q135 -> 0.007041791292 | R136: =(N136^2+P136^2)*$B$1+R135 -> 5.24522168e-06
A137: 66.14796 | B137: ='DF raw data'!D142 -> -8.3850837e-06 | C137: ='DF raw data'!E142 -> 4.8954175e-06 | D137: ='DF raw data'!F142 -> -1.1242612e-05 | F137: -8.396755737e-06 | G137: 4.913974143e-06 | H137: -1.125826172e-05 | J137: -7.811054574e-06 | K137: -4.061005878e-06 | L137: 5.459266435e-06 | N137: -0.0004026838031 | O137: -0.0152652627 | P137: 0.0001884867312 | Q137: 0.007136064816 | R137: 5.344094056e-06
A138: 66.64812 | B138: ='DF raw data'!D143 -> -7.2886546e-06 | C138: ='DF raw data'!E143 -> 1.0486817e-05 | D138: ='DF raw data'!F143 -> -7.0059095e-06 | F138: -7.298800407e-06 | G138: 1.052656849e-05 | H138: -7.015661726e-06 | J138: -1.046309538e-05 | K138: -7.285039899e-06 | L138: 9.584633564e-06 | N138: -0.0004079170248 | O138: -0.01546928648 | P138: 0.0001848430457 | Q138: 0.007228515914 | R138: 5.444407771e-06
A139: 67.14828 | B139: ='DF raw data'!D144 -> -7.1385371e-06 | C139: ='DF raw data'!E144 -> 1.4409576e-05 | D139: ='DF raw data'!F144 -> -5.620931e-06 | F139: -7.148473944e-06 | G139: 1.446419715e-05 | H139: -5.628755336e-06 | J139: -1.028402546e-05 | K139: 8.855392021e-07 | L139: 3.911060629e-06 | N139: -0.000413060683 | O139: -0.01567588291 | P139: 0.0001852859569 | Q139: 0.007321188538 | R139: 5.54691557e-06
A140: 67.64844 | B140: ='DF raw data'!D145 -> -1.0551704e-05 | C140: ='DF raw data'!E145 -> 8.7438575e-06 | D140: ='DF raw data'!F145 -> -6.1359233e-06 | F140: -1.056639197e-05 | G140: 8.777002097e-06 | H140: -6.144464505e-06 | J140: -1.111701437e-05 | K140: 4.532666912e-06 | L140: 4.889975384e-06 | N140: -0.0004186209689 | O140: -0.01588526038 | P140: 0.0001875530156 | Q140: 0.007414995054 | R140: 5.652159062e-06
A141: 68.1486 | B141: ='DF raw data'!D146 -> -1.1773875e-05 | C141: ='DF raw data'!E146 -> 7.4065169e-06 | D141: ='DF raw data'!F146 -> 4.8140218e-06 | F141: -1.179026423e-05 | G141: 7.434592154e-06 | H141: 4.820722918e-06 | J141: -1.180709363e-05 | K141: -6.275319391e-06 | L141: 6.842121794e-06 | N141: -0.0004245264049 | O141: -0.01609759151 | P141: 0.0001844143519 | Q141: 0.007507231736 | R141: 5.759309e-06
A142: 68.64876 | B142: ='DF raw data'!D147 -> -8.4770663e-06 | C142: ='DF raw data'!E147 -> 6.7319093e-06 | D142: ='DF raw data'!F147 -> 1.6602413e-05 | F142: -8.488866376e-06 | G142: 6.757427376e-06 | H142: 1.662552356e-05 | J142: -9.619344514e-06 | K142: -8.293383608e-07 | L142: 4.125402678e-06 | N142: -0.0004293376162 | O142: -0.01631232901 | P142: 0.00018399955 | Q142: 0.007599260951 | R142: 5.868437221e-06
A143: 69.14892 | B143: ='DF raw data'!D148 -> -3.6280476e-06 | C143: ='DF raw data'!E148 -> 6.450111e-06 | D143: ='DF raw data'!F148 -> 8.7555536e-06 | F143: -3.633097842e-06 | G143: 6.474560887e-06 | H143: 8.767741331e-06 | J143: -7.593281255e-06 | K143: 1.189683603e-05 | L143: 1.249992571e-06 | N143: -0.0004331354718 | O143: -0.01652896604 | P143: 0.0001899498715 | Q143: 0.007694266279 | R143: 5.980316656e-06
A144: 69.64908 | B144: ='DF raw data'!D149 -> 3.0374863e-06 | C144: ='DF raw data'!E149 -> 1.5636171e-05 | D144: ='DF raw data'!F149 -> 3.1942284e-07 | F144: 3.041714481e-06 | G144: 1.56954417e-05 | H144: 3.198674766e-07 | J144: -1.103740671e-05 | K144: 3.154095412e-06 | L144: 1.353097994e-06 | N144: -0.0004386559411 | O144: -0.0167483642 | P144: 0.0001915274239 | Q144: 0.007790060635 | R144: 6.094904207e-06
A145: 70.14924 | B145: ='DF raw data'!D150 -> 2.7100828e-06 | C145: ='DF raw data'!E150 -> 1.4247595e-05 | D145: ='DF raw data'!F150 -> -3.0276487e-06 | F145: 2.713855235e-06 | G145: 1.430160215e-05 | H145: -3.031863187e-06 | J145: -9.541601947e-06 | K145: -4.363962534e-06 | L145: -5.690528605e-06 | N145: -0.0004434282687 | O145: -0.01697014928 | P145: 0.0001893447444 | Q145: 0.007884763303 | R145: 6.211181435e-06
A146: 70.6494 | B146: ='DF raw data'!D151 -> -2.4370315e-06 | C146: ='DF raw data'!E151 -> 7.7271425e-06 | D146: ='DF raw data'!F151 -> -3.6965857e-06 | F146: -2.440423848e-06 | G146: 7.756433122e-06 | H146: -3.701731347e-06 | J146: -4.502822416e-06 | K146: 1.0144056e-05 | L146: -9.166552504e-06 | N146: -0.0004456804004 | O146: -0.01719306079 | P146: 0.0001944183954 | Q146: 0.007982003607 | R146: 6.329434029e-06
A147: 71.14956 | B147: ='DF raw data'!D152 -> 4.6776353e-07 | C147: ='DF raw data'!E152 -> 2.9488485e-06 | D147: ='DF raw data'!F152 -> -4.9758155e-06 | F147: 4.684146568e-07 | G147: 2.960026449e-06 | H147: -4.982741835e-06 | J147: -5.469904523e-06 | K147: 7.669108357e-06 | L147: 3.996307828e-06 | N147: -0.0004484162279 | O147: -0.01741734065 | P147: 0.0001982541767 | Q147: 0.008081162416 | R147: 6.449663406e-06
A148: 71.64972 | B148: ='DF raw data'!D153 -> 2.8040762e-07 | C148: ='DF raw data'!E153 -> 5.0021595e-06 | D148: ='DF raw data'!F153 -> -1.0772746e-05 | F148: 2.807979474e-07 | G148: 5.021120761e-06 | H148: -1.078774166e-05 | J148: -1.454207543e-06 | K148: 4.853475482e-07 | L148: 6.382850678e-06 | N148: -0.0004491435643 | O148: -0.0176419843 | P148: 0.0001984969281 | Q148: 0.00818044264 | R148: 6.570267473e-06
A149: 72.14988 | B149: ='DF raw data'!D154 -> -3.2400935e-06 | C149: ='DF raw data'!E154 -> 1.43498e-05 | D149: ='DF raw data'!F154 -> -6.0137309e-06 | F149: -3.24460371e-06 | G149: 1.440419457e-05 | H149: -6.022102013e-06 | J149: 5.025017101e-06 | K149: -9.50350509e-06 | L149: -2.584659645e-06 | N149: -0.0004466302517 | O149: -0.01786537088 | P149: 0.000193743655 | Q149: 0.008277345466 | R149: 6.688812989e-06
A150: 72.65004 | B150: ='DF raw data'!D155 -> -1.770874e-06 | C150: ='DF raw data'!E155 -> 1.0551262e-05 | D150: ='DF raw data'!F155 -> -7.9685478e-06 | F150: -1.773339057e-06 | G150: 1.059125777e-05 | H150: -7.979640019e-06 | J150: -7.709475072e-07 | K150: -4.216234368e-06 | L150: 2.880835148e-07 | N150: -0.0004470158489 | O150: -0.01808895033 | P150: 0.0001916348632 | Q150: 0.008373193559 | R150: 6.807124381e-06
A151: 73.1502 | B151: ='DF raw data'!D156 -> -1.2285386e-06 | C151: ='DF raw data'!E156 -> 3.2581327e-06 | D151: ='DF raw data'!F156 -> -4.4250837e-06 | F151: =(1-$G$1*($B$2-$G$2))*B151 -> -1.230248726e-06 | G151: 3.270483026e-06 | H151: -4.431243417e-06 | J151: -1.014598959e-05 | K151: 7.827149568e-06 | L151: -6.55100282e-07 | N151: -0.000452090467 | O151: -0.0183150679 | P151: 0.0001955496903 | Q151: 0.008470999693 | R151: 6.928475937e-06
A152: 73.65036 | B152: ='DF raw data'!D157 -> 1.7265916e-06 | C152: ='DF raw data'!E157 -> -1.9429528e-07 | D152: ='DF raw data'!F157 -> 6.0619068e-06 | F152: 1.728995016e-06 | G152: -1.950317786e-07 | H152: 6.070344974e-06 | J152: -1.062150959e-05 | K152: 8.55962873e-06 | L152: -6.134127336e-06 | N152: -0.0004574029212 | O152: -0.01854384254 | P152: 0.0001998308742 | Q152: 0.008570947103 | R152: 7.053090706e-06
A153: 74.15052 | B153: ='DF raw data'!D158 -> 2.8657446e-06 | C153: ='DF raw data'!E158 -> -1.6377104e-06 | D153: ='DF raw data'!F158 -> 7.1102943e-07 | F153: 2.869733716e-06 | G153: -1.643918329e-06 | H153: 7.12019183e-07 | J153: -8.951851656e-06 | K153: 4.582931827e-07 | L153: 4.635720152e-06 | N153: -0.0004618802794 | O153: -0.01877485659 | P153: 0.0002000600942 | Q153: 0.008671009159 | R153: 7.17980996e-06
A154: 74.65068 | B154: ='DF raw data'!D159 -> -9.1334419e-07 | C154: ='DF raw data'!E159 -> 1.0150313e-05 | D154: ='DF raw data'!F159 -> -1.2359123e-05 | F154: -9.146155651e-07 | G154: 1.018878893e-05 | H154: -1.23763269e-05 | J154: -8.189646942e-06 | K154: 3.505535455e-06 | L154: 3.446528899e-06 | N154: -0.0004659764132 | O154: -0.01900791935 | P154: 0.0002018134228 | Q154: 0.008771948161 | R154: 7.308782556e-06
A155: 75.15084 | B155: ='DF raw data'!D160 -> -1.1549787e-06 | C155: ='DF raw data'!E160 -> 1.1168763e-05 | D155: ='DF raw data'!F160 -> -9.1889588e-06 | F155: -1.15658643e-06 | G155: 1.121109948e-05 | H155: -9.201749831e-06 | J155: -6.028572508e-06 | K155: -7.828673322e-06 | L155: -7.946920036e-06 | N155: -0.000468991664 | O155: -0.01924249022 | P155: 0.0001978978335 | Q155: 0.008870928741 | R155: 7.438382381e-06
A156: 75.651 | B156: ='DF raw data'!D161 -> -2.5007107e-06 | C156: ='DF raw data'!E161 -> 8.1952048e-06 | D156: ='DF raw data'!F161 -> 9.3891242e-07 | F156: -2.504191689e-06 | G156: 8.226269666e-06 | H156: 9.402193861e-07 | J156: -4.331439082e-06 | K156: -6.400814298e-06 | L156: -6.978941683e-06 | N156: -0.0004711580766 | O156: -0.01947814464 | P156: 0.0001946964022 | Q156: 0.008968308094 | R156: 7.568372276e-06
A157: 76.15116 | B157: ='DF raw data'!D162 -> -6.549461e-06 | C157: ='DF raw data'!E162 -> 9.0675521e-06 | D157: ='DF raw data'!F162 -> 1.0482555e-06 | F157: -6.55857785e-06 | G157: 9.101923698e-06 | H157: 1.049714672e-06 | J157: -6.20556604e-06 | K157: 3.869163323e-06 | L157: -3.554634373e-06 | N157: -0.0004742618525 | O157: -0.01971535145 | P157: 0.000196631603 | Q157: 0.009066655356 | R157: 7.700208596e-06
A158: 76.65132 | B158: ='DF raw data'!D163 -> -6.528448e-06 | C158: ='DF raw data'!E163 -> 1.0079063e-05 | D158: ='DF raw data'!F163 -> 1.6664791e-06 | F158: -6.5375356e-06 | G158: 1.011726885e-05 | H158: 1.668798839e-06 | J158: -6.350952637e-06 | K158: 4.449093012e-06 | L158: -4.934968026e-08 | N158: -0.000477438345 | O158: -0.01995414701 | P158: 0.0001988568613 | Q158: 0.009166115604 | R158: 7.833997107e-06
A159: 77.15148 | B159: ='DF raw data'!D164 -> 3.9053651e-07 | C159: ='DF raw data'!E164 -> 2.1224767e-05 | D159: ='DF raw data'!F164 -> 3.5329222e-06 | F159: 3.910801368e-07 | G159: 2.130522192e-05 | H159: 3.537840028e-06 | J159: -5.691751304e-06 | K159: -6.492692758e-06 | L159: 1.028327943e-06 | N159: -0.0004802851313 | O159: -0.02019436642 | P159: 0.0001956094761 | Q159: 0.00926395164 | R159: 7.968508574e-06
A160: 77.65164 | B160: ='DF raw data'!D165 -> 5.2395549e-06 | C160: ='DF raw data'!E165 -> 1.8057208e-05 | D160: ='DF raw data'!F165 -> 1.6881105e-06 | F160: 5.24684836e-06 | G160: 1.812565592e-05 | H160: 1.69046035e-06 | J160: -4.959893174e-06 | K160: -4.695943795e-07 | L160: -2.290318392e-07 | N160: -0.0004827658715 | O160: -0.0204358266 | P160: 0.0001953746038 | Q160: 0.009361670202 | R160: 8.104169033e-06
A161: 78.1518 | B161: ='DF raw data'!D166 -> 2.1051305e-06 | C161: ='DF raw data'!E166 -> 1.512181e-05 | D161: ='DF raw data'!F166 -> 3.5350342e-07 | F161: 2.108060842e-06 | G161: 1.517913096e-05 | H161: 3.539954968e-07 | J161: -6.800263709e-06 | K161: 3.602235022e-06 | L161: 8.247911634e-07 | N161: -0.0004861670914 | O161: -0.02067898793 | P161: 0.0001971762977 | Q161: 0.009460289899 | R161: 8.241831537e-06
A162: 78.65196 | B162: ='DF raw data'!D167 -> -4.1398093e-06 | C162: ='DF raw data'!E167 -> 5.9865852e-06 | D162: ='DF raw data'!F167 -> 1.7762951e-06 | F162: -4.145571915e-06 | G162: 6.009278039e-06 | H162: 1.778767703e-06 | J162: -1.248888236e-05 | K162: -6.857622141e-07 | L162: -2.039021372e-07 | N162: -0.0004924135308 | O162: -0.02092527349 | P162: 0.0001968333068 | Q162: 0.009558738045 | R162: 8.38248375e-06
A163: 79.15212 | B163: ='DF raw data'!D168 -> -3.4736518e-06 | C163: ='DF raw data'!E168 -> 4.6955438e-06 | D163: ='DF raw data'!F168 -> 1.9045411e-06 | F163: -3.478487123e-06 | G163: 4.713342798e-06 | H163: 1.907192221e-06 | J163: -1.123886676e-05 | K163: -2.252509954e-06 | L163: -1.783634768e-06 | N163: -0.0004980347624 | O163: -0.02117437055 | P163: 0.0001957066915 | Q163: 0.009656622704 | R163: 8.525699431e-06
A164: 79.65228 | B164: ='DF raw data'!D169 -> 3.2499469e-07 | C164: ='DF raw data'!E169 -> 1.6339733e-05 | D164: ='DF raw data'!F169 -> -1.228559e-06 | F164: 3.254470826e-07 | G164: 1.640167064e-05 | H164: -1.230269154e-06 | J164: -6.228029065e-06 | K164: -9.846105854e-06 | L164: 4.458697379e-06 | N164: -0.0005011497734 | O164: -0.02142502562 | P164: 0.0001907820632 | Q164: 0.009752044261 | R164: 8.669519884e-06
A165: 80.15244 | B165: ='DF raw data'!D170 -> -3.9963248e-07 | C165: ='DF raw data'!E170 -> 1.73846e-05 | D165: ='DF raw data'!F170 -> 5.0990013e-07 | F165: -4.001887684e-07 | G165: 1.745049832e-05 | H165: 5.10609911e-07 | J165: -2.401165576e-06 | K165: 2.162054066e-06 | L165: 4.643049941e-06 | N165: -0.0005023507403 | O165: -0.02167628137 | P165: 0.0001918634361 | Q165: 0.009848006677 | R165: 8.814150073e-06
A166: 80.6526 | B166: ='DF raw data'!D171 -> -3.1987344e-07 | C166: ='DF raw data'!E171 -> 2.1084803e-05 | D166: ='DF raw data'!F171 -> 5.974588e-06 | F166: -3.203187038e-07 | G166: 2.116472737e-05 | H166: 5.982904626e-06 | J166: -1.047002802e-06 | K166: -7.092443799e-06 | L166: 2.165591313e-06 | N166: -0.0005028744093 | O166: -0.02192779903 | P166: 0.0001883160794 | Q166: 0.009942194847 | R166: 8.958369017e-06
A167: 81.15276 | B167: ='DF raw data'!D172 -> -1.3707836e-06 | C167: ='DF raw data'!E172 -> 9.7365555e-06 | D167: ='DF raw data'!F172 -> 4.7042713e-06 | F167: -1.372691731e-06 | G167: 9.773463033e-06 | H167: 4.710819646e-06 | J167: -4.015281302e-06 | K167: -8.571064214e-06 | L167: 6.133069065e-06 | N167: -0.0005048826924 | O167: -0.02218032116 | P167: 0.0001840291759 | Q167: 0.01003423888 | R167: 9.102801856e-06
A168: 81.65292 | B168: ='DF raw data'!D173 -> -3.9530501e-06 | C168: ='DF raw data'!E173 -> 1.1647099e-05 | D168: ='DF raw data'!F173 -> -1.7913397e-06 | F168: -3.958552746e-06 | G168: 1.169124867e-05 | H168: -1.793833245e-06 | J168: -7.376512933e-06 | K168: -1.024880457e-06 | L168: 5.11150152e-06 | N168: -0.0005085721291 | O168: -0.0224346886 | P168: 0.0001835165717 | Q168: 0.01012602653 | R168: 9.249010599e-06
A169: 82.15308 | B169: ='DF raw data'!D174 -> -7.5061184e-06 | C169: ='DF raw data'!E174 -> 1.3325213e-05 | D169: ='DF raw data'!F174 -> -9.2838663e-06 | F169: -7.516566917e-06 | G169: 1.337572375e-05 | H169: -9.296789442e-06 | J169: -1.247270687e-05 | K169: -6.062098104e-06 | L169: -1.456598867e-06 | N169: -0.0005148104781 | O169: -0.02269217621 | P169: 0.0001804845527 | Q169: 0.01021629768 | R169: 9.397860467e-06
A170: 82.65324 | B170: ='DF raw data'!D175 -> -1.3249643e-05 | C170: ='DF raw data'!E175 -> 8.7800163e-06 | D170: ='DF raw data'!F175 -> -9.0612366e-06 | F170: -1.32680865e-05 | G170: 8.813297961e-06 | H170: -9.073849841e-06 | J170: -1.586027882e-05 | K170: -6.833820058e-06 | L170: -3.026327592e-06 | N170: -0.0005227431552 | O170: -0.02295363142 | P170: 0.0001770665493 | Q170: 0.01030485929 | R170: 9.55021569e-06
A171: 83.1534 | B171: ='DF raw data'!D176 -> -1.077071e-05 | C171: ='DF raw data'!E176 -> 1.5456179e-05 | D171: ='DF raw data'!F176 -> -5.4219336e-06 | F171: -1.078570283e-05 | G171: 1.551476742e-05 | H171: -5.429480932e-06 | J171: -1.235680676e-05 | K171: -2.101031326e-06 | L171: -4.011493837e-06 | N171: -0.0005289235357 | O171: -0.02321817782 | P171: 0.0001760156975 | Q171: 0.0103928953 | R171: 9.705636225e-06
A172: 83.65356 | B172: ='DF raw data'!D177 -> -5.631468e-06 | C172: ='DF raw data'!E177 -> 1.296496e-05 | D172: ='DF raw data'!F177 -> 2.9858502e-06 | F172: -5.639307003e-06 | G172: 1.301410517e-05 | H172: 2.990006503e-06 | J172: -9.069762359e-06 | K172: -1.312796514e-07 | L172: -9.686952794e-08 | N172: -0.000533459868 | O172: -0.02348499311 | P172: 0.0001759500366 | Q172: 0.01048089847 | R172: 9.863455634e-06
A173: 84.15372 | B173: ='DF raw data'!D178 -> -7.7803352e-06 | C173: ='DF raw data'!E178 -> 1.2752544e-05 | D173: ='DF raw data'!F178 -> 1.0354445e-05 | F173: -7.791165427e-06 | G173: 1.280088398e-05 | H173: 1.036885839e-05 | J173: -5.283278801e-06 | K173: 8.247335918e-07 | L173: 2.154589319e-06 | N173: -0.0005361023527 | O173: -0.02375313006 | P173: 0.0001763625354 | Q173: 0.01056910795 | R173: 1.002276133e-05
A174: 84.65388 | B174: ='DF raw data'!D179 -> -5.5472851e-06 | C174: ='DF raw data'!E179 -> -7.5589031e-07 | D174: ='DF raw data'!F179 -> 4.1092799e-06 | F174: -5.555006921e-06 | G174: -7.587555991e-07 | H174: 4.115000018e-06 | J174: -2.926305455e-07 | K174: -4.596469751e-06 | L174: 7.688704599e-07 | N174: -0.0005362487148 | O174: -0.02402134022 | P174: 0.0001740635651 | Q174: 0.01065616759 | R174: 1.01817426e-05
A175: 85.15404 | B175: ='DF raw data'!D180 -> 4.3119456e-07 | C175: ='DF raw data'!E180 -> 7.6798148e-07 | D175: ='DF raw data'!F180 -> -3.257991e-06 | F175: 4.317947828e-07 | G175: 7.708926021e-07 | H175: -3.262526123e-06 | J175: 1.580505505e-06 | K175: -1.694009188e-06 | L175: -5.166353067e-06 | N175: -0.0005354582092 | O175: -0.02428915499 | P175: 0.0001732162895 | Q175: 0.01074280345 | R175: 1.034015296e-05
A176: 85.6542 | B176: ='DF raw data'!D181 -> 2.1216179e-06 | C176: ='DF raw data'!E181 -> 1.5239626e-05 | D176: ='DF raw data'!F181 -> -3.2993185e-06 | F176: 2.124571192e-06 | G176: 1.529739355e-05 | H176: -3.303911151e-06 | J176: 1.162939862e-06 | K176: -8.289362122e-07 | L176: -6.957950504e-06 | N176: -0.0005348765532 | O176: -0.02455667885 | P176: 0.0001728016887 | Q176: 0.01082923194 | R176: 1.049818019e-05
A177: 86.15436 | B177: ='DF raw data'!D182 -> 5.0254531e-08 | C177: ='DF raw data'!E182 -> 1.7709895e-05 | D177: ='DF raw data'!F182 -> 3.2834078e-06 | F177: 5.032448531e-08 | G177: 1.777702639e-05 | H177: 3.287978304e-06 | J177: 3.20082896e-06 | K177: 4.153502875e-06 | L177: 2.530957395e-07 | N177: -0.0005332756266 | O177: -0.02482340199 | P177: 0.0001748791047 | Q177: 0.01091669947 | R177: 1.065571338e-05
A178: 86.65452 | B178: ='DF raw data'!D183 -> -8.3645187e-07 | C178: ='DF raw data'!E183 -> 2.1474143e-05 | D178: ='DF raw data'!F183 -> 2.5792042e-06 | F178: -8.37616211e-07 | G178: 2.155554321e-05 | H178: 2.582794452e-06 | J178: 2.685542379e-06 | K178: 4.588517119e-06 | L178: 6.256830501e-06 | N178: -0.0005319324257 | O178: -0.02508945331 | P178: 0.0001771740974 | Q178: 0.01100531487 | R178: 1.081293506e-05
A179: 87.15468 | B179: ='DF raw data'!D184 -> -9.1741873e-07 | C179: ='DF raw data'!E184 -> 1.6933216e-05 | D179: ='DF raw data'!F184 -> -5.5207556e-06 | F179: -9.186957769e-07 | G179: 1.69974033e-05 | H179: -5.528440492e-06 | J179: 5.110905491e-06 | K179: -6.551860594e-08 | L179: 4.887308677e-06 | N179: -0.0005293761552 | O179: -0.02535422609 | P179: 0.0001771413277 | Q179: 0.01109391388 | R179: 1.0968794e-05
A180: 87.65484 | B180: ='DF raw data'!D185 -> -3.6447386e-06 | C180: ='DF raw data'!E185 -> 9.2596865e-06 | D180: ='DF raw data'!F185 -> 1.6128334e-06 | F180: -3.649812076e-06 | G180: 9.294786406e-06 | H180: 1.615078464e-06 | J180: 7.053346811e-06 | K180: 2.751091247e-06 | L180: 2.641183317e-06 | N180: -0.0005258483533 | O180: -0.0256172344 | P180: 0.0001785173135 | Q180: 0.0111832011 | R180: 1.11230358e-05
A181: 88.155 | B181: ='DF raw data'!D186 -> -9.4844372e-06 | C181: ='DF raw data'!E186 -> 7.0159758e-06 | D181: ='DF raw data'!F186 -> 8.8652314e-06 | F181: -9.497639537e-06 | G181: 7.042570663e-06 | H181: 8.877571802e-06 | J181: 1.071222669e-06 | K181: -3.212541321e-06 | L181: 3.674408567e-06 | N181: -0.0005253125705 | O181: -0.02587997474 | P181: 0.0001769105288 | Q181: 0.01127168467 | R181: 1.127671028e-05
A182: 88.65516 | B182: ='DF raw data'!D187 -> -1.150775e-05 | C182: ='DF raw data'!E187 -> 1.1608272e-05 | D182: ='DF raw data'!F187 -> 6.7070878e-06 | F182: -1.152376879e-05 | G182: 1.165227449e-05 | H182: 6.716424066e-06 | J182: -4.669192882e-06 | K182: -3.61778414e-07 | L182: -4.322536807e-06 | N182: -0.0005276479141 | O182: -0.02614388312 | P182: 0.0001767295817 | Q182: 0.01136007773 | R182: 1.143158265e-05
A183: 89.15532 | B183: ='DF raw data'!D188 -> -1.9079821e-06 | C183: ='DF raw data'!E188 -> 3.4123746e-06 | D183: ='DF raw data'!F188 -> 4.6295327e-06 | F183: -1.910638011e-06 | G183: 3.425309598e-06 | H183: 4.63597701e-06 | J183: -8.597587606e-06 | K183: 2.701000088e-06 | L183: -2.658569785e-06 | N183: -0.0005319480835 | O183: -0.02640994227 | P183: 0.0001780805139 | Q183: 0.01144914648 | R183: 1.158897372e-05
A184: 89.65548 | B184: ='DF raw data'!D189 -> 6.2914619e-06 | C184: ='DF raw data'!E189 -> 8.4081548e-06 | D184: ='DF raw data'!F189 -> -1.8060445e-06 | F184: 6.300219615e-06 | G184: 8.440026877e-06 | H184: -1.808558514e-06 | J184: -4.565657561e-06 | K184: -1.093721822e-06 | L184: 5.925590456e-06 | N184: -0.0005342316428 | O184: -0.02667714357 | P184: 0.000177533478 | Q184: 0.01153794163 | R184: 1.174748522e-05
A185: 90.15564 | B185: ='DF raw data'!D190 -> 4.4421681e-06 | C185: ='DF raw data'!E190 -> 1.46344e-05 | D185: ='DF raw data'!F190 -> -9.8603675e-07 | F185: 4.448351598e-06 | G185: 1.468987338e-05 | H185: -9.874093132e-07 | J185: -3.259087544e-06 | K185: -3.861044062e-06 | L185: 2.896035978e-06 | N185: -0.000535861708 | O185: -0.02694516016 | P185: 0.0001756023382 | Q185: 0.01162577089 | R185: 1.190652807e-05
A186: 90.6558 | B186: ='DF raw data'!D191 -> 2.2818199e-06 | C186: ='DF raw data'!E191 -> 5.2892947e-06 | D186: ='DF raw data'!F191 -> 1.3633263e-06 | F186: 2.284996193e-06 | G186: 5.309344379e-06 | H186: 1.36522405e-06 | J186: -7.609325157e-06 | K186: -3.997119926e-06 | L186: 5.105495771e-07 | N186: -0.0005396675881 | O186: -0.0272150803 | P186: 0.0001736031387 | Q186: 0.01171260024 | R186: 1.206726907e-05
A187: 91.15596 | B187: ='DF raw data'!D192 -> 2.0148941e-06 | C187: ='DF raw data'!E192 -> 2.2494235e-06 | D187: ='DF raw data'!F192 -> 9.1681534e-07 | F187: 2.017698833e-06 | G187: 2.257950198e-06 | H187: 9.18091547e-07 | J187: -5.981912347e-06 | K187: -5.445202922e-06 | L187: 6.180312036e-06 | N187: -0.0005426595013 | O187: -0.02748649688 | P187: 0.000170879666 | Q187: 0.01179806741 | R187: 1.222916046e-05
A188: 91.65612 | B188: ='DF raw data'!D193 -> 4.8100842e-06 | C188: ='DF raw data'!E193 -> 6.2898648e-06 | D188: ='DF raw data'!F193 -> 3.0831516e-06 | F188: 4.816779837e-06 | G188: 6.313707255e-06 | H188: 3.087443347e-06 | J188: -5.359680605e-06 | K188: -1.207876705e-05 | L188: 4.513080776e-06 | N188: -0.0005453401992 | O188: -0.02775925423 | P188: 0.0001648383499 | Q188: 0.01188051296 | R188: 1.239149619e-05
A189: 92.15628 | B189: ='DF raw data'!D194 -> 7.3510378e-06 | C189: ='DF raw data'!E194 -> 1.5123011e-05 | D189: ='DF raw data'!F194 -> 2.7755386e-06 | F189: 7.361270445e-06 | G189: 1.518033651e-05 | H189: 2.77940215e-06 | J189: -8.319994934e-06 | K189: -1.041545388e-05 | L189: 2.972671106e-06 | N189: -0.0005495015278 | O189: -0.02803409292 | P189: 0.0001596289565 | Q189: 0.01196035298 | R189: 1.255526525e-05
A190: 92.65644 | B190: ='DF raw data'!D195 -> 4.0928639e-06 | C190: ='DF raw data'!E195 -> 5.1238449e-06 | D190: ='DF raw data'!F195 -> 3.8890823e-07 | F190: 4.098561167e-06 | G190: 5.143267423e-06 | H190: 3.894495903e-07 | J190: -1.161130948e-05 | K190: -1.144057706e-05 | L190: -1.866413937e-07 | N190: -0.0005553090404 | O190: -0.02831183629 | P190: 0.0001539068374 | Q190: 0.01203733102 | R190: 1.27213461e-05
A191: 93.1566 | B191: ='DF raw data'!D196 -> 3.3033524e-07 | C191: ='DF raw data'!E196 -> 3.1149655e-06 | D191: ='DF raw data'!F196 -> -1.1558794e-06 | F191: 3.307950667e-07 | G191: 3.126773135e-06 | H191: -1.157488384e-06 | J191: -1.035961854e-05 | K191: -9.641187721e-06 | L191: -3.933321473e-06 | N191: -0.0005604905072 | O191: -0.02859217122 | P191: 0.000149084701 | Q191: 0.01211189723 | R191: 1.288958785e-05
A192: 93.65676 | B192: ='DF raw data'!D197 -> -9.7495695e-07 | C192: ='DF raw data'!E197 -> 1.7873745e-05 | D192: ='DF raw data'!F197 -> -2.5266263e-06 | F192: -9.763140901e-07 | G192: 1.794149748e-05 | H192: -2.530143364e-06 | J192: -7.670753747e-06 | K192: -2.974542265e-06 | L192: -2.271285134e-06 | N192: -0.0005643271114 | O192: -0.02887442507 | P192: 0.0001475969539 | Q192: 0.01218571932 | R192: 1.305976726e-05
A193: 94.15692 | B193: ='DF raw data'!D198 -> 8.1963151e-08 | C193: ='DF raw data'!E198 -> 1.092766e-05 | D193: ='DF raw data'!F198 -> -1.0176219e-05 | F193: 8.207724371e-08 | G193: 1.096908255e-05 | H193: -1.01903843e-05 | J193: -1.232071159e-05 | K193: -1.400030436e-05 | L193: -5.158156173e-06 | N193: -0.0005704894385 | O193: -0.02915976106 | P193: 0.0001405945617 | Q193: 0.0122560391 | R193: 1.323243501e-05
A194: 94.65708 | B194: ='DF raw data'!D199 -> -6.9340655e-07 | C194: ='DF raw data'!E199 -> 1.2385619e-05 | D194: ='DF raw data'!F199 -> -8.9029118e-06 | F194: -6.943717719e-07 | G194: 1.243256811e-05 | H194: -8.915304653e-06 | J194: -1.021143356e-05 | K194: -1.273035063e-05 | L194: -7.74644346e-06 | N194: -0.0005755967891 | O194: -0.02944765155 | P194: 0.0001342273495 | Q194: 0.01232317425 | R194: 1.340715523e-05
A195: 95.15724 | B195: ='DF raw data'!D200 -> -1.4232432e-06 | C195: ='DF raw data'!E200 -> 1.0840132e-05 | D195: ='DF raw data'!F200 -> 1.1264575e-06 | F195: -1.425224355e-06 | G195: 1.088122277e-05 | H195: 1.128025529e-06 | J195: 1.999193108e-06 | K195: 7.637902615e-06 | L195: -3.989103714e-06 | N195: -0.0005745968727 | O195: -0.02973504193 | P195: 0.0001380475229 | Q195: 0.0123922201 | R195: 1.358182045e-05
A196: 95.6574 | B196: ='DF raw data'!D201 -> -4.33553e-07 | C196: ='DF raw data'!E201 -> 2.2785105e-06 | D196: ='DF raw data'!F201 -> 3.073962e-06 | F196: -4.341565058e-07 | G196: 2.287147456e-06 | H196: 3.078240955e-06 | J196: 5.73635761e-06 | K196: 3.264456167e-06 | L196: 3.022595304e-06 | N196: -0.0005717277761 | O196: -0.03002099729 | P196: 0.0001396802733 | Q196: 0.01246208258 | R196: 1.375506748e-05
A197: 96.15756 | B197: ='DF raw data'!D202 -> -3.3996989e-06 | C197: ='DF raw data'!E202 -> 2.8151546e-06 | D197: ='DF raw data'!F202 -> -4.6107662e-06 | F197: -3.404431281e-06 | G197: 2.825825767e-06 | H197: -4.617184387e-06 | J197: 1.75194702e-06 | K197: -6.196298786e-06 | L197: 2.263356012e-06 | N197: -0.0005708515222 | O197: -0.03030651439 | P197: 0.0001365811325 | Q197: 0.012530395 | R197: 1.392738554e-05
A198: 96.65772 | B198: ='DF raw data'!D203 -> -9.1767224e-06 | C198: ='DF raw data'!E203 -> 8.3522482e-06 | D198: ='DF raw data'!F203 -> -9.3839544e-06 | F198: -9.189496398e-06 | G198: 8.383908357e-06 | H198: -9.397016865e-06 | J198: -3.783877836e-07 | K198: -5.294260719e-06 | L198: -3.848547832e-06 | N198: -0.0005710407767 | O198: -0.03059212614 | P198: 0.0001339331551 | Q198: 0.01259738301 | R198: 1.409945341e-05
A199: 97.15788 | B199: ='DF raw data'!D204 -> -1.230307e-05 | C199: ='DF raw data'!E204 -> 2.2382248e-05 | D199: ='DF raw data'!F204 -> -1.0413954e-05 | F199: -1.232019587e-05 | G199: =(1-$G$1*($B$2-$G$2))*C199*$M$2/$M$1 -> 2.246709048e-05 | H199: -1.042845022e-05 | J199: =-CELL("contents", INDEX($F$6:$F$1203,1204-CELL("row",F199))) -> -3.39592025e-06 | K199: =CELL("contents", INDEX($G$6:$G$1203,1204-CELL("row",G199))) -> -7.49303736e-06 | L199: =-CELL("contents", INDEX($H$6:$H$1203,1204-CELL("row",H199))) -> -1.079908243e-06 | N199: -0.0005727392802 | O199: -0.03087858742 | P199: 0.0001301854375 | Q199: 0.01266249656 | R199: 1.427199788e-05
A200: =A199+$B$1 -> 97.65804 | B200: ='DF raw data'!D205 -> -1.2581216e-05 | C200: ='DF raw data'!E205 -> 1.6136657e-05 | D200: ='DF raw data'!F205 -> -9.2338078e-06 | F200: -1.259872905e-05 | G200: 1.619782485e-05 | H200: -9.24666126e-06 | J200: -1.047191865e-05 | K200: -1.003254049e-05 | L200: 3.884932709e-06 | N200: =J200*$B$1+N199 -> -0.000577976915 | O200: =N200*$B$1+O199 -> -0.03116766835 | P200: =K200*$B$1+P199 -> 0.000125167562 | Q200: =P200*$B$1+Q199 -> 0.01272510036 | R200: =(N200^2+P200^2)*$B$1+R199 -> 1.444691595e-05
... 1003 more rows

Sheet 10 y=0
A1: dz | B1: ='DF raw data'!H7 -> 0.50017 | C1: mm | F1: T_coeff | G1: -0.0008 | H1: /degC | L1: Hallref | M1: ='PI vs y'!B44 -> 0.50516 | N1: T | P1: IBy total | Q1: =P1203*1000 -> -16.20454993 | R1: muTm
A2: Tref | B2: ='DF raw data'!H8 -> 21.71 | C2: degC | F2: Tcorr | G2: 20 | H2: degC | L2: NMRref | M2: ='PI vs y'!B45 -> 0.50637 | N2: T | P2: JBy total | Q2: =Q1203 -> -8.184294492 | R2: muTm^2
A3: Encoder | B3: ='DF raw data'!H9 -> 391241 | P3: PI total | Q3: =R1203 -> 4585.897291 | R3: T^2mm^3
J4: SXR-rotation
A5: z [mm] | B5: Bx | C5: By | D5: Bz | F5: Bx_corr | G5: By_corr | H5: Bz_corr | J5: Bx_rot | K5: By_rot | L5: Bz_rot | N5: Ix | O5: Jx | P5: Iy | Q5: Jy | R5: PI
A6: ='PI vs y'!B53 -> 0.627 | B6: ='DF raw data'!G11 -> -2.4295055e-06 | C6: ='DF raw data'!H11 -> -8.4064095e-06 | D6: ='DF raw data'!I11 -> 6.4805295e-07 | F6: =(1-$G$1*($B$2-$G$2))*B6 -> -2.432829064e-06 | G6: =(1-$G$1*($B$2-$G$2))*C6*$M$2/$M$1 -> -8.438072724e-06 | H6: =(1-$G$1*($B$2-$G$2))*D6 -> 6.489394864e-07 | J6: =-CELL("contents", INDEX($F$6:$F$1203,1204-CELL("row",F6))) -> -5.165093996e-06 | K6: =CELL("contents", INDEX($G$6:$G$1203,1204-CELL("row",G6))) -> -1.842837005e-06 | L6: =-CELL("contents", INDEX($H$6:$H$1203,1204-CELL("row",H6))) -> -8.493738461e-06 | N6: =J6*$B$1 -> -2.583425064e-06 | O6: =N6*$B$1 -> -1.292151714e-06 | P6: =K6*$B$1 -> -9.217317849e-07 | Q6: =P6*$B$1 -> -4.610225869e-07 | R6: =(N6^2+P6^2)*$B$1 -> 3.763116297e-12
A7: =A6+$B$1 -> 1.12717 | B7: ='DF raw data'!G12 -> -2.3507505e-06 | C7: ='DF raw data'!H12 -> -1.090043e-05 | D7: ='DF raw data'!I12 -> -1.3561532e-06 | F7: =(1-$G$1*($B$2-$G$2))*B7 -> -2.353966327e-06 | G7: =(1-$G$1*($B$2-$G$2))*C7*$M$2/$M$1 -> -1.09414871e-05 | H7: -1.358008418e-06 | J7: =-CELL("contents", INDEX($F$6:$F$1203,1204-CELL("row",F7))) -> -8.242502039e-06 | K7: =CELL("contents", INDEX($G$6:$G$1203,1204-CELL("row",G7))) -> -3.470886738e-06 | L7: =-CELL("contents", INDEX($H$6:$H$1203,1204-CELL("row",H7))) -> -8.496405104e-06 | N7: =J7*$B$1+N6 -> -6.706077309e-06 | O7: =N7*$B$1+O6 -> -4.646330402e-06 | P7: =K7*$B$1+P6 -> -2.657765205e-06 | Q7: =P7*$B$1+Q6 -> -1.790357009e-06 | R7: =(N7^2+P7^2)*$B$1+R6 -> 2.978955665e-11
A8: =A7+$B$1 -> 1.62734 | B8: ='DF raw data'!G13 -> -2.9082344e-06 | C8: ='DF raw data'!H13 -> 2.9742612e-06 | D8: ='DF raw data'!I13 -> -9.114623e-06 | F8: -2.912212865e-06 | G8: 2.985463926e-06 | H8: -9.127091804e-06 | J8: -8.052405342e-06 | K8: 3.082161074e-06 | L8: -8.470547479e-06 | N8: =J8*$B$1+N7 -> -1.073364889e-05 | O8: =N8*$B$1+O7 -> -1.001497957e-05 | P8: =K8*$B$1+P7 -> -1.1161607e-06 | Q8: =P8*$B$1+Q7 -> -2.348627107e-06 | R8: =(N8^2+P8^2)*$B$1+R7 -> 8.803787093e-11
A9: 2.12751 | B9: ='DF raw data'!G14 -> -2.2812651e-06 | C9: ='DF raw data'!H14 -> -1.2175194e-05 | D9: ='DF raw data'!I14 -> 2.7239419e-06 | F9: -2.284385871e-06 | G9: -1.222105257e-05 | H9: 2.727668253e-06 | J9: -4.901868595e-06 | K9: -6.171311977e-06 | L9: -8.447553065e-06 | N9: -1.31854165e-05 | O9: -1.660992934e-05 | P9: -4.202865812e-06 | Q9: -4.4507745e-06 | R9: 1.838300739e-10
A10: 2.62768 | B10: ='DF raw data'!G15 -> -2.634702e-06 | C10: ='DF raw data'!H15 -> -1.8652759e-06 | D10: ='DF raw data'!I15 -> 6.7888013e-06 | F10: -2.638306272e-06 | G10: -1.872301569e-06 | H10: 6.79808838e-06 | J10: -1.196545638e-06 | K10: 6.425984818e-06 | L10: -8.313929518e-06 | N10: -1.378389274e-05 | O10: -2.350421897e-05 | P10: -9.887809854e-07 | Q10: -4.945333085e-06 | R10: 2.793492328e-10
A11: 3.12785 | B11: ='DF raw data'!G16 -> -2.5119421e-06 | C11: ='DF raw data'!H16 -> -4.6903292e-06 | D11: ='DF raw data'!I16 -> 1.0022324e-05 | F11: -2.515378437e-06 | G11: -4.707995594e-06 | H11: 1.003603454e-05 | J11: -1.146491358e-06 | K11: -5.409653412e-06 | L11: -8.867214277e-06 | N11: -1.435733332e-05 | O11: -3.068532637e-05 | P11: -3.694527332e-06 | Q11: -6.793224821e-06 | R11: 3.892778719e-10
A12: 3.62802 | B12: ='DF raw data'!G17 -> -2.282793e-06 | C12: ='DF raw data'!H17 -> -1.096661e-05 | D12: ='DF raw data'!I17 -> 9.7515203e-06 | F12: -2.285915861e-06 | G12: -1.100791637e-05 | H12: 9.76486038e-06 | J12: -3.450558816e-06 | K12: -2.755166251e-06 | L12: -9.593583193e-06 | N12: -1.608319932e-05 | O12: -3.872966018e-05 | P12: -5.072578836e-06 | Q12: -9.330376578e-06 | R12: 5.315263982e-10
A13: 4.12819 | B13: ='DF raw data'!G18 -> -2.5204258e-06 | C13: ='DF raw data'!H18 -> -5.4159063e-06 | D13: ='DF raw data'!I18 -> 3.7395564e-06 | F13: -2.523873742e-06 | G13: -5.436305622e-06 | H13: 3.744672113e-06 | J13: -5.273901741e-06 | K13: 1.67322786e-05 | L13: -8.973916447e-06 | N13: -1.872104675e-05 | O13: -4.809336613e-05 | P13: 3.296404951e-06 | Q13: -7.681613713e-06 | R13: 7.122597652e-10
A14: 4.62836 | B14: ='DF raw data'!G19 -> -2.4383967e-06 | C14: ='DF raw data'!H19 -> -7.6652213e-06 | D14: ='DF raw data'!I19 -> 3.3916128e-06 | F14: -2.441732427e-06 | G14: -7.694092796e-06 | H14: 3.396252526e-06 | J14: -4.803275604e-06 | K14: 6.712862304e-06 | L14: -7.580828406e-06 | N14: -2.112350111e-05 | O14: -5.865870769e-05 | P14: 6.653977289e-06 | Q14: -4.353493893e-06 | R14: 9.57582003e-10
A15: 5.12853 | B15: ='DF raw data'!G20 -> -2.8324189e-06 | C15: ='DF raw data'!H20 -> 2.96799e-06 | D15: ='DF raw data'!I20 -> 3.1566067e-06 | F15: -2.836293649e-06 | G15: 2.979169105e-06 | H15: 3.160924938e-06 | J15: -9.5491565e-07 | K15: 3.198412198e-06 | L15: -7.323511878e-06 | N15: -2.160112127e-05 | O15: -6.946294051e-05 | P15: 8.253727118e-06 | Q15: -2.252271999e-07 | R15: 1.225039133e-09
A16: 5.6287 | B16: ='DF raw data'!G21 -> -2.9406851e-06 | C16: ='DF raw data'!H21 -> 4.1776407e-06 | D16: ='DF raw data'!I21 -> -6.5568183e-06 | F16: -2.944707957e-06 | G16: 4.193376024e-06 | H16: -6.565788027e-06 | J16: 1.935944454e-06 | K16: -5.970417436e-06 | L16: -8.61136225e-06 | N16: -2.063281994e-05 | O16: -7.978285806e-05 | P16: 5.267503429e-06 | Q16: 2.40941999e-06 | R16: 1.451846147e-09
A17: 6.12887 | B17: ='DF raw data'!G22 -> -2.2813233e-06 | C17: ='DF raw data'!H22 -> -1.3943371e-05 | D17: ='DF raw data'!I22 -> -7.8010507e-06 | F17: -2.28444415e-06 | G17: -1.399588951e-05 | H17: -7.811722537e-06 | J17: 7.283921192e-07 | K17: 4.299849859e-06 | L17: -9.564789256e-06 | N17: -2.026850005e-05 | O17: -8.992055373e-05 | P17: 7.418159333e-06 | Q17: 6.119760744e-06 | R17: 1.684845931e-09
A18: 6.62904 | B18: ='DF raw data'!G23 -> -2.4333181e-06 | C18: ='DF raw data'!H23 -> -9.5713622e-06 | D18: ='DF raw data'!I23 -> -7.7712339e-06 | F18: -2.436646879e-06 | G18: -9.607413286e-06 | H18: -7.781864948e-06 | J18: -3.09101363e-06 | K18: 1.308523936e-05 | L18: -9.085543944e-06 | N18: -2.181453234e-05 | O18: -0.0001008315284 | P18: 1.39630035e-05 | Q18: 1.310363621e-05 | R18: 2.020379618e-09
A19: 7.12921 | B19: ='DF raw data'!G24 -> -3.1738359e-06 | C19: ='DF raw data'!H24 -> 1.089223e-05 | D19: ='DF raw data'!I24 -> -6.3876378e-06 | F19: -3.178177708e-06 | G19: 1.093325621e-05 | H19: -6.396376089e-06 | J19: -4.728959278e-06 | K19: 9.959050979e-06 | L19: -8.032817182e-06 | N19: -2.41798159e-05 | O19: -0.0001129255469 | P19: 1.894422203e-05 | Q19: 2.257896774e-05 | R19: 2.492313543e-09
A20: 7.62938 | B20: ='DF raw data'!G25 -> -3.4256859e-06 | C20: ='DF raw data'!H25 -> 1.866823e-05 | D20: ='DF raw data'!I25 -> 4.4452986e-07 | F20: -3.430372238e-06 | G20: 1.873854496e-05 | H20: 4.451379768e-07 | J20: -6.000991942e-06 | K20: 6.014686352e-06 | L20: -7.402156016e-06 | N20: -2.718133204e-05 | O20: -0.0001265208337 | P20: 2.195258771e-05 | Q20: 3.355899353e-05 | R20: 3.102891529e-09
A21: 8.12955 | B21: ='DF raw data'!G26 -> -2.8884874e-06 | C21: ='DF raw data'!H26 -> 3.774157e-06 | D21: ='DF raw data'!I26 -> 3.8675876e-07 | F21: -2.892438851e-06 | G21: 3.788372579e-06 | H21: 3.87287846e-07 | J21: -6.119169488e-06 | K21: 5.619861502e-06 | L21: -7.174565998e-06 | N21: -3.024195704e-05 | O21: -0.0001416469534 | P21: 2.476347383e-05 | Q21: 4.594494024e-05 | R21: 3.867054057e-09
A22: 8.62972 | B22: ='DF raw data'!G27 -> -6.2134268e-07 | C22: ='DF raw data'!H27 -> 1.1240265e-06 | D22: ='DF raw data'!I27 -> -2.5603824e-06 | F22: -6.221926768e-07 | G22: 1.12826021e-06 | H22: -2.563885003e-06 | J22: -4.58290595e-06 | K22: -1.285421346e-06 | L22: -7.397893793e-06 | N22: -3.253418911e-05 | O22: -0.0001579195788 | P22: 2.412054464e-05 | Q22: 5.800931305e-05 | R22: 4.687469971e-09
A23: 9.12989 | B23: ='DF raw data'!G28 -> 5.217235e-06 | C23: ='DF raw data'!H28 -> -1.8094557e-05 | D23: ='DF raw data'!I28 -> -4.0785544e-06 | F23: =(1-$G$1*($B$2-$G$2))*B23 -> 5.224372177e-06 | G23: -1.816271119e-05 | H23: -4.084133862e-06 | J23: -4.775399722e-06 | K23: -5.102552439e-06 | L23: -4.134410347e-06 | N23: -3.492270079e-05 | O23: -0.000175386866 | P23: 2.156840099e-05 | Q23: 6.879718017e-05 | R23: 5.530151861e-09
A24: 9.63006 | B24: ='DF raw data'!G29 -> 5.9325926e-06 | C24: ='DF raw data'!H29 -> -4.5683769e-06 | D24: ='DF raw data'!I29 -> -7.0206461e-06 | F24: 5.940708387e-06 | G24: -4.585583954e-06 | H24: -7.030250344e-06 | J24: -8.432533246e-06 | K24: -1.208679678e-06 | L24: 4.195622871e-06 | N24: -3.914040094e-05 | O24: -0.0001949637204 | P24: 2.096385567e-05 | Q24: 7.928267186e-05 | R24: 6.516214123e-09
A25: 10.13023 | B25: ='DF raw data'!G30 -> 3.1892509e-06 | C25: ='DF raw data'!H30 -> -3.2726089e-07 | D25: ='DF raw data'!I30 -> -7.5859443e-06 | F25: 3.193613795e-06 | G25: -3.284935369e-07 | H25: -7.596321872e-06 | J25: -1.390151329e-05 | K25: -2.38358743e-07 | L25: 4.160708774e-06 | N25: -4.609352085e-05 | O25: -0.0002180183167 | P25: 2.084463578e-05 | Q25: 8.970853334e-05 | R25: 7.796204925e-09
A26: 10.6304 | B26: ='DF raw data'!G31 -> -1.1790464e-07 | C26: ='DF raw data'!H31 -> 5.9897152e-06 | D26: ='DF raw data'!I31 -> -9.0618619e-07 | F26: -1.180659335e-07 | G26: 6.012275806e-06 | H26: -9.074258527e-07 | J26: -1.794844994e-05 | K26: 2.779479886e-06 | L26: 5.781241133e-06 | N26: -5.507079705e-05 | O26: -0.0002455630772 | P26: 2.223484823e-05 | Q26: 0.0001008297374 | R26: 9.560395127e-09
A27: 11.13057 | B27: ='DF raw data'!G32 -> -6.9919674e-06 | C27: ='DF raw data'!H32 -> 2.9553144e-06 | D27: ='DF raw data'!I32 -> 1.0692072e-06 | F27: -7.001532411e-06 | G27: 2.966445761e-06 | H27: 1.070669875e-06 | J27: -1.737950068e-05 | K27: -8.095614375e-06 | L27: 5.218229686e-06 | N27: -6.376350191e-05 | O27: -0.000277455668 | P27: 1.818566479e-05 | Q27: 0.0001099256613 | R27: 1.175939382e-08
A28: 11.63074 | B28: ='DF raw data'!G33 -> -1.3550647e-05 | C28: ='DF raw data'!H33 -> 2.3387474e-06 | D28: ='DF raw data'!I33 -> -6.1143674e-06 | F28: -1.356918429e-05 | G28: 2.347556426e-06 | H28: -6.122731855e-06 | J28: -1.056321774e-05 | K28: 1.150647517e-05 | L28: 1.647317452e-06 | N28: -6.904690652e-05 | O28: -0.0003119908592 | P28: 2.394085848e-05 | Q28: 0.0001219001605 | R28: 1.443062173e-08
A29: 12.13091 | B29: ='DF raw data'!G34 -> -1.1845323e-05 | C29: ='DF raw data'!H34 -> -3.9771035e-07 | D29: ='DF raw data'!I34 -> -1.2910679e-05 | F29: -1.18615274e-05 | G29: -3.992083489e-07 | H29: -1.292834081e-05 | J29: -7.711585036e-06 | K29: -8.423206741e-06 | L29: 3.058598346e-06 | N29: -7.290401001e-05 | O29: -0.0003484552579 | P29: 1.972782316e-05 | Q29: 0.0001317674258 | R29: 1.728368229e-08
A30: 12.63108 | B30: ='DF raw data'!G35 -> -5.6663898e-06 | C30: ='DF raw data'!H35 -> 3.1405114e-06 | D30: ='DF raw data'!I35 -> -1.1918282e-05 | F30: -5.674141421e-06 | G30: 3.152340317e-06 | H30: -1.193458621e-05 | J30: -9.142450486e-06 | K30: 4.606205033e-07 | L30: 7.212922698e-06 | N30: -7.747678947e-05 | O30: -0.0003872068237 | P30: 1.995821172e-05 | Q30: 0.0001417499246 | R30: 2.048526201e-08
A31: 13.13125 | B31: ='DF raw data'!G36 -> 3.0554153e-07 | C31: ='DF raw data'!H36 -> -2.0595457e-06 | D31: ='DF raw data'!I36 -> -4.2377524e-06 | F31: 3.059595108e-07 | G31: -2.067303097e-06 | H31: -4.243549645e-06 | J31: -1.011651849e-05 | K31: 2.61863011e-06 | L31: 5.480682731e-06 | N31: -8.253676852e-05 | O31: -0.0004284892392 | P31: 2.126797194e-05 | Q31: 0.0001523875261 | R31: 2.41188194e-08
A32: 13.63142 | B32: ='DF raw data'!G37 -> 5.5423102e-06 | C32: ='DF raw data'!H37 -> 4.5513702e-06 | D32: ='DF raw data'!I37 -> 5.2995874e-06 | F32: 5.54989208e-06 | G32: 4.568513197e-06 | H32: 5.306837236e-06 | J32: -5.699209568e-06 | K32: 2.261841488e-06 | L32: 5.070937666e-06 | N32: -8.538734217e-05 | O32: -0.0004711974261 | P32: 2.23992772e-05 | Q32: 0.0001635909726 | R32: 2.801650707e-08
A33: 14.13159 | B33: ='DF raw data'!G38 -> 8.5628581e-06 | C33: ='DF raw data'!H38 -> 1.6610709e-06 | D33: ='DF raw data'!I38 -> 6.2929666e-06 | F33: 8.57457209e-06 | G33: 1.667327419e-06 | H33: 6.301575378e-06 | J33: 1.540291841e-07 | K33: 4.023151469e-06 | L33: 1.133384852e-05 | N33: -8.53103014e-05 | O33: -0.0005138670796 | P33: 2.441153687e-05 | Q33: 0.000175800891 | R33: 3.195473094e-08
A34: 14.63176 | B34: ='DF raw data'!G39 -> 6.5500303e-06 | C34: ='DF raw data'!H39 -> 4.7938074e-06 | D34: ='DF raw data'!I39 -> 6.2391973e-06 | F34: 6.558990741e-06 | G34: 4.811863551e-06 | H34: 6.247732522e-06 | J34: 2.440056637e-06 | K34: -8.950161699e-07 | L34: 5.960591149e-06 | N34: -8.408985827e-05 | O34: -0.000555926304 | P34: 2.396387663e-05 | Q34: 0.0001877869032 | R34: 3.577871648e-08
A35: 15.13193 | B35: ='DF raw data'!G40 -> -1.5608886e-07 | C35: ='DF raw data'!H40 -> 5.3136396e-06 | D35: ='DF raw data'!I40 -> 6.9144498e-06 | F35: -1.563023896e-07 | G35: 5.333653729e-06 | H35: 6.923908767e-06 | J35: 1.253502349e-06 | K35: -1.37033297e-06 | L35: -2.613439701e-06 | N35: -8.3462894e-05 | O35: -0.0005976719397 | P35: 2.327847719e-05 | Q35: 0.0001994300991 | R35: 3.953396392e-08
A36: 15.6321 | B36: ='DF raw data'!G41 -> -6.461783e-06 | C36: ='DF raw data'!H41 -> -2.8318223e-06 | D36: ='DF raw data'!I41 -> 2.2150032e-06 | F36: -6.470622719e-06 | G36: -2.842488521e-06 | H36: 2.218033324e-06 | J36: -2.486574487e-06 | K36: 1.448600965e-05 | L36: 1.320821115e-06 | N36: -8.470660396e-05 | O36: -0.0006400396418 | P36: 3.052394463e-05 | Q36: 0.0002146972605 | R36: 4.358880207e-08
A37: 16.13227 | B37: ='DF raw data'!G42 -> -7.7883651e-06 | C37: ='DF raw data'!H42 -> -3.0905376e-06 | D37: ='DF raw data'!I42 -> -3.9078459e-06 | F37: -7.799019583e-06 | G37: -3.102178287e-06 | H37: -3.913191833e-06 | J37: -7.164697717e-06 | K37: 2.242421616e-06 | L37: -3.782391242e-06 | N37: -8.829017082e-05 | O37: -0.0006841997365 | P37: 3.164553665e-05 | Q37: 0.0002305254086 | R37: 4.798859461e-08
A38: 16.63244 | B38: ='DF raw data'!G43 -> -4.5021493e-06 | C38: ='DF raw data'!H43 -> -6.268906e-06 | D38: ='DF raw data'!I43 -> -6.7994861e-06 | F38: -4.50830824e-06 | G38: -6.292518195e-06 | H38: -6.808787797e-06 | J38: -9.214770485e-06 | K38: 1.707908095e-06 | L38: -3.943672474e-06 | N38: -9.289912257e-05 | O38: -0.0007306650907 | P38: 3.249978104e-05 | Q38: 0.000246780824 | R38: 5.283348269e-08
A39: 17.13261 | B39: ='DF raw data'!G44 -> 7.9889514e-07 | C39: ='DF raw data'!H44 -> 1.2087204e-05 | D39: ='DF raw data'!I44 -> 5.7435664e-06 | F39: 7.999880286e-07 | G39: 1.213273115e-05 | H39: 5.751423599e-06 | J39: -1.059476584e-05 | K39: -8.782750401e-07 | L39: 3.58302368e-06 | N39: -9.81983066e-05 | O39: -0.0007797809377 | P39: 3.206049422e-05 | Q39: 0.0002628165214 | R39: 5.817068807e-08
A40: 17.63278 | B40: ='DF raw data'!G45 -> 6.9844341e-06 | C40: ='DF raw data'!H45 -> -4.8999432e-06 | D40: ='DF raw data'!I45 -> 1.2904848e-05 | F40: 6.993988806e-06 | G40: -4.918399118e-06 | H40: 1.292250183e-05 | J40: -1.11198682e-05 | K40: -5.867827174e-06 | L40: 8.458915488e-06 | N40: -0.0001037601311 | O40: -0.0008316786424 | P40: 2.91255831e-05 | Q40: 0.0002773842643 | R40: 6.397989473e-08
A41: 18.13295 | B41: ='DF raw data'!G46 -> 6.8548711e-06 | C41: ='DF raw data'!H46 -> 4.0530199e-06 | D41: ='DF raw data'!I46 -> 1.3267772e-05 | F41: 6.864248564e-06 | G41: 4.068285832e-06 | H41: 1.328592231e-05 | J41: -8.021797227e-06 | K41: 1.024062818e-06 | L41: 2.773821304e-06 | N41: -0.0001077723934 | O41: -0.0008855831604 | P41: 2.96377886e-05 | Q41: 0.0002922081971 | R41: 7.022866223e-08
A42: 18.63312 | B42: ='DF raw data'!G47 -> 1.3295453e-06 | C42: ='DF raw data'!H47 -> -1.2961079e-05 | D42: ='DF raw data'!I47 -> 1.1821217e-05 | F42: 1.331364118e-06 | G42: -1.300989765e-05 | H42: 1.183738842e-05 | J42: -3.881738964e-06 | K42: -1.691094604e-06 | L42: -5.418063986e-06 | N42: -0.0001097139228 | O42: -0.0009404587732 | P42: 2.879195381e-05 | Q42: 0.0003066090686 | R42: 7.66639102e-08
A43: 19.13329 | B43: ='DF raw data'!G48 -> -4.4113017e-06 | C43: ='DF raw data'!H48 -> -5.7042425e-06 | D43: ='DF raw data'!I48 -> 6.7706947e-07 | F43: -4.417336361e-06 | G43: -5.725727857e-06 | H43: 6.77995701e-07 | J43: -3.293751396e-06 | K43: 4.877489307e-06 | L43: -1.093035129e-05 | N43: -0.0001113613584 | O43: -0.0009961583838 | P43: 3.123152764e-05 | Q43: 0.0003222301418 | R43: 8.335456448e-08
A44: 19.63346 | B44: ='DF raw data'!G49 -> -4.2818042e-06 | C44: ='DF raw data'!H49 -> 5.7390057e-06 | D44: ='DF raw data'!I49 -> 1.3957994e-07 | F44: -4.287661708e-06 | G44: 5.760621995e-06 | H44: 1.397708854e-07 | J44: -7.70938463e-06 | K44: 1.057067365e-07 | L44: -9.764394143e-06 | N44: -0.0001152173613 | O44: -0.001053786651 | P44: 3.128439898e-05 | Q44: 0.0003378776596 | R44: 9.048386461e-08
A45: 20.13363 | B45: ='DF raw data'!G50 -> 8.1197732e-07 | C45: ='DF raw data'!H50 -> 4.7164194e-06 | D45: ='DF raw data'!I50 -> 3.2334117e-06 | F45: 8.13088105e-07 | G45: 4.734184065e-06 | H45: 3.237835007e-06 | J45: -1.232781441e-05 | K45: 8.503560462e-07 | L45: -1.20102686e-05 | N45: -0.0001213833643 | O45: -0.001114498969 | P45: 3.170972156e-05 | Q45: 0.000353737911 | R45: 9.835625409e-08
A46: 20.6338 | B46: ='DF raw data'!G51 -> 3.1651675e-06 | C46: ='DF raw data'!H51 -> 2.5354765e-07 | D46: ='DF raw data'!I51 -> 3.6618201e-06 | F46: 3.169497449e-06 | G46: 2.545026518e-07 | H46: 3.66682947e-06 | J46: -1.393994579e-05 | K46: 6.812372006e-06 | L46: -9.689218042e-06 | N46: -0.0001283557069 | O46: -0.001178698643 | P46: 3.511706567e-05 | Q46: 0.0003713024138 | R46: 1.072134624e-07
A47: 21.13397 | B47: ='DF raw data'!G52 -> 3.5310754e-06 | C47: ='DF raw data'!H52 -> 3.9312008e-06 | D47: ='DF raw data'!I52 -> 4.9252831e-06 | F47: 3.535905911e-06 | G47: 3.946007894e-06 | H47: 4.932020887e-06 | J47: -1.4772376e-05 | K47: 5.040481623e-06 | L47: -2.641096985e-06 | N47: -0.0001357444062 | O47: -0.001246593922 | P47: 3.763816336e-05 | Q47: 0.0003901278939 | R47: 1.171384233e-07
A48: 21.63414 | B48: ='DF raw data'!G53 -> 2.6981093e-06 | C48: ='DF raw data'!H53 -> 3.6304559e-06 | D48: ='DF raw data'!I53 -> 6.0209622e-06 | F48: 2.701800314e-06 | G48: 3.644130221e-06 | H48: 6.029198876e-06 | J48: -1.274329401e-05 | K48: 5.336600185e-06 | L48: -2.863157048e-06 | N48: -0.0001421182196 | O48: -0.001317677192 | P48: 4.030737067e-05 | Q48: 0.0004102884315 | R48: 1.280532694e-07
A49: 22.13431 | B49: ='DF raw data'!G54 -> 2.4295828e-06 | C49: ='DF raw data'!H54 -> -4.1680955e-06 | D49: ='DF raw data'!I54 -> 9.3181206e-06 | F49: 2.432906469e-06 | G49: -4.183794871e-06 | H49: 9.330867789e-06 | J49: -5.464005748e-06 | K49: 1.119656225e-05 | L49: -3.756336849e-06 | N49: -0.0001448511514 | O49: -0.001390127393 | P49: 4.590755521e-05 | Q49: 0.0004332500134 | R49: 1.396018744e-07
A50: 22.63448 | B50: ='DF raw data'!G55 -> 3.0685137e-06 | C50: ='DF raw data'!H55 -> -6.0087232e-06 | D50: ='DF raw data'!I55 -> 5.9884169e-06 | F50: 3.072711427e-06 | G50: -6.031355401e-06 | H50: 5.996609054e-06 | J50: -1.555551587e-06 | K50: 4.856328302e-06 | L50: -2.116934009e-06 | N50: -0.0001456291916 | O50: -0.001462966745 | P50: 4.833654494e-05 | Q50: 0.0004574265031 | R50: 1.513780184e-07
A51: 23.13465 | B51: ='DF raw data'!G56 -> 1.3820777e-06 | C51: ='DF raw data'!H56 -> -9.2667478e-06 | D51: ='DF raw data'!I56 -> 5.5065011e-06 | F51: 1.383968382e-06 | G51: -9.301651538e-06 | H51: 5.514033994e-06 | J51: -3.083873476e-06 | K51: 4.157750642e-06 | L51: -3.941807226e-06 | N51: -0.0001471716526 | O51: -0.001536577591 | P51: 5.041612708e-05 | Q51: 0.0004826431374 | R51: 1.634827733e-07
A52: 23.63482 | B52: ='DF raw data'!G57 -> -3.8931225e-06 | C52: ='DF raw data'!H57 -> 4.2465871e-08 | D52: ='DF raw data'!I57 -> 7.4602631e-06 | F52: -3.898448292e-06 | G52: 4.262582114e-08 | H52: 7.47046874e-06 | J52: -3.795648654e-06 | K52: 9.32998315e-06 | L52: -3.708818132e-06 | N52: -0.0001490701222 | O52: -0.001611137994 | P52: 5.508270475e-05 | Q52: 0.0005101938538 | R52: 1.761150696e-07
A53: 24.13499 | B53: ='DF raw data'!G58 -> -7.2847374e-06 | C53: ='DF raw data'!H58 -> -4.177969e-06 | D53: ='DF raw data'!I58 -> 4.5700199e-06 | F53: -7.294702921e-06 | G53: -4.19370556e-06 | H53: 4.576271687e-06 | J53: -2.61297046e-06 | K53: 1.61674963e-05 | L53: 7.977291727e-07 | N53: -0.0001503770516 | O53: -0.001686352084 | P53: 6.316920137e-05 | Q53: 0.0005417891933 | R53: 1.894213951e-07
A54: 24.63516 | B54: ='DF raw data'!G59 -> -8.0891969e-06 | C54: ='DF raw data'!H59 -> -1.1909006e-05 | D54: ='DF raw data'!I59 -> 1.1696372e-06 | F54: -8.100262921e-06 | G54: -1.195386196e-05 | H54: 1.171237264e-06 | J54: -2.725668921e-06 | K54: 7.971533873e-06 | L54: 9.191542953e-06 | N54: -0.0001517403494 | O54: -0.001762248054 | P54: 6.715632347e-05 | Q54: 0.0005753787716 | R54: 2.031936287e-07
A55: 25.13533 | B55: ='DF raw data'!G60 -> -7.461616e-06 | C55: ='DF raw data'!H60 -> -1.1778381e-05 | D55: ='DF raw data'!I60 -> 2.9984783e-06 | F55: -7.471823491e-06 | G55: -1.182274495e-05 | H55: 3.002580218e-06 | J55: -3.066562126e-06 | K55: -1.016107867e-05 | L55: 7.35833495e-06 | N55: -0.0001532741518 | O55: -0.001838911187 | P55: 6.207405675e-05 | Q55: 0.0006064263525 | R55: 2.168713547e-07
A56: 25.6355 | B56: ='DF raw data'!G61 -> -5.0727299e-06 | C56: ='DF raw data'!H61 -> -1.1193436e-05 | D56: ='DF raw data'!I61 -> -2.8301895e-06 | F56: -5.079669395e-06 | G56: -1.123559672e-05 | H56: -2.834061199e-06 | J56: -1.177573119e-06 | K56: -4.537101427e-06 | L56: -4.300827795e-06 | N56: -0.0001538631386 | O56: -0.001915868913 | P56: 5.980473473e-05 | Q56: 0.0006363388867 | R56: 2.305012231e-07
A57: 26.13567 | B57: ='DF raw data'!G62 -> -1.0870476e-06 | C57: ='DF raw data'!H62 -> -4.0154546e-06 | D57: ='DF raw data'!I62 -> -6.8352256e-06 | F57: -1.088534681e-06 | G57: -4.03057904e-06 | H57: -6.844576189e-06 | J57: 5.740619439e-07 | K57: 2.543361671e-06 | L57: -4.943751212e-06 | N57: -0.00015357601 | O57: -0.001992683026 | P57: 6.107684794e-05 | Q57: 0.0006668876937 | R57: 2.441638529e-07
A58: 26.63584 | B58: ='DF raw data'!G63 -> 3.6469523e-06 | C58: ='DF raw data'!H63 -> -6.4422279e-06 | D58: ='DF raw data'!I63 -> -5.8285823e-06 | F58: 3.651941331e-06 | G58: -6.466492921e-06 | H58: -5.836555801e-06 | J58: 7.759253958e-07 | K58: -1.677969553e-06 | L58: 3.893053522e-06 | N58: -0.0001531879154 | O58: -0.002069303026 | P58: 6.023757791e-05 | Q58: 0.0006970167231 | R58: 2.577160107e-07
A59: 27.13601 | B59: ='DF raw data'!G64 -> 9.1110651e-06 | C59: ='DF raw data'!H64 -> 1.4106851e-07 | D59: ='DF raw data'!I64 -> -1.285682e-07 | F59: 9.123529037e-06 | G59: 1.415998526e-07 | H59: -1.287440813e-07 | J59: 1.347215173e-07 | K59: 7.233714863e-06 | L59: -1.258274768e-06 | N59: -0.0001531205317 | O59: -0.002145889322 | P59: 6.385566507e-05 | Q59: 0.0007289554111 | R59: 2.714824113e-07
A60: 27.63618 | B60: ='DF raw data'!G65 -> 1.2287006e-05 | C60: ='DF raw data'!H65 -> 4.9392429e-06 | D60: ='DF raw data'!I65 -> 6.9824e-06 | F60: 1.230381462e-05 | G60: 4.957846842e-06 | H60: 6.991951923e-06 | J60: -1.920036622e-06 | K60: 2.440561119e-07 | L60: 3.301379517e-06 | N60: -0.0001540808765 | O60: -0.002222955954 | P60: 6.397773461e-05 | Q60: 0.0007609551546 | R60: 2.854041766e-07
A61: 28.13635 | B61: ='DF raw data'!G66 -> 9.605481e-06 | C61: ='DF raw data'!H66 -> -6.4675792e-06 | D61: ='DF raw data'!I66 -> 4.0379905e-07 | F61: 9.618621298e-06 | G61: -6.491939709e-06 | H61: 4.043514471e-07 | J61: -4.847063925e-06 | K61: -2.378288145e-06 | L61: 3.218407567e-06 | N61: -0.0001565052324 | O61: -0.002301235176 | P61: 6.278818623e-05 | Q61: 0.0007923599217 | R61: 2.996271328e-07
A62: 28.63652 | B62: ='DF raw data'!G67 -> 2.6744915e-06 | C62: ='DF raw data'!H67 -> 2.8540433e-06 | D62: ='DF raw data'!I67 -> -4.4702192e-06 | F62: 2.678150204e-06 | G62: 2.864793218e-06 | H62: -4.47633446e-06 | J62: -7.351581324e-06 | K62: 1.013616418e-06 | L62: -3.236239427e-06 | N62: -0.0001601822729 | O62: -0.002381353543 | P62: 6.329516676e-05 | Q62: 0.0008240182653 | R62: 3.144644951e-07
A63: 29.13669 | B63: ='DF raw data'!G68 -> -1.8008627e-06 | C63: ='DF raw data'!H68 -> 7.5883634e-07 | D63: ='DF raw data'!I68 -> 3.3232004e-07 | F63: -1.80332628e-06 | G63: 7.616945407e-07 | H63: 3.327746538e-07 | J63: -1.020829187e-05 | K63: -3.219634633e-06 | L63: -5.401932949e-06 | N63: -0.0001652881542 | O63: -0.002464025719 | P63: 6.16848021e-05 | Q63: 0.0008548711527 | R63: 3.300323808e-07
A64: 29.63686 | B64: ='DF raw data'!G69 -> -7.2813918e-07 | C64: ='DF raw data'!H69 -> 2.5643728e-06 | D64: ='DF raw data'!I69 -> 1.784481e-07 | F64: -7.291352744e-07 | G64: 2.574031657e-06 | H64: 1.78692217e-07 | J64: -1.132252606e-05 | K64: -1.165600226e-05 | L64: 1.637321095e-06 | N64: -0.0001709513421 | O64: -0.002549530452 | P64: 5.585481945e-05 | Q64: 0.0008828080578 | R64: 3.462099404e-07
A65: 30.13703 | B65: ='DF raw data'!G70 -> 2.6220901e-06 | C65: ='DF raw data'!H70 -> 6.626296e-06 | D65: ='DF raw data'!I70 -> 1.857208e-06 | F65: 2.625677119e-06 | G65: 6.651254325e-06 | H65: 1.859748661e-06 | J65: -7.832837183e-06 | K65: -1.752145593e-05 | L65: 1.103874037e-05 | N65: -0.0001748690922 | O65: -0.002636994726 | P65: 4.709111284e-05 | Q65: 0.0009063616197 | R65: 3.62613902e-07
A66: 30.6372 | B66: ='DF raw data'!G71 -> 4.5867878e-06 | C66: ='DF raw data'!H71 -> -1.6446998e-05 | D66: ='DF raw data'!I71 -> 1.1684367e-06 | F66: 4.593062526e-06 | G66: -1.650894656e-05 | H66: 1.170035121e-06 | J66: -3.115275775e-06 | K66: -5.110990101e-06 | L66: 8.81905809e-06 | N66: -0.0001764272597 | O66: -0.002725238349 | P66: 4.453474892e-05 | Q66: 0.0009286365651 | R66: 3.791744916e-07
A67: 31.13737 | B67: ='DF raw data'!G72 -> 4.5578149e-06 | C67: ='DF raw data'!H72 -> -6.5926006e-06 | D67: ='DF raw data'!I72 -> -7.5297635e-07 | F67: 4.564049991e-06 | G67: -6.617432009e-06 | H67: -7.540064216e-07 | J67: 1.943348469e-07 | K67: 5.495842731e-06 | L67: 7.288565036e-06 | N67: -0.0001763300593 | O67: -0.002813433354 | P67: 4.728360458e-05 | Q67: 0.0009522864056 | R67: 3.958441719e-07
A68: 31.63754 | B68: ='DF raw data'!G73 -> 1.6346553e-06 | C68: ='DF raw data'!H73 -> -1.2206892e-06 | D68: ='DF raw data'!I73 -> 1.1275749e-06 | F68: 1.636891508e-06 | G68: -1.225286996e-06 | H68: 1.129117422e-06 | J68: 1.281101352e-06 | K68: 2.790462096e-06 | L68: 8.226057774e-06 | N68: -0.0001756892908 | O68: -0.002901307867 | P68: 4.867931001e-05 | Q68: 0.0009766343361 | R68: 4.124680231e-07
A69: 32.13771 | B69: ='DF raw data'!G74 -> -3.5183962e-06 | C69: ='DF raw data'!H74 -> -1.2391745e-05 | D69: ='DF raw data'!I74 -> 3.3385711e-06 | F69: -3.523209366e-06 | G69: -1.243841922e-05 | H69: 3.343138265e-06 | J69: -1.311254946e-06 | K69: -7.837130133e-06 | L69: 3.152236969e-06 | N69: -0.0001763451412 | O69: -0.002989510416 | P69: 4.475941263e-05 | Q69: 0.0009990216515 | R69: 4.290241572e-07
A70: 32.63788 | B70: ='DF raw data'!G75 -> -5.1255242e-06 | C70: ='DF raw data'!H75 -> 3.1176953e-06 | D70: ='DF raw data'!I75 -> -4.1483017e-06 | F70: -5.132535917e-06 | G70: 3.129438278e-06 | H70: -4.153976577e-06 | J70: -6.119111208e-06 | K70: 6.080848018e-06 | L70: 8.748359707e-07 | N70: -0.000179405737 | O70: -0.003079243784 | P70: 4.780087038e-05 | Q70: 0.001022930213 | R70: 4.462656882e-07
A71: 33.13805 | B71: ='DF raw data'!G76 -> -3.2552684e-06 | C71: ='DF raw data'!H76 -> -8.2734584e-07 | D71: ='DF raw data'!I76 -> -1.2705352e-05 | F71: -3.259721607e-06 | G71: =(1-$G$1*($B$2-$G$2))*C71*$M$2/$M$1 -> -8.304620856e-07 | H71: -1.272273292e-05 | J71: =-CELL("contents", INDEX($F$6:$F$1203,1204-CELL("row",F71))) -> -1.077102663e-05 | K71: =CELL("contents", INDEX($G$6:$G$1203,1204-CELL("row",G71))) -> 3.707536548e-07 | L71: =-CELL("contents", INDEX($H$6:$H$1203,1204-CELL("row",H71))) -> -1.916666117e-06 | N71: -0.0001847930814 | O71: -0.003171671739 | P71: 4.798631024e-05 | Q71: 0.001046931526 | R71: 4.644974693e-07
A72: =A71+$B$1 -> 33.63822 | B72: ='DF raw data'!G77 -> -3.0161805e-06 | C72: ='DF raw data'!H77 -> -9.7123948e-06 | D72: ='DF raw data'!I77 -> -6.4342912e-06 | F72: -3.020306635e-06 | G72: -9.748977093e-06 | H72: -6.44309331e-06 | J72: -1.183746553e-05 | K72: 7.655784949e-07 | L72: -7.688127991e-06 | N72: =J72*$B$1+N71 -> -0.0001907138266 | O72: =N72*$B$1+O71 -> -0.003267061074 | P72: =K72*$B$1+P71 -> 4.836922963e-05 | Q72: =P72*$B$1+Q71 -> 0.001071124363 | R72: =(N72^2+P72^2)*$B$1+R71 -> 4.838597233e-07
A73: 34.13839 | B73: ='DF raw data'!G78 -> -2.7182737e-06 | C73: ='DF raw data'!H78 -> -7.3480651e-06 | D73: ='DF raw data'!I78 -> -2.1575345e-06 | F73: -2.721992298e-06 | G73: -7.375742009e-06 | H73: -2.160486007e-06 | J73: -9.683655343e-06 | K73: 5.832943977e-06 | L73: -7.633082992e-06 | N73: -0.0001955573004 | O73: -0.003364872969 | P73: 5.128669322e-05 | Q73: 0.001096776429 | R73: 5.04303163e-07
A74: 34.63856 | B74: ='DF raw data'!G79 -> -1.4976881e-06 | C74: ='DF raw data'!H79 -> -7.6119841e-06 | D74: ='DF raw data'!I79 -> -4.6578371e-06 | F74: -1.499736937e-06 | G74: -7.640655075e-06 | H74: -4.664209021e-06 | J74: -5.313070852e-06 | K74: 7.497824515e-06 | L74: 4.6589964e-07 | N74: -0.0001982147391 | O74: -0.003464014035 | P74: 5.503688011e-05 | Q74: 0.001124304225 | R74: 5.254694276e-07
A75: 35.13873 | B75: ='DF raw data'!G80 -> 1.4768237e-07 | C75: ='DF raw data'!H80 -> 1.1531137e-06 | D75: ='DF raw data'!I80 -> -6.0978073e-06 | F75: 1.478843995e-07 | G75: 1.157456969e-06 | H75: -6.1061491e-06 | J75: -3.259259876e-06 | K75: 1.40750375e-06 | L75: -1.645287879e-06 | N75: -0.0001998449231 | O75: -0.00356397047 | P75: 5.574087126e-05 | Q75: 0.001152184136 | R75: 5.469992642e-07
A76: 35.6389 | B76: ='DF raw data'!G81 -> -7.1658496e-07 | C76: ='DF raw data'!H81 -> -9.0812837e-06 | D76: ='DF raw data'!I81 -> -7.0638362e-06 | F76: -7.175652482e-07 | G76: -9.115488877e-06 | H76: -7.073499528e-06 | J76: -5.428246497e-06 | K76: -4.421998211e-07 | L76: -9.660759364e-06 | N76: -0.0002025599692 | O76: -0.00366528489 | P76: 5.551969618e-05 | Q76: 0.001179953423 | R76: 5.690632523e-07
A77: 36.13907 | B77: ='DF raw data'!G82 -> -4.6149557e-06 | C77: ='DF raw data'!H82 -> -9.8182027e-06 | D77: ='DF raw data'!I82 -> -7.8596222e-06 | F77: -4.621268959e-06 | G77: -9.855183524e-06 | H77: -7.870374163e-06 | J77: -7.970526284e-06 | K77: -3.289679772e-06 | L77: -5.95342546e-06 | N77: -0.0002065465873 | O77: -0.003768593296 | P77: 5.387429705e-05 | Q77: 0.00120689973 | R77: 5.918529645e-07
A78: 36.63924 | B78: ='DF raw data'!G83 -> -4.9264104e-06 | C78: ='DF raw data'!H83 -> 8.2635052e-07 | D78: ='DF raw data'!I83 -> -2.4053172e-06 | F78: -4.933149729e-06 | G78: 8.294630167e-07 | H78: -2.408607674e-06 | J78: -7.328994968e-06 | K78: 9.631860321e-06 | L78: -3.180320034e-06 | N78: -0.0002102123307 | O78: -0.003873735198 | P78: 5.869186462e-05 | Q78: 0.00123625564 | R78: 6.156780418e-07
A79: 37.13941 | B79: ='DF raw data'!G84 -> -4.9050641e-07 | C79: ='DF raw data'!H84 -> 1.2667936e-06 | D79: ='DF raw data'!I84 -> 2.3355294e-06 | F79: -4.911774228e-07 | G79: 1.271565051e-06 | H79: 2.338724404e-06 | J79: -7.102002467e-06 | K79: 3.279707452e-06 | L79: 1.872044058e-06 | N79: -0.0002137645393 | O79: -0.003980653807 | P79: 6.03322759e-05 | Q79: 0.001266432034 | R79: 6.403540596e-07
A80: 37.63958 | B80: ='DF raw data'!G85 -> 4.6955197e-06 | C80: ='DF raw data'!H85 -> 1.2889425e-06 | D80: ='DF raw data'!I85 -> -3.9626193e-06 | F80: 4.701943171e-06 | G80: 1.293797376e-06 | H80: -3.968040163e-06 | J80: -7.817864628e-06 | K80: -1.299483914e-06 | L80: 4.298995391e-06 | N80: -0.0002176748006 | O80: -0.004089528212 | P80: 5.968231303e-05 | Q80: 0.001296283337 | R80: 6.658348688e-07
A81: 38.13975 | B81: ='DF raw data'!G86 -> 5.115779e-06 | C81: ='DF raw data'!H86 -> 1.6717526e-05 | D81: ='DF raw data'!I86 -> -9.8500477e-06 | F81: 5.122777386e-06 | G81: 1.678049352e-05 | H81: -9.863522565e-06 | J81: -8.919202901e-06 | K81: -6.319170405e-06 | L81: -3.632297595e-07 | N81: -0.0002221359183 | O81: -0.004200633935 | P81: 5.652165357e-05 | Q81: 0.001324553772 | R81: 6.921133322e-07
A82: 38.63992 | B82: ='DF raw data'!G87 -> 3.9845551e-07 | C82: ='DF raw data'!H87 -> 8.003798e-06 | D82: ='DF raw data'!I87 -> -7.9579931e-06 | F82: 3.990005971e-07 | G82: 8.033944765e-06 | H82: -7.968879635e-06 | J82: -8.511068035e-06 | K82: -8.060391203e-06 | L82: 1.96574817e-06 | N82: -0.0002263928992 | O82: -0.004313868871 | P82: 5.24900877e-05 | Q82: 0.00135080774 | R82: 7.191269908e-07
A83: 39.14009 | B83: ='DF raw data'!G88 -> -4.1709332e-06 | C83: ='DF raw data'!H88 -> 9.9416948e-06 | D83: ='DF raw data'!I88 -> -6.0934708e-06 | F83: -4.176639037e-06 | G83: 9.979140765e-06 | H83: -6.101806668e-06 | J83: -4.797068024e-06 | K83: -7.462203048e-07 | L83: 9.24219465e-06 | N83: -0.0002287922488 | O83: -0.00442830389 | P83: 5.211685069e-05 | Q83: 0.001376875025 | R83: 7.46667381e-07
A84: 39.64026 | B84: ='DF raw data'!G89 -> -6.136504e-06 | C84: ='DF raw data'!H89 -> 1.4794041e-05 | D84: ='DF raw data'!I89 -> -5.2712003e-06 | F84: -6.144898737e-06 | G84: 1.484976361e-05 | H84: -5.278411302e-06 | J84: -3.89805946e-06 | K84: 2.746399254e-06 | L84: 1.092404568e-05 | N84: -0.0002307419412 | O84: -0.004543714087 | P84: 5.34905172e-05 | Q84: 0.001403629377 | R84: 7.747284579e-07
A85: 40.14043 | B85: ='DF raw data'!G90 -> -7.7773493e-06 | C85: ='DF raw data'!H90 -> 1.2287478e-05 | D85: ='DF raw data'!I90 -> -1.5291319e-06 | F85: -7.787988714e-06 | G85: 1.233375949e-05 | H85: -1.531223752e-06 | J85: -8.970597713e-06 | K85: 4.484137484e-06 | L85: 3.282450758e-06 | N85: -0.000235228765 | O85: -0.004661368458 | P85: 5.573334825e-05 | Q85: 0.001431505526 | R85: 8.039577815e-07
A86: 40.6406 | B86: ='DF raw data'!G91 -> -6.1501974e-06 | C86: ='DF raw data'!H91 -> 1.2715512e-05 | D86: ='DF raw data'!I91 -> -7.2017301e-06 | F86: -6.15861087e-06 | G86: 1.276340571e-05 | H86: -7.211582067e-06 | J86: -1.354979279e-05 | K86: 1.73014042e-06 | L86: 2.713042171e-06 | N86: -0.0002420059649 | O86: -0.004782412582 | P86: 5.659871258e-05 | Q86: 0.001459814504 | R86: 8.348534331e-07
A87: 41.14077 | B87: ='DF raw data'!G92 -> -5.3295712e-06 | C87: ='DF raw data'!H92 -> 9.6947206e-06 | D87: ='DF raw data'!I92 -> -1.0617283e-05 | F87: =(1-$G$1*($B$2-$G$2))*B87 -> -5.336862053e-06 | G87: 9.731236322e-06 | H87: -1.063180744e-05 | J87: -1.262371765e-05 | K87: -2.061945895e-06 | L87: 6.318271087e-06 | N87: -0.0002483199697 | O87: -0.004906614781 | P87: 5.556738911e-05 | Q87: 0.001487607645 | R87: 8.672397118e-07
A88: 41.64094 | B88: ='DF raw data'!G93 -> -5.104162e-06 | C88: ='DF raw data'!H93 -> 5.5447354e-06 | D88: ='DF raw data'!I93 -> -1.5078351e-06 | F88: -5.111144494e-06 | G88: 5.565619964e-06 | H88: -1.509897818e-06 | J88: -9.501114068e-06 | K88: 7.393225314e-06 | L88: 8.72336496e-06 | N88: -0.000253072142 | O88: -0.005033193874 | P88: 5.926525861e-05 | Q88: 0.001517250349 | R88: 9.010301366e-07
A89: 42.14111 | B89: ='DF raw data'!G94 -> -5.9783829e-06 | C89: ='DF raw data'!H94 -> 3.8180542e-06 | D89: ='DF raw data'!I94 -> 7.6474153e-06 | F89: -5.986561328e-06 | G89: 3.83243512e-06 | H89: 7.657876964e-06 | J89: -6.820533143e-06 | K89: -3.191777301e-06 | L89: 4.989903763e-06 | N89: -0.000256483568 | O89: -0.00516147926 | P89: 5.766882736e-05 | Q89: 0.001546094566 | R89: 9.355966423e-07
A90: 42.64128 | B90: ='DF raw data'!G95 -> -8.5344127e-06 | C90: ='DF raw data'!H95 -> 7.8906514e-06 | D90: ='DF raw data'!I95 -> 8.063178e-06 | F90: -8.546087777e-06 | G90: 7.920371992e-06 | H90: 8.074208428e-06 | J90: -4.561645706e-06 | K90: -3.043861659e-07 | L90: 2.4515217e-06 | N90: -0.0002587651664 | O90: -0.005290905834 | P90: 5.751658253e-05 | Q90: 0.001574862635 | R90: 9.707423721e-07
A91: 43.14145 | B91: ='DF raw data'!G96 -> -8.0142399e-06 | C91: ='DF raw data'!H96 -> 1.2118787e-07 | D91: ='DF raw data'!I96 -> 3.8128981e-06 | F91: -8.02520338e-06 | G91: 1.216443311e-07 | H91: 3.818114145e-06 | J91: -4.585849472e-06 | K91: 2.97528503e-06 | L91: 1.665510305e-06 | N91: -0.0002610588707 | O91: -0.005421479649 | P91: 5.900473084e-05 | Q91: 0.001604375032 | R91: 1.006571196e-06
A92: 43.64162 | B92: ='DF raw data'!G97 -> -3.453189e-06 | C92: ='DF raw data'!H97 -> -2.7321521e-06 | D92: ='DF raw data'!I97 -> 4.1806106e-06 | F92: -3.457912963e-06 | G92: -2.742442908e-06 | H92: 4.186329675e-06 | J92: -5.572609515e-06 | K92: -1.41533333e-06 | L92: 2.355493413e-06 | N92: -0.0002638461228 | O92: -0.005553447564 | P92: 5.829682357e-05 | Q92: 0.001633533354 | R92: 1.043090256e-06
A93: 44.14179 | B93: ='DF raw data'!G98 -> 1.8734959e-06 | C93: ='DF raw data'!H98 -> 6.4862553e-07 | D93: ='DF raw data'!I98 -> 3.6797262e-06 | F93: 1.876058842e-06 | G93: 6.510686153e-07 | H93: 3.684760065e-06 | J93: -6.025064628e-06 | K93: -1.086099506e-05 | L93: 1.804598418e-06 | N93: -0.0002668596794 | O93: -0.00568692277 | P93: 5.286447967e-05 | Q93: 0.001659974581 | R93: 1.080107209e-06
A94: 44.64196 | B94: ='DF raw data'!G99 -> 2.9504977e-06 | C94: ='DF raw data'!H99 -> -8.036016e-06 | D94: ='DF raw data'!I99 -> 5.7278316e-07 | F94: 2.954533981e-06 | G94: -8.066284116e-06 | H94: 5.735667274e-07 | J94: -6.597489536e-06 | K94: -1.130108847e-05 | L94: 2.939521372e-07 | N94: -0.0002701595457 | O94: -0.00582204847 | P94: 4.721201425e-05 | Q94: 0.001683588614 | R94: 1.117727572e-06
A95: 45.14213 | B95: ='DF raw data'!G100 -> 1.8640502e-07 | C95: ='DF raw data'!H100 -> 5.7770321e-06 | D95: ='DF raw data'!I100 -> -4.7078229e-06 | F95: 1.866600221e-07 | G95: 5.798791623e-06 | H95: -4.714263202e-06 | J95: -7.168573812e-06 | K95: 3.132384735e-06 | L95: 7.737479111e-06 | N95: -0.0002737450513 | O95: -0.005958967532 | P95: 4.877873913e-05 | Q95: 0.001707986276 | R95: 1.156398575e-06
A96: 45.6423 | B96: ='DF raw data'!G101 -> -9.322589e-07 | C96: ='DF raw data'!H101 -> 5.1738079e-06 | D96: ='DF raw data'!I101 -> -2.2906481e-06 | F96: -9.335342302e-07 | G96: 5.193295345e-06 | H96: -2.293781707e-06 | J96: -7.176194823e-06 | K96: -4.954024399e-06 | L96: 1.08330734e-05 | N96: -0.0002773343686 | O96: -0.006097681864 | P96: 4.630088474e-05 | Q96: 0.001731144589 | R96: 1.195941077e-06
A97: 46.14247 | B97: ='DF raw data'!G102 -> -2.7762048e-06 | C97: ='DF raw data'!H102 -> -7.0163651e-06 | D97: ='DF raw data'!I102 -> 5.2479822e-07 | F97: -2.780002648e-06 | G97: -7.042792642e-06 | H97: 5.25516144e-07 | J97: -5.038552223e-06 | K97: 6.620508152e-07 | L97: 8.369604778e-06 | N97: -0.0002798545013 | O97: -0.006237656689 | P97: 4.66320227e-05 | Q97: 0.001754468528 | R97: 1.236201305e-06
A98: 46.64264 | B98: ='DF raw data'!G103 -> -3.380022e-06 | C98: ='DF raw data'!H103 -> -1.985894e-06 | D98: ='DF raw data'!I103 -> -3.4440911e-06 | F98: -3.38464587e-06 | G98: -1.993373984e-06 | H98: -3.448802617e-06 | J98: -2.659556603e-06 | K98: 3.452878664e-06 | L98: -6.206847167e-07 | N98: -0.0002811847317 | O98: -0.006378296857 | P98: 4.835904902e-05 | Q98: 0.001778656274 | R98: 1.276916869e-06
A99: 47.14281 | B99: ='DF raw data'!G104 -> -1.2007272e-06 | C99: ='DF raw data'!H104 -> -1.3694605e-06 | D99: ='DF raw data'!I104 -> -5.3413405e-06 | F99: -1.202369795e-06 | G99: -1.374618652e-06 | H99: -5.348647454e-06 | J99: -2.467791327e-06 | K99: 2.818721236e-06 | L99: -6.728172766e-06 | N99: -0.0002824190469 | O99: -0.006519554391 | P99: 4.976888882e-05 | Q99: 0.001803549179 | R99: 1.318049579e-06
A100: 47.64298 | B100: ='DF raw data'!G105 -> 9.8825922e-07 | C100: ='DF raw data'!H105 -> -4.9677242e-06 | D100: ='DF raw data'!I105 -> -4.386633e-06 | F100: 9.896111586e-07 | G100: -4.986435419e-06 | H100: -4.392633914e-06 | J100: -3.16146838e-06 | K100: 2.480146962e-06 | L100: -6.988552579e-07 | N100: -0.0002840003185 | O100: -0.006661602831 | P100: 5.100938393e-05 | Q100: 0.001829062542 | R100: 1.359692802e-06
A101: 48.14315 | B101: ='DF raw data'!G106 -> 2.4899878e-06 | C101: ='DF raw data'!H106 -> -5.5714822e-06 | D101: ='DF raw data'!I106 -> -5.6125591e-06 | F101: 2.493394103e-06 | G101: -5.592467508e-06 | H101: -5.620237081e-06 | J101: -2.556431721e-06 | K101: -5.765504717e-06 | L101: 4.592967296e-06 | N101: -0.000285278969 | O101: -0.006804290813 | P101: 4.812565143e-05 | Q101: 0.001853133549 | R101: 1.401557115e-06
A102: 48.64332 | B102: ='DF raw data'!G107 -> 3.2160847e-06 | C102: ='DF raw data'!H107 -> 2.1762332e-06 | D102: ='DF raw data'!I107 -> -9.7134198e-06 | F102: 3.220484304e-06 | G102: 2.184430107e-06 | H102: -9.726707758e-06 | J102: -1.670654433e-06 | K102: -4.279822206e-06 | L102: 5.107134115e-06 | N102: -0.0002861145802 | O102: -0.006947396742 | P102: 4.598501276e-05 | Q102: 0.001876133873 | R102: 1.443559479e-06
A103: 49.14349 | B103: ='DF raw data'!G108 -> 5.222852e-06 | C103: ='DF raw data'!H108 -> -7.9753391e-08 | D103: ='DF raw data'!I108 -> -7.456767e-06 | F103: 5.229996862e-06 | G103: -8.005378673e-08 | H103: -7.466967857e-06 | J103: -1.990753631e-06 | K103: 6.068124575e-06 | L103: 1.920896096e-06 | N103: -0.0002871102955 | O103: -0.007091000699 | P103: 4.902010663e-05 | Q103: 0.00190065226 | R103: 1.485991547e-06
A104: 49.64366 | B104: ='DF raw data'!G109 -> 6.8813702e-06 | C104: ='DF raw data'!H109 -> 2.023726e-06 | D104: ='DF raw data'!I109 -> -6.496457e-06 | F104: 6.890783914e-06 | G104: 2.03134848e-06 | H104: -6.505344153e-06 | J104: -2.548344373e-06 | K104: -8.589891412e-07 | L104: 4.610982206e-07 | N104: -0.0002883849009 | O104: -0.007235242175 | P104: 4.859046603e-05 | Q104: 0.001924955753 | R104: 1.528769529e-06
A105: 50.14383 | B105: ='DF raw data'!G110 -> 6.2464483e-06 | C105: ='DF raw data'!H110 -> 4.8248958e-06 | D105: ='DF raw data'!I110 -> -6.4256369e-07 | F105: 6.254993441e-06 | G105: 4.843069047e-06 | H105: -6.434427171e-07 | J105: -1.936415297e-06 | K105: -2.350698517e-06 | L105: 2.185877395e-06 | N105: -0.0002893534377 | O105: -0.007379968084 | P105: 4.741471715e-05 | Q105: 0.001948671173 | R105: 1.571770928e-06
A106: 50.644 | B106: ='DF raw data'!G111 -> 4.8977768e-06 | C106: ='DF raw data'!H111 -> 4.1585604e-06 | D106: ='DF raw data'!I111 -> 5.5005785e-06 | F106: 4.904476959e-06 | G106: 4.174223857e-06 | H106: 5.508103291e-06 | J106: -3.451156232e-06 | K106: -4.276014318e-07 | L106: -1.641484583e-06 | N106: -0.0002910796025 | O106: -0.007525557368 | P106: 4.720084374e-05 | Q106: 0.001972279619 | R106: 1.615263338e-06
A107: 51.14417 | B107: ='DF raw data'!G112 -> 3.4993086e-06 | C107: ='DF raw data'!H112 -> 3.0265646e-06 | D107: ='DF raw data'!I112 -> 8.2829338e-06 | F107: 3.504095654e-06 | G107: 3.037964329e-06 | H107: 8.294264853e-06 | J107: -8.667744275e-06 | K107: -6.990292439e-06 | L107: -2.464282533e-06 | N107: -0.0002954149482 | O107: -0.007673315063 | P107: 4.370450917e-05 | Q107: 0.001994139303 | R107: 1.659868536e-06
A108: 51.64434 | B108: ='DF raw data'!G113 -> 1.9587992e-06 | C108: ='DF raw data'!H113 -> 2.2945831e-06 | D108: ='DF raw data'!I113 -> 8.3937466e-06 | F108: 1.961478837e-06 | G108: 2.303225779e-06 | H108: 8.405229245e-06 | J108: -1.260139316e-05 | K108: -8.950354322e-06 | L108: 3.664261662e-06 | N108: -0.000301717787 | O108: -0.007824225248 | P108: 3.922781045e-05 | Q108: 0.002013759877 | R108: 1.706170495e-06
A109: 52.14451 | B109: ='DF raw data'!G114 -> 1.532268e-06 | C109: ='DF raw data'!H114 -> -3.4309101e-06 | D109: ='DF raw data'!I114 -> 7.7782588e-06 | F109: 1.534364143e-06 | G109: -3.44383282e-06 | H109: 7.788899458e-06 | J109: -1.139424904e-05 | K109: -4.821835871e-06 | L109: 1.10646778e-05 | N109: -0.0003074168485 | O109: -0.007977985934 | P109: 3.681607281e-05 | Q109: 0.002032174172 | R109: 1.754117063e-06
A110: 52.64468 | B110: ='DF raw data'!G115 -> 2.9452153e-06 | C110: ='DF raw data'!H115 -> 1.9309941e-06 | D110: ='DF raw data'!I115 -> 7.0762453e-06 | F110: 2.949244355e-06 | G110: 1.9382673e-06 | H110: 7.085925604e-06 | J110: -8.365626643e-06 | K110: -3.041182204e-07 | L110: 1.421724762e-05 | N110: -0.000311601084 | O110: -0.008133839448 | P110: 3.6663962e-05 | Q110: 0.002050512386 | R110: 1.803353538e-06
A111: 53.14485 | B111: ='DF raw data'!G116 -> 6.4207366e-06 | C111: ='DF raw data'!H116 -> -1.3470446e-06 | D111: ='DF raw data'!I116 -> 7.3031492e-07 | F111: 6.429520168e-06 | G111: -1.352118321e-06 | H111: 7.313139908e-07 | J111: -6.610647912e-06 | K111: -6.548802281e-07 | L111: 3.582164006e-06 | N111: -0.0003149075318 | O111: -0.008291346748 | P111: 3.633641055e-05 | Q111: 0.002068686768 | R111: 1.853614165e-06
A112: 53.64502 | B112: ='DF raw data'!G117 -> 5.7301463e-06 | C112: ='DF raw data'!H117 -> 9.6069261e-06 | D112: ='DF raw data'!I117 -> 2.2774964e-06 | F112: 5.73798514e-06 | G112: 9.643111139e-06 | H112: 2.280612015e-06 | J112: -5.18473673e-06 | K112: 2.924793464e-06 | L112: -4.790200542e-06 | N112: -0.0003175007816 | O112: -0.008450151114 | P112: 3.77993045e-05 | Q112: 0.002087592846 | R112: 1.904749312e-06
A113: 54.14519 | B113: ='DF raw data'!G118 -> 1.9919776e-06 | C113: ='DF raw data'!H118 -> 6.1685078e-06 | D113: ='DF raw data'!I118 -> 6.8498975e-06 | F113: 1.994702625e-06 | G113: 6.191741839e-06 | H113: 6.85926816e-06 | J113: -4.234872591e-06 | K113: -9.746466171e-08 | L113: -3.438372368e-06 | N113: -0.0003196189378 | O113: -0.008610014918 | P113: 3.77505556e-05 | Q113: 0.002106474542 | R113: 1.956557606e-06
A114: 54.64536 | B114: ='DF raw data'!G119 -> -4.058725e-07 | C114: ='DF raw data'!H119 -> 4.5972693e-06 | D114: ='DF raw data'!I119 -> 1.9693523e-06 | F114: -4.064277336e-07 | G114: 4.614585179e-06 | H114: 1.972046374e-06 | J114: -3.099713014e-06 | K114: -5.877202354e-06 | L114: 1.398696703e-07 | N114: -0.0003211693212 | O114: -0.008770654177 | P114: 3.48109553e-05 | Q114: 0.002123885937 | R114: 2.008756115e-06
A115: 55.14553 | B115: ='DF raw data'!G120 -> 7.6445076e-07 | C115: ='DF raw data'!H120 -> -1.2834e-06 | D115: ='DF raw data'!I120 -> -3.793439e-06 | F115: 7.654965286e-07 | G115: -1.288234e-06 | H115: -3.798628425e-06 | J115: 2.45875398e-07 | K115: 5.49691395e-06 | L115: 7.039780263e-06 | N115: -0.0003210463417 | O115: -0.008931231926 | P115: 3.756034675e-05 | Q115: 0.002142672496 | R115: 2.061014644e-06
A116: 55.6457 | B116: ='DF raw data'!G121 -> 4.9066534e-06 | C116: ='DF raw data'!H121 -> -8.5402371e-06 | D116: ='DF raw data'!I121 -> -3.9017195e-06 | F116: 4.913365702e-06 | G116: -8.572404394e-06 | H116: -3.907057052e-06 | J116: 7.877577203e-07 | K116: 4.262617848e-06 | L116: 8.10442681e-06 | N116: -0.000320652329 | O116: -0.009091612602 | P116: 3.969238032e-05 | Q116: 0.002162525434 | R116: 2.113229091e-06
A117: 56.14587 | B117: ='DF raw data'!G122 -> 9.8298933e-06 | C117: ='DF raw data'!H122 -> -4.4414301e-07 | D117: ='DF raw data'!I122 -> -1.8057929e-06 | F117: 9.843340594e-06 | G117: -4.458159002e-07 | H117: -1.808263225e-06 | J117: -2.677013552e-06 | K117: -7.562708085e-06 | L117: 8.160076535e-06 | N117: -0.0003219912908 | O117: -0.009252662985 | P117: 3.590974061e-05 | Q117: 0.002180486409 | R117: 2.165730886e-06
A118: 56.64604 | B118: ='DF raw data'!G123 -> 1.2602535e-05 | C118: ='DF raw data'!H123 -> 8.6544463e-07 | D118: ='DF raw data'!I123 -> 1.4663762e-07 | F118: 1.261977527e-05 | G118: 8.687043769e-07 | H118: 1.468382203e-07 | J118: -5.308524441e-06 | K118: -3.102579995e-06 | L118: 6.359786202e-06 | N118: -0.0003246464555 | O118: -0.009415041403 | P118: 3.435792318e-05 | Q118: 0.002197671211 | R118: 2.219036898e-06
A119: 57.14621 | B119: ='DF raw data'!G124 -> 1.0204692e-05 | C119: ='DF raw data'!H124 -> 4.623821e-06 | D119: ='DF raw data'!I124 -> 2.6200485e-06 | F119: 1.021865202e-05 | G119: 4.641236887e-06 | H119: 2.623632726e-06 | J119: -5.273304325e-06 | K119: 1.215716283e-06 | L119: 7.421449573e-07 | N119: -0.0003272840041 | O119: -0.009578739043 | P119: 3.496598799e-05 | Q119: 0.002215160149 | R119: 2.273224035e-06
A120: 57.64638 | B120: ='DF raw data'!G125 -> 4.091979e-06 | C120: ='DF raw data'!H125 -> 6.1742448e-06 | D120: ='DF raw data'!I125 -> -2.7844567e-07 | F120: 4.097576827e-06 | G120: 6.197500448e-06 | H120: -2.788265837e-07 | J120: -6.355786738e-06 | K120: -5.308670682e-06 | L120: 2.065867546e-07 | N120: -0.000330462978 | O120: -0.009744026711 | P120: 3.231075018e-05 | Q120: 0.002231321017 | R120: 2.32836766e-06
A121: 58.14655 | B121: ='DF raw data'!G126 -> -2.0034123e-07 | C121: ='DF raw data'!H126 -> -4.5751817e-06 | D121: ='DF raw data'!I126 -> -2.2535044e-06 | F121: -2.006152968e-07 | G121: -4.592414385e-06 | H121: -2.256587194e-06 | J121: -7.944930917e-06 | K121: -5.961443964e-06 | L121: 2.059853029e-06 | N121: -0.0003344367941 | O121: -0.009911301962 | P121: 2.932901475e-05 | Q121: 0.002245990511 | R121: 2.3847409e-06
A122: 58.64672 | B122: ='DF raw data'!G127 -> -1.4546436e-06 | C122: ='DF raw data'!H127 -> -8.8525326e-07 | D122: ='DF raw data'!I127 -> 3.057108e-06 | F122: -1.456633552e-06 | G122: -8.885876173e-07 | H122: 3.061290124e-06 | J122: -3.583497528e-06 | K122: -1.997257958e-06 | L122: 3.110707234e-06 | N122: -0.000336229152 | O122: -0.0100794737 | P122: 2.833004624e-05 | Q122: 0.00226016035 | R122: 2.441686572e-06
A123: 59.14689 | B123: ='DF raw data'!G128 -> -1.8207552e-06 | C123: ='DF raw data'!H128 -> -1.9447984e-06 | D123: ='DF raw data'!I128 -> 7.9130314e-06 | F123: -1.823245993e-06 | G123: -1.952123595e-06 | H123: 7.923856427e-06 | J123: 2.411175282e-06 | K123: 2.3984497e-06 | L123: 2.313078569e-07 | N123: -0.0003350231545 | O123: -0.01024704223 | P123: 2.952967882e-05 | Q123: 0.002274930209 | R123: 2.498262059e-06
A124: 59.64706 | B124: ='DF raw data'!G129 -> -5.0893482e-06 | C124: ='DF raw data'!H129 -> 4.1240028e-06 | D124: ='DF raw data'!I129 -> 2.994884e-06 | F124: -5.096310428e-06 | G124: 4.139536093e-06 | H124: 2.998981001e-06 | J124: 2.744112317e-06 | K124: -2.607173921e-06 | L124: -1.176435665e-07 | N124: -0.0003336506318 | O124: -0.01041392427 | P124: 2.822564864e-05 | Q124: 0.002289047832 | R124: 2.554340835e-06
A125: 60.14723 | B125: ='DF raw data'!G130 -> -7.5505282e-06 | C125: ='DF raw data'!H130 -> -1.1556358e-05 | D125: ='DF raw data'!I130 -> -1.9468227e-06 | F125: -7.560857323e-06 | G125: -1.159988569e-05 | H125: -1.949485953e-06 | J125: -9.501782281e-08 | K125: -4.590405547e-06 | L125: 7.105532489e-07 | N125: -0.0003336981569 | O125: -0.01058083007 | P125: 2.59296655e-05 | Q125: 0.002302017073 | R125: 2.610373284e-06
A126: 60.6474 | B126: ='DF raw data'!G131 -> -8.8251745e-06 | C126: ='DF raw data'!H131 -> -2.0967721e-06 | D126: ='DF raw data'!I131 -> -7.1118325e-07 | F126: -8.837247339e-06 | G126: -2.104669713e-06 | H126: -7.121561487e-07 | J126: -3.138736325e-06 | K126: 6.342278717e-06 | L126: 1.940021624e-06 | N126: -0.0003352680586 | O126: -0.0107485211 | P126: 2.910188305e-05 | Q126: 0.002316572962 | R126: 2.667018332e-06
A127: 61.14757 | B127: ='DF raw data'!G132 -> -7.9104411e-06 | C127: ='DF raw data'!H132 -> 1.2455062e-05 | D127: ='DF raw data'!I132 -> -4.0710893e-06 | F127: -7.921262583e-06 | G127: 1.250197471e-05 | H127: -4.07665855e-06 | J127: -5.160605864e-06 | K127: 1.123974428e-06 | L127: -1.185503153e-06 | N127: -0.0003378492389 | O127: -0.01091750315 | P127: 2.966406134e-05 | Q127: 0.002331410035 | R127: 2.724548918e-06
A128: 61.64774 | B128: ='DF raw data'!G133 -> -3.8367921e-06 | C128: ='DF raw data'!H133 -> 1.4996716e-05 | D128: ='DF raw data'!I133 -> -5.1745028e-06 | F128: -3.842040832e-06 | G128: 1.505320199e-05 | H128: -5.18158152e-06 | J128: -3.140543294e-06 | K128: 3.584263676e-06 | L128: -2.806042722e-06 | N128: -0.0003394200444 | O128: -0.01108727087 | P128: 3.14568025e-05 | Q128: 0.002347143784 | R128: 2.78266642e-06
A129: 62.14791 | B129: ='DF raw data'!G134 -> 2.7633309e-06 | C129: ='DF raw data'!H134 -> 5.3296508e-06 | D129: ='DF raw data'!I134 -> -6.6686353e-06 | F129: 2.767111137e-06 | G129: 5.349725236e-06 | H129: -6.677757993e-06 | J129: -1.272944209e-07 | K129: 2.206796235e-06 | L129: 2.491914782e-06 | N129: -0.0003394837133 | O129: -0.01125707044 | P129: 3.256057577e-05 | Q129: 0.002363429607 | R129: 2.840840884e-06
A130: 62.64808 | B130: ='DF raw data'!G135 -> 6.2569256e-06 | C130: ='DF raw data'!H135 -> 1.2986903e-05 | D130: ='DF raw data'!I135 -> -5.8281894e-06 | F130: 6.265485074e-06 | G130: 1.303581892e-05 | H130: -5.836162363e-06 | J130: -6.951729174e-07 | K130: -6.437296364e-06 | L130: 1.509030834e-06 | N130: -0.0003398314179 | O130: -0.01142704392 | P130: 2.934083325e-05 | Q130: 0.002378105012 | R130: 2.899033801e-06
A131: 63.14825 | B131: ='DF raw data'!G136 -> 5.783872e-06 | C131: ='DF raw data'!H136 -> 7.6983833e-06 | D131: ='DF raw data'!I136 -> 1.716782e-06 | F131: 5.791784337e-06 | G131: 7.727379703e-06 | H131: 1.719130558e-06 | J131: -3.080857055e-06 | K131: -2.76400562e-06 | L131: -2.69041536e-06 | N131: -0.0003413723702 | O131: -0.01159778814 | P131: 2.795836056e-05 | Q131: 0.002392088945 | R131: 2.957712127e-06
A132: 63.64842 | B132: ='DF raw data'!G137 -> 2.9258613e-06 | C132: ='DF raw data'!H137 -> 4.6888003e-06 | D132: ='DF raw data'!I137 -> 3.2691512e-06 | F132: 2.929863878e-06 | G132: 4.706460936e-06 | H132: 3.273623399e-06 | J132: -3.452219985e-06 | K132: 4.529271847e-06 | L132: -4.804600715e-07 | N132: -0.000343099067 | O132: -0.011769396 | P132: 3.022376646e-05 | Q132: 0.002407205966 | R132: 3.017047518e-06
A133: 64.14859 | B133: ='DF raw data'!G138 -> -3.1989978e-07 | C133: ='DF raw data'!H138 -> 9.6376143e-06 | D133: ='DF raw data'!I138 -> 3.3212616e-06 | F133: -3.203374029e-07 | G133: 9.673914928e-06 | H133: 3.325805086e-06 | J133: -2.606092564e-06 | K133: 9.32454926e-07 | L133: 2.267450435e-06 | N133: -0.0003444025564 | O133: -0.01194165583 | P133: 3.069015244e-05 | Q133: 0.00242255626 | R133: 3.076845345e-06
A134: 64.64876 | B134: ='DF raw data'!G139 -> -1.5969467e-06 | C134: ='DF raw data'!H139 -> 1.192549e-05 | D134: ='DF raw data'!I139 -> 4.1319563e-06 | F134: -1.599131323e-06 | G134: 1.197040804e-05 | H134: 4.137608816e-06 | J134: -2.442392729e-06 | K134: 5.036119454e-07 | L134: 3.751109708e-06 | N134: -0.0003456241679 | O134: -0.01211452667 | P134: 3.094204402e-05 | Q134: 0.002438032542 | R134: 3.137072553e-06
A135: 65.14893 | B135: ='DF raw data'!G140 -> -1.1176212e-06 | C135: ='DF raw data'!H140 -> 4.193118e-06 | D135: ='DF raw data'!I140 -> -2.0143073e-06 | F135: -1.119150106e-06 | G135: =(1-$G$1*($B$2-$G$2))*C135*$M$2/$M$1 -> 4.20891162e-06 | H135: -2.017062872e-06 | J135: =-CELL("contents", INDEX($F$6:$F$1203,1204-CELL("row",F135))) -> -2.547062121e-06 | K135: =CELL("contents", INDEX($G$6:$G$1203,1204-CELL("row",G135))) -> -3.05423127e-06 | L135: =-CELL("contents", INDEX($H$6:$H$1203,1204-CELL("row",H135))) -> 4.180424508e-06 | N135: -0.000346898132 | O135: -0.01228803471 | P135: 2.941440917e-05 | Q135: 0.002452744747 | R135: 3.197694918e-06
A136: =A135+$B$1 -> 65.6491 | B136: ='DF raw data'!G141 -> 6.6586153e-07 | C136: ='DF raw data'!H141 -> 4.0139257e-06 | D136: ='DF raw data'!I141 -> -1.290204e-06 | F136: 6.667724286e-07 | G136: 4.029044382e-06 | H136: -1.291968999e-06 | J136: -1.321003564e-06 | K136: -4.929381528e-06 | L136: 5.712534972e-06 | N136: =J136*$B$1+N135 -> -0.0003475588584 | O136: =N136*$B$1+O135 -> -0.01246187322 | P136: =K136*$B$1+P135 -> 2.694888041e-05 | Q136: =P136*$B$1+Q135 -> 0.002466223769 | R136: =(N136^2+P136^2)*$B$1+R135 -> 3.258477278e-06
A137: 66.14927 | B137: ='DF raw data'!G142 -> 2.7322917e-06 | C137: ='DF raw data'!H142 -> 1.1068754e-05 | D137: ='DF raw data'!I142 -> 3.797524e-06 | F137: 2.736029475e-06 | G137: 1.11104451e-05 | H137: 3.802719013e-06 | J137: -7.690504738e-08 | K137: 6.941939498e-07 | L137: 8.466711438e-06 | N137: -0.0003475973239 | O137: -0.01263573098 | P137: 2.72960954e-05 | Q137: 0.002479876457 | R137: 3.319282433e-06
A138: 66.64944 | B138: ='DF raw data'!G143 -> 2.4199639e-06 | C138: ='DF raw data'!H143 -> -7.3253823e-06 | D138: ='DF raw data'!I143 -> -4.1241788e-07 | F138: 2.423274411e-06 | G138: -7.352973773e-06 | H138: -4.129820677e-07 | J138: -1.210139609e-07 | K138: -5.457332524e-06 | L138: 8.070241308e-06 | N138: -0.0003476578515 | O138: -0.012809619 | P138: 2.456650139e-05 | Q138: 0.002492163884 | R138: 3.380037831e-06
A139: 67.14961 | B139: ='DF raw data'!G144 -> 1.4982311e-06 | C139: ='DF raw data'!H144 -> -1.1941429e-05 | D139: ='DF raw data'!I144 -> -9.5776545e-07 | F139: 1.50028068e-06 | G139: -1.198640708e-05 | H139: -9.590756731e-07 | J139: 5.334939928e-07 | K139: -6.907255951e-06 | L139: 5.117654988e-06 | N139: -0.0003473910138 | O139: -0.01298337357 | P139: 2.111169918e-05 | Q139: 0.002502723322 | R139: 3.440621532e-06
A140: 67.64978 | B140: ='DF raw data'!G145 -> 1.1072793e-06 | C140: ='DF raw data'!H145 -> -5.7143257e-07 | D140: ='DF raw data'!I145 -> 6.1239243e-06 | F140: 1.108794058e-06 | G140: -5.735849036e-07 | H140: 6.132301828e-06 | J140: 6.462507533e-07 | K140: -3.16405377e-06 | L140: 6.969456692e-06 | N140: -0.0003470677786 | O140: -0.01315696646 | P140: 1.952913441e-05 | Q140: 0.002512491209 | R140: 3.50106079e-06
A141: 68.14995 | B141: ='DF raw data'!G146 -> 7.2667399e-07 | C141: ='DF raw data'!H146 -> 9.1917e-06 | D141: ='DF raw data'!I146 -> 3.1490906e-06 | F141: 7.2766808e-07 | G141: 9.226321066e-06 | H141: 3.153398556e-06 | J141: -1.7886279e-06 | K141: -7.897130881e-06 | L141: 1.16862099e-05 | N141: -0.0003479623966 | O141: -0.01333100681 | P141: 1.557922645e-05 | Q141: 0.002520283471 | R141: 3.561741685e-06
A142: 68.65012 | B142: ='DF raw data'!G147 -> 2.9508906e-06 | C142: ='DF raw data'!H147 -> 6.5092804e-06 | D142: ='DF raw data'!I147 -> -4.7738449e-06 | F142: 2.954927418e-06 | G142: 6.533797979e-06 | H142: -4.78037552e-06 | J142: -3.647671798e-06 | K142: -7.773513215e-06 | L142: 8.286836806e-06 | N142: -0.0003497868526 | O142: -0.0135059597 | P142: 1.169114835e-05 | Q142: 0.002526131033 | R142: 3.62300627e-06
A143: 69.15029 | B143: ='DF raw data'!G148 -> 6.7139649e-06 | C143: ='DF raw data'!H148 -> 2.3121954e-06 | D143: ='DF raw data'!I148 -> -4.2875345e-06 | F143: 6.723149604e-06 | G143: 2.320904417e-06 | H143: -4.293399847e-06 | J143: -3.211260303e-06 | K143: -3.20798251e-06 | L143: 5.446089272e-06 | N143: -0.0003513930287 | O143: -0.01368171595 | P143: 1.008661174e-05 | Q143: 0.002531176053 | R143: 3.684816679e-06
A144: 69.65046 | B144: ='DF raw data'!G149 -> 7.0694682e-06 | C144: ='DF raw data'!H149 -> 4.6462369e-06 | D144: ='DF raw data'!I149 -> -2.658215e-06 | F144: 7.079139232e-06 | G144: 4.663737218e-06 | H144: -2.661851438e-06 | J144: -3.18192723e-06 | K144: -3.348340894e-06 | L144: 8.87858401e-06 | N144: -0.0003529845332 | O144: -0.01385826822 | P144: 8.411872073e-06 | Q144: 0.002535383419 | R144: 3.747172293e-06
A145: 70.15063 | B145: ='DF raw data'!G150 -> 4.2596462e-06 | C145: ='DF raw data'!H150 -> 1.6666748e-06 | D145: ='DF raw data'!I150 -> -2.2339393e-06 | F145: 4.265473396e-06 | G145: 1.672952426e-06 | H145: -2.236995329e-06 | J145: -5.674685164e-06 | K145: -2.414315133e-06 | L145: 1.081429074e-05 | N145: -0.0003558228405 | O145: -0.01403624013 | P145: 7.204304073e-06 | Q145: 0.002538986796 | R145: 3.810524723e-06
A146: 70.6508 | B146: ='DF raw data'!G151 -> 1.9272943e-06 | C146: ='DF raw data'!H151 -> 1.1612527e-06 | D146: ='DF raw data'!I151 -> -1.1724644e-06 | F146: 1.929930839e-06 | G146: 1.165626625e-06 | H146: -1.174068331e-06 | J146: -8.918131938e-06 | K146: -5.991042631e-06 | L146: 9.845934438e-06 | N146: -0.0003602834225 | O146: -0.01421644309 | P146: 4.20776428e-06 | Q146: 0.002541091394 | R146: 3.875457718e-06
A147: 71.15097 | B147: ='DF raw data'!G152 -> -8.5008423e-07 | C147: ='DF raw data'!H152 -> 1.1449555e-05 | D147: ='DF raw data'!I152 -> -5.4240286e-07 | F147: -8.512471452e-07 | G147: 1.149268041e-05 | H147: -5.431448671e-07 | J147: -7.77688865e-06 | K147: 3.503637934e-06 | L147: 5.661548217e-06 | N147: -0.0003641731889 | O147: -0.0143985916 | P147: 5.960178866e-06 | Q147: 0.002544072496 | R147: 3.941809087e-06
A148: 71.65114 | B148: ='DF raw data'!G153 -> -8.608381e-07 | C148: ='DF raw data'!H153 -> 3.7371976e-06 | D148: ='DF raw data'!I153 -> 1.7579057e-06 | F148: -8.620157265e-07 | G148: 3.751273969e-06 | H148: 1.760310515e-06 | J148: -5.30077215e-06 | K148: -4.710272438e-06 | L148: 5.474008814e-06 | N148: -0.0003668244761 | O148: -0.0145820662 | P148: 3.6042419e-06 | Q148: 0.00254587523 | R148: 4.009118558e-06
A149: 72.15131 | B149: ='DF raw data'!G154 -> 6.143332e-07 | C149: ='DF raw data'!H154 -> 6.7734663e-06 | D149: ='DF raw data'!I154 -> 4.2811062e-06 | F149: 6.151736078e-07 | G149: 6.79897895e-06 | H149: 4.286962753e-06 | J149: -3.843181991e-06 | K149: -9.376384166e-06 | L149: 1.032697901e-05 | N149: -0.0003687467205 | O149: -0.01476650224 | P149: -1.085544168e-06 | Q149: 0.002545332273 | R149: 4.077129335e-06
A150: 72.65148 | B150: ='DF raw data'!G155 -> -2.4853719e-07 | C150: ='DF raw data'!H155 -> 2.3658331e-06 | D150: ='DF raw data'!I155 -> 4.0389841e-06 | F150: -2.488771889e-07 | G150: 2.374744146e-06 | H150: 4.04450943e-06 | J150: -1.875723685e-06 | K150: -5.814121447e-06 | L150: 8.082233891e-06 | N150: -0.0003696849012 | O150: -0.01495140754 | P150: -3.993593293e-06 | Q150: 0.002543334798 | R150: 4.145494009e-06
A151: 73.15165 | B151: ='DF raw data'!G156 -> -3.8262419e-06 | C151: ='DF raw data'!H156 -> -2.9203605e-07 | D151: ='DF raw data'!I156 -> 1.8784392e-06 | F151: =(1-$G$1*($B$2-$G$2))*B151 -> -3.831476199e-06 | G151: -2.931360206e-07 | H151: 1.881008905e-06 | J151: -7.576714586e-07 | K151: -1.09205947e-05 | L151: 2.341562782e-06 | N151: -0.0003700638657 | O151: -0.01513650238 | P151: -9.455747143e-06 | Q151: 0.002538605317 | R151: 4.214035643e-06
A152: 73.65182 | B152: ='DF raw data'!G157 -> -5.8628989e-06 | C152: ='DF raw data'!H157 -> 1.0646457e-05 | D152: ='DF raw data'!I157 -> 5.6525878e-06 | F152: -5.870919346e-06 | G152: 1.068655749e-05 | H152: 5.66032054e-06 | J152: -2.979466342e-06 | K152: -1.175939523e-05 | L152: 9.701356826e-07 | N152: -0.0003715541054 | O152: -0.0153223426 | P152: -1.533744386e-05 | Q152: 0.002530933987 | R152: 4.283202997e-06
A153: 74.15199 | B153: ='DF raw data'!G158 -> -3.1974682e-06 | C153: ='DF raw data'!H158 -> 4.4210119e-06 | D153: ='DF raw data'!I158 -> 8.7170683e-06 | F153: -3.201842336e-06 | G153: 4.437663895e-06 | H153: 8.728993249e-06 | J153: -7.275989956e-06 | K153: -1.370003835e-05 | L153: 5.591374451e-07 | N153: -0.0003751933373 | O153: -0.01551000305 | P153: -2.218979204e-05 | Q153: 0.002519835319 | R153: 4.353858225e-06
A154: 74.65216 | B154: ='DF raw data'!G159 -> 4.7822914e-07 | C154: ='DF raw data'!H159 -> -1.3016795e-06 | D154: ='DF raw data'!I159 -> 5.4320244e-06 | F154: 4.788833575e-07 | G154: -1.306582351e-06 | H154: 5.439455409e-06 | J154: -9.95990794e-06 | K154: -1.361418921e-05 | L154: 1.080364219e-06 | N154: -0.0003801749844 | O154: -0.01570015517 | P154: -2.899920105e-05 | Q154: 0.002505330789 | R154: 4.426569925e-06
A155: 75.15233 | B155: ='DF raw data'!G160 -> 1.9122767e-06 | C155: ='DF raw data'!H160 -> 2.1298578e-07 | D155: ='DF raw data'!I160 -> -3.0500291e-07 | F155: 1.914892695e-06 | G155: 2.137880032e-07 | H155: -3.05420154e-07 | J155: -1.153080159e-05 | K155: -7.997175993e-06 | L155: -4.857933574e-07 | N155: -0.0003859423455 | O155: -0.01589319196 | P155: -3.299914857e-05 | Q155: 0.002488825605 | R155: 4.501615651e-06
A156: 75.6525 | B156: ='DF raw data'!G161 -> 7.1111799e-07 | C156: ='DF raw data'!H161 -> 5.3136396e-06 | D156: ='DF raw data'!I161 -> -5.7525194e-06 | F156: 7.120907994e-07 | G156: 5.333653729e-06 | H156: -5.760388847e-06 | J156: -1.178854069e-05 | K156: -3.760175171e-06 | L156: 1.34974623e-06 | N156: -0.0003918386199 | O156: -0.01608917788 | P156: -3.487987538e-05 | Q156: 0.002471379737 | R156: 4.579019014e-06
A157: 76.15267 | B157: ='DF raw data'!G162 -> -8.7838771e-07 | C157: ='DF raw data'!H162 -> 1.178299e-05 | D157: ='DF raw data'!I162 -> -5.6708541e-06 | F157: -8.795893444e-07 | G157: 1.182737131e-05 | H157: -5.678611828e-06 | J157: -8.088638241e-06 | K157: -2.3535456e-08 | L157: 9.204337031e-06 | N157: -0.0003958843141 | O157: -0.01628718734 | P157: -3.489164711e-05 | Q157: 0.002453927982 | R157: 4.658016773e-06
A158: 76.65284 | B158: ='DF raw data'!G163 -> -4.6534618e-07 | C158: ='DF raw data'!H163 -> 1.0395747e-05 | D158: ='DF raw data'!I163 -> -7.432669e-06 | F158: -4.659827736e-07 | G158: 1.043490318e-05 | H158: -7.442836891e-06 | J158: -4.284591614e-06 | K158: -1.287832092e-06 | L158: 4.393959925e-06 | N158: -0.0003980273383 | O158: -0.01648626867 | P158: -3.553578209e-05 | Q158: 0.00243615405 | R158: 4.737888196e-06
A159: 77.15301 | B159: ='DF raw data'!G164 -> 3.9091762e-07 | C159: ='DF raw data'!H164 -> 8.7018889e-06 | D159: ='DF raw data'!I164 -> -5.1880797e-06 | F159: 3.914523953e-07 | G159: 8.734665064e-06 | H159: -5.195176993e-06 | J159: -4.397494054e-06 | K159: -4.979203281e-06 | L159: -4.735221133e-06 | N159: -0.0004002268329 | O159: -0.01668645013 | P159: -3.80262302e-05 | Q159: 0.002417134471 | R159: 4.818729429e-06
A160: 77.65318 | B160: ='DF raw data'!G165 -> -6.6245184e-07 | C160: ='DF raw data'!H165 -> 3.8803651e-06 | D160: ='DF raw data'!I165 -> 1.9377383e-06 | F160: -6.633580741e-07 | G160: 3.894980718e-06 | H160: 1.940389126e-06 | J160: -5.916985378e-06 | K160: -4.79558577e-06 | L160: -5.057112679e-06 | N160: -0.0004031863314 | O160: -0.01688811183 | P160: -4.042483833e-05 | Q160: 0.002396915179 | R160: 4.900854035e-06
A161: 78.15335 | B161: ='DF raw data'!G166 -> -3.0590941e-06 | C161: ='DF raw data'!H166 -> 4.7661879e-06 | D161: ='DF raw data'!I166 -> -1.5507633e-06 | F161: -3.063278941e-06 | G161: 4.784140021e-06 | H161: -1.552884744e-06 | J161: -6.060022385e-06 | K161: -1.793283058e-06 | L161: -1.957117579e-06 | N161: -0.0004062173728 | O161: -0.01709128958 | P161: -4.132178472e-05 | Q161: 0.002376247262 | R161: 4.984242399e-06
A162: 78.65352 | B162: ='DF raw data'!G167 -> -2.3468797e-06 | C162: ='DF raw data'!H167 -> 1.0358388e-05 | D162: ='DF raw data'!I167 -> -4.0489995e-06 | F162: -2.350090231e-06 | G162: 1.039740346e-05 | H162: -4.054538531e-06 | J162: -4.513529473e-06 | K162: -4.866434725e-06 | L162: 8.811466118e-06 | N162: -0.0004084749049 | O162: -0.01729559647 | P162: -4.375582937e-05 | Q162: 0.002354361909 | R162: 5.06865425e-06
A163: 79.15369 | B163: ='DF raw data'!G168 -> 7.5577782e-07 | C163: ='DF raw data'!H168 -> 1.3631223e-05 | D163: ='DF raw data'!I168 -> 1.8278567e-06 | F163: 7.568117241e-07 | G163: 1.368256578e-05 | H163: 1.830357208e-06 | J163: -3.760967775e-06 | K163: -7.223597398e-06 | L163: 1.54960997e-05 | N163: -0.0004103560281 | O163: -0.01750084424 | P163: -4.736885608e-05 | Q163: 0.002330669428 | R163: 5.154001197e-06
A164: 79.65386 | B164: ='DF raw data'!G169 -> -1.0100825e-06 | C164: ='DF raw data'!H169 -> 1.0921183e-05 | D164: ='DF raw data'!I169 -> 7.3630927e-06 | F164: -1.011464293e-06 | G164: 1.096231826e-05 | H164: 7.373165411e-06 | J164: -6.904284658e-06 | K164: -6.639664334e-06 | L164: 9.721374472e-06 | N164: -0.0004138093442 | O164: -0.01770781926 | P164: -5.068981699e-05 | Q164: 0.002305315902 | R164: 5.24093456e-06
A165: 80.15403 | B165: ='DF raw data'!G170 -> -5.9451463e-06 | C165: ='DF raw data'!H170 -> -8.2544357e-06 | D165: ='DF raw data'!I170 -> 6.6005796e-06 | F165: -5.95327926e-06 | G165: -8.285526506e-06 | H165: 6.609609193e-06 | J165: -8.008558741e-06 | K165: -4.720661322e-07 | L165: 1.941019788e-06 | N165: -0.000417814985 | O165: -0.01791679779 | P165: -5.092593031e-05 | Q165: 0.00227984428 | R165: 5.329546083e-06
A166: 80.6542 | B166: ='DF raw data'!G171 -> -8.9017467e-06 | C166: ='DF raw data'!H171 -> 4.4848471e-07 | D166: ='DF raw data'!I171 -> 2.4075396e-06 | F166: -8.913924289e-06 | G166: 4.501739534e-07 | H166: 2.410833114e-06 | J166: -4.688449637e-06 | K166: -6.954533356e-06 | L166: -5.254517159e-06 | N166: -0.0004201600069 | O166: -0.01812694922 | P166: -5.440437926e-05 | Q166: 0.002252632841 | R166: 5.419323731e-06
A167: 81.15437 | B167: ='DF raw data'!G172 -> -5.920248e-06 | C167: ='DF raw data'!H172 -> 6.8162967e-06 | D167: ='DF raw data'!I172 -> -2.8210547e-07 | F167: -5.928346899e-06 | G167: 6.841970673e-06 | H167: -2.824913903e-07 | J167: -1.806740645e-06 | K167: -1.405026455e-05 | L167: -6.016936725e-06 | N167: -0.0004210636843 | O167: -0.01833755264 | P167: -6.143190008e-05 | Q167: 0.002221906448 | R167: 5.509888765e-06
A168: 81.65454 | B168: ='DF raw data'!G173 -> -9.441785e-08 | C168: ='DF raw data'!H173 -> -3.5911562e-06 | D168: ='DF raw data'!I173 -> -7.6755987e-06 | F168: -9.454701362e-08 | G168: -3.604682496e-06 | H168: -7.686098919e-06 | J168: -1.122491571e-06 | K168: -7.902487883e-06 | L168: -1.723123212e-06 | N168: -0.0004216251209 | O168: -0.01854843688 | P168: -6.538448744e-05 | Q168: 0.002189203089 | R168: 5.600941149e-06
A169: 82.15471 | B169: ='DF raw data'!G174 -> 2.6311704e-06 | C169: ='DF raw data'!H174 -> -5.0337708e-06 | D169: ='DF raw data'!I174 -> -5.7461311e-06 | F169: 2.634769841e-06 | G169: -5.052730787e-06 | H169: -5.753991807e-06 | J169: -2.803336726e-06 | K169: -9.33258953e-06 | L169: -9.578402554e-07 | N169: -0.0004230272659 | O169: -0.01876002242 | P169: -7.005236875e-05 | Q169: 0.002154164996 | R169: 5.692902106e-06
A170: 82.65488 | B170: ='DF raw data'!G175 -> 1.7014049e-06 | C170: ='DF raw data'!H175 -> 5.2174387e-06 | D170: ='DF raw data'!I175 -> -5.2393898e-06 | F170: 1.703732422e-06 | G170: 5.237090483e-06 | H170: -5.246557285e-06 | J170: -6.317156765e-06 | K170: -1.33369539e-05 | L170: -1.602497722e-06 | N170: -0.0004261869182 | O170: -0.01897318833 | P170: -7.672311298e-05 | Q170: 0.002115790396 | R170: 5.786694848e-06
A171: 83.15505 | B171: ='DF raw data'!G176 -> 1.2965706e-06 | C171: ='DF raw data'!H176 -> 9.8928604e-06 | D171: ='DF raw data'!I176 -> -4.5801735e-06 | F171: 1.298344309e-06 | G171: 9.930122427e-06 | H171: -4.586439177e-06 | J171: -1.061087485e-05 | K171: -4.282634961e-06 | L171: -2.147053957e-06 | N171: -0.0004314941594 | O171: -0.01918900877 | P171: -7.886515851e-05 | Q171: 0.00207634441 | R171: 5.882931018e-06
A172: 83.65522 | B172: ='DF raw data'!G177 -> 2.0372922e-06 | C172: ='DF raw data'!H177 -> 9.745957e-06 | D172: ='DF raw data'!I177 -> -5.5704209e-07 | F172: 2.040079216e-06 | G172: 9.782665707e-06 | H172: -5.578041236e-07 | J172: -1.193405448e-05 | K172: -1.370057436e-05 | L172: -5.912974098e-06 | N172: -0.0004374632155 | O172: -0.01940781474 | P172: -8.571777479e-05 | Q172: 0.00203347095 | R172: 5.982325602e-06
A173: 84.15539 | B173: ='DF raw data'!G178 -> 9.2597702e-07 | C173: ='DF raw data'!H178 -> 1.6007827e-05 | D173: ='DF raw data'!I178 -> 6.2743984e-06 | F173: 9.272437566e-07 | G173: 1.60681214e-05 | H173: 6.282981777e-06 | J173: -6.988240253e-06 | K173: -1.518049766e-05 | L173: -8.599100098e-06 | N173: -0.0004409585236 | O173: -0.01962836897 | P173: -9.33106043e-05 | Q173: 0.001986799785 | R173: 6.083935782e-06
A174: 84.65556 | B174: ='DF raw data'!G179 -> -1.06234e-07 | C174: ='DF raw data'!H179 -> 1.6752083e-05 | D174: ='DF raw data'!I179 -> 4.9324717e-06 | F174: -1.063793281e-07 | G174: 1.681518068e-05 | H174: 4.939219321e-06 | J174: -1.090535615e-06 | K174: -4.677727716e-06 | L174: -6.165489167e-06 | N174: -0.0004415039768 | O174: -0.01984919601 | P174: -9.565026337e-05 | Q174: 0.001938958393 | R174: 6.186007842e-06
A175: 85.15573 | B175: ='DF raw data'!G180 -> -8.1884127e-07 | C175: ='DF raw data'!H180 -> 1.4846344e-05 | D175: ='DF raw data'!I180 -> -3.5670839e-06 | F175: -8.199614449e-07 | G175: 1.490226361e-05 | H175: -3.571963671e-06 | J175: -4.185268425e-07 | K175: -1.460982325e-05 | L175: -1.998035178e-06 | N175: -0.0004417133114 | O175: -0.02007012776 | P175: -0.0001029576587 | Q175: 0.001887462061 | R175: 6.288898277e-06
A176: 85.6559 | B176: ='DF raw data'!G181 -> -3.2138828e-06 | C176: ='DF raw data'!H181 -> 1.079763e-05 | D176: ='DF raw data'!I181 -> -7.3347783e-06 | F176: -3.218279392e-06 | G176: 1.083829989e-05 | H176: -7.344812277e-06 | J176: -1.930994592e-06 | K176: -1.074621736e-05 | L176: -3.924244132e-07 | N176: -0.0004426791369 | O176: -0.02029154258 | P176: -0.0001083325942 | Q176: 0.001833277347 | R176: 6.392783971e-06
A177: 86.15607 | B177: ='DF raw data'!G182 -> -5.7936172e-06 | C177: ='DF raw data'!H182 -> 1.5727897e-05 | D177: ='DF raw data'!I182 -> -2.1896797e-06 | F177: -5.801542868e-06 | G177: 1.578713703e-05 | H177: -2.192675182e-06 | J177: -8.272519146e-07 | K177: 9.700891556e-07 | L177: 3.683340025e-07 | N177: -0.0004430929035 | O177: -0.02051316436 | P177: -0.0001078473847 | Q177: 0.001779335321 | R177: 6.496800514e-06
A178: 86.65624 | B178: ='DF raw data'!G183 -> -4.6896507e-06 | C178: ='DF raw data'!H183 -> 1.8626468e-05 | D178: ='DF raw data'!I183 -> 4.2767115e-06 | F178: -4.696066142e-06 | G178: 1.869662566e-05 | H178: 4.282562041e-06 | J178: 3.550414932e-06 | K178: -8.790786355e-07 | L178: -4.733749322e-06 | N178: -0.0004413170925 | O178: -0.02073389793 | P178: -0.0001082870735 | Q178: 0.001725173376 | R178: 6.60007905e-06
A179: 87.15641 | B179: ='DF raw data'!G184 -> -7.6064816e-07 | C179: ='DF raw data'!H184 -> 7.6279339e-06 | D179: ='DF raw data'!I184 -> 3.0834033e-06 | F179: -7.616887267e-07 | G179: 7.656664951e-06 | H179: 3.087621396e-06 | J179: 5.926408852e-06 | K179: -8.465662051e-06 | L179: -7.130843267e-06 | N179: -0.0004383528806 | O179: -0.02095314889 | P179: -0.0001125213437 | Q179: 0.001668893575 | R179: 6.702521019e-06
A180: 87.65658 | B180: ='DF raw data'!G185 -> -2.1530336e-06 | C180: ='DF raw data'!H185 -> 1.3207458e-05 | D180: ='DF raw data'!I185 -> 2.9940836e-06 | F180: -2.15597895e-06 | G180: 1.325720465e-05 | H180: 2.998179506e-06 | J180: 3.236188157e-06 | K180: -6.424439218e-06 | L180: -4.927222632e-07 | N180: -0.0004367342363 | O180: -0.02117159025 | P180: -0.0001157346554 | Q180: 0.001611006572 | R180: 6.804621373e-06
A181: 88.15675 | B181: ='DF raw data'!G186 -> -6.6724365e-06 | C181: ='DF raw data'!H186 -> 4.2263414e-06 | D181: ='DF raw data'!I186 -> 1.9545093e-06 | F181: -6.681564393e-06 | G181: 4.242260158e-06 | H181: 1.957183069e-06 | J181: 2.156576366e-06 | K181: -8.178249156e-06 | L181: 5.557592801e-06 | N181: -0.0004356555815 | O181: -0.02138949211 | P181: -0.0001198251703 | Q181: 0.001551073617 | R181: 6.906733008e-06
A182: 88.65692 | B182: ='DF raw data'!G187 -> -7.9832735e-06 | C182: ='DF raw data'!H187 -> 1.0771171e-07 | D182: ='DF raw data'!I187 -> -1.5485004e-06 | F182: -7.994194618e-06 | G182: 1.081174123e-07 | H182: -1.550618749e-06 | J182: 4.089557772e-06 | K182: -9.806030983e-06 | L182: 3.038940992e-06 | N182: -0.0004336101074 | O182: -0.02160637087 | P182: -0.0001247298528 | Q182: 0.001488687487 | R182: 7.008555246e-06
A183: 89.15709 | B183: ='DF raw data'!G188 -> -6.0317739e-06 | C183: ='DF raw data'!H188 -> 3.1994862e-06 | D183: ='DF raw data'!I188 -> -2.4174972e-06 | F183: -6.040025367e-06 | G183: 3.211537249e-06 | H183: -2.420804336e-06 | J183: 4.094424721e-06 | K183: -3.127222865e-06 | L183: -1.119718582e-06 | N183: -0.000431562199 | O183: -0.02182222534 | P183: -0.0001262939959 | Q183: 0.001425519019 | R183: 7.109687672e-06
A184: 89.65726 | B184: ='DF raw data'!G189 -> -4.8603883e-06 | C184: ='DF raw data'!H189 -> 2.3215352e-06 | D184: ='DF raw data'!I189 -> -9.6881035e-07 | F184: -4.867037311e-06 | G184: 2.330279396e-06 | H184: -9.701356826e-07 | J184: 1.775260939e-06 | K184: -1.001844375e-05 | L184: 2.324965408e-06 | N184: -0.0004306742667 | O184: -0.02203763569 | P184: -0.0001313049209 | Q184: 0.001359844236 | R184: 7.211082788e-06
A185: 90.15743 | B185: ='DF raw data'!G190 -> -5.9028876e-06 | C185: ='DF raw data'!H190 -> 5.5989071e-06 | D185: ='DF raw data'!I190 -> 1.6801766e-06 | F185: -5.91096275e-06 | G185: 5.619995705e-06 | H185: 1.682475082e-06 | J185: -3.293882576e-06 | K185: -6.834264255e-06 | L185: 5.731857269e-06 | N185: -0.000432321768 | O185: -0.02225387007 | P185: -0.0001347232148 | Q185: 0.001292459726 | R185: 7.313643875e-06
A186: 90.6576 | B186: ='DF raw data'!G191 -> -7.9643123e-06 | C186: ='DF raw data'!H191 -> 7.0996957e-06 | D186: ='DF raw data'!I191 -> 2.8476622e-06 | F186: -7.975207479e-06 | G186: 7.126437112e-06 | H186: 2.851557802e-06 | J186: -7.508323154e-06 | K186: -1.101983609e-05 | L186: 5.135126556e-06 | N186: -0.000436077206 | O186: -0.0224719828 | P186: -0.0001402350063 | Q186: 0.001222318383 | R186: 7.418594139e-06
A187: 91.15777 | B187: ='DF raw data'!G192 -> -8.4654657e-06 | C187: ='DF raw data'!H192 -> 1.2215427e-05 | D187: ='DF raw data'!I192 -> -3.4408315e-06 | F187: -8.477046457e-06 | G187: 1.226143711e-05 | H187: -3.445538557e-06 | J187: -6.633452766e-06 | K187: -1.266569807e-05 | L187: 1.984276181e-06 | N187: -0.0004393950601 | O187: -0.02269175503 | P187: -0.0001465700085 | Q187: 0.001149008462 | R187: 7.525906006e-06
A188: 91.65794 | B188: ='DF raw data'!G193 -> -6.2321683e-06 | C188: ='DF raw data'!H193 -> 7.1846889e-06 | D188: ='DF raw data'!I193 -> -1.0610167e-05 | F188: -6.240693906e-06 | G188: 7.211750443e-06 | H188: -1.062468171e-05 | J188: -5.047849124e-06 | K188: -1.389276253e-05 | L188: -2.414346914e-08 | N188: -0.0004419198427 | O188: -0.02291279008 | P188: -0.0001535187515 | Q188: 0.001072222988 | R188: 7.635373789e-06
A189: 92.15811 | B189: ='DF raw data'!G194 -> -3.2610747e-06 | C189: ='DF raw data'!H194 -> 3.6041708e-06 | D189: ='DF raw data'!I194 -> -7.6039887e-06 | F189: -3.26553585e-06 | G189: 3.617746116e-06 | H189: -7.614390957e-06 | J189: -7.100596246e-06 | K189: -8.192579329e-06 | L189: -3.822646136e-06 | N189: -0.000445471348 | O189: -0.02313560148 | P189: -0.0001576164339 | Q189: 0.0009933879761 | R189: 7.747055579e-06
A190: 92.65828 | B190: ='DF raw data'!G195 -> -1.699334e-06 | C190: ='DF raw data'!H195 -> -5.569214e-06 | D190: ='DF raw data'!I195 -> 1.1979262e-06 | F190: -1.701658689e-06 | G190: -5.590190764e-06 | H190: 1.199564963e-06 | J190: -1.020829187e-05 | K190: -1.147921488e-05 | L190: -8.097734667e-06 | N190: -0.0004505772293 | O190: -0.02336096669 | P190: -0.0001633579928 | Q190: 0.0009116812088 | R190: 7.861947466e-06
A191: 93.15845 | B191: ='DF raw data'!G196 -> -2.5975946e-06 | C191: ='DF raw data'!H196 -> 3.0652584e-06 | D191: ='DF raw data'!I196 -> 1.0445854e-06 | F191: -2.601148109e-06 | G191: 3.076803872e-06 | H191: 1.046014393e-06 | J191: -8.13255043e-06 | K191: -7.383644262e-06 | L191: -5.143887825e-06 | N191: -0.0004546448871 | O191: -0.02358836643 | P191: -0.0001670510702 | Q191: 0.0008281272751 | R191: 7.979291366e-06
A192: 93.65862 | B192: ='DF raw data'!G197 -> -1.9521881e-06 | C192: ='DF raw data'!H197 -> 1.2714578e-05 | D192: ='DF raw data'!I197 -> -7.3967403e-06 | F192: -1.954858693e-06 | G192: 1.276246819e-05 | H192: -7.406859041e-06 | J192: -4.59393682e-06 | K192: 3.176313775e-06 | L192: 3.653667889e-06 | N192: -0.0004569426364 | O192: -0.02381691543 | P192: -0.0001654623733 | Q192: 0.0007453679598 | R192: 8.097418701e-06
A193: 94.15879 | B193: ='DF raw data'!G198 -> 2.6363655e-06 | C193: ='DF raw data'!H198 -> 1.2789164e-05 | D193: ='DF raw data'!I198 -> -6.1252231e-06 | F193: 2.639972048e-06 | G193: 1.283733512e-05 | H193: -6.133602405e-06 | J193: -4.195499502e-06 | K193: -3.461779463e-06 | L193: 6.187183003e-06 | N193: -0.0004590410994 | O193: -0.02404651401 | P193: -0.0001671938515 | Q193: 0.0006617426111 | R193: 8.216795532e-06
A194: 94.65896 | B194: ='DF raw data'!G199 -> 7.950026e-06 | C194: ='DF raw data'!H199 -> 1.7537035e-05 | D194: ='DF raw data'!I199 -> 1.3197184e-06 | F194: 7.960901636e-06 | G194: 1.760308925e-05 | H194: 1.321523775e-06 | J194: -3.525283099e-06 | K194: -4.612905777e-06 | L194: -4.795274774e-07 | N194: -0.0004608043403 | O194: -0.02427699452 | P194: -0.0001695010886 | Q194: 0.0005769632516 | R194: 8.337372144e-06
A195: 95.15913 | B195: ='DF raw data'!G200 -> 1.0426435e-05 | C195: ='DF raw data'!H200 -> 1.4639399e-05 | D195: ='DF raw data'!I200 -> 2.611994e-06 | F195: 1.044069836e-05 | G195: 1.469453914e-05 | H195: 2.615567208e-06 | J195: -2.370815945e-06 | K195: 2.125366977e-06 | L195: -8.085268437e-06 | N195: -0.0004619901513 | O195: -0.02450806813 | P195: -0.0001684380438 | Q195: 0.0004927155952 | R195: 8.458316388e-06
A196: 95.6593 | B196: ='DF raw data'!G201 -> 9.913465e-06 | C196: ='DF raw data'!H201 -> 1.8464887e-05 | D196: ='DF raw data'!I201 -> 1.1766222e-06 | F196: 9.92702662e-06 | G196: 1.853443606e-05 | H196: 1.178231819e-06 | J196: -3.997643305e-06 | K196: 2.225144786e-06 | L196: -3.489555891e-06 | N196: -0.0004639896525 | O196: -0.02474014184 | P196: -0.0001673250931 | Q196: 0.0004090246034 | R196: 8.579999789e-06
A197: 96.15947 | B197: ='DF raw data'!G202 -> 6.4103174e-06 | C197: ='DF raw data'!H202 -> 2.4063092e-05 | D197: ='DF raw data'!I202 -> 8.2541897e-07 | F197: 6.419086714e-06 | G197: 2.415372702e-05 | H197: 8.265481432e-07 | J197: -7.327858416e-06 | K197: -6.132338533e-06 | L197: 7.481437625e-06 | N197: -0.0004676548275 | O197: -0.02497404875 | P197: -0.0001703923049 | Q197: 0.0003237994842 | R197: 8.703909191e-06
A198: 96.65964 | B198: ='DF raw data'!G203 -> 1.345436e-06 | C198: ='DF raw data'!H203 -> 1.9376863e-05 | D198: ='DF raw data'!I203 -> 5.9867102e-07 | F198: 1.347276556e-06 | G198: 1.944984707e-05 | H198: 5.99490002e-07 | J198: -8.222983073e-06 | K198: -1.03609025e-05 | L198: 1.89677244e-06 | N198: -0.0004717677169 | O198: -0.02521001281 | P198: -0.0001755745175 | Q198: 0.0002359823778 | R198: 8.830647863e-06
A199: 97.15981 | B199: ='DF raw data'!G204 -> -3.4003801e-06 | C199: ='DF raw data'!H204 -> 1.4869827e-05 | D199: ='DF raw data'!I204 -> -2.8404486e-06 | F199: -3.40503182e-06 | G199: =(1-$G$1*($B$2-$G$2))*C199*$M$2/$M$1 -> 1.492583506e-05 | H199: -2.844334334e-06 | J199: =-CELL("contents", INDEX($F$6:$F$1203,1204-CELL("row",F199))) -> -6.69721177e-06 | K199: =CELL("contents", INDEX($G$6:$G$1203,1204-CELL("row",G199))) -> -7.151008414e-06 | L199: =-CELL("contents", INDEX($H$6:$H$1203,1204-CELL("row",H199))) -> -1.623022061e-06 | N199: -0.0004751174613 | O199: -0.02544765231 | P199: -0.0001791512374 | Q199: 0.0001463763034 | R199: 8.959607578e-06
A200: =A199+$B$1 -> 97.65998 | B200: ='DF raw data'!G205 -> -4.4771928e-06 | C200: ='DF raw data'!H205 -> 9.597853e-06 | D200: ='DF raw data'!I205 -> -9.2249161e-07 | F200: -4.4833176e-06 | G200: 9.634003865e-06 | H200: -9.237535785e-07 | J200: -6.310410048e-06 | K200: -1.162626969e-05 | L200: 1.427858442e-06 | N200: =J200*$B$1+N199 -> -0.0004782737391 | O200: =N200*$B$1+O199 -> -0.02568687049 | P200: =K200*$B$1+P199 -> -0.0001849663487 | Q200: =P200*$B$1+Q199 -> 5.386168476e-05 | R200: =(N200^2+P200^2)*$B$1+R199 -> 9.091131441e-06
... 1003 more rows

Sheet 10 y=0.1
A1: dz | B1: ='DF raw data'!K7 -> 0.50016 | C1: mm | F1: T_coeff | G1: -0.0008 | H1: /degC | L1: Hallref | M1: ='PI vs y'!B44 -> 0.50516 | N1: T | P1: IBy total | Q1: =P1203*1000 -> -14.48782721 | R1: muTm
A2: Tref | B2: ='DF raw data'!K8 -> 21.77 | C2: degC | F2: Tcorr | G2: 20 | H2: degC | L2: NMRref | M2: ='PI vs y'!B45 -> 0.50637 | N2: T | P2: JBy total | Q2: =Q1203 -> -7.689134116 | R2: muTm^2
A3: Encoder | B3: ='DF raw data'!K9 -> 391240 | P3: PI total | Q3: =R1203 -> 4586.09963 | R3: T^2mm^3
J4: SXR-rotation
A5: z [mm] | B5: Bx | C5: By | D5: Bz | F5: Bx_corr | G5: By_corr | H5: Bz_corr | J5: Bx_rot | K5: By_rot | L5: Bz_rot | N5: Ix | O5: Jx | P5: Iy | Q5: Jy | R5: PI
A6: ='PI vs y'!B53 -> 0.627 | B6: ='DF raw data'!J11 -> -3.1716907e-06 | C6: ='DF raw data'!K11 -> -3.6824674e-06 | D6: ='DF raw data'!L11 -> 2.1324944e-07 | F6: =(1-$G$1*($B$2-$G$2))*B6 -> -3.176181814e-06 | G6: =(1-$G$1*($B$2-$G$2))*C6*$M$2/$M$1 -> -3.696514807e-06 | H6: =(1-$G$1*($B$2-$G$2))*D6 -> 2.135514012e-07 | J6: =-CELL("contents", INDEX($F$6:$F$1203,1204-CELL("row",F6))) -> -1.399764664e-06 | K6: =CELL("contents", INDEX($G$6:$G$1203,1204-CELL("row",G6))) -> 7.106239762e-06 | L6: =-CELL("contents", INDEX($H$6:$H$1203,1204-CELL("row",H6))) -> 7.095573425e-06 | N6: =J6*$B$1 -> -7.001062944e-07 | O6: =N6*$B$1 -> -3.501651642e-07 | P6: =K6*$B$1 -> 3.554256879e-06 | Q6: =P6*$B$1 -> 1.777697121e-06 | R6: =(N6^2+P6^2)*$B$1 -> 6.563545056e-12
A7: =A6+$B$1 -> 1.12716 | B7: ='DF raw data'!J12 -> -3.3942913e-06 | C7: ='DF raw data'!K12 -> 3.2207879e-06 | D7: ='DF raw data'!L12 -> 5.3953463e-06 | F7: =(1-$G$1*($B$2-$G$2))*B7 -> -3.399097616e-06 | G7: =(1-$G$1*($B$2-$G$2))*C7*$M$2/$M$1 -> 3.233074151e-06 | H7: 5.40298611e-06 | J7: =-CELL("contents", INDEX($F$6:$F$1203,1204-CELL("row",F7))) -> -5.503444959e-06 | K7: =CELL("contents", INDEX($G$6:$G$1203,1204-CELL("row",G7))) -> 1.054558608e-05 | L7: =-CELL("contents", INDEX($H$6:$H$1203,1204-CELL("row",H7))) -> 7.358826064e-06 | N7: =J7*$B$1+N6 -> -3.452709325e-06 | O7: =N7*$B$1+O6 -> -2.07707226e-06 | P7: =K7*$B$1+P6 -> 8.828737215e-06 | Q7: =P7*$B$1+Q6 -> 6.193478326e-06 | R7: =(N7^2+P7^2)*$B$1+R6 -> 5.151182515e-11
A8: =A7+$B$1 -> 1.62732 | B8: ='DF raw data'!J13 -> -3.0866493e-06 | C8: ='DF raw data'!K13 -> -4.5281286e-06 | D8: ='DF raw data'!L13 -> 9.7318753e-06 | F8: -3.091019995e-06 | G8: -4.545401927e-06 | H8: 9.745655635e-06 | J8: -3.937831685e-06 | K8: 6.100111297e-06 | L8: 7.755388102e-06 | N8: =J8*$B$1+N7 -> -5.422255221e-06 | O8: =N8*$B$1+O7 -> -4.789067431e-06 | P8: =K8*$B$1+P7 -> 1.187976888e-05 | Q8: =P8*$B$1+Q7 -> 1.213526353e-05 | R8: =(N8^2+P8^2)*$B$1+R7 -> 1.368039901e-10
A9: 2.12748 | B9: ='DF raw data'!J14 -> -3.4428947e-06 | C9: ='DF raw data'!K14 -> 4.3957475e-06 | D9: ='DF raw data'!L14 -> 5.3594104e-06 | F9: -3.447769839e-06 | G9: 4.412515837e-06 | H9: 5.366999325e-06 | J9: -1.178437208e-06 | K9: 6.142837162e-06 | L9: 7.934936082e-06 | N9: -6.011662375e-06 | O9: -7.795860485e-06 | P9: 1.495217032e-05 | Q9: 1.961374103e-05 | R9: 2.666992841e-10
A10: 2.62764 | B10: ='DF raw data'!J15 -> -2.8937491e-06 | C10: ='DF raw data'!K15 -> -1.2317741e-05 | D10: ='DF raw data'!L15 -> -5.165648e-06 | F10: -2.897846649e-06 | G10: -1.236472915e-05 | H10: -5.172962558e-06 | J10: -2.594649028e-07 | K10: 3.529474826e-06 | L10: 7.673607063e-06 | N10: -6.14143634e-06 | O10: -1.086756128e-05 | P10: 1.671747244e-05 | Q10: 2.797515205e-05 | R10: 4.253455973e-10
A11: 3.1278 | B11: ='DF raw data'!J16 -> -3.0276412e-06 | C11: ='DF raw data'!K16 -> -7.9242509e-06 | D11: ='DF raw data'!L16 -> -1.3650804e-06 | F11: -3.03192834e-06 | G11: -7.954479321e-06 | H11: -1.367013354e-06 | J11: -3.150405266e-06 | K11: -3.144927177e-07 | L11: 6.973936631e-06 | N11: -7.717143038e-06 | O11: -1.472736755e-05 | P11: 1.656017577e-05 | Q11: 3.625788956e-05 | R11: 5.922958634e-10
A12: 3.62796 | B12: ='DF raw data'!J17 -> -3.2092055e-06 | C12: ='DF raw data'!K17 -> -2.1268395e-06 | D12: ='DF raw data'!L17 -> 3.3237213e-06 | F12: -3.213749735e-06 | G12: -2.134952696e-06 | H12: 3.328427689e-06 | J12: -6.691324017e-06 | K12: 5.679551696e-06 | L12: 6.610497929e-06 | N12: -1.106387566e-05 | O12: -2.02610756e-05 | P12: 1.940086034e-05 | Q12: 4.596142387e-05 | R12: 8.417770351e-10
A13: 4.12812 | B13: ='DF raw data'!J18 -> -3.2585947e-06 | C13: ='DF raw data'!K18 -> -1.0079196e-06 | D13: ='DF raw data'!L18 -> 2.0168648e-06 | F13: -3.26320887e-06 | G13: -1.011764483e-06 | H13: 2.019720681e-06 | J13: -7.049545742e-06 | K13: 1.116450508e-05 | L13: 7.135356478e-06 | N13: -1.458977646e-05 | O13: -2.755829819e-05 | P13: 2.498489921e-05 | Q13: 5.845787106e-05 | R13: 1.260464355e-09
A14: 4.62828 | B14: ='DF raw data'!J19 -> -3.3653912e-06 | C14: ='DF raw data'!K19 -> 9.6693577e-07 | D14: ='DF raw data'!L19 -> -3.5620267e-06 | F14: -3.370156594e-06 | G14: 9.706243132e-07 | H14: -3.56707053e-06 | J14: -5.626101896e-06 | K14: 8.392294898e-06 | L14: 7.721404949e-06 | N14: -1.740372758e-05 | O14: -3.626294658e-05 | P14: 2.918238942e-05 | Q14: 7.305373495e-05 | R14: 1.837899868e-09
A15: 5.12844 | B15: ='DF raw data'!J20 -> -3.4637767e-06 | C15: ='DF raw data'!K20 -> 3.5643629e-06 | D15: ='DF raw data'!L20 -> -4.1650728e-06 | F15: -3.468681408e-06 | G15: 3.577959777e-06 | H15: -4.170970543e-06 | J15: -5.433788365e-06 | K15: 4.275133961e-07 | L15: 7.684536518e-06 | N15: -2.012149117e-05 | O15: -4.63269116e-05 | P15: 2.939621452e-05 | Q15: 8.775654561e-05 | R15: 2.472608828e-09
A16: 5.6286 | B16: ='DF raw data'!J21 -> -3.5324617e-06 | C16: ='DF raw data'!K21 -> 5.1406714e-06 | D16: ='DF raw data'!L21 -> -5.7174566e-06 | F16: -3.537463666e-06 | G16: 5.160281377e-06 | H16: -5.725552519e-06 | J16: -6.271489672e-06 | K16: 9.348196693e-06 | L16: 7.74139842e-06 | N16: -2.325823944e-05 | O16: -5.795975264e-05 | P16: 3.407180858e-05 | Q16: 0.0001047979014 | R16: 3.323798042e-09
A17: 6.12876 | B17: ='DF raw data'!J22 -> -3.8681451e-06 | C17: ='DF raw data'!K22 -> 1.408683e-05 | D17: ='DF raw data'!L22 -> -6.2313866e-06 | F17: -3.873622393e-06 | G17: 1.414056664e-05 | H17: -6.240210243e-06 | J17: -5.155788373e-06 | K17: 2.701883332e-06 | L17: 8.013715175e-06 | N17: -2.583695856e-05 | O17: -7.088236583e-05 | P17: 3.542318255e-05 | Q17: 0.0001225151604 | R17: 4.285280763e-09
A18: 6.62892 | B18: ='DF raw data'!J23 -> -3.4649117e-06 | C18: ='DF raw data'!K23 -> 3.0393269e-06 | D18: ='DF raw data'!L23 -> -6.0737893e-06 | F18: -3.469818015e-06 | G18: 3.050920937e-06 | H18: -6.082389786e-06 | J18: -4.515092931e-06 | K18: -1.160969388e-06 | L18: 8.03404382e-06 | N18: -2.809522744e-05 | O18: -8.493447479e-05 | P18: 3.48425121e-05 | Q18: 0.0001399419912 | R18: 5.287272525e-09
A19: 7.12908 | B19: ='DF raw data'!J24 -> -3.0647486e-06 | C19: ='DF raw data'!K24 -> -7.4018835e-06 | D19: ='DF raw data'!L24 -> -3.9436509e-06 | F19: -3.069088284e-06 | G19: -7.430119261e-06 | H19: -3.94923511e-06 | J19: -4.755189728e-06 | K19: 5.210008951e-07 | L19: 7.623361016e-06 | N19: -3.047358313e-05 | O19: -0.0001001761421 | P19: 3.510309591e-05 | Q19: 0.0001574991557 | R19: 6.368051569e-09
A20: 7.62924 | B20: ='DF raw data'!J25 -> -3.3262174e-06 | C20: ='DF raw data'!K25 -> 8.6046123e-07 | D20: ='DF raw data'!L25 -> 1.8052217e-06 | F20: -3.330927324e-06 | G20: 8.637436077e-07 | H20: 1.807777894e-06 | J20: -5.302242159e-06 | K20: -6.386889805e-06 | L20: 7.071907662e-06 | N20: -3.312555257e-05 | O20: -0.0001167442185 | P20: 3.19086291e-05 | Q20: 0.0001734585756 | R20: 7.426121465e-09
A21: 8.1294 | B21: ='DF raw data'!J26 -> -3.6000117e-06 | C21: ='DF raw data'!K26 -> 9.8896116e-06 | D21: ='DF raw data'!L26 -> 1.1333037e-05 | F21: -3.605109317e-06 | G21: 9.927337229e-06 | H21: 1.134908458e-05 | J21: -3.770174518e-06 | K21: 3.670107755e-06 | L21: 7.112565051e-06 | N21: -3.501124306e-05 | O21: -0.0001342554418 | P21: 3.37442702e-05 | Q21: 0.0001903361098 | R21: 8.608731235e-09
A22: 8.62956 | B22: ='DF raw data'!J27 -> 3.1670905e-07 | C22: ='DF raw data'!K27 -> 1.8927834e-05 | D22: ='DF raw data'!L27 -> 4.7576959e-06 | F22: 3.1715751e-07 | G22: 1.900003749e-05 | H22: 4.764432797e-06 | J22: -7.36467193e-07 | K22: 1.809868419e-06 | L22: 7.467930537e-06 | N22: -3.537959449e-05 | O22: -0.0001519508998 | P22: 3.464949398e-05 | Q22: 0.0002076664007 | R22: 9.835275173e-09
A23: 9.12972 | B23: ='DF raw data'!J28 -> 8.6694645e-06 | C23: ='DF raw data'!K28 -> -4.7904468e-06 | D23: ='DF raw data'!L28 -> -7.9490724e-07 | F23: =(1-$G$1*($B$2-$G$2))*B23 -> 8.681740462e-06 | G23: -4.808720785e-06 | H23: -7.960328287e-07 | J23: 3.658794527e-06 | K23: -4.061490679e-06 | L23: 6.634236596e-06 | N23: -3.354961182e-05 | O23: -0.0001687310737 | P23: 3.261809881e-05 | Q23: 0.000223980669 | R23: 1.093038391e-08
A24: 9.62988 | B24: ='DF raw data'!J29 -> 8.5944348e-06 | C24: ='DF raw data'!K29 -> 2.6553234e-06 | D24: ='DF raw data'!L29 -> 1.3237061e-06 | F24: 8.60660452e-06 | G24: 2.665452589e-06 | H24: 1.325580468e-06 | J24: 6.728131463e-06 | K24: -2.393851055e-06 | L24: -3.496048104e-06 | N24: -3.018446958e-05 | O24: -0.000183828138 | P24: 3.142079026e-05 | Q24: 0.0002396960914 | R24: 1.187987178e-08
A25: 10.13004 | B25: ='DF raw data'!J30 -> 8.0721957e-06 | C25: ='DF raw data'!K30 -> 3.4740326e-06 | D25: ='DF raw data'!L30 -> -2.8863813e-06 | F25: 8.083625929e-06 | G25: 3.487284896e-06 | H25: -2.890468416e-06 | J25: 5.64820565e-06 | K25: 9.51307255e-06 | L25: -3.605546034e-06 | N25: -2.735946305e-05 | O25: -0.000197512247 | P25: 3.617884863e-05 | Q25: 0.0002577913044 | R25: 1.290892562e-08
A26: 10.6302 | B26: ='DF raw data'!J31 -> 6.3132188e-06 | C26: ='DF raw data'!K31 -> 6.1615594e-07 | D26: ='DF raw data'!L31 -> -3.3557824e-06 | F26: 6.322158318e-06 | G26: 6.185063731e-07 | H26: -3.360534188e-06 | J26: 8.568193607e-07 | K26: 9.925997939e-06 | L26: 3.896191106e-06 | N26: -2.693091628e-05 | O26: -0.0002109820141 | P26: 4.114343576e-05 | Q26: 0.0002783696052 | R26: 1.411834079e-08
A27: 11.13036 | B27: ='DF raw data'!J32 -> 3.2073597e-06 | C27: ='DF raw data'!K32 -> 1.5710239e-05 | D27: ='DF raw data'!L32 -> -8.5774241e-07 | F27: 3.211901321e-06 | G27: 1.577016842e-05 | H27: -8.589569733e-07 | J27: -3.109223335e-06 | K27: 7.920705073e-06 | L27: -1.999792702e-06 | N27: -2.848602542e-05 | O27: -0.0002252295846 | P27: 4.510505561e-05 | Q27: 0.0003009293498 | R27: 1.554175598e-08
A28: 11.63052 | B28: ='DF raw data'!J33 -> 6.0449821e-08 | C28: ='DF raw data'!K33 -> 7.9435758e-06 | D28: ='DF raw data'!L33 -> 5.3978129e-06 | F28: 6.053541795e-08 | G28: 7.97387794e-06 | H28: 5.405456203e-06 | J28: -3.686892558e-06 | K28: 1.547085798e-06 | L28: -1.465003712e-05 | N28: -3.03300616e-05 | O28: -0.0002403994682 | P28: 4.587884604e-05 | Q28: 0.0003238761135 | R28: 1.705463052e-08
A29: 12.13068 | B29: ='DF raw data'!J34 -> -3.5249238e-06 | C29: ='DF raw data'!K34 -> -1.7612496e-06 | D29: ='DF raw data'!L34 -> 2.8112538e-06 | F29: -3.529915092e-06 | G29: -1.76796819e-06 | H29: 2.815234535e-06 | J29: -5.906914364e-06 | K29: -1.259680407e-06 | L29: -1.329708104e-05 | N29: -3.328446389e-05 | O29: -0.0002570470256 | P29: 4.524880429e-05 | Q29: 0.0003465077554 | R29: 1.863279028e-08
A30: 12.63084 | B30: ='DF raw data'!J35 -> -2.6146579e-06 | C30: ='DF raw data'!K35 -> 4.7231779e-06 | D30: ='DF raw data'!L35 -> -2.0370733e-06 | F30: -2.618360256e-06 | G30: 4.741195276e-06 | H30: -2.039957796e-06 | J30: -5.217488417e-06 | K30: -2.412200687e-06 | L30: -9.310243263e-06 | N30: -3.58940429e-05 | O30: -0.0002749997901 | P30: 4.404231799e-05 | Q30: 0.0003685359612 | R30: 2.024736083e-08
A31: 13.131 | B31: ='DF raw data'!J36 -> -3.7367747e-07 | C31: ='DF raw data'!K36 -> -2.4197122e-06 | D31: ='DF raw data'!L36 -> -1.8877997e-06 | F31: -3.742065973e-07 | G31: -2.428942609e-06 | H31: -1.890472824e-06 | J31: -3.645448356e-06 | K31: -2.301971296e-06 | L31: -7.632042591e-06 | N31: -3.771735034e-05 | O31: -0.0002938645001 | P31: 4.289096403e-05 | Q31: 0.0003899883057 | R31: 2.187899944e-08
A32: 13.63116 | B32: ='DF raw data'!J37 -> -1.9646424e-07 | C32: ='DF raw data'!K37 -> -1.1227773e-05 | D32: ='DF raw data'!L37 -> 2.0415521e-06 | F32: -1.967424334e-07 | G32: -1.127060328e-05 | H32: 2.044442938e-06 | J32: -6.162254114e-06 | K32: -7.813846291e-06 | L32: -6.412839941e-06 | N32: -4.079946336e-05 | O32: -0.0003142707597 | P32: 3.898279067e-05 | Q32: 0.0004094859383 | R32: 2.347163601e-08
A33: 14.13132 | B33: ='DF raw data'!J38 -> -3.2469572e-07 | C33: ='DF raw data'!K38 -> -7.6520591e-06 | D33: ='DF raw data'!L38 -> 4.6480109e-06 | F33: -3.251554891e-07 | G33: -7.681249199e-06 | H33: 4.654592483e-06 | J33: -1.018218559e-05 | K33: -1.488139191e-07 | L33: -1.356102626e-06 | N33: -4.589218531e-05 | O33: -0.0003372241951 | P33: 3.89083599e-05 | Q33: 0.0004289463436 | R33: 2.528219177e-08
A34: 14.63148 | B34: ='DF raw data'!J39 -> -1.6620168e-06 | C34: ='DF raw data'!K39 -> 3.459756e-06 | D34: ='DF raw data'!L39 -> 7.7500936e-06 | F34: -1.664370216e-06 | G34: 3.472953836e-06 | H34: 7.761067733e-06 | J34: -1.010190507e-05 | K34: 1.095918082e-05 | L34: 1.073231347e-06 | N34: -5.094475415e-05 | O34: -0.0003627047233 | P34: 4.438970377e-05 | Q34: 0.0004511482979 | R34: 2.756582919e-08
A35: 15.13164 | B35: ='DF raw data'!J40 -> -4.951768e-06 | C35: ='DF raw data'!K40 -> 1.1114377e-06 | D35: ='DF raw data'!L40 -> 5.1574152e-06 | F35: -4.958779703e-06 | G35: 1.115677471e-06 | H35: 5.1647181e-06 | J35: -7.15081013e-06 | K35: 1.46515324e-05 | L35: 3.369598305e-06 | N35: -5.452130334e-05 | O35: -0.0003899740984 | P35: 5.171781422e-05 | Q35: 0.0004770154798 | R35: 3.039038517e-08
A36: 15.6318 | B36: ='DF raw data'!J41 -> -7.8290605e-06 | C36: ='DF raw data'!K41 -> 2.8805487e-06 | D36: ='DF raw data'!L41 -> 1.2273652e-07 | F36: -7.84014645e-06 | G36: 2.89153705e-06 | H36: 1.229103149e-07 | J36: -6.580295924e-06 | K36: 1.255529834e-05 | L36: 4.344602158e-06 | N36: -5.781250415e-05 | O36: -0.0004188896005 | P36: 5.799747224e-05 | Q36: 0.0005060234955 | R36: 3.374445434e-08
A37: 16.13196 | B37: ='DF raw data'!J42 -> -5.6541016e-06 | C37: ='DF raw data'!K42 -> -2.7598178e-06 | D37: ='DF raw data'!L42 -> -3.0954923e-06 | F37: -5.662107808e-06 | G37: -2.770345601e-06 | H37: -3.099875517e-06 | J37: -6.942525115e-06 | K37: -1.608309158e-08 | L37: 2.314081506e-06 | N37: -6.128487751e-05 | O37: -0.0004495418448 | P37: 5.798942812e-05 | Q37: 0.0005350274879 | R37: 3.730489831e-08
A38: 16.63212 | B38: ='DF raw data'!J43 -> -2.2367301e-06 | C38: ='DF raw data'!K43 -> -8.9787254e-06 | D38: ='DF raw data'!L43 -> -7.931967e-06 | F38: -2.23989731e-06 | G38: -9.012976296e-06 | H38: -7.943198665e-06 | J38: -3.698594304e-06 | K38: 4.00200151e-06 | L38: 9.051366011e-06 | N38: -6.313476644e-05 | O38: -0.0004811193296 | P38: 5.99910692e-05 | Q38: 0.0005650326211 | R38: 4.109857546e-08
A39: 17.13228 | B39: ='DF raw data'!J44 -> -3.1298976e-06 | C39: ='DF raw data'!K44 -> -8.6995567e-07 | D39: ='DF raw data'!L44 -> -5.1770276e-06 | F39: -3.134329535e-06 | G39: -8.732742659e-07 | H39: -5.184358271e-06 | J39: -1.263467841e-06 | K39: 9.870023828e-08 | L39: 1.072003611e-05 | N39: -6.376670251e-05 | O39: -0.0005130128835 | P39: 6.004043511e-05 | Q39: 0.0005950624451 | R39: 4.493532593e-08
A40: 17.63244 | B40: ='DF raw data'!J45 -> -1.9037095e-06 | C40: ='DF raw data'!K45 -> 3.3531476e-06 | D40: ='DF raw data'!L45 -> -7.9365577e-07 | F40: -1.906405153e-06 | G40: 3.36593876e-06 | H40: -7.947795866e-07 | J40: -3.851460356e-06 | K40: 4.299607766e-06 | L40: 1.337023048e-06 | N40: -6.569304893e-05 | O40: -0.0005458699189 | P40: 6.219092693e-05 | Q40: 0.0006261678591 | R40: 4.902827929e-08
A41: 18.1326 | B41: ='DF raw data'!J46 -> -2.4605717e-07 | C41: ='DF raw data'!K46 -> -1.0248818e-05 | D41: ='DF raw data'!L46 -> 1.3918019e-07 | F41: -2.46405587e-07 | G41: -1.028791388e-05 | H41: 1.393772691e-07 | J41: -9.578387619e-06 | K41: 1.095703868e-05 | L41: -3.383745008e-06 | N41: -7.048377528e-05 | O41: -0.0005811230839 | P41: 6.767119939e-05 | Q41: 0.0006600142862 | R41: 5.380348377e-08
A42: 18.63276 | B42: ='DF raw data'!J47 -> -4.4483299e-06 | C42: ='DF raw data'!K47 -> 3.0017004e-06 | D42: ='DF raw data'!L47 -> 5.6254921e-06 | F42: -4.454628735e-06 | G42: 3.013150904e-06 | H42: 5.633457797e-06 | J42: -1.053459289e-05 | K42: 1.243636237e-05 | L42: -2.737052987e-06 | N42: -7.575275726e-05 | O42: -0.000619011583 | P42: 7.389137039e-05 | Q42: 0.000696971794 | R42: 5.940448294e-08
A43: 19.13292 | B43: ='DF raw data'!J48 -> -2.2562151e-06 | C43: ='DF raw data'!K48 -> -3.9720044e-06 | D43: ='DF raw data'!L48 -> 4.4409589e-06 | F43: -2.259409901e-06 | G43: -3.987156296e-06 | H43: 4.447247298e-06 | J43: -6.701087623e-06 | K43: 1.385313937e-05 | L43: 2.851137102e-06 | N43: -7.910437324e-05 | O43: -0.0006585764263 | P43: 8.082015658e-05 | Q43: 0.0007373948035 | R43: 6.580122903e-08
A44: 19.63308 | B44: ='DF raw data'!J49 -> 1.7340656e-06 | C44: ='DF raw data'!K49 -> 2.8449235e-06 | D44: ='DF raw data'!L49 -> -2.574177e-07 | F44: 1.736521037e-06 | G44: 2.855775951e-06 | H44: -2.577822035e-07 | J44: -3.310834112e-06 | K44: 1.709988557e-05 | L44: 4.079600847e-06 | N44: -8.076032003e-05 | O44: -0.000698969508 | P44: 8.937283535e-05 | Q44: 0.0007820955208 | R44: 7.305841708e-08
A45: 20.13324 | B45: ='DF raw data'!J50 -> 5.1770053e-06 | C45: ='DF raw data'!K50 -> -1.2931639e-05 | D45: ='DF raw data'!L50 -> 1.4218006e-06 | F45: 5.18433594e-06 | G45: -1.298096897e-05 | H45: 1.42381387e-06 | J45: -3.694251764e-06 | K45: 1.062876016e-05 | L45: 3.406248127e-06 | N45: -8.260803699e-05 | O45: -0.0007402867437 | P45: 9.468891603e-05 | Q45: 0.0008294551291 | R45: 8.095598279e-08
A46: 20.6334 | B46: ='DF raw data'!J51 -> 5.0225512e-06 | C46: ='DF raw data'!K51 -> -3.8567232e-06 | D46: ='DF raw data'!L51 -> 5.1796433e-06 | F46: 5.029663132e-06 | G46: -3.871435336e-06 | H46: 5.186977675e-06 | J46: -4.384406541e-06 | K46: 2.454771062e-06 | L46: 1.831148139e-06 | N46: -8.480094177e-05 | O46: -0.0007827007828 | P46: 9.591669432e-05 | Q46: 0.0008774288229 | R46: 8.915421137e-08
A47: 21.13356 | B47: ='DF raw data'!J52 -> -7.8399785e-07 | C47: ='DF raw data'!K52 -> -2.874566e-06 | D47: ='DF raw data'!L52 -> 6.9488506e-06 | F47: -7.85107991e-07 | G47: -2.885531528e-06 | H47: 6.958690172e-06 | J47: -1.344214216e-06 | K47: 1.904561268e-06 | L47: -6.27032112e-07 | N47: -8.547326395e-05 | O47: -0.0008254510905 | P47: 9.686927969e-05 | Q47: 0.0009258789618 | R47: 9.750154977e-08
A48: 21.63372 | B48: ='DF raw data'!J53 -> -5.3760145e-06 | C48: ='DF raw data'!K53 -> 1.3706868e-06 | D48: ='DF raw data'!L53 -> 6.6462944e-06 | F48: -5.383626937e-06 | G48: 1.375915521e-06 | H48: 6.655705553e-06 | J48: -1.784318823e-06 | K48: 3.550636845e-06 | L48: -2.622950146e-06 | N48: -8.636570886e-05 | O48: -0.0008686477634 | P48: 9.864516621e-05 | Q48: 0.0009752173282 | R48: 1.060992524e-07
A49: 22.13388 | B49: ='DF raw data'!J54 -> 1.6867427e-06 | C49: ='DF raw data'!K54 -> 8.0359077e-06 | D49: ='DF raw data'!L54 -> 1.2942166e-06 | F49: 1.689131128e-06 | G49: 8.066562055e-06 | H49: 1.296049211e-06 | J49: -5.934325223e-06 | K49: 7.136241574e-06 | L49: 1.705722388e-06 | N49: -8.933382096e-05 | O49: -0.0009133289673 | P49: 0.0001022144288 | Q49: 0.001026340897 | R49: 1.153163614e-07
A50: 22.63404 | B50: ='DF raw data'!J55 -> 7.1465779e-06 | C50: ='DF raw data'!K55 -> -6.5111235e-06 | D50: ='DF raw data'!L55 -> 3.0142457e-06 | F50: 7.156697454e-06 | G50: -6.535961303e-06 | H50: 3.018513872e-06 | J50: -8.263028204e-06 | K50: 6.482097311e-06 | L50: 2.243637899e-06 | N50: -9.346665714e-05 | O50: -0.0009600772505 | P50: 0.0001054565146 | Q50: 0.001079086027 | R50: 1.252480848e-07
A51: 23.1342 | B51: ='DF raw data'!J56 -> 5.3490089e-06 | C51: ='DF raw data'!K56 -> -1.1407633e-05 | D51: ='DF raw data'!L56 -> 7.1091108e-06 | F51: 5.356583097e-06 | G51: -1.145114938e-05 | H51: 7.119177301e-06 | J51: -5.299240214e-06 | K51: 6.694654064e-06 | L51: -3.719321012e-06 | N51: -9.611712513e-05 | O51: -0.001008151192 | P51: 0.0001088049128 | Q51: 0.001133505892 | R51: 1.357899625e-07
A52: 23.63436 | B52: ='DF raw data'!J57 -> 1.415204e-06 | C52: ='DF raw data'!K57 -> -1.4611221e-05 | D52: ='DF raw data'!L57 -> 3.1150687e-06 | F52: 1.417207929e-06 | G52: -1.466695802e-05 | H52: 3.119479637e-06 | J52: -4.342039935e-07 | K52: -2.109638899e-06 | L52: -1.130589151e-05 | N52: -9.63342966e-05 | O52: -0.001056333754 | P52: 0.0001077497558 | Q52: 0.00118739801 | R52: 1.462384583e-07
A53: 24.13452 | B53: ='DF raw data'!J58 -> 5.7922557e-07 | C53: ='DF raw data'!K58 -> -2.4527526e-05 | D53: ='DF raw data'!L58 -> -4.7077574e-06 | F53: 5.800457534e-07 | G53: -2.462109048e-05 | H53: -4.714423584e-06 | J53: -4.027598415e-06 | K53: 6.211850124e-07 | L53: -9.982189494e-06 | N53: -9.834874022e-05 | O53: -0.00110552386 | P53: 0.0001080604477 | Q53: 0.001241445524 | R53: 1.569166417e-07
A54: 24.63468 | B54: ='DF raw data'!J59 -> 1.4790869e-06 | C54: ='DF raw data'!K59 -> -1.188477e-05 | D54: ='DF raw data'!L59 -> -1.0775426e-05 | F54: 1.481181287e-06 | G54: -1.19301065e-05 | H54: -1.0790684e-05 | J54: -8.868633027e-06 | K54: 3.781944555e-06 | L54: -7.049003375e-06 | N54: -0.0001027844757 | O54: -0.001156932543 | P54: 0.0001099520251 | Q54: 0.001296439129 | R54: 1.682473145e-07
A55: 25.13484 | B55: ='DF raw data'!J60 -> -5.2533755e-07 | C55: ='DF raw data'!K60 -> -2.5387296e-06 | D55: ='DF raw data'!L60 -> -9.8736873e-06 | F55: -5.26081428e-07 | G55: -2.548414022e-06 | H55: -9.887668441e-06 | J55: -7.615046959e-06 | K55: 5.111930335e-06 | L55: -6.737756172e-06 | N55: -0.0001065932176 | O55: -0.001210246207 | P55: 0.0001125088081 | Q55: 0.001352711534 | R55: 1.802613307e-07
A56: 25.635 | B56: ='DF raw data'!J61 -> -3.3637905e-06 | C56: ='DF raw data'!K61 -> 4.145038e-06 | D56: ='DF raw data'!L61 -> -1.8550579e-06 | F56: -3.368553627e-06 | G56: 4.160849962e-06 | H56: -1.857684662e-06 | J56: -7.625670281e-06 | K56: 4.95884137e-06 | L56: -1.362499972e-06 | N56: -0.0001104072729 | O56: -0.001265467508 | P56: 0.0001149890222 | Q56: 0.001410224443 | R56: 1.929715172e-07
A57: 26.13516 | B57: ='DF raw data'!J62 -> -2.6588521e-06 | C57: ='DF raw data'!K62 -> 4.7011622e-06 | D57: ='DF raw data'!L62 -> 4.8655766e-06 | F57: -2.662617035e-06 | G57: 4.719095594e-06 | H57: 4.872466256e-06 | J57: -9.612472815e-06 | K57: -3.442265916e-07 | L57: -4.934384809e-06 | N57: -0.0001152150473 | O57: -0.001323093466 | P57: 0.0001148168539 | Q57: 0.001467651241 | R57: 2.06204459e-07
A58: 26.63532 | B58: ='DF raw data'!J63 -> -3.5065739e-06 | C58: ='DF raw data'!K63 -> -7.9896299e-06 | D58: ='DF raw data'!L63 -> -8.4908402e-07 | F58: -3.511539209e-06 | G58: -8.020107721e-06 | H58: -8.50286323e-07 | J58: -9.481932131e-06 | K58: 9.69017497e-07 | L58: -1.066467182e-05 | N58: -0.0001199575304 | O58: -0.001383091425 | P58: 0.0001153015177 | Q58: 0.001525320448 | R58: 2.20051013e-07
A59: 27.13548 | B59: ='DF raw data'!J64 -> -6.6315101e-06 | C59: ='DF raw data'!K64 -> -5.2985013e-07 | D59: ='DF raw data'!L64 -> -4.9073515e-06 | F59: -6.640900318e-06 | G59: -5.318713347e-07 | H59: -4.91430031e-06 | J59: -7.09473514e-06 | K59: 8.125761423e-06 | L59: -1.088034478e-05 | N59: -0.0001235060332 | O59: -0.001444864202 | P59: 0.0001193656985 | Q59: 0.001585022396 | R59: 2.348066884e-07
A60: 27.63564 | B60: ='DF raw data'!J65 -> -8.4622434e-06 | C60: ='DF raw data'!K65 -> -4.124111e-06 | D60: ='DF raw data'!L65 -> -8.1427584e-07 | F60: -8.474225937e-06 | G60: -4.139843132e-06 | H60: -8.154288546e-07 | J60: -6.141400827e-06 | K60: 8.169826579e-06 | L60: -9.406487452e-06 | N60: -0.0001265777162 | O60: -0.001508173313 | P60: 0.0001234519189 | Q60: 0.001646768108 | R60: 2.504428376e-07
A61: 28.1358 | B61: ='DF raw data'!J66 -> -7.5283592e-06 | C61: ='DF raw data'!K66 -> -5.871073e-06 | D61: ='DF raw data'!L66 -> 1.5410026e-06 | F61: -7.539019357e-06 | G61: -5.89346922e-06 | H61: 1.54318466e-06 | J61: -4.927786679e-06 | K61: 4.904329214e-06 | L61: -2.926605013e-06 | N61: -0.000129042398 | O61: -0.001572715159 | P61: 0.0001259048682 | Q61: 0.001709740687 | R61: 2.667000264e-07
A62: 28.63596 | B62: ='DF raw data'!J67 -> -4.1919543e-06 | C62: ='DF raw data'!K67 -> -7.2052117e-06 | D62: ='DF raw data'!L67 -> -3.6937361e-06 | F62: -4.197890107e-06 | G62: -7.232697222e-06 | H62: -3.69896643e-06 | J62: -7.097547617e-06 | K62: 8.733027742e-06 | L62: 2.080556803e-06 | N62: -0.0001325923074 | O62: -0.001639032527 | P62: 0.0001302727794 | Q62: 0.00177489792 | R62: 2.839814132e-07
A63: 29.13612 | B63: ='DF raw data'!J68 -> -1.4546229e-06 | C63: ='DF raw data'!K68 -> 3.4696295e-06 | D63: ='DF raw data'!L68 -> -5.3512722e-06 | F63: -1.456682646e-06 | G63: 3.482865e-06 | H63: -5.358849601e-06 | J63: -1.065965373e-05 | K63: 7.693549643e-06 | L63: 4.400698578e-07 | N63: -0.0001379238398 | O63: -0.001708016515 | P63: 0.0001341207852 | Q63: 0.001841979772 | R63: 3.024930203e-07
A64: 29.63628 | B64: ='DF raw data'!J69 -> 3.8219267e-07 | C64: ='DF raw data'!K69 -> -2.7259273e-06 | D64: ='DF raw data'!L69 -> 4.643573e-07 | F64: 3.827338548e-07 | G64: -2.73632582e-06 | H64: 4.650148299e-07 | J64: -8.38014751e-06 | K64: -1.396964611e-06 | L64: 5.519722475e-07 | N64: -0.0001421152544 | O64: -0.00177909688 | P64: 0.0001334220794 | Q64: 0.001908712159 | R64: 3.214981984e-07
A65: 30.13644 | B65: ='DF raw data'!J70 -> -2.7550984e-06 | C65: ='DF raw data'!K70 -> 3.2497417e-06 | D65: ='DF raw data'!L70 -> 7.5003172e-06 | F65: -2.758999619e-06 | G65: 3.2621384e-06 | H65: 7.510937649e-06 | J65: -6.365599043e-06 | K65: 2.829961953e-07 | L65: -3.215191974e-06 | N65: -0.0001452990724 | O65: -0.001851769664 | P65: 0.0001335636227 | Q65: 0.001975515341 | R65: 3.409799615e-07
A66: 30.6366 | B66: ='DF raw data'!J71 -> -4.6232149e-06 | C66: ='DF raw data'!K71 -> 8.59127e-07 | D66: ='DF raw data'!L71 -> 1.0738643e-06 | F66: -4.629761372e-06 | G66: 8.624042881e-07 | H66: 1.075384892e-06 | J66: -9.019371171e-06 | K66: 7.646002455e-06 | L66: 2.853935058e-06 | N66: -0.0001498102011 | O66: -0.001926698735 | P66: 0.0001373878473 | Q66: 0.002044231246 | R66: 3.616458309e-07
A67: 31.13676 | B67: ='DF raw data'!J72 -> 4.4179731e-07 | C67: ='DF raw data'!K72 -> -1.2828365e-05 | D67: ='DF raw data'!L72 -> -1.8768858e-06 | F67: 4.42422895e-07 | G67: -1.287730101e-05 | H67: -1.87954347e-06 | J67: -1.159580745e-05 | K67: 7.86873829e-06 | L67: 8.868349727e-06 | N67: -0.0001556099601 | O67: -0.002004528612 | P67: 0.0001413234755 | Q67: 0.002114915596 | R67: 3.83746293e-07
A68: 31.63692 | B68: ='DF raw data'!J73 -> 2.0606105e-06 | C68: ='DF raw data'!K73 -> 7.5187436e-06 | D68: ='DF raw data'!L73 -> 5.7649436e-07 | F68: 2.063528324e-06 | G68: 7.547425144e-06 | H68: 5.77310676e-07 | J68: -7.871726904e-06 | K68: -4.800684044e-06 | L68: 9.74877775e-06 | N68: -0.0001595470831 | O68: -0.002084327681 | P68: 0.0001389223653 | Q68: 0.002184399006 | R68: 4.061308014e-07
A69: 32.13708 | B69: ='DF raw data'!J74 -> 2.8866751e-07 | C69: ='DF raw data'!K74 -> 1.4324063e-05 | D69: ='DF raw data'!L74 -> 1.2058356e-06 | F69: 2.890762632e-07 | G69: 1.437870461e-05 | H69: 1.207543063e-06 | J69: -2.00542777e-06 | K69: 1.18015058e-05 | L69: 1.228293905e-05 | N69: -0.0001605501178 | O69: -0.002164628428 | P69: 0.0001448250065 | Q69: 0.002256834681 | R69: 4.295135929e-07
A70: 32.63724 | B70: ='DF raw data'!J75 -> -1.4181121e-06 | C70: ='DF raw data'!K75 -> -2.2916226e-06 | D70: ='DF raw data'!L75 -> 1.7401965e-06 | F70: -1.420120147e-06 | G70: -2.30036439e-06 | H70: 1.742660618e-06 | J70: -2.803418928e-06 | K70: 2.068455395e-05 | L70: 1.192358092e-05 | N70: -0.0001619522758 | O70: -0.002245630479 | P70: 0.000155170593 | Q70: 0.002334444805 | R70: 4.546748683e-07
A71: 33.1374 | B71: ='DF raw data'!J76 -> -2.7857448e-06 | C71: ='DF raw data'!K76 -> -1.2338118e-06 | D71: ='DF raw data'!L76 -> -7.9976758e-07 | F71: -2.789689415e-06 | G71: =(1-$G$1*($B$2-$G$2))*C71*$M$2/$M$1 -> -1.238518388e-06 | H71: -8.009000509e-07 | J71: =-CELL("contents", INDEX($F$6:$F$1203,1204-CELL("row",F71))) -> -3.949664517e-06 | K71: =CELL("contents", INDEX($G$6:$G$1203,1204-CELL("row",G71))) -> 6.631302115e-06 | L71: =-CELL("contents", INDEX($H$6:$H$1203,1204-CELL("row",H71))) -> 5.612644567e-06 | N71: -0.00016392774 | O71: -0.002327620577 | P71: 0.0001584873051 | Q71: 0.002413713816 | R71: 4.806784516e-07
A72: =A71+$B$1 -> 33.63756 | B72: ='DF raw data'!J77 -> -2.5216129e-06 | C72: ='DF raw data'!K77 -> 7.3262086e-06 | D72: ='DF raw data'!L77 -> -5.9489339e-06 | F72: -2.525183504e-06 | G72: 7.354155686e-06 | H72: -5.95735759e-06 | J72: -1.79026443e-06 | K72: -2.204697338e-07 | L72: 1.886793221e-07 | N72: =J72*$B$1+N71 -> -0.0001648231587 | O72: =N72*$B$1+O71 -> -0.002410058528 | P72: =K72*$B$1+P71 -> 0.0001583770349 | Q72: =P72*$B$1+Q71 -> 0.002492927673 | R72: =(N72^2+P72^2)*$B$1+R71 -> 5.068117911e-07
A73: 34.13772 | B73: ='DF raw data'!J78 -> 5.8063711e-07 | C73: ='DF raw data'!K78 -> -6.7518258e-06 | D73: ='DF raw data'!L78 -> -3.6086219e-06 | F73: 5.814592921e-07 | G73: -6.777581804e-06 | H73: -3.613731709e-06 | J73: -3.091313711e-06 | K73: 1.296357085e-06 | L73: -3.267172174e-06 | N73: -0.0001663693102 | O73: -0.002493269802 | P73: 0.0001590254209 | Q73: 0.002572465828 | R73: 5.333041818e-07
A74: 34.63788 | B74: ='DF raw data'!J79 -> 3.1410426e-07 | C74: ='DF raw data'!K79 -> -4.0333807e-06 | D74: ='DF raw data'!L79 -> -3.0075696e-06 | F74: 3.145490316e-07 | G74: -4.048766726e-06 | H74: -3.011828319e-06 | J74: -9.124380754e-06 | K74: 2.458655323e-06 | L74: -7.436093219e-06 | N74: -0.0001709329604 | O74: -0.002578763632 | P74: 0.0001602551419 | Q74: 0.00265261904 | R74: 5.607628595e-07
A75: 35.13804 | B75: ='DF raw data'!J80 -> -8.227787e-07 | C75: ='DF raw data'!K80 -> -6.3655392e-08 | D75: ='DF raw data'!L80 -> -3.3038029e-06 | F75: -8.239437546e-07 | G75: -6.389821647e-08 | H75: -3.308481085e-06 | J75: -1.252514052e-05 | K75: 7.687254721e-06 | L75: -5.940770436e-06 | N75: -0.0001771975347 | O75: -0.002667390751 | P75: 0.0001640999992 | Q75: 0.002734695295 | R75: 5.8993608e-07
A76: 35.6382 | B76: ='DF raw data'!J81 -> 2.0388409e-06 | C76: ='DF raw data'!K81 -> 4.8261836e-06 | D76: ='DF raw data'!L81 -> -4.5337165e-06 | F76: 2.041727899e-06 | G76: 4.844593909e-06 | H76: -4.540136243e-06 | J76: -1.341343056e-05 | K76: 5.261536866e-06 | L76: -2.633347648e-06 | N76: -0.0001839063961 | O76: -0.002759373374 | P76: 0.0001667316095 | Q76: 0.002818087777 | R76: 6.207564355e-07
A77: 36.13836 | B77: ='DF raw data'!J82 -> 9.9976137e-07 | C77: ='DF raw data'!K82 -> 6.3635316e-06 | D77: ='DF raw data'!L82 -> -2.2592374e-06 | F77: 1.001177032e-06 | G77: 6.387806388e-06 | H77: -2.26243648e-06 | J77: -1.452951771e-05 | K77: 5.161888685e-06 | L77: 1.516643931e-06 | N77: -0.0001911734797 | O77: -0.002854990701 | P77: 0.0001693133798 | Q77: 0.002902771557 | R77: 6.533740297e-07
A78: 36.63852 | B78: ='DF raw data'!J83 -> -2.8691709e-06 | C78: ='DF raw data'!K83 -> 3.4543214e-07 | D78: ='DF raw data'!L83 -> 2.2719016e-06 | F78: -2.873233646e-06 | G78: 3.467498505e-07 | H78: 2.275118613e-06 | J78: -1.621993896e-05 | K78: 8.707446429e-06 | L78: 7.151261868e-07 | N78: -0.0001992860444 | O78: -0.002954665609 | P78: 0.0001736684962 | Q78: 0.002989633592 | R78: 6.883230468e-07
A79: 37.13868 | B79: ='DF raw data'!J84 -> -3.1997176e-06 | C79: ='DF raw data'!K84 -> 5.6084668e-06 | D79: ='DF raw data'!L84 -> 5.0809449e-06 | F79: -3.2042484e-06 | G79: 5.629861264e-06 | H79: 5.088139518e-06 | J79: -1.495137121e-05 | K79: -3.989299038e-06 | L79: -1.355738411e-07 | N79: -0.0002067641222 | O79: -0.003058080753 | P79: 0.0001716732084 | Q79: 0.003075497664 | R79: 7.244461489e-07
A80: 37.63884 | B80: ='DF raw data'!J85 -> 2.6871683e-07 | C80: ='DF raw data'!K85 -> 1.8546269e-06 | D80: ='DF raw data'!L85 -> 3.2476439e-06 | F80: 2.69097333e-07 | G80: 1.861701694e-06 | H80: 3.252242564e-06 | J80: -7.05817264e-06 | K80: -8.005910268e-06 | L80: 2.631602079e-06 | N80: -0.0002102943378 | O80: -0.003163261569 | P80: 0.0001676689723 | Q80: 0.003159358977 | R80: 7.606260191e-07
A81: 38.139 | B81: ='DF raw data'!J86 -> 1.8305884e-06 | C81: ='DF raw data'!K86 -> -2.7850363e-06 | D81: ='DF raw data'!L86 -> 1.7254918e-06 | F81: 1.833180513e-06 | G81: -2.795660301e-06 | H81: 1.727935096e-06 | J81: -2.223141217e-06 | K81: 1.573641214e-07 | L81: 3.869129941e-06 | N81: -0.0002114062642 | O81: -0.003268998526 | P81: 0.0001677476795 | Q81: 0.003243259657 | R81: 7.970536185e-07
A82: 38.63916 | B82: ='DF raw data'!J87 -> 1.5651906e-06 | C82: ='DF raw data'!K87 -> 7.7315599e-06 | D82: ='DF raw data'!L87 -> -8.5295483e-07 | F82: 1.56740691e-06 | G82: 7.761053268e-06 | H82: -8.54162614e-07 | J82: -5.092485363e-06 | K82: 4.160447834e-06 | L82: -1.104631947e-06 | N82: -0.0002139533216 | O82: -0.003376009419 | P82: 0.0001698285691 | Q82: 0.003328201114 | R82: 8.343744407e-07
A83: 39.13932 | B83: ='DF raw data'!J88 -> 5.687501e-06 | C83: ='DF raw data'!K88 -> -5.3036074e-06 | D83: ='DF raw data'!L88 -> -1.4076738e-06 | F83: 5.695554501e-06 | G83: -5.323838925e-06 | H83: -1.409667066e-06 | J83: -6.551019727e-06 | K83: -3.190465832e-07 | L83: -5.249559365e-06 | N83: -0.0002172298797 | O83: -0.003484659116 | P83: 0.0001696689948 | Q83: 0.003413062758 | R83: 8.723747911e-07
A84: 39.63948 | B84: ='DF raw data'!J89 -> 6.0604375e-06 | C84: ='DF raw data'!K89 -> 2.8076975e-06 | D84: ='DF raw data'!L89 -> 2.1232829e-06 | F84: 6.06901908e-06 | G84: 2.818407946e-06 | H84: 2.126289469e-06 | J84: -6.322420689e-06 | K84: 3.832973976e-06 | L84: -3.459325378e-06 | N84: -0.0002203921016 | O84: -0.003594890429 | P84: 0.000171586095 | Q84: 0.00349888326 | R84: 9.113945067e-07
A85: 40.13964 | B85: ='DF raw data'!J90 -> 4.11262e-06 | C85: ='DF raw data'!K90 -> 6.9783637e-06 | D85: ='DF raw data'!L90 -> 4.1236326e-06 | F85: 4.11844347e-06 | G85: 7.004983872e-06 | H85: 4.129471664e-06 | J85: -7.236175937e-06 | K85: 4.472117333e-06 | L85: 3.807604544e-06 | N85: -0.0002240113473 | O85: -0.003706931945 | P85: 0.0001738228692 | Q85: 0.003585822506 | R85: 9.516051067e-07
A86: 40.6398 | B86: ='DF raw data'!J91 -> 5.7513839e-06 | C86: ='DF raw data'!K91 -> -2.2506599e-06 | D86: ='DF raw data'!L91 -> 2.4837411e-06 | F86: 5.75952786e-06 | G86: -2.25924543e-06 | H86: 2.487258077e-06 | J86: -7.835572482e-06 | K86: 6.713405021e-06 | L86: 3.073411797e-06 | N86: -0.0002279303873 | O86: -0.003820933607 | P86: 0.0001771806459 | Q86: 0.003674441178 | R86: 9.932910633e-07
A87: 41.13996 | B87: ='DF raw data'!J92 -> 7.3406859e-06 | C87: ='DF raw data'!K92 -> 2.1894326e-07 | D87: ='DF raw data'!L92 -> 5.4958418e-06 | F87: =(1-$G$1*($B$2-$G$2))*B87 -> 7.351080311e-06 | G87: 2.197784568e-07 | H87: 5.503623912e-06 | J87: -1.098137164e-05 | K87: 1.333055546e-06 | L87: -4.643393448e-06 | N87: -0.0002334228301 | O87: -0.00393768237 | P87: 0.000177847387 | Q87: 0.003763393327 | R87: 1.036362797e-06
A88: 41.64012 | B88: ='DF raw data'!J93 -> 5.6391741e-06 | C88: ='DF raw data'!K93 -> 5.1849693e-06 | D88: ='DF raw data'!L93 -> 5.424632e-06 | F88: 5.647159171e-06 | G88: 5.204748259e-06 | H88: 5.432313279e-06 | J88: -1.288081244e-05 | K88: -8.815286741e-06 | L88: -4.531425526e-06 | N88: -0.0002398652973 | O88: -0.004057653397 | P88: 0.0001734383331 | Q88: 0.003850140243 | R88: 1.080184924e-06
A89: 42.14028 | B89: ='DF raw data'!J94 -> 7.0117399e-06 | C89: ='DF raw data'!K94 -> 3.6070594e-06 | D89: ='DF raw data'!L94 -> 4.616943e-07 | F89: 7.021668524e-06 | G89: 3.62081915e-06 | H89: 4.623480591e-07 | J89: -1.099314628e-05 | K89: -1.344492408e-05 | L89: -1.120559669e-06 | N89: -0.0002453636293 | O89: -0.00418037447 | P89: 0.0001667137199 | Q89: 0.003933523778 | R89: 1.124197391e-06
A90: 42.64044 | B90: ='DF raw data'!J95 -> 8.8834649e-06 | C90: ='DF raw data'!K95 -> 3.2226558e-06 | D90: ='DF raw data'!L95 -> -4.5283323e-06 | F90: 8.896043886e-06 | G90: 3.234949176e-06 | H90: -4.534744419e-06 | J90: -7.561973814e-06 | K90: -1.687704073e-07 | L90: 1.225718163e-06 | N90: -0.0002491458261 | O90: -0.004304987246 | P90: 0.0001666293077 | Q90: 0.004016865092 | R90: 1.16913125e-06
A91: 43.1406 | B91: ='DF raw data'!J96 -> 3.5517162e-06 | C91: ='DF raw data'!K96 -> -6.0037e-06 | D91: ='DF raw data'!L96 -> -9.6436429e-07 | F91: 3.55674543e-06 | G91: -6.026602149e-06 | H91: -9.657298298e-07 | J91: -9.227321011e-06 | K91: 1.565970965e-06 | L91: 3.190385398e-06 | N91: -0.000253760963 | O91: -0.00443190833 | P91: 0.0001674125437 | Q91: 0.00410059815 | R91: 1.21535683e-06
A92: 43.64076 | B92: ='DF raw data'!J97 -> -4.3940076e-06 | C92: ='DF raw data'!K97 -> -4.5161205e-06 | D92: ='DF raw data'!L97 -> 4.3949094e-06 | F92: -4.400229515e-06 | G92: -4.53334802e-06 | H92: 4.401132592e-06 | J92: -1.003820901e-05 | K92: 2.258286787e-06 | L92: 1.583094692e-06 | N92: -0.0002587816736 | O92: -0.004561340571 | P92: 0.0001685420485 | Q92: 0.004184896141 | R92: 1.263059278e-06
A93: 44.14092 | B93: ='DF raw data'!J98 -> -7.2177777e-06 | C93: ='DF raw data'!K98 -> 1.5636593e-07 | D93: ='DF raw data'!L98 -> 3.3321032e-06 | F93: -7.227998073e-06 | G93: 1.569624148e-07 | H93: 3.336821458e-06 | J93: -3.689428243e-06 | K93: 1.756829762e-06 | L93: -8.065001494e-08 | N93: -0.0002606269781 | O93: -0.004691695761 | P93: 0.0001694207444 | Q93: 0.00426963362 | R93: 1.311389644e-06
A94: 44.64108 | B94: ='DF raw data'!J99 -> -6.5929912e-06 | C94: ='DF raw data'!K99 -> -5.5619221e-06 | D94: ='DF raw data'!L99 -> 3.0791982e-06 | F94: -6.602326876e-06 | G94: -5.583139011e-06 | H94: 3.083558345e-06 | J94: -4.029896565e-07 | K94: 4.675700083e-06 | L94: 4.93237016e-06 | N94: -0.0002608285374 | O94: -0.004822151762 | P94: 0.0001717593426 | Q94: 0.004355540773 | R94: 1.360171648e-06
A95: 45.14124 | B95: ='DF raw data'!J100 -> -4.5451293e-06 | C95: ='DF raw data'!K100 -> -9.0074127e-06 | D95: ='DF raw data'!L100 -> 2.5185493e-06 | F95: -4.551565203e-06 | G95: -9.041773029e-06 | H95: 2.522115566e-06 | J95: -4.098726791e-06 | K95: 7.11963346e-06 | L95: 1.408650729e-05 | N95: -0.0002628785566 | O95: -0.004953633101 | P95: 0.0001753202985 | Q95: 0.004443228974 | R95: 1.410108794e-06
A96: 45.6414 | B96: ='DF raw data'!J101 -> -3.2595988e-06 | C96: ='DF raw data'!K101 -> 4.8309871e-06 | D96: ='DF raw data'!L101 -> -3.6855579e-06 | F96: -3.264214392e-06 | G96: 4.849415733e-06 | H96: -3.69077665e-06 | J96: -2.994727037e-06 | K96: 1.0588982e-05 | L96: 1.587321469e-05 | N96: -0.0002643763992 | O96: -0.005085863601 | P96: 0.0001806164837 | Q96: 0.004533566114 | R96: 1.461383795e-06
A97: 46.14156 | B97: ='DF raw data'!J102 -> -1.0565261e-06 | C97: ='DF raw data'!K102 -> 1.2338e-05 | D97: ='DF raw data'!L102 -> -6.3170974e-06 | F97: -1.058022141e-06 | G97: 1.238506543e-05 | H97: -6.32604241e-06 | J97: -1.50844644e-06 | K97: 1.253333187e-05 | L97: 1.085379725e-05 | N97: -0.0002651308638 | O97: -0.005218471454 | P97: 0.000186885155 | Q97: 0.004627038593 | R97: 1.514010848e-06
A98: 46.64172 | B98: ='DF raw data'!J103 -> 3.994604e-06 | C98: ='DF raw data'!K103 -> 3.4959148e-06 | D98: ='DF raw data'!L103 -> -2.0834066e-06 | F98: 4.000260359e-06 | G98: 3.50925057e-06 | H98: -2.086356704e-06 | J98: -5.513470836e-06 | K98: -3.22278234e-06 | L98: 4.810864552e-06 | N98: -0.0002678884814 | O98: -0.005352458556 | P98: 0.0001852732482 | Q98: 0.004719704861 | R98: 1.56707303e-06
A99: 47.14188 | B99: ='DF raw data'!J104 -> 3.499795e-06 | C99: ='DF raw data'!K104 -> 5.2511491e-06 | D99: ='DF raw data'!L104 -> 1.1846698e-06 | F99: 3.50475071e-06 | G99: 5.271180514e-06 | H99: 1.186347292e-06 | J99: -7.481227539e-06 | K99: -3.419496589e-07 | L99: 5.200438509e-07 | N99: -0.0002716302921 | O99: -0.005488317163 | P99: 0.0001851022186 | Q99: 0.004812285587 | R99: 1.621113241e-06
A100: 47.64204 | B100: ='DF raw data'!J105 -> -2.1181651e-07 | C100: ='DF raw data'!K105 -> 2.2735885e-06 | D100: ='DF raw data'!L105 -> 2.7278568e-06 | F100: -2.121164422e-07 | G100: 2.282261495e-06 | H100: 2.731719445e-06 | J100: -8.152670458e-06 | K100: -3.638653925e-06 | L100: -8.973669449e-07 | N100: -0.0002757079318 | O100: -0.005626215243 | P100: 0.0001832823095 | Q100: 0.004903956067 | R100: 1.675934412e-06
A101: 48.1422 | B101: ='DF raw data'!J106 -> -1.1366926e-06 | C101: ='DF raw data'!K106 -> -4.5242675e-08 | D101: ='DF raw data'!L106 -> 5.4695397e-07 | F101: -1.138302157e-06 | G101: -4.541526098e-08 | H101: 5.477284568e-07 | J101: -7.427746317e-06 | K101: -1.058324319e-05 | L101: 2.384262742e-06 | N101: -0.0002794229934 | O101: -0.005765971447 | P101: 0.0001779889946 | Q101: 0.004992979042 | R101: 1.730830619e-06
A102: 48.64236 | B102: ='DF raw data'!J107 -> -8.3052032e-07 | C102: ='DF raw data'!K107 -> -2.7787653e-06 | D102: ='DF raw data'!L107 -> -5.0915787e-06 | F102: -8.316963368e-07 | G102: -2.789365379e-06 | H102: -5.098788375e-06 | J102: -4.917629617e-06 | K102: -2.036375887e-06 | L102: 5.42237803e-07 | N102: -0.000281882595 | O102: -0.005906957846 | P102: 0.0001769704808 | Q102: 0.005081492598 | R102: 1.786236517e-06
A103: 49.14252 | B103: ='DF raw data'!J108 -> -1.4333334e-06 | C103: ='DF raw data'!K108 -> 3.6229374e-06 | D103: ='DF raw data'!L108 -> -1.1415346e-05 | F103: -1.435363e-06 | G103: 3.636757719e-06 | H103: -1.143151013e-05 | J103: -4.580596353e-06 | K103: -3.86674722e-06 | L103: -2.127025409e-06 | N103: -0.0002841736261 | O103: -0.006049090126 | P103: 0.0001750364885 | Q103: 0.005169038848 | R103: 1.841950551e-06
A104: 49.64268 | B104: ='DF raw data'!J109 -> 1.0990054e-06 | C104: ='DF raw data'!K109 -> -2.3297466e-07 | D104: ='DF raw data'!L109 -> -7.0298938e-06 | F104: 1.100561592e-06 | G104: -2.33863382e-07 | H104: -7.03984813e-06 | J104: -6.972879636e-06 | K104: -1.01316109e-05 | L104: -1.313514406e-06 | N104: -0.0002876611816 | O104: -0.006192966743 | P104: 0.000169969062 | Q104: 0.005254050574 | R104: 1.897787632e-06
A105: 50.14284 | B105: ='DF raw data'!J110 -> 3.3466652e-06 | C105: ='DF raw data'!K110 -> 7.5266162e-06 | D105: ='DF raw data'!L110 -> 1.7787299e-06 | F105: 3.351404078e-06 | G105: 7.555327775e-06 | H105: 1.781248582e-06 | J105: -6.360046892e-06 | K105: -1.762476722e-06 | L105: -2.517051605e-06 | N105: -0.0002908422226 | O105: -0.006338434389 | P105: 0.0001690875416 | Q105: 0.005338621399 | R105: 1.954395638e-06
A106: 50.643 | B106: ='DF raw data'!J111 -> 1.6037782e-07 | C106: ='DF raw data'!K111 -> -5.0966619e-06 | D106: ='DF raw data'!L111 -> 4.3983e-06 | F106: 1.60604915e-07 | G106: -5.116103996e-06 | H106: 4.404527993e-06 | J106: -1.353030582e-06 | K106: 7.134768074e-06 | L106: 2.114947932e-06 | N106: -0.0002915189544 | O106: -0.006484240509 | P106: 0.0001726560672 | Q106: 0.005424977057 | R106: 2.011810715e-06
A107: 51.14316 | B107: ='DF raw data'!J112 -> -4.8775969e-06 | C107: ='DF raw data'!K112 -> -6.3837006e-06 | D107: ='DF raw data'!L112 -> -8.8482352e-07 | F107: -4.884503577e-06 | G107: -6.408052327e-06 | H107: -8.860764301e-07 | J107: 1.952993529e-06 | K107: 1.047955515e-05 | L107: 2.233437175e-06 | N107: -0.0002905421452 | O107: -0.006629558069 | P107: 0.0001778975215 | Q107: 0.005513954282 | R107: 2.069860418e-06
A108: 51.64332 | B108: ='DF raw data'!J113 -> -2.1146395e-06 | C108: ='DF raw data'!K113 -> 3.0103733e-06 | D108: ='DF raw data'!L113 -> -3.2610058e-06 | F108: -2.11763383e-06 | G108: 3.021856888e-06 | H108: -3.265623384e-06 | J108: 2.19067541e-07 | K108: -2.330499609e-06 | L108: 3.915514228e-06 | N108: -0.0002904325763 | O108: -0.006774820826 | P108: 0.0001767318989 | Q108: 0.005602348508 | R108: 2.127671534e-06
A109: 52.14348 | B109: ='DF raw data'!J114 -> -8.1803478e-07 | C109: ='DF raw data'!K114 -> 2.3296277e-06 | D109: ='DF raw data'!L114 -> -3.3998456e-06 | F109: -8.191931172e-07 | G109: 2.338514467e-06 | H109: -3.404659781e-06 | J109: -5.918412122e-06 | K109: -9.523273013e-06 | L109: 5.699423973e-06 | N109: -0.0002933927294 | O109: -0.006921564134 | P109: 0.0001719687386 | Q109: 0.005688360393 | R109: 2.185516309e-06
A110: 52.64364 | B110: ='DF raw data'!J115 -> -4.5260954e-06 | C110: ='DF raw data'!K115 -> 5.5137339e-06 | D110: ='DF raw data'!L115 -> 4.145752e-07 | F110: -4.532504351e-06 | G110: 5.534766989e-06 | H110: 4.151622385e-07 | J110: -1.117789652e-05 | K110: -7.56017098e-06 | L110: 8.906813515e-07 | N110: -0.0002989834661 | O110: -0.007071103704 | P110: 0.0001681874435 | Q110: 0.005772481024 | R110: 2.244374202e-06
A111: 53.1438 | B111: ='DF raw data'!J116 -> -3.5396795e-06 | C111: ='DF raw data'!K116 -> 1.1728371e-05 | D111: ='DF raw data'!L116 -> 8.0849986e-06 | F111: -3.544691686e-06 | G111: 1.177311089e-05 | H111: 8.096446958e-06 | J111: -9.009753271e-06 | K111: -2.779320005e-06 | L111: -4.5514923e-07 | N111: -0.0003034897843 | O111: -0.007222897154 | P111: 0.0001667973388 | Q111: 0.005855906381 | R111: 2.304357091e-06
A112: 53.64396 | B112: ='DF raw data'!J117 -> 8.6151817e-07 | C112: ='DF raw data'!K117 -> 4.7501298e-06 | D112: ='DF raw data'!L117 -> 8.5708434e-06 | F112: 8.627380797e-07 | G112: 4.768249989e-06 | H112: 8.582979714e-06 | J112: -1.967335107e-06 | K112: -3.943186503e-07 | L112: 1.359289933e-06 | N112: -0.0003044737666 | O112: -0.007375182754 | P112: 0.0001666001164 | Q112: 0.005939233096 | R112: 2.364606301e-06
A113: 54.14412 | B113: ='DF raw data'!J118 -> 2.7042709e-06 | C113: ='DF raw data'!K118 -> 9.3372228e-06 | D113: ='DF raw data'!L118 -> 1.9412603e-06 | F113: 2.708100148e-06 | G113: 9.372841246e-06 | H113: 1.944009125e-06 | J113: 1.352867952e-06 | K113: -1.40781384e-06 | L113: 2.436257463e-06 | N113: -0.0003037971162 | O113: -0.007527129919 | P113: 0.0001658959842 | Q113: 0.006022207631 | R113: 2.424532554e-06
A114: 54.64428 | B114: ='DF raw data'!J119 -> 2.5437341e-06 | C114: ='DF raw data'!K119 -> 9.0193989e-06 | D114: ='DF raw data'!L119 -> 3.2860464e-06 | F114: 2.547336027e-06 | G114: 9.053804952e-06 | H114: 3.290699442e-06 | J114: 2.274521568e-06 | K114: -3.37506745e-06 | L114: 4.423431723e-07 | N114: -0.0003026594915 | O114: -0.00767850809 | P114: 0.0001642079105 | Q114: 0.00610433786 | R114: 2.483835028e-06
A115: 55.14444 | B115: ='DF raw data'!J120 -> 3.5823625e-06 | C115: ='DF raw data'!K120 -> 7.5989337e-06 | D115: ='DF raw data'!L120 -> 3.6212789e-06 | F115: 3.587435125e-06 | G115: 7.627921143e-06 | H115: 3.626406631e-06 | J115: 6.660485812e-06 | K115: 3.89284339e-06 | L115: 4.143253651e-06 | N115: -0.0002993281829 | O115: -0.007828220074 | P115: 0.000166154955 | Q115: 0.006187441922 | R115: 2.542456196e-06
A116: 55.6446 | B116: ='DF raw data'!J121 -> 6.3232305e-06 | C116: ='DF raw data'!K121 -> 3.7303462e-06 | D116: ='DF raw data'!L121 -> -4.2679112e-06 | F116: 6.332184194e-06 | G116: 3.744576249e-06 | H116: -4.273954562e-06 | J116: 7.566692587e-06 | K116: 7.015468515e-07 | L116: 8.83763089e-06 | N116: -0.0002955436259 | O116: -0.007976039174 | P116: 0.0001665058407 | Q116: 0.006270721483 | R116: 2.600009722e-06
A117: 56.14476 | B117: ='DF raw data'!J122 -> 6.0353354e-06 | C117: ='DF raw data'!K122 -> -4.5051793e-06 | D117: ='DF raw data'!L122 -> -2.6678115e-06 | F117: 6.043881435e-06 | G117: -4.522365083e-06 | H117: -2.671589121e-06 | J117: 1.580811364e-06 | K117: -9.397105053e-06 | L117: 4.082194814e-06 | N117: -0.0002947529673 | O117: -0.008123462818 | P117: 0.0001618057846 | Q117: 0.006351650264 | R117: 2.656558023e-06
A118: 56.64492 | B118: ='DF raw data'!J123 -> 1.6227871e-06 | C118: ='DF raw data'!K123 -> -4.0776408e-07 | D118: ='DF raw data'!L123 -> 3.6337935e-06 | F118: 1.625084967e-06 | G118: -4.093195664e-07 | H118: 3.638938952e-06 | J118: -3.681544496e-06 | K118: -9.475591716e-06 | L118: 3.811603299e-08 | N118: -0.0002965943286 | O118: -0.008271807438 | P118: 0.0001570664727 | Q118: 0.006430208631 | R118: 2.712895082e-06
A119: 57.14508 | B119: ='DF raw data'!J124 -> -2.7515041e-06 | C119: ='DF raw data'!K124 -> -7.2412001e-07 | D119: ='DF raw data'!L124 -> 2.6947148e-06 | F119: -2.75540023e-06 | G119: -7.268822906e-07 | H119: 2.698530516e-06 | J119: -5.081993127e-06 | K119: -8.54861996e-06 | L119: 1.096561936e-06 | N119: -0.0002991361383 | O119: -0.008421423369 | P119: 0.0001527907949 | Q119: 0.006506628475 | R119: 2.769326862e-06
A120: 57.64524 | B120: ='DF raw data'!J125 -> -5.2118107e-06 | C120: ='DF raw data'!K125 -> 8.8504803e-06 | D120: ='DF raw data'!L125 -> -6.4088763e-06 | F120: -5.219190624e-06 | G120: 8.884241983e-06 | H120: -6.417951269e-06 | J120: -1.450957851e-06 | K120: 2.908988167e-07 | L120: -1.592906066e-06 | N120: -0.0002998618494 | O120: -0.008571402271 | P120: 0.0001529362909 | Q120: 0.006583121091 | R120: 2.82599831e-06
A121: 58.1454 | B121: ='DF raw data'!J126 -> -5.2974679e-07 | C121: ='DF raw data'!K126 -> 1.5486786e-06 | D121: ='DF raw data'!L126 -> -1.0117941e-05 | F121: -5.304969115e-07 | G121: 1.554586302e-06 | H121: -1.0132268e-05 | J121: -3.536635294e-06 | K121: 3.565101814e-06 | L121: 6.832706632e-07 | N121: -0.0003016307329 | O121: -0.008722265899 | P121: 0.0001547194122 | Q121: 0.006660505552 | R121: 2.883476295e-06
A122: 58.64556 | B122: ='DF raw data'!J127 -> 4.8146917e-06 | C122: ='DF raw data'!K127 -> -8.1225235e-06 | D122: ='DF raw data'!L127 -> -3.3983031e-06 | F122: 4.821509303e-06 | G122: -8.153508266e-06 | H122: -3.403115097e-06 | J122: -1.288168668e-05 | K122: -2.9269171e-06 | L122: 3.281026464e-06 | N122: -0.0003080736373 | O122: -0.008876352009 | P122: 0.0001532554854 | Q122: 0.006737157815 | R122: 2.942693543e-06
A123: 59.14572 | B123: ='DF raw data'!J128 -> 5.7356242e-06 | C123: ='DF raw data'!K128 -> -4.9085293e-06 | D123: ='DF raw data'!L128 -> -2.3634582e-06 | F123: 5.743745844e-06 | G123: -4.927253731e-06 | H123: -2.366804857e-06 | J123: -1.319591399e-05 | K123: -1.322362209e-06 | L123: 1.197534912e-06 | N123: -0.0003146737056 | O123: -0.00903373921 | P123: 0.0001525940927 | Q123: 0.006813479277 | R123: 3.003865361e-06
A124: 59.64588 | B124: ='DF raw data'!J129 -> 5.4573479e-06 | C124: ='DF raw data'!K129 -> 2.1205474e-06 | D124: ='DF raw data'!L129 -> -4.2857373e-06 | F124: 5.465075505e-06 | G124: 2.128636594e-06 | H124: -4.291805904e-06 | J124: -5.424374453e-06 | K124: 8.154959883e-06 | L124: -1.285389438e-06 | N124: -0.0003173867607 | O124: -0.009192483372 | P124: 0.0001566728774 | Q124: 0.006891840783 | R124: 3.066525779e-06
A125: 60.14604 | B125: ='DF raw data'!J130 -> 6.1168407e-06 | C125: ='DF raw data'!K130 -> 6.8885674e-06 | D125: ='DF raw data'!L130 -> -2.4869166e-06 | F125: 6.125502146e-06 | G125: 6.914845028e-06 | H125: -2.490438074e-06 | J125: -3.428070083e-06 | K125: -1.27360954e-06 | L125: 6.812013572e-07 | N125: -0.0003191013443 | O125: -0.0093520851 | P125: 0.0001560358689 | Q125: 0.006969883683 | R125: 3.129632397e-06
A126: 60.6462 | B126: ='DF raw data'!J131 -> 4.8444504e-06 | C126: ='DF raw data'!K131 -> 2.8952641e-07 | D126: ='DF raw data'!L131 -> -1.887465e-06 | F126: 4.851310142e-06 | G126: 2.906308584e-07 | H126: -1.89013765e-06 | J126: -7.821058259e-06 | K126: -9.345271476e-06 | L126: 2.285563081e-06 | N126: -0.0003230131248 | O126: -0.009513643345 | P126: 0.0001513617379 | Q126: 0.00704558877 | R126: 3.193276684e-06
A127: 61.14636 | B127: ='DF raw data'!J132 -> 2.1475146e-06 | C127: ='DF raw data'!K132 -> -2.8137226e-06 | D127: ='DF raw data'!L132 -> 5.2732344e-07 | F127: 2.150555481e-06 | G127: -2.82445603e-06 | H127: 5.2807013e-07 | J127: -1.137241056e-05 | K127: -2.43938971e-06 | L127: -1.350346587e-07 | N127: -0.0003287011496 | O127: -0.009678046512 | P127: 0.0001501416527 | Q127: 0.007120683619 | R127: 3.258591059e-06
A128: 61.64652 | B128: ='DF raw data'!J133 -> 5.3639683e-06 | C128: ='DF raw data'!K133 -> 1.5235943e-06 | D128: ='DF raw data'!L133 -> 1.9833226e-06 | F128: 5.371563679e-06 | G128: 1.529406313e-06 | H128: 1.986130985e-06 | J128: -1.246571449e-05 | K128: -4.523570163e-06 | L128: -1.278190659e-06 | N128: -0.0003349360014 | O128: -0.009845568102 | P128: 0.0001478791439 | Q128: 0.007194646852 | R128: 3.32563769e-06
